Workbook

Sheet Inputs (hidden)
B1: Blue font cells below should be updated as needed
B3: Enter the following dates | C3: Inputs
B4: Date of Calculation (dd/mm/yyyy) | C4: 2020-03-17
B6: Dates of 5-year projection period
B7: Year 1 | C7: 2019/20
B8: Year 2 | C8: 2020/21
B9: Year 3 | C9: 2021/22
B10: Year 4 | C10: 2022/23
B11: Year 5 | C11: 2023/24

Sheet Tudalen Flaen
B1: Offeryn i Ddefnyddwyr: Amcangyfrifon o'r Angen Ychwanegol am Dai yng Nghymru yn ôl Deiliadaeth (yn seiliedig ar 2019)
B3: Dyddiad Cyhoeddi: | C3: 2020-08-13
B4: Manylion Cyswllt: | C4: ystadegau.tai@llyw.cymru
B6: Cyfarwyddiadau-Crynodeb o'r ffigurau a gynhyrchwyd
B7: Mae'r adnodd hwn yn caniatáu i ddefnyddwyr archwilio amcangyfrifon o'r angen am dai yng Nghymru yn ôl deiliadaeth, ac mae'n cynnwys yr opsiwn i newid y rhagdybiaethau sylfaenol a ffynonellau'r data. Ym mis Ionawr 2019, cyhoeddodd Llywodraeth Cymru amcangyfrifon cyffredinol o'r angen am dai ychwanegol ar lefel cenedlaethol a rhanbarthol dros gyfnod o 20 mlynedd (2018/19 i 2037/38). Yn dilyn hyn, cafwyd ail gyhoeddiad yn rhannu'r amcangyfrifon cyffredinol ar gyfer y pum mlynedd cyntaf fesul deiliadaeth (naill ai marchnad neu fforddiadwy). Ceir dolen at yr erthyglau yma isod ac maent yn rhoi'r wybodaeth gefndirol berthnasol i'r adnodd hwn. Cyhoeddwyd amcangyfrifon yn seiliedig ar 2019 ar 13 Awst 2020 - mae dolen i'r erthygl ddiweddaraf hon wedi'i chynnwys isod hefyd. Mae'r model wedi cael ei rannu o 3 rhanbarth i 4 ac wedi'i ddiweddaru lle mae data mwy diweddar ar gael. Mae'r model yn ymdrin â cyfnod o 20 mlynedd o 2019/20 i 2038/39. At ddiben yr adroddiad hwn, diffinnir tai'r farchnad a thai fforddiadwy fel a ganlyn: Tai'r Farchnad: Unedau tai sydd â pherchennog-ddeiliad neu a rentir yn breifat. Mae'n cynnwys unedau tai Cymorth i Brynu a Pherchentyaeth Cost Isel Canolradd (ee Cymorth Prynu a Rhanberchnogaeth). Tai Fforddiadwy : Tai cymdeithasol a thai rhent canolradd. Nid yw'n cynnwys unedau tai Perchentyaeth Cost Isel Canolradd. Fel y trafodwyd yn yr erthygl ystadegol (dolen isod), mae'r adnodd hwn hefyd yn caniatáu i ddefnyddwyr archwilio amcangyfrifon sydd wedi'u rhannu yn bedair deiliadaeth. Ceir dalen wahanol ar gyfer pob un o'r rhanbarthau (Cymru, Gogledd Cymru, Canolbarth a De-orllewin Cymru, De-ddwyrain Cymru). Yn y daflen sy'n dangos Rhaniad y Ddeiliadaeth (CYMRU), mae gan ddefnyddwyr yr opsiwn i newid ffynonellau'r data a'r rhagdybiaethau sylfaenol. Darllenwch drwy'r CANLLAWIAU AR NEWIDYNNAU a fydd yn egluro sut y mae pob newidyn yn cael ei ddefnyddio a ffynhonnell y newidyn sydd wedi'i ragosod. Ar ôl dewis o'r blychau glas, bydd cyfarwyddiadau'n ymddangos er mwyn gallu cyflwyno data. Ar ôl cwblhau mewnbynnu'r data, bydd amcangyfrifon yn ymddangos ar ffurf siartiau a thablau a rhywfaint o sylwadau am y rhagdybiaethau a ddewiswyd.
B24: Cod Lliw
B25: Mae'r ffont glas yn rhifau â chodau caled a rhifau hanesyddol yn gyffredinol; Mae’r ffont gwyrdd ar gyfer yr holl rifau sydd wedi'u cysylltu'n uniongyrchol â thaflenni gwaith eraill; ac mae ffont du ar gyfer pob fformiwlâu lle nad oes cysylltiad uniongyrchol â thaflen waith arall.
B30: Ymwadiad
B31: Nid yw'r amcangyfrifon a gynhyrchwyd gan ddefnyddio'r Adnodd i Ddefnyddwyr: Amcangyfrifon o'r Angen am Dai yng Nghymru yn ôl Deiliadaeth yn ffigurau swyddogol a gynhyrchwyd nac a gymeradwywyd gan Lywodraeth Cymru. Mae gan ddefnyddwyr yr opsiwn i drawsysgrifo'r rhagdybiaethau sylfaenol i archwilio'r effaith y byddai'r newid yn ei gael ar yr amcangyfrifon. Nid targedau ar gyfer tai yw'r amcangyfrifon hyn. Amcangyfrifon o'r angen am dai yn ôl deiliadaeth wedi'u seilio ar set o ragdybiaethau ydynt. Wrth rannu unrhyw amcangyfrifon sydd wedi'u cynhyrchu gan yr adnodd pan fydd defnyddwyr wedi cyflwyno eu rhagdybiaethau eu hunain, rhaid i hynny gael ei ddatgan yn glir.
B36: Disgrifiad o'r Taflenni
B37: Enw | C37: Disgrifiad
B38: Canllawiau ar Newidynnau | C38: Yn rhestru'r newidynnau sydd eu hangen i'w rhannu yn ddeiliadaeth, pam y mae eu hangen a ffynhonnell y newidyn sydd wedi'i ragosod (os yw'n berthnasol)
B39: Rhaniad y Ddeiliadaeth (Cymru) | C39: Yn caniatáu i ddefnyddwyr archwilio amcangyfrifon o unedau tai ychwanegol yng Nghymru wedi'u rhannu yn ôl deiliadaeth (rhaniad o ddwy ddeiliadaeth a rhaniad o bedair deiliadaeth)
B40: Rhaniad y Ddeiliadaeth (Gogledd) | C40: Yn caniatáu i ddefnyddwyr archwilio amcangyfrifon o unedau tai ychwanegol yng Ngogledd Cymru wedi'u rhannu yn ôl deiliadaeth (rhaniad o ddwy ddeiliadaeth a rhaniad o bedair deiliadaeth)
B41: Rhaniad y Ddeiliadaeth (Canolbarth) | C41: Yn caniatáu i ddefnyddwyr archwilio amcangyfrifon o unedau tai ychwanegol yng Nghanolbarth Cymru wedi'u rhannu yn ôl deiliadaeth (rhaniad o ddwy ddeiliadaeth a rhaniad o bedair deiliadaeth)
B42: Rhaniad y Ddeiliadaeth (De-orllewin) | C42: Yn caniatáu i ddefnyddwyr archwilio amcangyfrifon o unedau tai ychwanegol yn Ne-orllewin Cymru wedi'u rhannu yn ôl deiliadaeth (rhaniad o ddwy ddeiliadaeth a rhaniad o bedair deiliadaeth)
B43: Rhaniad y Ddeiliadaeth (De-ddwyrain) | C43: Yn caniatáu i ddefnyddwyr archwilio amcangyfrifon o unedau tai ychwanegol yn Ne-ddwyrain Cymru wedi'u rhannu yn ôl deiliadaeth (rhaniad o ddwy ddeiliadaeth a rhaniad o bedair deiliadaeth)
B44: Cyfrifiadau - Cymru | C44: Cyfrifiadau cam wrth gam o amcangyfrifon wedi'u rhannu yn ôl deiliadaeth (Cymru)
B45: Cyfrifiadau - Gogledd | C45: Cyfrifiadau cam wrth gam o amcangyfrifon wedi'u rhannu yn ôl deiliadaeth (Gogledd Cymru)
B46: Cyfrifiadau - Canolbarth | C46: Cyfrifiadau cam wrth gam o amcangyfrifon wedi'u rhannu yn ôl deiliadaeth (Canolbarth Cymru)
B47: Cyfrifiadau - De-orllewin | C47: Cyfrifiadau cam wrth gam o amcangyfrifon wedi'u rhannu yn ôl deiliadaeth (De-orllewin Cymru)
B48: Cyfrifiadau - De-ddwyrain | C48: Cyfrifiadau cam wrth gam o amcangyfrifon wedi'u rhannu yn ôl deiliadaeth (De-ddwyrain Cymru)
B49: Amcanestyniadau Aelwydydd | C49: Holl Amrywiolion yr Amcanestyniadau Aelwydydd
B50: Angen Sydd Newydd Ymddangos | C50: Angen sydd Newydd Ymddangos, sy'n deillio o amcanestyniadau aelwydydd
B51: Angen Presennol Nas Diwallwyd | C51: Lefelau amcan o'r angen presennol nas diwallwyd yng Nghymru a'r Rhanbarthau
B52: Rhagdybiaeth Blynyddol | C52: Yr holl ragdybiaethau sy'n gyson drwy gydol cyfnod o bum mlynedd yr amcangyfrifon
B53: Rhagolygon y Dyfodol | C53: Newidynnau sydd angen eu rhagamcanu'n flynyddol
B54: Prisiau Rhenti | C54: Gwerthoedd Rhenti 30 Canradd a Chanolrifol ar gyfer Cymru a'r Rhanbarthau
B55: Incwm (Cymru) | C55: Dosbarthiad incwm gros yr aelwyd ar gyfer Cymru
B56: Incwm (Gogledd) | C56: Dosbarthiad incwm gros yr aelwyd ar gyfer Gogledd Cymru
B57: Incwm (Canolbarth) | C57: Dosbarthiad incwm gros yr aelwyd ar gyfer Canolbarth Cymru
B58: Incwm (De-orllewin) | C58: Dosbarthiad incwm gros yr aelwyd ar gyfer De-orllewin Cymru
B59: Incwm (De-ddwyrain) | C59: Dosbarthiad incwm gros yr aelwyd ar gyfer De-ddwyrain Cymru
B60: Prisiau Tai (Cymru) | C60: Dosbarthiad prisiau tai yng Nghymru, Gorffennaf 2018 - Mehefin 2019
B61: Prisiau Tai (Gogledd) | C61: Dosbarthiad prisiau tai yng Ngogledd Cymru, Gorffennaf 2018 - Mehefin 2019
B62: Prisiau Tai (Canolbarth) | C62: Dosbarthiad prisiau tai yng Nghanolbarth Cymru, Gorffennaf 2018 - Mehefin 2019
B63: Prisiau Tai (De-orllewin) | C63: Dosbarthiad prisiau tai yn Ne-orllewin Cymru, Gorffennaf 2018 - Mehefin 2019
B64: Prisiau Tai (De-ddwyrain) | C64: Dosbarthiad prisiau tai yn Ne-ddwyrain Cymru, Gorffennaf 2018 - Mehefin 2019
B65: Map Rhanbarthol | C65: Map o'r bedair rhanbarth economaidd yng Nghymru
B67: Dolenni defnyddiol
B68: Erthygl Ystadegol ar Raniad Deiliadaeth Amcangyfrifon Tai
B69: Erthygl Ystadegol ar Gyfanswm yr Unedau Tai Ychwanegol
B70: Erthygl ystadegol ar Amcangyfrifon o'r Angen ychwanegol am Dai (sail-2019)

Sheet Cyngor ar ddefnyddio'r adnodd
B2: Mae'r daflen hon yn anelu i roi cyngor defnyddiol ar gyfer defnyddio a llywio'r adnodd. Os ydych yn meddwl y byddai cyngor ychwanegol yn ddefnyddiol, cysylltwch â ni os gwelwch yn dda (manylion cyswllt ar y daflen flaen).
B5: Defnydd cyffredinol o'r adnodd
B7: • Mae celloedd sydd wedi'u lliwio'n las yn nodi y gallwch ddewis o ddewislen, ychwanegu data, neu glicio ar fotwm.
B8: • Os nad oes amcangyfrifon yn ymddangos, gwiriwch nad oes celloedd coch yn dangos "N" yng ngholofn gyflawn pob taflen rhaniad y ddeiliadaeth. Os oes, dilynwch y testun coch i fewnbynnu data neu ddewis yr opsiwn wedi'i ragosod (lle'n bosib).
B9: •Er mwyn gweld amcangyfrifon wedi'u rhannu yn ddwy ddeiliadaeth, nid oes angen i chi fewngofnodi eich data chi o gwbl.
B10: • Er mwyn gweld amcangyfrifon wedi'u rhannu yn bedair deiliadaeth, mae'n rhaid i chi fewngofnodi eich data ar gyfer y gyfran o brynwyr am y tro cyntaf sy'n mynd ymlaen i brynu eiddo.
B12: Mewngofnodi eich data chi
B14: • Mae'r opsiwn gennych i ddefnyddio'ch data a'ch rhagdybiaethau eich hun. Gallwch roi eich data chi yn lle'r rhagdybiaethau a ffynonellau data wedi'u rhagosod, defnyddio cymysgedd o'ch data chi a data wedi'i ragosod, neu ddefnyddio'r holl ragdybiaethau a ffynonellau data wedi'u rhagosod.
B15: • Bydd y dewisiadau a wnewch ar daflen Rhaniad y Ddeiliadaeth (Cymru) i ddefnyddio data wedi'i ragosod neu eich data chi, yn dilyn drwodd i'r taflenni rhanbarthol. Ni fedrwch ddefnyddio'r rhagosodon mewn un rhanbarth a defnyddio'ch data eich hun mewn un arall.
B16: • Nid oes rhaid i chi fewngofnodi gwerthoedd ym mhob rhanbarth er mwyn i'r adnodd weithio. Cyhyd â'ch bod wedi mewngofnodi data ar lefel Cymru, mi fyddwch yn gweld amcangyfrifon ar lefel Cymru. Bydd y taflenni rhanbarthol yn dangos statws anorffenedig a pharhau yn wag.
B17: • Yn yr un modd, nid oes angen i chi fewngofnodi data ar lefel Cymru er mwyn i'r adnodd weithio. Os oes gennych ddiddordeb penodol mewn un rhanbarth, ac eisiau defnyddio eich data eich hun, gallwch wneud hynny drwy ddewis ar y daflen Cymru. Bydd mewngofnodi data ar lefel rhanbarthol yn unig yn darparu amcangyfrifon ar gyfer y rhanbarth hwnnw (bydd y taflenni eraill yn parhau yn anorffenedig ac ni fyddant yn arddangos canlyniadau).
B19: Deall y fethodoleg
B21: • Ar gyfer amcangyfrifon ar lefel Cymru a'r tair rhanbarth, mae yna daflen 'Cyfrifiadau'. Mae hwn yn torri'r fethodoleg i lawr gam wrth gam. Mae yna enghraifft weithredol yn Atodiad 3 o'r erthygl ystadegol (linc ar y dudalen flaen).

Sheet Canllawiau ar Newidynnau
B1: Canllawiau ar y Newidynnau
B2: Mae'r daflen hon yn cynnig arweiniad ar bob un o'r newidynnau sydd eu hangen i gynhyrchu amcangyfrifon yn ôl rhaniad y ddeiliadaeth.
C6: Cyfeirnod y daflen waith | D6: Newidyn | E6: Disgrifiad o'r Newidyn | F6: Sylwadau ar y Newidyn sydd wedi'i Ragosod | G6: Ffynhonnell y Newidyn sydd wedi'i Ragosod | H6: Nodiadau
B7: Mae angen y newidynnau hyn i gynhyrchu amcangyfrifon wedi'u rhannu yn ddwy ddeiliadaeth (ar y farchnad a fforddiadwy). | D7: Ffynonellau Data (rhaniad 2 ddeiliadaeth)
C8: =D8 -> Amcanestyniadau o Aelwydydd | D8: Amcanestyniadau o Aelwydydd | E8: Mae amcanestyniadau aelwydydd yn cael eu defnyddio i gyfrifo'r angen blynyddol sy'n codi. Diffinnir yr Angen sy'n Codi o'r Newydd fel nifer amcanestynedig y cartrefi sydd newydd gael eu ffurfio a fydd angen unedau tai ychwanegol am gyfnod yn y dyfodol. Mae nifer o wahanol amrywiadau o amcanestyniadau aelwydydd: -Prif amcanestyniadau (y sail ar gyfer yr amcangyfrifon canolog o'r angen am dai) -Amrywiolyn uwch -Amrywiolyn is | F8: Defnyddir Amcanestyniadau Aelwydydd sy'n seiliedig ar 2018 gan Lywodraeth Cymru fel y ffynhonnell sydd wedi'i rhagosod ar gyfer lefel genedlaethol a lefel ranbarthol. Mae gan ddefnyddwyr yr opsiwn i ddewis amrywiolyn amcanestyniadau aelwydydd y maent yn ei ddefnyddio. Ceir diffiniadau llawn o'r gwahanol amrywiolion yn yr erthygl ystadegol sy'n cyd-fynd a'r adnodd hwn. | G8: https://llyw.cymru/amcanestyniadau-genedlaethol-o-aelwydydd-sail-2018 | H8: Mae amcanestyniadau aelwydydd Awdurdodau lleol wedi'u cyfansymu i gyfrifo amcanestyniadau cenedlaethol a rhanbarthol.
C9: =D9 -> Yr Angen Presennol nas Diwallwyd | D9: Yr Angen Presennol nas Diwallwyd | E9: Defnyddir amcangyfrifon o'r angen presennol nas diwallwyd ynghyd ag amcanestyniadau aelwydydd i amcangyfrif yr angen cyffredinol am unedau tai ychwanegol. Diffinnir yr Angen Presennol nas Diwallwyd fel nifer yr aelwydydd sydd heb fynediad i dai digonol ac y byddai angen uned tai ychwanegol. Ni chaiff y rheini a all fod angen tai mwy priodol ond na fyddai angen tai ychwanegol arnynt eu cynnwys yn y dadansoddiad hwn. | F9: Mae'r amcangyfrifon sydd wedi'u rhagosod o'r angen presennol nas diwallwyd yn cynnwys dwy agwedd: aelwydydd digartref mewn llety dros dro (ciplun ar ddiwedd mis Mehefin 2019) ac aelwydydd sy'n orlawn ac yn gudd (Cyfrifiad 2011). | G9: https://statscymru.llyw.cymru/Catalogue/Housing/Homelessness/Temporary-Accommodation/householdsaccommodatedtemporarily-by-accommodationtype-householdtype https://cy.ons.gov.uk/peoplepopulationandcommunity/housing/adhocs/008905ct08512011census | H9: Daw'r data am aelwydydd sy'n orlawn ac yn gudd o Gyfrifiad 2011.
C10: =D10 -> Incwm yr Aelwyd | D10: Incwm yr Aelwyd | E10: Mae dosbarthiad incwm yr aelwyd yn ofynnol (ynghyd â meini prawf fforddiadwyedd pob deiliadaeth) ar lefel genedlaethol a rhanbarthol i gyfrifo pa gyfran o'r angen newydd sy’n codi fyddai'n addas ar gyfer pob deiliadaeth tai. | F10: At ddibenion y gwaith hwn, caiff incwm yr aelwyd ei diffinio'n incwm gros yr aelwyd nad yw'n cyfrif cyfwerthedd ar gyfer pob oedolyn sy'n byw o fewn yr aelwyd, yn deillio o gwestiynau incwm manwl ar Arolwg Cenedlaethol Cymru 2017. Mae hyn yn cynnwys budd-daliadau a lwfansau cysylltiedig â thai. Diweddarwyd y dosbarthiad incwm o 2017/18 i 2018/19 drwy ddefnyddio lluosydd yn seiliedig ar y twf dros y cyfnod yma yn incwm gros cymedrig aelwydydd fesul degraddau drwy ddefnyddio UKMOD 1.0. Model budd-dal treth y DU yw hwn a ddatblygwyd gan y Sefydliad Ymchwil Gymdeithasol ac Economaidd sy'n seiliedig ar yr Arolwg o Adnoddau Teulu.
C11: Prisiau Rhenti | D11: Prisiau Rhenti Preifat | E11: Defnyddir data canolrif a 30 canradd rhent preifat ar lefel genedlaethol a rhanbarthol ynghyd â dosbarthiad incwm aelwydydd er mwyn sefydlu faint o aelwydydd sydd yn addas ar gyfer tai’r farchnad. | F11: Defnyddir Data ar Renti Preifat a gasglwyd gan swyddogion rhenti Llywodraeth Cymru fel y data wedi'u rhagosod. Mae'r gwerthoedd canolrifol a 30 canradd wedi'u cymryd o Orffennaf 2018 - Mehefin 2019 ar gyfer eiddo gyda 2/3 ystafell wely. | G11: https://llyw.cymru/rhenti-yn-y-sector-preifat-2018 | H11: Mae'r data a ddefnyddiwyd at bwrpas y gwaith hwn yn cynnwys aelwydydd sydd yn derbyn cymhorthdal tai yn ogystal a aelwydydd myfyrwyr. Caiff y rhain eu heithrio o'r data a gyhoeddir ar StatsCymru ac felly nid oes modd cymharu'r data.
D12: Rhagdybiaethau Blynyddol Penodol (rhaniad 2 ddeiliadaeth)
C13: Rhagdybiaethau Blynyddol | D13: Meini Prawf Fforddiadwyedd (Marchnad) | E13: Mae'r dybiaeth yn ofynnol er mwyn cyfrifo (ynghyd â phris canolrif rhent preifat) yr incwm gofynnol sydd ei angen i fforddio tai ar y farchnad (rhent preifat neu berchen-feddiannydd). | F13: Byddai aelwydydd a fyddai'n gwario llai na 30% o incwm yr aelwyd ar rent preifat canolrifol yn addas ar gyfer rhentu'n breifat. Wrth i'r trothwy incwm aelwyd gynyddu (ee aelwydydd sy'n gwario llai na 35% o incwm aelwyd ar rhent canolrifol yn addas ar gyfer rhent preifat) felly hefyd fydd nifer yr aelwydydd a fyddai'n addas i rentu'n breifat.
D14: Blynyddoedd i gael gwared ar yr ôl-groniad | E14: Dyma'r hyd amser fydd angen i ddiwallu'r holl aelwydydd a chanddynt angen presennol nas diwallwyd. | F14: Y dybiaeth ragosod yw y bydd yn cymryd 5 mlynedd i gael gwared ar yr ôl-groniad o angen presennol nas diwallwyd. Casgliad y grŵp technegol oedd ei bod yn rhesymol i dybio y dylid cael gwared ar yr angen presennol o fewn 5 mlynedd.
D15: Rhagdybiaethau 5 mlynedd (rhaniad 2 ddeiliadaeth)
C16: Rhagdybiaethau Dyfodol | D16: Newid i Incwm Canolrifol yr Aelwyd | E16: I ragweld tyfiant incwm yr aelwyd | F16: Mae’r Swyddfa Cyfrifoldeb Cyllidebol (OBR) yn cyhoeddi rhagolygon o incwm aelwydydd. Tra bo’r rhagolygon ar lefel DU mae wedi’i ddefnyddio ar lefel cenedlaethol a rhanbarthol yng Nghymru. Mae’r rhagolwg yn nodi twf o oddeutu 3% bob blwyddyn ar gyfer y cyfnod o bum mlynedd. | G16: OBR Mawrth 2020: Tabl 1.13 (Incwm Gwario Aelwydydd) | H16: Defnyddiwyd rhagolygon ar gyfer blynyddoedd ariannol ac felly nid ydynt yn cyd-fynd yn uniongyrchol â'r amcangyfrifon canol-blwyddyn i ganol-blwyddyn o unedau tai ychwanegol.
D17: Newid i Ddosbarthiad Incwm yr Aelwyd | E17: I ragweld sut y bydd dosbarthiad incwm yr aelwyd yn newid dros amser. | F17: Yn seiliedig ar y dystiolaeth sydd ar gael, y dybiaeth ragosod yw y bydd, dros amser, mwy o anghydraddoldeb yn nosbarthiad incwm aelwydydd. Mae hyn yn golygu y bydd aelwydydd incwm uchel yn cynyddu yn gynt na'r rhai o gartrefi incwm isel.
D18: Newid i brisiau rhenti | E18: I ddarogan y twf ym mhrisiau rhent preifat | F18: Cyhoeddodd y Swyddfa Cyfrifoldeb Cyllidebol (OBR) eu Rhagolygon Economaidd ac Ariannol diweddaraf ym mis Mawrth 2020. Maent yn tybio bod rhenti preifat yn tyfu yn unol â'u rhagolygon enillion cyfartalog. Er bod y rhagolwg ar lefel y DU, mae wedi'i gymhwyso ar lefel genedlaethol a rhanbarthol yng Nghymru. Rhagwelir cynnydd o tua 3% bob blwyddyn dros y cyfnod o bum mlynedd. | G18: OBR Mawrth 2020: Tabl 1.6 (Twf Cyflog Cyfartalog) | H18: Defnyddiwyd rhagolygon ar gyfer blynyddoedd ariannol ac felly nid ydynt yn cyd-fynd yn uniongyrchol â'r amcangyfrifon canol-blwyddyn i ganol-blwyddyn o unedau tai ychwanegol.
D19: Ffynonellau Data (rhaniad 4 deiliadaeth)
B20: Mae angen y newidynnau ychwanegol hyn i gynhyrchu amcangyfrifon wedi'u rhannu yn bedair deiliadaeth (perchen-feddiannydd, rhent preifat, rhent canolradd a chymdeithasol). | D20: Dosbarthiad Prisiau Tai | E20: Mae angen gwybodaeth am brisiau tai i ddyrannu'r rhai sy'n addas ar gyfer tai'r farchnad agored i berchen-feddianwyr a rhenti preifat. | F20: Mae data ar brisiau tai ar gael drwy set ddata Cofrestrfa Tir ar brisiau a dalwyd. | G20: http://landregistry.data.gov.uk/app/ppd/ | H20: Data yn gywir ar 4 Rhagfyr 2019.
D21: Rhagdybiaethau Blynyddol Penodol (rhaniad 4 deiliadaeth)
C22: Rhagdybiaethau Blynyddol | D22: Cymhareb Incwm Prynwyr am y Tro Cyntaf | E22: Mae angen y newidyn hwn er mwyn rhannu'r sector tai'r farchnad berchen-feddianwyr a rhenti preifat. Y gymhareb fforddiadwyedd yw sawl gwaith eu hincwm, y gall prynwyr tro cyntaf ddisgwyl talu am dŷ. | F22: Mae Cyllid y DU (a adwaenir gynt fel Cyngor Benthycwyr Morgeisi) yn cyhoeddi ffigurau chwarterol ar lefel Cymru. | G22: https://www.ukfinance.org.uk/data-and-research/data/mortgages/regional-lending-trends
D23: Canradd Mynediad y farchnad ar gyfer y Prynwyr sy'n Prynu Eiddo am y Tro Cyntaf | E23: Defnyddir y newidyn hwn ar y cyd gyda'r uchod i ddarganfod faint o incwm yr aelwyd sydd angen i Brynwyr am y Tro Cyntaf fedru prynu tŷ. | F23: O gymharu'r pris cyfartalog a dalwyd gan brynwyr am y tro cyntaf yng Nghymru yn ôl yr hyn a gyhoeddwyd gan y Swyddfa Ystadegau Gwladol â dosbarthiad set ddata Cofrestrfa Tir ar brisiau a dalwyd, mae prynwyr am y tro cyntaf yng Nghymru yn tueddu i allu prynu eiddo am y tro cyntaf yn ôl 40 canradd.
D24: Prynwyr sy'n mynd ymlaen i brynu eiddo am y tro cyntaf (nid oes newidyn wedi'i ragosod) | E24: Mae'r newidyn hwn yn ystyried na fydd pob aelwyd sy'n medru fforddio prynu tŷ (yn seiliedig ar y rhagdybiaeth uchod) mewn gwirionedd yn parhau i wneud hynny, unai drwy ddewis neu amgylchiad. | F24: Ni chanfuwyd tystiolaeth gadarn er mwyn gwneud rhagdybiaeth gredadwy am y newidyn hwn yng Nghymru. Rhaid i ddefnyddwyr gyflwyno eu gwerth eu hunain i weld amcangyfrifon wedi'u rhannu yn bedair deiliadaeth. | H24: Heb ei ragosod.
D25: Meini Prawf Fforddiadwyedd (Cymdeithasol) | E25: Er mwyn dyrannu'r rheini a ystyrir yn addas ar gyfer rhent fforddiadwy i rhent cymdeithasol a chanolradd, mae gofyn am ragdybiaeth o ba aelwydydd sy'n addas ar gyfer rhent cymdeithasol. | F25: Byddai aelwydydd fyddai’n gwario mwy na 35% o incwm yr aelwyd ar renti 30 canradd yn addas ar gyfer tai cymdeithasol. Wrth i'r trothwy incwm aelwyd ostwng (ee aelwydydd sy'n gwario mwy na 30% o incwm aelwyd ar rhent 30 canradd yn addas ar gyfer tai cymdeithasol) bydd mwy o aelwydydd yn addas ar gyfer tai cymdeithasol
D26: Rhagdybiaethau 5 mlynedd (rhaniad 4 deiliadaeth)
C27: Rhagdybiaethau Dyfodol | D27: Newid i brisiau tai | E27: I ragweld tyfiant mewn prisiau tai. | F27: Mae'r Swyddfa Cyfrifoldeb Cyllidebol (OBR) yn cynhyrchu rhagolygon o brisiau tai ar gyfer y DU. | G27: OBR Mawrth 2020: Tabl 1.21 (Rhagdybiaethau Prisiau Tai) | H27: Defnyddiwyd rhagolygon ar gyfer blynyddoedd ariannol ac felly nid ydynt yn cyd-fynd yn uniongyrchol â'r amcangyfrifon canol-blwyddyn i ganol-blwyddyn o unedau tai ychwanegol.
G28: OBR Mawrth 2020 Llwytho ychwanegol i brisiau tai yn y DU (paragraff 3.2, tudalen 9)

Sheet Rhaniad y Ddeiliadaeth (Cymru)
B1: Lefel Ddaearyddol: | D1: ='Cyfrifiadau - Cymru'!B1 -> Cymru
B2: Llenwch y blychau GLAS yn y ddewislen a dilynwch unrhyw gyfarwyddiadau yn y golofn Cyfarwyddiadau/Gwirio.
C4: Newidyn | D4: Dewislen | E4: Wedi'i gwblhau? | F4: Cyfarwyddiadau/Gwirio | K4: Dolenni defnyddiol i dudalennau eraill:
B5: Mae angen y newidynnau hyn i gynhyrchu amcangyfrifon wedi'u rhannu yn ddwy deiliadaeth (marchnad a fforddiadwy). Mae'r daenlen "Canllawiau ar Newidynnau" yn darparu diffiniadau llawn. | C5: Ffynonellau Data (rhaniad 2 ddeiliadaeth)
C6: Amcanestyniadau Aelwydydd | D6: Prif Amcanestyniadau | E6: =IF(OR(F6=$B$195,F6=$B$196),"Y","N") -> Y | F6: =IF(D6="",$B$194,IF(D6="Amcanestyniadau Defnyddwyr",IF('Amcanestyniadau Aelwydydd'!J22<6,$B$197&B198,$B$196),$B$195)) -> Data rhagosodedig a ddefnyddiwyd
C7: Angen Nas Diwallwyd Presennol | D7: Amcangyfrifon LlC | E7: =IF(OR(F7=$B$195,F7=$B$196),"Y","N") -> Y | F7: =IF(D7="",$B$194,IF(D7="Arall",IF(ISBLANK('Angen Presennol Nas Diwallwyd'!C22),$B$197&B199,$B$196),$B$195)) -> Data rhagosodedig a ddefnyddiwyd
C8: Incwm yr Aelwyd | D8: Amcangyfrifon LlC | E8: =IF(OR(F8=$B$195,F8=$B$196),"Y","N") -> Y | F8: =IF(D8="",$B$194,IF(D8="Arall",IF('Incwm (Cymru)'!O85=1,$B$197&B200,$B$196),$B$195)) -> Data rhagosodedig a ddefnyddiwyd
C9: Prisiau Rhenti Preifat | D9: Prisiau Rhenti | E9: =IF(OR(F9=$B$195,F9=$B$196),"Y","N") -> Y | F9: =IF(D9="",$B$194,IF(D9="Arall",IF(OR(ISBLANK('Prisiau Rhenti'!C10),ISBLANK('Prisiau Rhenti'!D10)),$B$197&B202,$B$196),$B$195)) -> Data rhagosodedig a ddefnyddiwyd
C10: Rhagdybiaethau Blynyddol Penodol (rhaniad 2 ddeiliadaeth)
C11: Meini Prawf Fforddiadwyedd (Marchnad) | D11: Wedi'i ragosod | E11: =IF(OR(F11=$B$195,F11=$B$196),"Y","N") -> Y | F11: =IF(D11="",$B$194,IF(D11="Arall",IF(ISBLANK('Rhagdybiaeth Blynyddol'!D9),$B$197&B203,$B$196),$B$195)) -> Data rhagosodedig a ddefnyddiwyd
C12: Blynyddoedd i Gael Gwared ar yr ôl Groniad | D12: Wedi'i ragosod | E12: =IF(OR(F12=$B$195,F12=$B$196),"Y","N") -> Y | F12: =IF(D12="",$B$194,IF(D12="Arall",IF(ISBLANK('Angen Presennol Nas Diwallwyd'!C27),$B$197&B199,$B$196),$B$195)) -> Data rhagosodedig a ddefnyddiwyd
C13: Rhagdybiaethau 5 mlynedd (rhaniad 2 deiliadaeth)
C14: Newid i Incwm Canolrifol yr Aelwyd | D14: Wedi'i ragosod | E14: =IF(OR(F14=$B$195,F14=$B$196),"Y","N") -> Y | F14: =IF(D14="",$B$194,IF(D14="Arall",IF('Rhagolygon y Dyfodol'!I11<5,$B$197&B204,$B$196),$B$195)) -> Data rhagosodedig a ddefnyddiwyd
C15: Newid i Ddosbarthiad Incwm yr Aelwyd | D15: Mwy o Anghydraddoldeb | E15: =IF(OR(F15=$B$195,F15=$B$196),"Y","N") -> Y | F15: =IF(D15="",$B$194,IF(D15="Arall",IF('Rhagolygon y Dyfodol'!I16<5,$B$197&B204,$B$196),$B$195)) -> Data rhagosodedig a ddefnyddiwyd
C16: Newid i Brisiau Rhenti | D16: Wedi'i ragosod | E16: =IF(OR(F16=$B$195,F16=$B$196),"Y","N") -> Y | F16: =IF(D16="",$B$194,IF(D16="Arall",IF('Rhagolygon y Dyfodol'!I22<5,$B$197&B204,$B$196),$B$195)) -> Data rhagosodedig a ddefnyddiwyd
B17: Mae angen y newidynnau ychwanegol hyn i gynhyrchu amcangyfrifon wedi'u rhannu yn bedair deiliadaeth (perchen-feddiannydd, rhent preifat, rhent canolradd a chymdeithasol). Mae'r daenlen "Canllawiau ar Newidynnau" yn darparu diffiniadau llawn. | C17: Ffynonellau Data (rhaniad 4 deiliadaeth)
C18: Dosbarthiad Prisiau Tai | D18: Data Cofrestrfa Tir | E18: =IF(OR(F18=$B$195,F18=$B$196),"Y","N") -> Y | F18: =IF(D18="",$B$194,IF(D18="Arall",IF('Prisiau Tai (Cymru)'!O85=1,$B$197&B201,$B$196),$B$195)) -> Data rhagosodedig a ddefnyddiwyd
C19: Rhagdybiaethau Blynyddol Penodol (rhaniad 4 deiliadaeth)
C20: Cymhareb Incwm Prynwyr am y Tro Cyntaf | D20: Wedi'i ragosod | E20: =IF(OR(F20=$B$195,F20=$B$196),"Y","N") -> Y | F20: =IF(D20="",$B$194,IF(D20="Arall",IF(ISBLANK('Rhagdybiaeth Blynyddol'!D12),$B$197&B203,$B$196),$B$195)) -> Data rhagosodedig a ddefnyddiwyd
C21: Canradd Mynediad y farchnad ar gyfer y Prynwyr sy'n Prynu Eiddo am y Tro Cyntaf | D21: 40 | E21: =IF(OR(F21=$B$195,F21=$B$196),"Y","N") -> Y | F21: =IF(D21="",$B$194,IF(D21="Other",IF(ISBLANK('Rhagdybiaeth Blynyddol'!D16),$B$197&B203,$B$196),$B$195)) -> Data rhagosodedig a ddefnyddiwyd
C22: Prynwyr sy'n mynd ymlaen i brynu eiddo am y tro cyntaf (nid oes newidyn wedi'i ragosod) | D22: Gwerth defnyddiwr (nid oes gwerth wedi'i ragosod) | E22: =IF(OR(F22=$B$195,F22=$B$196),"Y","N") -> N | F22: =IF(ISBLANK('Rhagdybiaeth Blynyddol'!D18),'Rhaniad y Ddeiliadaeth (Cymru)'!B197&'Rhaniad y Ddeiliadaeth (Cymru)'!B203,'Rhaniad y Ddeiliadaeth (Cymru)'!B196) -> Cofnodwch ddata defnyddwyr ar y daflen:'Rhagdybiaeth Blynyddol'
C23: Meini Prawf Fforddiadwyedd (Cymdeithasol) | D23: Wedi'i ragosod | E23: =IF(OR(F23=$B$195,F23=$B$196),"Y","N") -> Y | F23: =IF(D23="",$B$194,IF(D23="Arall",IF(ISBLANK('Rhagdybiaeth Blynyddol'!D21),$B$197&B203,$B$196),$B$195)) -> Data rhagosodedig a ddefnyddiwyd
C24: Rhagdybiaethau 5 mlynedd (rhaniad 4 deiliadaeth)
C25: Newid i Brisiau Tai | D25: Wedi'i ragosod | E25: =IF(OR(F25=$B$195,F25=$B$196),"Y","N") -> Y | F25: =IF(D25="",$B$194,IF(D25="Arall",IF('Rhagolygon y Dyfodol'!I28<5,$B$197&B204,$B$196),$B$195)) -> Data rhagosodedig a ddefnyddiwyd
B27: =IF(C133=1,"","Sylwadau ar y rhagdybiaethau a ddewiswyd ar gyfer rhaniad o ddwy ddeiliadaeth: "&D1) -> Sylwadau ar y rhagdybiaethau a ddewiswyd ar gyfer rhaniad o ddwy ddeiliadaeth: Cymru
B28: =B188 -> Mae'r ffigurau isod yn rhannu yr amcangyfrifon o'r angen am dai yn 2 deiliadaeth ac maent yn seiliedig ar y rhagdybiaethau canlynol. Mae amcangyfrifon sylfaenol yr unedau tai ychwanegol wedi'u seilio ar amcanestyniadau aelwydydd gan Llywodraeth Cymru sy'n seiliedig ar 2018 (Prif Amcanestyniadau), ac amcangyfrif o 5732 aelwydydd o ran angen presennol nas diwallwyd a fydd yn cymryd 5 mlynedd i'w diwallu.Mae data ar incwm yn seiliedig ar Ddata Llywodraeth Cymru ac mae data ar renti preifat yn seiliedig ar Ddata Llywodraeth Cymru. Mae'r newid blynyddol i incwm canolrifol yr aelwyd yn seiliedig ar amcangyfrifon wedi'u rhagosod, mae'r newid blynyddol i ddosbarthiad incwm yr aelwyd yn seiliedig ar amcangyfrifon wedi'u rhagosod ac mae'r newid blynyddol i brisiau rhenti yn seiliedig ar amcangyfrifon wedi'u rhagosod.
B52: Noder: Gall fod gwahaniaethau bach rhwng swm y canlyniadau rhanbarthol a'r canlyniadau cenedlaethol o dan unrhyw amcangyfrifon a rhannwyd yn ôl daliadaeth. Mae hyn oherwydd y cyfrifir amcangyfrifon rhanbarthol gan ddefnyddio data rhanbarthol (incwm aelwyd, prisiau rhentu) ac felly bydd yn wahanol i lefel Cymru gyfan. Ymhellach, bydd unrhyw angen newydd am dai rhanbarthol sy'n negyddol yn cael ei osod fel sero ar gyfer y rhanbarth hwnnw ond fe'i cymerir fel ffigwr negyddol o fewn ffigurau Cymru.
B55: Rhaniad o 2 Ddeiliadaeth a amcangyfrifir - Cymru (yn seiliedig ar ragdybiaethau defnyddwyr)
B56: =B148 ->  | C56: =C148 -> 2019/20 | D56: 2020/21 | E56: 2021/22 | F56: 2022/23 | G56: 2023/24
B57: =B149 -> Tai'r Farchnad | C57: 3,688 | D57: 3,770 | E57: 4,070 | F57: 3,910 | G57: 3,845
B58: =B150 -> Tai fforddiadwy | C58: =C150 -> 3,407 | D58: =D150 -> 3,457 | E58: 3,641 | F58: 3,543 | G58: 3,503
B60: Rhaniad Cymesur o 2 Ddeiliadaeth - Cymru (yn seiliedig ar ragdybiaethau defnyddwyr)
B61: =B151 ->  | C61: =C151 -> 2019/20 | D61: 2020/21 | E61: 2021/22 | F61: 2022/23 | G61: 2023/24 | I61: =I151 -> Rhaniad 5 mlynedd
B62: =B152 -> Tai'r Farchnad | C62: =C152 -> 52% | D62: =D152 -> 52% | E62: 53% | F62: 52% | G62: 52% | I62: =I152 -> 52%
B63: =B153 -> Tai fforddiadwy | C63: =C153 -> 48% | D63: 48% | E63: 47% | F63: 48% | G63: 48% | I63: =I153 -> 48%
B65: =IF(C145=1,"","Sylwebaeth ar y rhagdybiaethau a ddewiswyd ar gyfer y rhaniad 4 deiliadaeth") -> 
B66: =B192 -> Ni fydd amcangyfrifon wedi'u rhannu'n 4 deiliadaeth yn ymddangos hyd nes bod y tabl uchod wedi'i gwblhau.
B90: Rhaniad o 4 deiliadaeth a amcangyfrifir - Cymru (yn seiliedig ar ragdybiaethau defnyddwyr)
B91: =B157 -> Cwblhewch y tabl i weld amcangyfrifon wedi'u rhannu'n 4 deiliadaeth.
C92: =C157 -> 
B93: =B158 -> 
B94: =B159 -> 
B95: =B160 -> 
B96: =B161 -> 
B98: Rhaniad Cymesur o 4 deiliadaeth - Cymru (yn seiliedig ar ragdybiaethau defnyddwyr)
B99: =B162 -> Cwblhewch y tabl i weld amcangyfrifon wedi'u rhannu'n 4 deiliadaeth. | I99: =I162 -> 
C100: =C162 -> 
B101: =B163 ->  | I101: =I163 -> 
B102: =B164 ->  | I102: =I164 -> 
B103: =B165 ->  | I103: =I165 -> 
B104: =B166 ->  | I104: =I166 -> 
B106: Crynodeb o Ragdybiaethau a Ddewiswyd gan Ddefnyddwyr – Cymru
C107: =Year1 -> 2019/20 | D107: =Year2 -> 2020/21 | E107: =Year3 -> 2021/22 | F107: =Year4 -> 2022/23 | G107: =Year5 -> 2023/24
B108: Meini Prawf Fforddiadwyedd (Marchnad) | C108: =IF($D11="Wedi'i ragosod",'Rhagdybiaeth Blynyddol'!$D$8,'Rhagdybiaeth Blynyddol'!$D$9) -> 30% | D108: =IF($D11="Wedi'i ragosod",'Rhagdybiaeth Blynyddol'!$D$8,'Rhagdybiaeth Blynyddol'!$D$9) -> 30% | E108: =IF($D11="Wedi'i ragosod",'Rhagdybiaeth Blynyddol'!$D$8,'Rhagdybiaeth Blynyddol'!$D$9) -> 30% | F108: =IF($D11="Wedi'i ragosod",'Rhagdybiaeth Blynyddol'!$D$8,'Rhagdybiaeth Blynyddol'!$D$9) -> 30% | G108: =IF($D11="Wedi'i ragosod",'Rhagdybiaeth Blynyddol'!$D$8,'Rhagdybiaeth Blynyddol'!$D$9) -> 30%
B109: Y Cynnydd i Incwm yr Aelwyd | C109: =INDEX('Rhagolygon y Dyfodol'!D10:D11,MATCH('Rhaniad y Ddeiliadaeth (Cymru)'!$D$14,'Rhagolygon y Dyfodol'!$C$10:$C$11,0)) -> 2% | D109: =INDEX('Rhagolygon y Dyfodol'!E10:E11,MATCH('Rhaniad y Ddeiliadaeth (Cymru)'!$D$14,'Rhagolygon y Dyfodol'!$C$10:$C$11,0)) -> 3% | E109: =INDEX('Rhagolygon y Dyfodol'!F10:F11,MATCH('Rhaniad y Ddeiliadaeth (Cymru)'!$D$14,'Rhagolygon y Dyfodol'!$C$10:$C$11,0)) -> 3% | F109: =INDEX('Rhagolygon y Dyfodol'!G10:G11,MATCH('Rhaniad y Ddeiliadaeth (Cymru)'!$D$14,'Rhagolygon y Dyfodol'!$C$10:$C$11,0)) -> 3% | G109: =INDEX('Rhagolygon y Dyfodol'!H10:H11,MATCH('Rhaniad y Ddeiliadaeth (Cymru)'!$D$14,'Rhagolygon y Dyfodol'!$C$10:$C$11,0)) -> 3%
B110: Newid i ddosbarthiad incwm | C110: =INDEX('Rhagolygon y Dyfodol'!D14:D16,MATCH('Rhaniad y Ddeiliadaeth (Cymru)'!$D$15,'Rhagolygon y Dyfodol'!$C$14:$C$16,0)) -> 1% | D110: =INDEX('Rhagolygon y Dyfodol'!E14:E16,MATCH('Rhaniad y Ddeiliadaeth (Cymru)'!$D$15,'Rhagolygon y Dyfodol'!$C$14:$C$16,0)) -> 1% | E110: =INDEX('Rhagolygon y Dyfodol'!F14:F16,MATCH('Rhaniad y Ddeiliadaeth (Cymru)'!$D$15,'Rhagolygon y Dyfodol'!$C$14:$C$16,0)) -> 1% | F110: =INDEX('Rhagolygon y Dyfodol'!G14:G16,MATCH('Rhaniad y Ddeiliadaeth (Cymru)'!$D$15,'Rhagolygon y Dyfodol'!$C$14:$C$16,0)) -> 1% | G110: =INDEX('Rhagolygon y Dyfodol'!H14:H16,MATCH('Rhaniad y Ddeiliadaeth (Cymru)'!$D$15,'Rhagolygon y Dyfodol'!$C$14:$C$16,0)) -> 1%
B111: Y Cynnydd i Brisiau Rhenti Preifat | C111: =INDEX('Rhagolygon y Dyfodol'!D21:D22,MATCH('Rhaniad y Ddeiliadaeth (Cymru)'!$D$16,'Rhagolygon y Dyfodol'!$C$21:$C$22,0)) -> 3% | D111: =INDEX('Rhagolygon y Dyfodol'!E21:E22,MATCH('Rhaniad y Ddeiliadaeth (Cymru)'!$D$16,'Rhagolygon y Dyfodol'!$C$21:$C$22,0)) -> 3% | E111: =INDEX('Rhagolygon y Dyfodol'!F21:F22,MATCH('Rhaniad y Ddeiliadaeth (Cymru)'!$D$16,'Rhagolygon y Dyfodol'!$C$21:$C$22,0)) -> 3% | F111: =INDEX('Rhagolygon y Dyfodol'!G21:G22,MATCH('Rhaniad y Ddeiliadaeth (Cymru)'!$D$16,'Rhagolygon y Dyfodol'!$C$21:$C$22,0)) -> 3% | G111: =INDEX('Rhagolygon y Dyfodol'!H21:H22,MATCH('Rhaniad y Ddeiliadaeth (Cymru)'!$D$16,'Rhagolygon y Dyfodol'!$C$21:$C$22,0)) -> 3%
B112: Rhenti Canolrifol Blynyddol | C112: =INDEX('Prisiau Rhenti'!D9:D10,MATCH('Rhaniad y Ddeiliadaeth (Cymru)'!D9,'Prisiau Rhenti'!B9:B10,0))*(1+C111) -> £6,486 | D112: =C112*(1+D111) -> £6,685 | E112: =D112*(1+E111) -> £6,893 | F112: =E112*(1+F111) -> £7,112 | G112: =F112*(1+G111) -> £7,346
B113: Rhenti 30 Canradd Blynyddol | C113: =INDEX('Prisiau Rhenti'!C9:C10,MATCH('Rhaniad y Ddeiliadaeth (Cymru)'!D9,'Prisiau Rhenti'!B9:B10,0))*(1+C111) -> £5,868 | D113: =C113*(1+D111) -> £6,048 | E113: =D113*(1+E111) -> £6,237 | F113: =E113*(1+F111) -> £6,435 | G113: =F113*(1+G111) -> £6,647
B114: Cymhareb Incwm Prynwyr am y Tro Cyntaf | C114: =IF($D20="Wedi'i ragosod",'Rhagdybiaeth Blynyddol'!$D$11,'Rhagdybiaeth Blynyddol'!$D$12) -> 4.03 | D114: =IF($D20="Wedi'i ragosod",'Rhagdybiaeth Blynyddol'!$D$11,'Rhagdybiaeth Blynyddol'!$D$12) -> 4.03 | E114: =IF($D20="Wedi'i ragosod",'Rhagdybiaeth Blynyddol'!$D$11,'Rhagdybiaeth Blynyddol'!$D$12) -> 4.03 | F114: =IF($D20="Wedi'i ragosod",'Rhagdybiaeth Blynyddol'!$D$11,'Rhagdybiaeth Blynyddol'!$D$12) -> 4.03 | G114: =IF($D20="Wedi'i ragosod",'Rhagdybiaeth Blynyddol'!$D$11,'Rhagdybiaeth Blynyddol'!$D$12) -> 4.03
B115: Canradd Mynediad y farchnad ar gyfer y Prynwyr sy'n Prynu Eiddo am y Tro Cyntaf | C115: =IF($D21=25,25,IF($D21=40,40,'Rhagdybiaeth Blynyddol'!$D$16)) -> 40 | D115: =IF($D21=25,25,IF($D21=40,40,'Rhagdybiaeth Blynyddol'!$D$16)) -> 40 | E115: =IF($D21=25,25,IF($D21=40,40,'Rhagdybiaeth Blynyddol'!$D$16)) -> 40 | F115: =IF($D21=25,25,IF($D21=40,40,'Rhagdybiaeth Blynyddol'!$D$16)) -> 40 | G115: =IF($D21=25,25,IF($D21=40,40,'Rhagdybiaeth Blynyddol'!$D$16)) -> 40
B116: Prynwyr sy'n mynd ymlaen i brynu eiddo am y tro cyntaf | C116: =IF(ISBLANK('Rhagdybiaeth Blynyddol'!$D$18),"-",'Rhagdybiaeth Blynyddol'!$D$18) -> - | D116: =IF(ISBLANK('Rhagdybiaeth Blynyddol'!$D$18),"-",'Rhagdybiaeth Blynyddol'!$D$18) -> - | E116: =IF(ISBLANK('Rhagdybiaeth Blynyddol'!$D$18),"-",'Rhagdybiaeth Blynyddol'!$D$18) -> - | F116: =IF(ISBLANK('Rhagdybiaeth Blynyddol'!$D$18),"-",'Rhagdybiaeth Blynyddol'!$D$18) -> - | G116: =IF(ISBLANK('Rhagdybiaeth Blynyddol'!$D$18),"-",'Rhagdybiaeth Blynyddol'!$D$18) -> -
B117: Meini Prawf Fforddiadwyedd (Cymdeithasol) | C117: =IF($D23="Wedi'i ragosod",'Rhagdybiaeth Blynyddol'!$D$20,'Rhagdybiaeth Blynyddol'!$D$21) -> 35% | D117: =IF($D23="Wedi'i ragosod",'Rhagdybiaeth Blynyddol'!$D$20,'Rhagdybiaeth Blynyddol'!$D$21) -> 35% | E117: =IF($D23="Wedi'i ragosod",'Rhagdybiaeth Blynyddol'!$D$20,'Rhagdybiaeth Blynyddol'!$D$21) -> 35% | F117: =IF($D23="Wedi'i ragosod",'Rhagdybiaeth Blynyddol'!$D$20,'Rhagdybiaeth Blynyddol'!$D$21) -> 35% | G117: =IF($D23="Wedi'i ragosod",'Rhagdybiaeth Blynyddol'!$D$20,'Rhagdybiaeth Blynyddol'!$D$21) -> 35%
B118: Y Cynnydd i Brisiau Tai | C118: =INDEX('Rhagolygon y Dyfodol'!D27:D28,MATCH('Rhaniad y Ddeiliadaeth (Cymru)'!$D$25,'Rhagolygon y Dyfodol'!$C$27:$C$28,0)) -> 5% | D118: =INDEX('Rhagolygon y Dyfodol'!E27:E28,MATCH('Rhaniad y Ddeiliadaeth (Cymru)'!$D$25,'Rhagolygon y Dyfodol'!$C$27:$C$28,0)) -> 6% | E118: =INDEX('Rhagolygon y Dyfodol'!F27:F28,MATCH('Rhaniad y Ddeiliadaeth (Cymru)'!$D$25,'Rhagolygon y Dyfodol'!$C$27:$C$28,0)) -> 7% | F118: =INDEX('Rhagolygon y Dyfodol'!G27:G28,MATCH('Rhaniad y Ddeiliadaeth (Cymru)'!$D$25,'Rhagolygon y Dyfodol'!$C$27:$C$28,0)) -> 5% | G118: =INDEX('Rhagolygon y Dyfodol'!H27:H28,MATCH('Rhaniad y Ddeiliadaeth (Cymru)'!$D$25,'Rhagolygon y Dyfodol'!$C$27:$C$28,0)) -> 4%
B120: Gwirio Gwallau - Newidynnau 2 Deiliadaeth
B121: Ffynonellau Data | C121: Mater?
B122: Amcanestyniadau Aelwydydd | C122: =IF(E6="Y",0,1) -> 0
B123: Angen Presennol Nas Diwallwyd | C123: =IF(E7="Y",0,1) -> 0
B124: Dosbarthiad Incwm | C124: =IF(E8="Y",0,1) -> 0
B125: Prisiau Rhenti | C125: =IF(E9="Y",0,1) -> 0
B126: Gwerthoedd Blynyddol Penodol
B127: Trothwy Y Sector Rhentu Preifat | C127: =IF(E11="Y",0,1) -> 0
B128: Amser i Gael Gwared ar yr ôl Groniad | C128: =IF(E12="Y",0,1) -> 0
B129: Rhagdybiaethau 5 Mlynedd
B130: Newid i Incwm Canolrifol yr Aelwyd | C130: =IF(E14="Y",0,1) -> 0
B131: Newid i Ddosbarthiad Incwm yr Aelwyd | C131: =IF(E15="Y",0,1) -> 0
B132: Newid i Brisiau Rhenti | C132: =IF(E16="Y",0,1) -> 0
B133: Overall issue - 2 Tenure | C133: =IF(SUM(C122:C132)>0,1,0) -> 0
B135: Gwirio Gwallau - Newidynnau 4 Deiliadaeth
B136: Ffynonellau Data
B137: Dosbarthiad Prisiau Tai | C137: =IF(E18="Y",0,1) -> 0
B138: Gwerthoedd Blynyddol Penodol
B139: Cymhareb Prynwyr am y Tro Cyntaf | C139: =IF(E20="Y",0,1) -> 0
B140: Prynwyr sy'n Prynu Eiddo am y Tro Cyntaf | C140: =IF(E21="Y",0,1) -> 0
B141: % sy'n mynd ymlaen i brynu | C141: =IF(E22="Y",0,1) -> 1
B142: Trothwy Cymdeithasol | C142: =IF(E23="Y",0,1) -> 0
B143: Rhagdybiaethau 5 Mlynedd
B144: Newid i Brisiau Tai | C144: =IF(E25="Y",0,1) -> 0
B145: 4 Deiliadaeth | C145: =IF(SUM(C133,C137:C144)=0,0,1) -> 1
B147: Amcangyfrifon - Rhaniad 2 Deiliadaeth
B148: =IF(C133=1,"Please complete table to view figures.","") ->  | C148: =IF($C$133=0,Year1,"") -> 2019/20 | D148: =IF($C$133=0, Year2,"") -> 2020/21 | E148: =IF($C$133=0,Year3,"") -> 2021/22 | F148: =IF($C$133=0,Year4,"") -> 2022/23 | G148: =IF($C$133=0,Year5,"") -> 2023/24
B149: =IF($C$133=0,"Tai'r Farchnad","") -> Tai'r Farchnad | C149: =IF($C$133=0,'Cyfrifiadau - Cymru'!C29,"") -> 3,688 | D149: =IF($C$133=0,'Cyfrifiadau - Cymru'!D29,"") -> 3,770 | E149: =IF($C$133=0,'Cyfrifiadau - Cymru'!E29,"") -> 4,070 | F149: =IF($C$133=0,'Cyfrifiadau - Cymru'!F29,"") -> 3,910 | G149: =IF($C$133=0,'Cyfrifiadau - Cymru'!G29,"") -> 3,845
B150: =IF($C$133=0,"Tai fforddiadwy","") -> Tai fforddiadwy | C150: =IF($C$133=0,'Cyfrifiadau - Cymru'!C30,"") -> 3,407 | D150: =IF($C$133=0,'Cyfrifiadau - Cymru'!D30,"") -> 3,457 | E150: =IF($C$133=0,'Cyfrifiadau - Cymru'!E30,"") -> 3,641 | F150: =IF($C$133=0,'Cyfrifiadau - Cymru'!F30,"") -> 3,543 | G150: =IF($C$133=0,'Cyfrifiadau - Cymru'!G30,"") -> 3,503
B151: =IF(C133=1,"Please complete table to view figures.","") ->  | C151: =C148 -> 2019/20 | D151: =D148 -> 2020/21 | E151: 2021/22 | F151: 2022/23 | G151: 2023/24 | I151: =IF(C133=1,"","Rhaniad 5 mlynedd") -> Rhaniad 5 mlynedd
B152: =IF($C$133=0,"Tai'r Farchnad","") -> Tai'r Farchnad | C152: =IF($C$133=1,"",C149/SUM(C$149:C$150)) -> 51.98% | D152: =IF($C$133=1,"",D149/SUM(D$149:D$150)) -> 52.16% | E152: =IF($C$133=1,"",E149/SUM(E$149:E$150)) -> 52.78% | F152: 52.46% | G152: 52.33% | I152: =IF($C$133=1,"",SUM(C149:G149)/SUM(C149:G150)) -> 52.35%
B153: =IF($C$133=0,"Tai fforddiadwy","") -> Tai fforddiadwy | C153: =IF($C$133=1,"",C150/SUM(C$149:C$150)) -> 48.02% | D153: 47.84% | E153: 47.22% | F153: 47.54% | G153: 47.67% | I153: =IF($C$133=1,"",SUM(C150:G150)/SUM(C149:G150)) -> 47.65%
B156: Amcangyfrifon - Rhaniad 4 Deiliadaeth
B157: =IF(C145=1,"Cwblhewch y tabl i weld amcangyfrifon wedi'u rhannu'n 4 deiliadaeth.","") -> Cwblhewch y tabl i weld amcangyfrifon wedi'u rhannu'n 4 deiliadaeth. | C157: =IF($C$145=0,Year1,"") ->  | D157: =IF($C$145=0,Year2,"") ->  | E157: =IF($C$145=0,Year3,"") ->  | F157: =IF($C$145=0,Year4,"") ->  | G157: =IF($C$145=0,Year5,"") -> 
B158: =IF($C$145=0,"Perchen-feddiannydd","") ->  | C158: =IF($C$145=0,'Cyfrifiadau - Cymru'!C59,"") ->  | D158: =IF($C$145=0,'Cyfrifiadau - Cymru'!D59,"") ->  | E158: =IF($C$145=0,'Cyfrifiadau - Cymru'!E59,"") ->  | F158: =IF($C$145=0,'Cyfrifiadau - Cymru'!F59,"") ->  | G158: =IF($C$145=0,'Cyfrifiadau - Cymru'!G59,"") -> 
B159: =IF($C$145=0,"Y Sector Rhenti Preifat","") ->  | C159: =IF($C$145=0,'Cyfrifiadau - Cymru'!C60,"") ->  | D159: =IF($C$145=0,'Cyfrifiadau - Cymru'!D60,"") ->  | E159: =IF($C$145=0,'Cyfrifiadau - Cymru'!E60,"") ->  | F159: =IF($C$145=0,'Cyfrifiadau - Cymru'!F60,"") ->  | G159: =IF($C$145=0,'Cyfrifiadau - Cymru'!G60,"") -> 
B160: =IF($C$145=0,"Rhent gymdeithasol","") ->  | C160: =IF($C$145=0,'Cyfrifiadau - Cymru'!C61,"") ->  | D160: =IF($C$145=0,'Cyfrifiadau - Cymru'!D61,"") ->  | E160: =IF($C$145=0,'Cyfrifiadau - Cymru'!E61,"") ->  | F160: =IF($C$145=0,'Cyfrifiadau - Cymru'!F61,"") ->  | G160: =IF($C$145=0,'Cyfrifiadau - Cymru'!G61,"") -> 
B161: =IF($C$145=0,"Rhent ganolradd","") ->  | C161: =IF($C$145=0,'Cyfrifiadau - Cymru'!C62,"") ->  | D161: =IF($C$145=0,'Cyfrifiadau - Cymru'!D62,"") ->  | E161: =IF($C$145=0,'Cyfrifiadau - Cymru'!E62,"") ->  | F161: =IF($C$145=0,'Cyfrifiadau - Cymru'!F62,"") ->  | G161: =IF($C$145=0,'Cyfrifiadau - Cymru'!G62,"") -> 
B162: =IF(C145=1,"Cwblhewch y tabl i weld amcangyfrifon wedi'u rhannu'n 4 deiliadaeth.","") -> Cwblhewch y tabl i weld amcangyfrifon wedi'u rhannu'n 4 deiliadaeth. | C162: =IF($C$145=0,Year1,"") ->  | D162: =IF($C$145=0,Year2,"") ->  | E162: =IF($C$145=0,Year3,"") ->  | F162: =IF($C$145=0,Year4,"") ->  | G162: =IF($C$145=0,Year5,"") ->  | I162: =IF(C145=1,"","Rhaniad 5 mlynedd") -> 
B163: =IF($C$145=0,"Perchen-feddiannydd","") ->  | C163: =IF($C$145=1,"",C158/SUM(C$158:C$161)) ->  | D163: =IF($C$145=1,"",D158/SUM(D$158:D$161)) ->  | I163: =IF($C$145=1,"",SUM(C158:G158)/SUM($C$158:$G$161)) -> 
B164: =IF($C$145=0,"Y Sector Rhenti Preifat","") ->  | C164: =IF($C$145=1,"",C159/SUM(C$158:C$161)) ->  | I164: =IF($C$145=1,"",SUM(C159:G159)/SUM($C$158:$G$161)) -> 
B165: =IF($C$145=0,"Rhent gymdeithasol","") ->  | C165: =IF($C$145=1,"",C160/SUM(C$158:C$161)) -> 
B166: =IF($C$145=0,"Rhent ganolradd","") ->  | C166: =IF($C$145=1,"",C161/SUM(C$158:C$161)) -> 
B168: Sylwadau
C169: Mae'r ffigurau isod yn rhannu yr amcangyfrifon o'r angen am dai yn 2 deiliadaeth ac maent yn seiliedig ar y rhagdybiaethau canlynol. | D169: Yn dilyn yr uchod, caiff yr amcangyfrifon eu rhannu ymhellach yn bedair deiliadaeth. Caiff yr amcangyfrifon hyn eu cynhyrchu gan y defnyddiwr, ac maent yn seiliedig ar y rhagdybiaethau canlynol. | E169: Mae amcangyfrifon sylfaenol yr unedau tai ychwanegol wedi'u seilio ar | F169: , ac amcangyfrif o | G169: Mae data ar brisiau tai yn seiliedig ar | H169: Mae data ar incwm yn seiliedig ar | I169: ac mae data ar renti preifat yn seiliedig ar | J169: =". Mae gan brynwyr am y tro cyntaf gymhareb fforddiadwyedd o "&C175&" a gallant brynu eiddo am y tro cyntaf yn ôl "&C176&" canradd dosbarthiad prisiau tai.. "&C177 -> 
B170: Amcanestyniadau o Aelwyd | C170: =IF(D6="Amcanestyniadau Defnyddwyr","amcanestyniadau'r aelwyd gan y defnyddiwr,",("amcanestyniadau aelwydydd gan Llywodraeth Cymru sy'n seiliedig ar 2018 "&"("&D6&")")) -> amcanestyniadau aelwydydd gan Llywodraeth Cymru sy'n seiliedig ar 2018 (Prif Amcanestyniadau)
B171: Angen Presennol Nas Diwallwyd | C171: =IF(D7="Amcangyfrifon LlC",'Angen Presennol Nas Diwallwyd'!C13,'Angen Presennol Nas Diwallwyd'!C24)&" aelwydydd o ran angen presennol nas diwallwyd " -> 5732 aelwydydd o ran angen presennol nas diwallwyd
B172: Dosbarthiad Incwm | C172: =IF(D8="Arall", " amcangyfrifon defnyddwyr "," Ddata Llywodraeth Cymru ") -> Ddata Llywodraeth Cymru
B173: Dosbarthiad Prisiau Tai | C173: =IF(D18="Arall", " amcangyfrifon defnyddwyr"," Ddata Cofrestrfa Tir") -> Ddata Cofrestrfa Tir
B174: Prisiau Rhenti | C174: =IF(D9="Arall", " amcangyfrifon defnyddwyr"," Ddata Llywodraeth Cymru") -> Ddata Llywodraeth Cymru
B175: Cymhareb Prynwyr am y Tro Cyntaf | C175: =C114 -> 4.03
B176: Prynwyr sy'n Prynu Eiddo am y Tro Cyntaf | C176: =C115 -> 40.00
B177: % sy'n mynd ymlaen i brynu | C177: =C116*100&"% o brynwyr potensial am y tro cyntaf sy'n mynd ymlaen i brynu eiddo. " -> 
B178: Trothwy Y Sector Rhentu Preifat | C178: ="Gall aelwydydd sy'n gwario "&C108*100&"% o incwm yr aelwyd ar rent preifat canolrifol fforddio rhent preifat," -> Gall aelwydydd sy'n gwario 30% o incwm yr aelwyd ar rent preifat canolrifol fforddio rhent preifat,
B179: Trothwy Cymdeithasol | C179: ="Mae aelwydydd sy'n gwario "&C117*100&"% o incwm yr aelwyd ar rent preifat 30 canradd yn addas ar gyfer dai cymdeithasol." -> Mae aelwydydd sy'n gwario 35% o incwm yr aelwyd ar rent preifat 30 canradd yn addas ar gyfer dai cymdeithasol.
B180: Amser i Gael Gwared ar yr ôl Groniad | C180: =" a fydd yn cymryd "&'Angen Presennol Nas Diwallwyd'!C29&" mlynedd i'w diwallu." -> a fydd yn cymryd 5 mlynedd i'w diwallu.
B181: Newid i Incwm Canolrifol yr Aelwyd | C181: =". Mae'r newid blynyddol i incwm canolrifol yr aelwyd yn seiliedig ar "&IF(D14="Arall","amcangyfrifon defnyddwyr","amcangyfrifon wedi'u rhagosod") -> . Mae'r newid blynyddol i incwm canolrifol yr aelwyd yn seiliedig ar amcangyfrifon wedi'u rhagosod
B182: Newid i Ddosbarthiad Incwm yr Aelwyd | C182: =", mae'r newid blynyddol i ddosbarthiad incwm yr aelwyd yn seiliedig ar "&IF(D15="Arall","amcangyfrifon defnyddwyr","amcangyfrifon wedi'u rhagosod") -> , mae'r newid blynyddol i ddosbarthiad incwm yr aelwyd yn seiliedig ar amcangyfrifon wedi'u rhagosod
B183: Newid i Brisiau Tai | C183: =", mae'r newid blynyddol i brisiau tai yn seiliedig ar "&IF(D25="Arall","amcangyfrifon defnyddwyr","amcangyfrifon wedi'u rhagosod") -> , mae'r newid blynyddol i brisiau tai yn seiliedig ar amcangyfrifon wedi'u rhagosod
B184: Newid i Brisiau Rhenti | C184: =" ac mae'r newid blynyddol i brisiau rhenti yn seiliedig ar "&IF(D16="Arall","amcangyfrifon y defnyddwyr","amcangyfrifon wedi'u rhagosod.") -> ac mae'r newid blynyddol i brisiau rhenti yn seiliedig ar amcangyfrifon wedi'u rhagosod.
B186: Paragraff Olaf - 2 Deiliadaeth
B187: =C169&E169&C170&F169&C171&C180&H169&C172&I169&C174&C181&C182&C184 -> Mae'r ffigurau isod yn rhannu yr amcangyfrifon o'r angen am dai yn 2 deiliadaeth ac maent yn seiliedig ar y rhagdybiaethau canlynol. Mae amcangyfrifon sylfaenol yr unedau tai ychwanegol wedi'u seilio ar amcanestyniadau aelwydydd gan Llywodraeth Cymru sy'n seiliedig ar 2018 (Prif Amcanestyniadau), ac amcangyfrif o 5732 aelwydydd o ran angen presennol nas diwallwyd a fydd yn cymryd 5 mlynedd i'w diwallu.Mae data ar incwm yn seiliedig ar Ddata Llywodraeth Cymru ac mae data ar renti preifat yn seiliedig ar Ddata Llywodraeth Cymru. Mae'r newid blynyddol i incwm canolrifol yr aelwyd yn seiliedig ar amcangyfrifon wedi'u rhagosod, mae'r newid blynyddol i ddosbarthiad incwm yr aelwyd yn seiliedig ar amcangyfrifon wedi'u rhagosod ac mae'r newid blynyddol i brisiau rhenti yn seiliedig ar amcangyfrifon wedi'u rhagosod.
B188: =IF(C133=1,"Estimates will not appear below until the above table is complete.",B187) -> Mae'r ffigurau isod yn rhannu yr amcangyfrifon o'r angen am dai yn 2 deiliadaeth ac maent yn seiliedig ar y rhagdybiaethau canlynol. Mae amcangyfrifon sylfaenol yr unedau tai ychwanegol wedi'u seilio ar amcanestyniadau aelwydydd gan Llywodraeth Cymru sy'n seiliedig ar 2018 (Prif Amcanestyniadau), ac amcangyfrif o 5732 aelwydydd o ran angen presennol nas diwallwyd a fydd yn cymryd 5 mlynedd i'w diwallu.Mae data ar incwm yn seiliedig ar Ddata Llywodraeth Cymru ac mae data ar renti preifat yn seiliedig ar Ddata Llywodraeth Cymru. Mae'r newid blynyddol i incwm canolrifol yr aelwyd yn seiliedig ar amcangyfrifon wedi'u rhagosod, mae'r newid blynyddol i ddosbarthiad incwm yr aelwyd yn seiliedig ar amcangyfrifon wedi'u rhagosod ac mae'r newid blynyddol i brisiau rhenti yn seiliedig ar amcangyfrifon wedi'u rhagosod.
B190: Paragraff Olaf - 4 Deiliadaeth
B191: =D169&G169&C173&C183&J169&C179 -> 
B192: =IF(C145=1,"Ni fydd amcangyfrifon wedi'u rhannu'n 4 deiliadaeth yn ymddangos hyd nes bod y tabl uchod wedi'i gwblhau.",B191) -> Ni fydd amcangyfrifon wedi'u rhannu'n 4 deiliadaeth yn ymddangos hyd nes bod y tabl uchod wedi'i gwblhau.
B194: Gwnewch ddetholiad ar y daflen Rhaniad y Ddeiliadaeth (Cymru)
B195: Data rhagosodedig a ddefnyddiwyd
B196: Data defnyddwyr
B197: Cofnodwch ddata defnyddwyr ar y daflen:
B198: ="'Amcanestyniadau Aelwydydd'" -> 'Amcanestyniadau Aelwydydd'
B199: ="'Angen Presennol Nas Diwallwyd'" -> 'Angen Presennol Nas Diwallwyd'
B200: ="'Incwm (Cymru)'" -> 'Incwm (Cymru)'
B201: ="'Prisiau Tai (Cymru)'" -> 'Prisiau Tai (Cymru)'
B202: ="'Prisiau Rhenti'" -> 'Prisiau Rhenti'
B203: ="'Rhagdybiaeth Blynyddol'" -> 'Rhagdybiaeth Blynyddol'
B204: ="'Rhagolygon y Dyfodol'" -> 'Rhagolygon y Dyfodol'

Sheet Rhaniad y Ddeiliadaeth (Gog)
B1: Lefel Ddaearyddol: | D1: ='Cyfrifiadau - Gogledd'!B1 -> Gogledd Cymru
B2: Mae'r dewisiadau a wnaed ar daflen: Rhaniad y Ddeiliadaeth (Cymru) yn cael eu cadw yn y taflenni rhanbarthol. Os byddwch wedi dewis defnyddio eich data eich hunain, ac nad ydych wedi nodi'r data rhanbarthol lle y mae angen eu rhoi, cewch eich atgoffa i wneud hynny.
C4: Newidyn | D4: Dewislen | E4: Wedi'i gwblhau? | F4: Cyfarwyddiadau/Gwirio/Nodyn | K4: Dolenni defnyddiol i dudalennau eraill:
B5: Mae angen y newidynnau hyn i gynhyrchu amcangyfrifon wedi'u rhannu yn ddwy deiliadaeth (marchnad a fforddiadwy). Mae'r daenlen "Canllawiau ar Newidynnau" yn darparu diffiniadau llawn. | C5: Ffynonellau Data (rhaniad 2 ddeiliadaeth)
C6: Rhagdybiaethau yr Aelwyd | D6: ='Rhaniad y Ddeiliadaeth (Cymru)'!D6 -> Prif Amcanestyniadau | E6: =IF(OR(F6=$B$195,F6=$B$196),"Y","N") -> Y | F6: =IF(D6="",B194,IF(D6="Other",IF('Amcanestyniadau Aelwydydd'!J18<6,B197&B198,B196),B195)) -> Data rhagosodedig a ddefnyddiwyd
C7: Angen Nas Diwallwyd Presennol | D7: ='Rhaniad y Ddeiliadaeth (Cymru)'!D7 -> Amcangyfrifon LlC | E7: =IF(OR(F7=$B$195,F7=$B$196),"Y","N") -> Y | F7: =IF(D7="",B194,IF(D7="Other",IF(ISBLANK('Angen Presennol Nas Diwallwyd'!C19),'Rhaniad y Ddeiliadaeth (Gog)'!B197&'Rhaniad y Ddeiliadaeth (Gog)'!B199,'Rhaniad y Ddeiliadaeth (Gog)'!B196),'Rhaniad y Ddeiliadaeth (Gog)'!B195)) -> Data rhagosodedig a ddefnyddiwyd
C8: Incwm yr Aelwyd | D8: ='Rhaniad y Ddeiliadaeth (Cymru)'!D8 -> Amcangyfrifon LlC | E8: =IF(OR(F8=$B$195,F8=$B$196),"Y","N") -> Y | F8: =IF(D8="",B194,IF(D8="Arall",IF('Incwm (Gogledd)'!O85=0,B196,B197&B200),B195)) -> Data rhagosodedig a ddefnyddiwyd
C9: Prisiau Rhenti Preifat | D9: ='Rhaniad y Ddeiliadaeth (Cymru)'!D9 -> Prisiau Rhenti | E9: =IF(OR(F9=$B$195,F9=$B$196),"Y","N") -> Y | F9: =IF(D9="",B194,IF(D9="Other",IF(OR(ISBLANK('Prisiau Rhenti'!C15),ISBLANK('Prisiau Rhenti'!D15)),'Rhaniad y Ddeiliadaeth (Gog)'!B197&'Rhaniad y Ddeiliadaeth (Gog)'!B202,'Rhaniad y Ddeiliadaeth (Gog)'!B196),'Rhaniad y Ddeiliadaeth (Gog)'!B195)) -> Data rhagosodedig a ddefnyddiwyd
C10: Rhagdybiaethau Blynyddol Penodol (rhaniad 2 ddeiliadaeth)
C11: Meini Prawf Fforddiadwyedd (Marchnad) | D11: ='Rhaniad y Ddeiliadaeth (Cymru)'!D11 -> Wedi'i ragosod | E11: =IF(OR(F11=$B$195,F11=$B$196),"Y","N") -> Y | F11: ='Rhaniad y Ddeiliadaeth (Cymru)'!F11:I11 -> Data rhagosodedig a ddefnyddiwyd
C12: Blynyddoedd i Gael Gwared ar yr ôl Groniad | D12: ='Rhaniad y Ddeiliadaeth (Cymru)'!D12 -> Wedi'i ragosod | E12: =IF(OR(F12=$B$195,F12=$B$196),"Y","N") -> Y | F12: ='Rhaniad y Ddeiliadaeth (Cymru)'!F12:I12 -> Data rhagosodedig a ddefnyddiwyd
C13: Rhagdybiaethau 5 mlynedd (rhaniad 2 deiliadaeth)
C14: Newid i Incwm Canolrifol yr Aelwyd | D14: ='Rhaniad y Ddeiliadaeth (Cymru)'!D14 -> Wedi'i ragosod | E14: =IF(OR(F14=$B$195,F14=$B$196),"Y","N") -> Y | F14: ='Rhaniad y Ddeiliadaeth (Cymru)'!F14:I14 -> Data rhagosodedig a ddefnyddiwyd
C15: Newid i Ddosbarthiad Incwm yr Aelwyd | D15: ='Rhaniad y Ddeiliadaeth (Cymru)'!D15 -> Mwy o Anghydraddoldeb | E15: =IF(OR(F15=$B$195,F15=$B$196),"Y","N") -> Y | F15: ='Rhaniad y Ddeiliadaeth (Cymru)'!F15:I15 -> Data rhagosodedig a ddefnyddiwyd
C16: Newid i Brisiau Rhenti | D16: ='Rhaniad y Ddeiliadaeth (Cymru)'!D16 -> Wedi'i ragosod | E16: =IF(OR(F16=$B$195,F16=$B$196),"Y","N") -> Y | F16: ='Rhaniad y Ddeiliadaeth (Cymru)'!F16:I16 -> Data rhagosodedig a ddefnyddiwyd
B17: Mae angen y newidynnau ychwanegol hyn i gynhyrchu amcangyfrifon wedi'u rhannu yn bedair deiliadaeth (perchen-feddiannydd, rhent preifat, rhent canolradd a chymdeithasol). Mae'r daenlen "Canllawiau ar Newidynnau" yn darparu diffiniadau llawn. | C17: Ffynonellau Data (rhaniad 4 deiliadaeth)
C18: Dosbarthiad Prisiau Tai | D18: ='Rhaniad y Ddeiliadaeth (Cymru)'!D18 -> Data Cofrestrfa Tir | E18: =IF(OR(F18=$B$195,F18=$B$196),"Y","N") -> Y | F18: =IF(D18="",B194,IF(D18="Other",IF('Prisiau Tai (Gogledd)'!O85=1,B197&B201,B196),B195)) -> Data rhagosodedig a ddefnyddiwyd
C19: Rhagdybiaethau Blynyddol Penodol (rhaniad 4 deiliadaeth)
C20: Cymhareb Incwm Prynwyr am y Tro Cyntaf | D20: ='Rhaniad y Ddeiliadaeth (Cymru)'!D20 -> Wedi'i ragosod | E20: =IF(OR(F20=$B$195,F20=$B$196),"Y","N") -> Y | F20: ='Rhaniad y Ddeiliadaeth (Cymru)'!F20:I20 -> Data rhagosodedig a ddefnyddiwyd
C21: Canradd Mynediad y farchnad ar gyfer y Prynwyr sy'n Prynu Eiddo am y Tro Cyntaf | D21: ='Rhaniad y Ddeiliadaeth (Cymru)'!D21 -> 40 | E21: =IF(OR(F21=$B$195,F21=$B$196),"Y","N") -> Y | F21: ='Rhaniad y Ddeiliadaeth (Cymru)'!F21:I21 -> Data rhagosodedig a ddefnyddiwyd
C22: Prynwyr sy'n mynd ymlaen i brynu eiddo am y tro cyntaf (nid oes newidyn wedi'i ragosod) | D22: ='Rhaniad y Ddeiliadaeth (Cymru)'!D22 -> Gwerth defnyddiwr (nid oes gwerth wedi'i ragosod) | E22: =IF(OR(F22=$B$195,F22=$B$196),"Y","N") -> N | F22: ='Rhaniad y Ddeiliadaeth (Cymru)'!F22:I22 -> Cofnodwch ddata defnyddwyr ar y daflen:'Rhagdybiaeth Blynyddol'
C23: Meini Prawf Fforddiadwyedd (Cymdeithasol) | D23: ='Rhaniad y Ddeiliadaeth (Cymru)'!D23 -> Wedi'i ragosod | E23: =IF(OR(F23=$B$195,F23=$B$196),"Y","N") -> Y | F23: ='Rhaniad y Ddeiliadaeth (Cymru)'!F23:I23 -> Data rhagosodedig a ddefnyddiwyd
C24: Rhagdybiaethau 5 mlynedd (rhaniad 4 deiliadaeth)
C25: Newid i Brisiau Tai | D25: ='Rhaniad y Ddeiliadaeth (Cymru)'!D25 -> Wedi'i ragosod | E25: =IF(OR(F25=$B$195,F25=$B$196),"Y","N") -> Y | F25: ='Rhaniad y Ddeiliadaeth (Cymru)'!F25:I25 -> Data rhagosodedig a ddefnyddiwyd
B27: =IF(C133=1,"","Sylwadau ar y rhagdybiaethau a ddewiswyd ar gyfer rhaniad o ddwy ddeiliadaeth: "&D1) -> Sylwadau ar y rhagdybiaethau a ddewiswyd ar gyfer rhaniad o ddwy ddeiliadaeth: Gogledd Cymru
B28: =B188 -> Mae'r ffigurau isod yn rhannu yr amcangyfrifon o'r angen am dai yn 2 deiliadaeth ac maent yn seiliedig ar y rhagdybiaethau canlynol. Mae amcangyfrifon sylfaenol yr unedau tai ychwanegol wedi'u seilio ar amcanestyniadau aelwydydd gan Llywodraeth Cymru sy'n seiliedig ar 2018 (Prif Amcanestyniadau), ac amcangyfrif o 5732 aelwydydd o ran angen presennol nas diwallwyd a fydd yn cymryd 5 mlynedd i'w diwallu.Mae data ar incwm yn seiliedig ar Ddata Llywodraeth Cymru ac mae data ar renti preifat yn seiliedig ar Ddata Llywodraeth Cymru. Mae'r newid blynyddol i incwm canolrifol yr aelwyd yn seiliedig ar amcangyfrifon wedi'u rhagosod, mae'r newid blynyddol i ddosbarthiad incwm yr aelwyd yn seiliedig ar amcangyfrifon wedi'u rhagosod ac mae'r newid blynyddol i brisiau rhenti yn seiliedig ar amcangyfrifon wedi'u rhagosod.
B52: Noder: Gall fod gwahaniaethau bach rhwng swm y canlyniadau rhanbarthol a'r canlyniadau cenedlaethol o dan unrhyw amcangyfrifon a rhannwyd yn ôl daliadaeth. Mae hyn oherwydd y cyfrifir amcangyfrifon rhanbarthol gan ddefnyddio data rhanbarthol (incwm aelwyd, prisiau rhentu) ac felly bydd yn wahanol i lefel Cymru gyfan. Ymhellach, bydd unrhyw angen newydd am dai rhanbarthol sy'n negyddol yn cael ei osod fel sero ar gyfer y rhanbarth hwnnw ond fe'i cymerir fel ffigwr negyddol o fewn ffigurau Cymru.
B55: Rhaniad o 2 Ddeiliadaeth a amcangyfrifir - Gogledd Cymru (yn seiliedig ar ragdybiaethau defnyddwyr)
B56: =B148 ->  | C56: =C148 -> 2019/20 | D56: 2020/21 | E56: 2021/22 | F56: 2022/23 | G56: 2023/24
B57: =B149 -> Tai'r Farchnad | C57: 540 | D57: 566 | E57: 622 | F57: 579 | G57: 568
B58: Tai fforddiadwy | C58: 632 | D58: 650 | E58: 689 | F58: 659 | G58: 652
B60: Rhaniad Cymesur o 2 Ddeiliadaeth - Gogledd Cymru (yn seiliedig ar ragdybiaethau defnyddwyr)
B61: =B151 ->  | C61: =C151 -> 2019/20 | D61: 2020/21 | E61: 2021/22 | F61: 2022/23 | G61: 2023/24 | I61: =I151 -> Rhaniad 5 mlynedd
B62: =B152 -> Tai'r Farchnad | C62: =C152 -> 46% | D62: 47% | E62: 47% | F62: 47% | G62: 47% | I62: =I152 -> 47%
B63: =B153 -> Tai fforddiadwy | C63: =C153 -> 54% | D63: 53% | E63: 53% | F63: 53% | G63: 53% | I63: =I153 -> 53%
B65: =IF(C145=1,"","Sylwebaeth ar y rhagdybiaethau a ddewiswyd ar gyfer y rhaniad 4 deiliadaeth") -> 
B66: =B192 -> Ni fydd amcangyfrifon wedi'u rhannu'n 4 deiliadaeth yn ymddangos hyd nes bod y tabl uchod wedi'i gwblhau.
B90: Rhaniad o 4 deiliadaeth a amcangyfrifir - Gogledd Cymru (yn seiliedig ar ragdybiaethau defnyddwyr)
B91: =B157 -> Cwblhewch y tabl i weld amcangyfrifon wedi'u rhannu'n 4 deiliadaeth.
C92: =C157 -> 
B93: =B158 -> 
B94: =B159 -> 
B95: =B160 -> 
B96: =B161 -> 
B98: Rhaniad Cymesur o 4 deiliadaeth - Gogledd Cymru (yn seiliedig ar ragdybiaethau defnyddwyr)
B99: =B162 -> Cwblhewch y tabl i weld amcangyfrifon wedi'u rhannu'n 4 deiliadaeth. | I99: =I162 -> 
C100: =C162 -> 
B101: =B163 ->  | I101: =I163 -> 
B102: =B164 ->  | I102: =I164 -> 
B103: =B165 ->  | I103: =I165 -> 
B104: =B166 ->  | I104: =I166 -> 
B106: Crynodeb o Ragdybiaethau a Ddewiswyd gan Ddefnyddwyr – Gogledd Cymru
C107: =Year1 -> 2019/20 | D107: =Year2 -> 2020/21 | E107: =Year3 -> 2021/22 | F107: =Year4 -> 2022/23 | G107: =Year5 -> 2023/24
B108: Meini Prawf Fforddiadwyedd (Marchnad) | C108: ='Rhaniad y Ddeiliadaeth (Cymru)'!C108 -> 30% | D108: ='Rhaniad y Ddeiliadaeth (Cymru)'!D108 -> 30% | E108: ='Rhaniad y Ddeiliadaeth (Cymru)'!E108 -> 30% | F108: ='Rhaniad y Ddeiliadaeth (Cymru)'!F108 -> 30% | G108: ='Rhaniad y Ddeiliadaeth (Cymru)'!G108 -> 30%
B109: Y Cynnydd i Incwm yr Aelwyd | C109: ='Rhaniad y Ddeiliadaeth (Cymru)'!C109 -> 2% | D109: ='Rhaniad y Ddeiliadaeth (Cymru)'!D109 -> 3% | E109: ='Rhaniad y Ddeiliadaeth (Cymru)'!E109 -> 3% | F109: ='Rhaniad y Ddeiliadaeth (Cymru)'!F109 -> 3% | G109: ='Rhaniad y Ddeiliadaeth (Cymru)'!G109 -> 3%
B110: Newid i ddosbarthiad incwm | C110: ='Rhaniad y Ddeiliadaeth (Cymru)'!C110 -> 1% | D110: ='Rhaniad y Ddeiliadaeth (Cymru)'!D110 -> 1% | E110: ='Rhaniad y Ddeiliadaeth (Cymru)'!E110 -> 1% | F110: ='Rhaniad y Ddeiliadaeth (Cymru)'!F110 -> 1% | G110: ='Rhaniad y Ddeiliadaeth (Cymru)'!G110 -> 1%
B111: Y Cynnydd i Brisiau Rhenti Preifat | C111: ='Rhaniad y Ddeiliadaeth (Cymru)'!C111 -> 3% | D111: ='Rhaniad y Ddeiliadaeth (Cymru)'!D111 -> 3% | E111: ='Rhaniad y Ddeiliadaeth (Cymru)'!E111 -> 3% | F111: ='Rhaniad y Ddeiliadaeth (Cymru)'!F111 -> 3% | G111: ='Rhaniad y Ddeiliadaeth (Cymru)'!G111 -> 3%
B112: Rhenti Canolrifol Blynyddol | C112: =INDEX('Prisiau Rhenti'!$D$14:$D$15,MATCH('Rhaniad y Ddeiliadaeth (Gog)'!$D$9,'Prisiau Rhenti'!$B$14:$B$15,0))*(1+C111) -> £6,795 | D112: =C112*(1+D111) -> £7,003 | E112: =D112*(1+E111) -> £7,221 | F112: =E112*(1+F111) -> £7,450 | G112: =F112*(1+G111) -> £7,696
B113: Rhenti 30 Canradd Blynyddol | C113: =INDEX('Prisiau Rhenti'!$C$14:$C$15,MATCH('Rhaniad y Ddeiliadaeth (Gog)'!$D$9,'Prisiau Rhenti'!$B$14:$B$15,0))*(1+C111) -> £6,177 | D113: =C113*(1+D111) -> £6,366 | E113: =D113*(1+E111) -> £6,565 | F113: =E113*(1+F111) -> £6,773 | G113: =F113*(1+G111) -> £6,996
B114: Cymhareb Incwm Prynwyr am y Tro Cyntaf | C114: ='Rhaniad y Ddeiliadaeth (Cymru)'!C114 -> 4.03 | D114: ='Rhaniad y Ddeiliadaeth (Cymru)'!D114 -> 4.03 | E114: ='Rhaniad y Ddeiliadaeth (Cymru)'!E114 -> 4.03 | F114: ='Rhaniad y Ddeiliadaeth (Cymru)'!F114 -> 4.03 | G114: ='Rhaniad y Ddeiliadaeth (Cymru)'!G114 -> 4.03
B115: Canradd y Prynwyr sy'n Prynu Eiddo am y Tro Cyntaf | C115: ='Rhaniad y Ddeiliadaeth (Cymru)'!C115 -> 40 | D115: ='Rhaniad y Ddeiliadaeth (Cymru)'!D115 -> 40 | E115: ='Rhaniad y Ddeiliadaeth (Cymru)'!E115 -> 40 | F115: ='Rhaniad y Ddeiliadaeth (Cymru)'!F115 -> 40 | G115: ='Rhaniad y Ddeiliadaeth (Cymru)'!G115 -> 40
B116: Prynwyr sy'n mynd ymlaen i brynu eiddo am y tro cyntaf | C116: ='Rhaniad y Ddeiliadaeth (Cymru)'!C116 -> - | D116: ='Rhaniad y Ddeiliadaeth (Cymru)'!D116 -> - | E116: ='Rhaniad y Ddeiliadaeth (Cymru)'!E116 -> - | F116: ='Rhaniad y Ddeiliadaeth (Cymru)'!F116 -> - | G116: ='Rhaniad y Ddeiliadaeth (Cymru)'!G116 -> -
B117: Meini Prawf Fforddiadwyedd (Cymdeithasol) | C117: ='Rhaniad y Ddeiliadaeth (Cymru)'!C117 -> 35% | D117: ='Rhaniad y Ddeiliadaeth (Cymru)'!D117 -> 35% | E117: ='Rhaniad y Ddeiliadaeth (Cymru)'!E117 -> 35% | F117: ='Rhaniad y Ddeiliadaeth (Cymru)'!F117 -> 35% | G117: ='Rhaniad y Ddeiliadaeth (Cymru)'!G117 -> 35%
B118: Y Cynnydd i Brisiau Tai | C118: ='Rhaniad y Ddeiliadaeth (Cymru)'!C118 -> 5% | D118: ='Rhaniad y Ddeiliadaeth (Cymru)'!D118 -> 6% | E118: ='Rhaniad y Ddeiliadaeth (Cymru)'!E118 -> 7% | F118: ='Rhaniad y Ddeiliadaeth (Cymru)'!F118 -> 5% | G118: ='Rhaniad y Ddeiliadaeth (Cymru)'!G118 -> 4%
B120: Gwirio Gwallau - Newidynnau 2 Deiliadaeth
B121: Ffynonellau Data | C121: Mater?
B122: Amcanestyniadau Aelwydydd | C122: =IF(E6="Y",0,1) -> 0
B123: Angen Presennol Nas Diwallwyd | C123: =IF(E7="Y",0,1) -> 0
B124: Dosbarthiad Incwm | C124: =IF(E8="Y",0,1) -> 0
B125: Prisiau Rhenti | C125: =IF(E9="Y",0,1) -> 0
B126: Gwerthoedd Blynyddol Penodol
B127: Trothwy Y Sector Rhentu Preifat | C127: =IF(E11="Y",0,1) -> 0
B128: Amser i Gael Gwared ar yr ôl Groniad | C128: =IF(E12="Y",0,1) -> 0
B129: Rhagdybiaethau 5 Mlynedd
B130: Newid i Incwm Canolrifol yr Aelwyd | C130: =IF(E14="Y",0,1) -> 0
B131: Newid i Ddosbarthiad Incwm yr Aelwyd | C131: =IF(E15="Y",0,1) -> 0
B132: Newid i Brisiau Rhenti | C132: =IF(E16="Y",0,1) -> 0
B133: Overall issue - 2 Tenure | C133: =IF(SUM(C122:C132)>0,1,0) -> 0
B135: Gwirio Gwallau - Newidynnau 4 Deiliadaeth
B136: Ffynonellau Data
B137: Dosbarthiad Prisiau Tai | C137: =IF(E18="Y",0,1) -> 0
B138: Gwerthoedd Blynyddol Penodol
B139: Cymhareb Prynwyr am y Tro Cyntaf | C139: =IF(E20="Y",0,1) -> 0
B140: Prynwyr sy'n Prynu Eiddo am y Tro Cyntaf | C140: =IF(E21="Y",0,1) -> 0
B141: % sy'n mynd ymlaen i brynu | C141: =IF(E22="Y",0,1) -> 1
B142: Trothwy Cymdeithasol | C142: =IF(E23="Y",0,1) -> 0
B143: Rhagdybiaethau 5 Mlynedd
B144: Newid i Brisiau Tai | C144: =IF(E25="Y",0,1) -> 0
B145: 4 Deiliadaeth | C145: =IF(SUM(C133,C137:C144)=0,0,1) -> 1
B147: Amcangyfrifon - Rhaniad 2 Deiliadaeth
B148: =IF(C133=1,"Please complete table to view figures.","") ->  | C148: =IF($C$133=0,Year1,"") -> 2019/20 | D148: =IF($C$133=0, Year2,"") -> 2020/21 | E148: =IF($C$133=0,Year3,"") -> 2021/22 | F148: =IF($C$133=0,Year4,"") -> 2022/23 | G148: =IF($C$133=0,Year5,"") -> 2023/24
B149: =IF($C$133=0,"Tai'r Farchnad","") -> Tai'r Farchnad | C149: =IF($C$133=0,'Cyfrifiadau - Gogledd'!C29,"") -> 540 | D149: =IF($C$133=0,'Cyfrifiadau - Gogledd'!D29,"") -> 566 | E149: =IF($C$133=0,'Cyfrifiadau - Gogledd'!E29,"") -> 622 | F149: =IF($C$133=0,'Cyfrifiadau - Gogledd'!F29,"") -> 579 | G149: =IF($C$133=0,'Cyfrifiadau - Gogledd'!G29,"") -> 568
B150: =IF($C$133=0,"Tai fforddiadwy","") -> Tai fforddiadwy | C150: =IF($C$133=0,'Cyfrifiadau - Gogledd'!C30,"") -> 632 | D150: =IF($C$133=0,'Cyfrifiadau - Gogledd'!D30,"") -> 650 | E150: =IF($C$133=0,'Cyfrifiadau - Gogledd'!E30,"") -> 689 | F150: =IF($C$133=0,'Cyfrifiadau - Gogledd'!F30,"") -> 659 | G150: =IF($C$133=0,'Cyfrifiadau - Gogledd'!G30,"") -> 652
B151: =IF(C133=1,"Please complete table to view figures.","") ->  | C151: =IF($C$133=0,Year1,"") -> 2019/20 | D151: =IF($C$133=0, Year2,"") -> 2020/21 | E151: =IF($C$133=0,Year3,"") -> 2021/22 | F151: =IF($C$133=0,Year4,"") -> 2022/23 | G151: =IF($C$133=0,Year5,"") -> 2023/24 | I151: =IF(C133=1,"","Rhaniad 5 mlynedd") -> Rhaniad 5 mlynedd
B152: =IF($C$133=0,"Tai'r Farchnad","") -> Tai'r Farchnad | C152: =IF($C$133=1,"",C149/SUM(C$149:C$150)) -> 46.07% | D152: =IF($C$133=1,"",D149/SUM(D$149:D$150)) -> 46.54% | E152: 47.44% | F152: 46.77% | G152: 46.58% | I152: =IF($C$133=1,"",SUM(C149:G149)/SUM($C$149:$G$150)) -> 46.69%
B153: =IF($C$133=0,"Tai fforddiadwy","") -> Tai fforddiadwy | C153: =IF($C$133=1,"",C150/SUM(C$149:C$150)) -> 53.93% | D153: 53.46% | E153: 52.56% | F153: 53.23% | G153: 53.42% | I153: =IF($C$133=1,"",SUM(C150:G150)/SUM($C$149:$G$150)) -> 53.31%
B156: Amcangyfrifon - Rhaniad 4 Deiliadaeth
B157: =IF(C145=1,"Cwblhewch y tabl i weld amcangyfrifon wedi'u rhannu'n 4 deiliadaeth.","") -> Cwblhewch y tabl i weld amcangyfrifon wedi'u rhannu'n 4 deiliadaeth. | C157: =IF($C$145=0,Year1,"") ->  | D157: =IF($C$145=0,Year2,"") ->  | E157: =IF($C$145=0,Year3,"") ->  | F157: =IF($C$145=0,Year4,"") ->  | G157: =IF($C$145=0,Year5,"") -> 
B158: =IF($C$145=0,"Perchen-feddiannydd","") ->  | C158: =IF($C$145=0,'Cyfrifiadau - Gogledd'!C59,"") ->  | D158: =IF($C$145=0,'Cyfrifiadau - Gogledd'!D59,"") ->  | E158: =IF($C$145=0,'Cyfrifiadau - Gogledd'!E59,"") ->  | F158: =IF($C$145=0,'Cyfrifiadau - Gogledd'!F59,"") ->  | G158: =IF($C$145=0,'Cyfrifiadau - Gogledd'!G59,"") -> 
B159: =IF($C$145=0,"Y Sector Rhenti Preifat","") ->  | C159: =IF($C$145=0,'Cyfrifiadau - Gogledd'!C60,"") ->  | D159: =IF($C$145=0,'Cyfrifiadau - Gogledd'!D60,"") ->  | E159: =IF($C$145=0,'Cyfrifiadau - Gogledd'!E60,"") ->  | F159: =IF($C$145=0,'Cyfrifiadau - Gogledd'!F60,"") ->  | G159: =IF($C$145=0,'Cyfrifiadau - Gogledd'!G60,"") -> 
B160: =IF($C$145=0,"Rhent gymdeithasol","") ->  | C160: =IF($C$145=0,'Cyfrifiadau - Gogledd'!C61,"") ->  | D160: =IF($C$145=0,'Cyfrifiadau - Gogledd'!D61,"") ->  | E160: =IF($C$145=0,'Cyfrifiadau - Gogledd'!E61,"") ->  | F160: =IF($C$145=0,'Cyfrifiadau - Gogledd'!F61,"") ->  | G160: =IF($C$145=0,'Cyfrifiadau - Gogledd'!G61,"") -> 
B161: =IF($C$145=0,"Rhent ganolradd","") ->  | C161: =IF($C$145=0,'Cyfrifiadau - Gogledd'!C62,"") ->  | D161: =IF($C$145=0,'Cyfrifiadau - Gogledd'!D62,"") ->  | E161: =IF($C$145=0,'Cyfrifiadau - Gogledd'!E62,"") ->  | F161: =IF($C$145=0,'Cyfrifiadau - Gogledd'!F62,"") ->  | G161: =IF($C$145=0,'Cyfrifiadau - Gogledd'!G62,"") -> 
B162: =IF(C145=1,"Cwblhewch y tabl i weld amcangyfrifon wedi'u rhannu'n 4 deiliadaeth.","") -> Cwblhewch y tabl i weld amcangyfrifon wedi'u rhannu'n 4 deiliadaeth. | C162: =IF($C$145=0,Year1,"") ->  | D162: =IF($C$145=0,Year2,"") ->  | E162: =IF($C$145=0,Year3,"") ->  | F162: =IF($C$145=0,Year4,"") ->  | G162: =IF($C$145=0,Year5,"") ->  | I162: =IF(C145=1,"","Rhaniad 5 mlynedd") -> 
B163: =IF($C$145=0,"Perchen-feddiannydd","") ->  | C163: =IF($C$145=1,"",C158/SUM(C$158:C$161)) ->  | D163: =IF($C$145=1,"",D158/SUM(D$158:D$161)) ->  | I163: =IF($C$145=1,"",SUM(C158:G158)/SUM($C$158:$G$161)) -> 
B164: =IF($C$145=0,"Y Sector Rhenti Preifat","") ->  | C164: =IF($C$145=1,"",C159/SUM(C$158:C$161)) ->  | I164: =IF($C$145=1,"",SUM(C159:G159)/SUM($C$158:$G$161)) -> 
B165: =IF($C$145=0,"Rhent gymdeithasol","") -> 
B166: =IF($C$145=0,"Rhent ganolradd","") ->  | C166: =IF($C$145=1,"",C161/SUM(C$158:C$161)) -> 
B168: Sylwadau
C169: Mae'r ffigurau isod yn rhannu yr amcangyfrifon o'r angen am dai yn 2 deiliadaeth ac maent yn seiliedig ar y rhagdybiaethau canlynol. | D169: Yn dilyn yr uchod, caiff yr amcangyfrifon eu rhannu ymhellach yn bedair deiliadaeth. Caiff yr amcangyfrifon hyn eu cynhyrchu gan y defnyddiwr, ac maent yn seiliedig ar y rhagdybiaethau canlynol. | E169: Mae amcangyfrifon sylfaenol yr unedau tai ychwanegol wedi'u seilio ar | F169: , ac amcangyfrif o | G169: Mae data ar brisiau tai yn seiliedig ar | H169: Mae data ar incwm yn seiliedig ar | I169: ac mae data ar renti preifat yn seiliedig ar | J169: =". Mae gan brynwyr am y tro cyntaf gymhareb fforddiadwyedd o "&C175&" a gallant brynu eiddo am y tro cyntaf yn ôl "&C176&" canradd dosbarthiad prisiau tai.. "&C177 -> 
B170: Amcanestyniadau o Aelwyd | C170: =IF(D6="Amcanestyniadau Defnyddwyr","amcanestyniadau'r aelwyd gan y defnyddiwr,",("amcanestyniadau aelwydydd gan Llywodraeth Cymru sy'n seiliedig ar 2018 "&"("&D6&")")) -> amcanestyniadau aelwydydd gan Llywodraeth Cymru sy'n seiliedig ar 2018 (Prif Amcanestyniadau)
B171: Angen Presennol Nas Diwallwyd | C171: =IF(D7="Amcangyfrifon LlC",'Angen Presennol Nas Diwallwyd'!C13,'Angen Presennol Nas Diwallwyd'!C24)&" aelwydydd o ran angen presennol nas diwallwyd " -> 5732 aelwydydd o ran angen presennol nas diwallwyd
B172: Dosbarthiad Incwm | C172: =IF(D8="Arall", " amcangyfrifon defnyddwyr "," Ddata Llywodraeth Cymru ") -> Ddata Llywodraeth Cymru
B173: Dosbarthiad Prisiau Tai | C173: =IF(D18="Arall", " amcangyfrifon defnyddwyr"," Ddata Cofrestrfa Tir") -> Ddata Cofrestrfa Tir
B174: Prisiau Rhenti | C174: =IF(D9="Arall", " amcangyfrifon defnyddwyr"," Ddata Llywodraeth Cymru") -> Ddata Llywodraeth Cymru
B175: Cymhareb Prynwyr am y Tro Cyntaf | C175: =C114 -> 4.03
B176: Prynwyr sy'n Prynu Eiddo am y Tro Cyntaf | C176: =C115 -> 40.00
B177: % sy'n mynd ymlaen i brynu | C177: =C116*100&"% o brynwyr potensial am y tro cyntaf sy'n mynd ymlaen i brynu eiddo. " -> 
B178: Trothwy Y Sector Rhentu Preifat | C178: ="Gall aelwydydd sy'n gwario "&C108*100&"% o incwm yr aelwyd ar rent preifat canolrifol fforddio rhent preifat," -> Gall aelwydydd sy'n gwario 30% o incwm yr aelwyd ar rent preifat canolrifol fforddio rhent preifat,
B179: Trothwy Cymdeithasol | C179: ="Mae aelwydydd sy'n gwario "&C117*100&"% o incwm yr aelwyd ar rent preifat 30 canradd yn addas ar gyfer dai cymdeithasol." -> Mae aelwydydd sy'n gwario 35% o incwm yr aelwyd ar rent preifat 30 canradd yn addas ar gyfer dai cymdeithasol.
B180: Amser i Gael Gwared ar yr ôl Groniad | C180: =" a fydd yn cymryd "&'Angen Presennol Nas Diwallwyd'!C29&" mlynedd i'w diwallu." -> a fydd yn cymryd 5 mlynedd i'w diwallu.
B181: Newid i Incwm Canolrifol yr Aelwyd | C181: =". Mae'r newid blynyddol i incwm canolrifol yr aelwyd yn seiliedig ar "&IF(D14="Arall","amcangyfrifon defnyddwyr","amcangyfrifon wedi'u rhagosod") -> . Mae'r newid blynyddol i incwm canolrifol yr aelwyd yn seiliedig ar amcangyfrifon wedi'u rhagosod
B182: Newid i Ddosbarthiad Incwm yr Aelwyd | C182: =", mae'r newid blynyddol i ddosbarthiad incwm yr aelwyd yn seiliedig ar "&IF(D15="Arall","amcangyfrifon defnyddwyr","amcangyfrifon wedi'u rhagosod") -> , mae'r newid blynyddol i ddosbarthiad incwm yr aelwyd yn seiliedig ar amcangyfrifon wedi'u rhagosod
B183: Newid i Brisiau Tai | C183: =", mae'r newid blynyddol i brisiau tai yn seiliedig ar "&IF(D25="Arall","amcangyfrifon defnyddwyr","amcangyfrifon wedi'u rhagosod") -> , mae'r newid blynyddol i brisiau tai yn seiliedig ar amcangyfrifon wedi'u rhagosod
B184: Newid i Brisiau Rhenti | C184: =" ac mae'r newid blynyddol i brisiau rhenti yn seiliedig ar "&IF(D16="Arall","amcangyfrifon y defnyddwyr","amcangyfrifon wedi'u rhagosod.") -> ac mae'r newid blynyddol i brisiau rhenti yn seiliedig ar amcangyfrifon wedi'u rhagosod.
B186: Paragraff Olaf 2 Deiliadaeth
B187: =C169&E169&C170&F169&C171&C180&H169&C172&I169&C174&C181&C182&C184 -> Mae'r ffigurau isod yn rhannu yr amcangyfrifon o'r angen am dai yn 2 deiliadaeth ac maent yn seiliedig ar y rhagdybiaethau canlynol. Mae amcangyfrifon sylfaenol yr unedau tai ychwanegol wedi'u seilio ar amcanestyniadau aelwydydd gan Llywodraeth Cymru sy'n seiliedig ar 2018 (Prif Amcanestyniadau), ac amcangyfrif o 5732 aelwydydd o ran angen presennol nas diwallwyd a fydd yn cymryd 5 mlynedd i'w diwallu.Mae data ar incwm yn seiliedig ar Ddata Llywodraeth Cymru ac mae data ar renti preifat yn seiliedig ar Ddata Llywodraeth Cymru. Mae'r newid blynyddol i incwm canolrifol yr aelwyd yn seiliedig ar amcangyfrifon wedi'u rhagosod, mae'r newid blynyddol i ddosbarthiad incwm yr aelwyd yn seiliedig ar amcangyfrifon wedi'u rhagosod ac mae'r newid blynyddol i brisiau rhenti yn seiliedig ar amcangyfrifon wedi'u rhagosod.
B188: =IF(C133=1,"Estimates will not appear below until the above table is complete.",B187) -> Mae'r ffigurau isod yn rhannu yr amcangyfrifon o'r angen am dai yn 2 deiliadaeth ac maent yn seiliedig ar y rhagdybiaethau canlynol. Mae amcangyfrifon sylfaenol yr unedau tai ychwanegol wedi'u seilio ar amcanestyniadau aelwydydd gan Llywodraeth Cymru sy'n seiliedig ar 2018 (Prif Amcanestyniadau), ac amcangyfrif o 5732 aelwydydd o ran angen presennol nas diwallwyd a fydd yn cymryd 5 mlynedd i'w diwallu.Mae data ar incwm yn seiliedig ar Ddata Llywodraeth Cymru ac mae data ar renti preifat yn seiliedig ar Ddata Llywodraeth Cymru. Mae'r newid blynyddol i incwm canolrifol yr aelwyd yn seiliedig ar amcangyfrifon wedi'u rhagosod, mae'r newid blynyddol i ddosbarthiad incwm yr aelwyd yn seiliedig ar amcangyfrifon wedi'u rhagosod ac mae'r newid blynyddol i brisiau rhenti yn seiliedig ar amcangyfrifon wedi'u rhagosod.
B190: Paragraff Olaf - 4 Deiliadaeth
B191: =D169&G169&C173&C183&J169&C179 -> 
B192: =IF(C145=1,"Ni fydd amcangyfrifon wedi'u rhannu'n 4 deiliadaeth yn ymddangos hyd nes bod y tabl uchod wedi'i gwblhau.",B191) -> Ni fydd amcangyfrifon wedi'u rhannu'n 4 deiliadaeth yn ymddangos hyd nes bod y tabl uchod wedi'i gwblhau.
B194: Gwnewch ddetholiad ar y daflen Rhaniad y Ddeiliadaeth (Cymru)
B195: Data rhagosodedig a ddefnyddiwyd
B196: Data defnyddwyr
B197: Cofnodwch ddata defnyddwyr ar y daflen:
B198: ="'Amcanestyniadau Aelwydydd'" -> 'Amcanestyniadau Aelwydydd'
B199: ="'Angen Presennol Nas Diwallwyd'" -> 'Angen Presennol Nas Diwallwyd'
B200: ="'Incwm (Cymru)'" -> 'Incwm (Cymru)'
B201: ="'Prisiau Tai (Cymru)'" -> 'Prisiau Tai (Cymru)'
B202: ="'Prisiau Rhenti'" -> 'Prisiau Rhenti'
B203: ="'Rhagdybiaeth Blynyddol'" -> 'Rhagdybiaeth Blynyddol'
B204: ="'Rhagolygon y Dyfodol'" -> 'Rhagolygon y Dyfodol'

Sheet Rhaniad y Ddeiliadaeth (Canol)
B1: Lefel Ddaearyddol: | D1: ='Cyfrifiadau - Canolbarth'!B1 -> Canolbarth Cymru
B2: Mae'r dewisiadau a wnaed ar daflen: Rhaniad y Ddeiliadaeth (Cymru) yn cael eu cadw yn y taflenni rhanbarthol. Os byddwch wedi dewis defnyddio eich data eich hunain, ac nad ydych wedi nodi'r data rhanbarthol lle y mae angen eu rhoi, cewch eich atgoffa i wneud hynny.
C4: Newidyn | D4: Dewislen | E4: Wedi'i gwblhau? | F4: Cyfarwyddiadau/Gwirio/Nodyn | K4: Dolenni defnyddiol i dudalennau eraill:
B5: Mae angen y newidynnau hyn i gynhyrchu amcangyfrifon wedi'u rhannu yn ddwy deiliadaeth (marchnad a fforddiadwy). Mae'r daenlen "Canllawiau ar Newidynnau" yn darparu diffiniadau llawn. | C5: Ffynonellau Data (rhaniad 2 ddeiliadaeth)
C6: Rhagdybiaethau yr Aelwyd | D6: ='Rhaniad y Ddeiliadaeth (Cymru)'!D6 -> Prif Amcanestyniadau | E6: =IF(OR(F6=$B$195,F6=$B$196),"Y","N") -> Y | F6: =IF(D6="",B194,IF(D6="Other",IF('Amcanestyniadau Aelwydydd'!J19=0,B197&B198,B196),B195)) -> Data rhagosodedig a ddefnyddiwyd
C7: Angen Nas Diwallwyd Presennol | D7: ='Rhaniad y Ddeiliadaeth (Cymru)'!D7 -> Amcangyfrifon LlC | E7: =IF(OR(F7=$B$195,F7=$B$196),"Y","N") -> Y | F7: =IF(D7="",B194,IF(D7="Other",IF(ISBLANK('Angen Presennol Nas Diwallwyd'!C21),B197&B199,B196),B195)) -> Data rhagosodedig a ddefnyddiwyd
C8: Incwm yr Aelwyd | D8: ='Rhaniad y Ddeiliadaeth (Cymru)'!D8 -> Amcangyfrifon LlC | E8: =IF(OR(F8=$B$195,F8=$B$196),"Y","N") -> Y | F8: =IF(D8="",B194,IF(D8="Arall",IF('Incwm (Gogledd)'!O85=0,B196,B197&B200),B195)) -> Data rhagosodedig a ddefnyddiwyd
C9: Prisiau Rhenti Preifat | D9: ='Rhaniad y Ddeiliadaeth (Cymru)'!D9 -> Prisiau Rhenti | E9: =IF(OR(F9=$B$195,F9=$B$196),"Y","N") -> Y | F9: =IF(D9="",B194,IF(D9="Other",IF(OR(ISBLANK('Prisiau Rhenti'!C20),ISBLANK('Prisiau Rhenti'!D20)),B197&B202,B196),B195)) -> Data rhagosodedig a ddefnyddiwyd
C10: Rhagdybiaethau Blynyddol Penodol (rhaniad 2 ddeiliadaeth)
C11: Meini Prawf Fforddiadwyedd (Marchnad) | D11: ='Rhaniad y Ddeiliadaeth (Cymru)'!D11 -> Wedi'i ragosod | E11: =IF(OR(F11=$B$195,F11=$B$196),"Y","N") -> Y | F11: ='Rhaniad y Ddeiliadaeth (Cymru)'!F11:I11 -> Data rhagosodedig a ddefnyddiwyd
C12: Blynyddoedd i Gael Gwared ar yr ôl Groniad | D12: ='Rhaniad y Ddeiliadaeth (Cymru)'!D12 -> Wedi'i ragosod | E12: =IF(OR(F12=$B$195,F12=$B$196),"Y","N") -> Y | F12: ='Rhaniad y Ddeiliadaeth (Cymru)'!F12:I12 -> Data rhagosodedig a ddefnyddiwyd
C13: Rhagdybiaethau 5 mlynedd (rhaniad 2 deiliadaeth)
C14: Newid i Incwm Canolrifol yr Aelwyd | D14: ='Rhaniad y Ddeiliadaeth (Cymru)'!D14 -> Wedi'i ragosod | E14: =IF(OR(F14=$B$195,F14=$B$196),"Y","N") -> Y | F14: ='Rhaniad y Ddeiliadaeth (Cymru)'!F14:I14 -> Data rhagosodedig a ddefnyddiwyd
C15: Newid i Ddosbarthiad Incwm yr Aelwyd | D15: ='Rhaniad y Ddeiliadaeth (Cymru)'!D15 -> Mwy o Anghydraddoldeb | E15: =IF(OR(F15=$B$195,F15=$B$196),"Y","N") -> Y | F15: ='Rhaniad y Ddeiliadaeth (Cymru)'!F15:I15 -> Data rhagosodedig a ddefnyddiwyd
C16: Newid i Brisiau Rhenti | D16: ='Rhaniad y Ddeiliadaeth (Cymru)'!D16 -> Wedi'i ragosod | E16: =IF(OR(F16=$B$195,F16=$B$196),"Y","N") -> Y | F16: ='Rhaniad y Ddeiliadaeth (Cymru)'!F16:I16 -> Data rhagosodedig a ddefnyddiwyd
B17: Mae angen y newidynnau ychwanegol hyn i gynhyrchu amcangyfrifon wedi'u rhannu yn bedair deiliadaeth (perchen-feddiannydd, rhent preifat, rhent canolradd a chymdeithasol). Mae'r daenlen "Canllawiau ar Newidynnau" yn darparu diffiniadau llawn. | C17: Ffynonellau Data (rhaniad 4 deiliadaeth)
C18: Dosbarthiad Prisiau Tai | D18: ='Rhaniad y Ddeiliadaeth (Cymru)'!D18 -> Data Cofrestrfa Tir | E18: =IF(OR(F18=$B$195,F18=$B$196),"Y","N") -> Y | F18: =IF(D18="",B194,IF(D18="Other",IF('Prisiau Tai (Canolbarth)'!O85=1,B197&B201,B196),B195)) -> Data rhagosodedig a ddefnyddiwyd
C19: Rhagdybiaethau Blynyddol Penodol (rhaniad 4 deiliadaeth)
C20: Cymhareb Incwm Prynwyr am y Tro Cyntaf | D20: ='Rhaniad y Ddeiliadaeth (Cymru)'!D20 -> Wedi'i ragosod | E20: =IF(OR(F20=$B$195,F20=$B$196),"Y","N") -> Y | F20: ='Rhaniad y Ddeiliadaeth (Cymru)'!F20:I20 -> Data rhagosodedig a ddefnyddiwyd
C21: Canradd Mynediad y farchnad ar gyfer y Prynwyr sy'n Prynu Eiddo am y Tro Cyntaf | D21: ='Rhaniad y Ddeiliadaeth (Cymru)'!D21 -> 40 | E21: =IF(OR(F21=$B$195,F21=$B$196),"Y","N") -> Y | F21: ='Rhaniad y Ddeiliadaeth (Cymru)'!F21:I21 -> Data rhagosodedig a ddefnyddiwyd
C22: Prynwyr sy'n mynd ymlaen i brynu eiddo am y tro cyntaf (nid oes newidyn wedi'i ragosod) | D22: ='Rhaniad y Ddeiliadaeth (Cymru)'!D22 -> Gwerth defnyddiwr (nid oes gwerth wedi'i ragosod) | E22: =IF(OR(F22=$B$195,F22=$B$196),"Y","N") -> N | F22: ='Rhaniad y Ddeiliadaeth (Cymru)'!F22:I22 -> Cofnodwch ddata defnyddwyr ar y daflen:'Rhagdybiaeth Blynyddol'
C23: Meini Prawf Fforddiadwyedd (Cymdeithasol) | D23: ='Rhaniad y Ddeiliadaeth (Cymru)'!D23 -> Wedi'i ragosod | E23: =IF(OR(F23=$B$195,F23=$B$196),"Y","N") -> Y | F23: ='Rhaniad y Ddeiliadaeth (Cymru)'!F23:I23 -> Data rhagosodedig a ddefnyddiwyd
C24: Rhagdybiaethau 5 mlynedd (rhaniad 4 deiliadaeth)
C25: Newid i Brisiau Tai | D25: ='Rhaniad y Ddeiliadaeth (Cymru)'!D25 -> Wedi'i ragosod | E25: =IF(OR(F25=$B$195,F25=$B$196),"Y","N") -> Y | F25: ='Rhaniad y Ddeiliadaeth (Cymru)'!F25:I25 -> Data rhagosodedig a ddefnyddiwyd
B27: =IF(C133=1,"","Sylwadau ar y rhagdybiaethau a ddewiswyd ar gyfer rhaniad o ddwy ddeiliadaeth: "&D1) -> Sylwadau ar y rhagdybiaethau a ddewiswyd ar gyfer rhaniad o ddwy ddeiliadaeth: Canolbarth Cymru
B28: =B188 -> Mae'r ffigurau isod yn rhannu yr amcangyfrifon o'r angen am dai yn 2 deiliadaeth ac maent yn seiliedig ar y rhagdybiaethau canlynol. Mae amcangyfrifon sylfaenol yr unedau tai ychwanegol wedi'u seilio ar amcanestyniadau aelwydydd gan Llywodraeth Cymru sy'n seiliedig ar 2018 (Prif Amcanestyniadau), ac amcangyfrif o 5732 aelwydydd o ran angen presennol nas diwallwyd a fydd yn cymryd 5 mlynedd i'w diwallu. Mae data ar incwm yn seiliedig ar Ddata Llywodraeth Cymru ac mae data ar renti preifat yn seiliedig ar Ddata Llywodraeth Cymru. Mae'r newid blynyddol i incwm canolrifol yr aelwyd yn seiliedig ar amcangyfrifon wedi'u rhagosod, mae'r newid blynyddol i ddosbarthiad incwm yr aelwyd yn seiliedig ar amcangyfrifon wedi'u rhagosod ac mae'r newid blynyddol i brisiau rhenti yn seiliedig ar amcangyfrifon wedi'u rhagosod.
B52: Noder: Gall fod gwahaniaethau bach rhwng swm y canlyniadau rhanbarthol a'r canlyniadau cenedlaethol o dan unrhyw amcangyfrifon a rhannwyd yn ôl daliadaeth. Mae hyn oherwydd y cyfrifir amcangyfrifon rhanbarthol gan ddefnyddio data rhanbarthol (incwm aelwyd, prisiau rhentu) ac felly bydd yn wahanol i lefel Cymru gyfan. Ymhellach, bydd unrhyw angen newydd am dai rhanbarthol sy'n negyddol yn cael ei osod fel sero ar gyfer y rhanbarth hwnnw ond fe'i cymerir fel ffigwr negyddol o fewn ffigurau Cymru.
B55: Rhaniad o 2 Ddeiliadaeth a amcangyfrifir - Canolbarth Cymru (yn seiliedig ar ragdybiaethau defnyddwyr)
B56: =B148 ->  | C56: =C148 -> 2019/20 | D56: 2020/21 | E56: 2021/22 | F56: 2022/23 | G56: 2023/24
B57: =B149 -> Tai'r Farchnad | C57: 16 | D57: 35 | E57: 54 | F57: 67 | G57: 90
B58: Tai fforddiadwy | C58: =C150 -> 59 | D58: 70 | E58: 82 | F58: 90 | G58: 103
B60: Rhaniad Cymesur o 2 Ddeiliadaeth - Canolbarth Cymru (yn seiliedig ar ragdybiaethau defnyddwyr)
B61: =B151 ->  | C61: =C151 -> 2019/20 | D61: 2020/21 | E61: 2021/22 | F61: 2022/23 | G61: 2023/24 | I61: =I151 -> Rhaniad 5 mlynedd
B62: =B152 -> Tai'r Farchnad | C62: =C152 -> 21% | D62: 33% | E62: 40% | F62: 43% | G62: 47% | I62: =I152 -> 39%
B63: =B153 -> Tai fforddiadwy | C63: =C153 -> 79% | D63: 67% | E63: 60% | F63: 57% | G63: 53% | I63: =I153 -> 61%
B65: =IF(C145=1,"","Sylwebaeth ar y rhagdybiaethau a ddewiswyd ar gyfer y rhaniad 4 deiliadaeth") -> 
B66: =B192 -> Ni fydd amcangyfrifon wedi'u rhannu'n 4 deiliadaeth yn ymddangos hyd nes bod y tabl uchod wedi'i gwblhau.
B90: Rhaniad o 4 deiliadaeth a amcangyfrifir - Canolbarth Cymru (yn seiliedig ar ragdybiaethau defnyddwyr)
B91: =B157 -> Cwblhewch y tabl i weld amcangyfrifon wedi'u rhannu'n 4 deiliadaeth.
C92: =C157 -> 
B93: =B158 -> 
B94: =B159 -> 
B95: =B160 -> 
B96: =B161 -> 
B98: Rhaniad Cymesur o 4 deiliadaeth - Canolbarth Cymru (yn seiliedig ar ragdybiaethau defnyddwyr)
B99: =B162 -> Cwblhewch y tabl i weld amcangyfrifon wedi'u rhannu'n 4 deiliadaeth. | I99: =I162 -> 
C100: =C162 -> 
B101: =B163 ->  | I101: =I163 -> 
B102: =B164 ->  | I102: =I164 -> 
B103: =B165 ->  | I103: =I165 -> 
B104: =B166 ->  | I104: =I166 -> 
B106: Crynodeb o Ragdybiaethau a Ddewiswyd gan Ddefnyddwyr – Canolbarth Cymru
C107: =Year1 -> 2019/20 | D107: =Year2 -> 2020/21 | E107: =Year3 -> 2021/22 | F107: =Year4 -> 2022/23 | G107: =Year5 -> 2023/24
B108: Meini Prawf Fforddiadwyedd (Marchnad) | C108: ='Rhaniad y Ddeiliadaeth (Cymru)'!C108 -> 30% | D108: ='Rhaniad y Ddeiliadaeth (Cymru)'!D108 -> 30% | E108: ='Rhaniad y Ddeiliadaeth (Cymru)'!E108 -> 30% | F108: ='Rhaniad y Ddeiliadaeth (Cymru)'!F108 -> 30% | G108: ='Rhaniad y Ddeiliadaeth (Cymru)'!G108 -> 30%
B109: Y Cynnydd i Incwm yr Aelwyd | C109: ='Rhaniad y Ddeiliadaeth (Cymru)'!C109 -> 2% | D109: ='Rhaniad y Ddeiliadaeth (Cymru)'!D109 -> 3% | E109: ='Rhaniad y Ddeiliadaeth (Cymru)'!E109 -> 3% | F109: ='Rhaniad y Ddeiliadaeth (Cymru)'!F109 -> 3% | G109: ='Rhaniad y Ddeiliadaeth (Cymru)'!G109 -> 3%
B110: Newid i ddosbarthiad incwm | C110: ='Rhaniad y Ddeiliadaeth (Cymru)'!C110 -> 1% | D110: ='Rhaniad y Ddeiliadaeth (Cymru)'!D110 -> 1% | E110: ='Rhaniad y Ddeiliadaeth (Cymru)'!E110 -> 1% | F110: ='Rhaniad y Ddeiliadaeth (Cymru)'!F110 -> 1% | G110: ='Rhaniad y Ddeiliadaeth (Cymru)'!G110 -> 1%
B111: Y Cynnydd i Brisiau Rhenti Preifat | C111: ='Rhaniad y Ddeiliadaeth (Cymru)'!C111 -> 3% | D111: ='Rhaniad y Ddeiliadaeth (Cymru)'!D111 -> 3% | E111: ='Rhaniad y Ddeiliadaeth (Cymru)'!E111 -> 3% | F111: ='Rhaniad y Ddeiliadaeth (Cymru)'!F111 -> 3% | G111: ='Rhaniad y Ddeiliadaeth (Cymru)'!G111 -> 3%
B112: Rhenti Canolrifol Blynyddol | C112: =INDEX('Prisiau Rhenti'!$D$19:$D$20,MATCH('Rhaniad y Ddeiliadaeth (Canol)'!$D$9,'Prisiau Rhenti'!$B$19:$B$20,0))*(1+C111) -> £6,424 | D112: =C112*(1+D111) -> £6,621 | E112: =D112*(1+E111) -> £6,828 | F112: £7,044 | G112: £7,276
B113: Rhenti 30 Canradd Blynyddol | C113: =INDEX('Prisiau Rhenti'!$C$19:$C$20,MATCH('Rhaniad y Ddeiliadaeth (Canol)'!$D$9,'Prisiau Rhenti'!$B$19:$B$20,0))*(1+C111) -> £5,559 | D113: =C113*(1+D111) -> £5,730 | E113: =D113*(1+E111) -> £5,908 | F113: £6,096 | G113: £6,297
B114: Cymhareb Incwm Prynwyr am y Tro Cyntaf | C114: ='Rhaniad y Ddeiliadaeth (Cymru)'!C114 -> 4.03 | D114: ='Rhaniad y Ddeiliadaeth (Cymru)'!D114 -> 4.03 | E114: ='Rhaniad y Ddeiliadaeth (Cymru)'!E114 -> 4.03 | F114: ='Rhaniad y Ddeiliadaeth (Cymru)'!F114 -> 4.03 | G114: ='Rhaniad y Ddeiliadaeth (Cymru)'!G114 -> 4.03
B115: Canradd y Prynwyr sy'n Prynu Eiddo am y Tro Cyntaf | C115: ='Rhaniad y Ddeiliadaeth (Cymru)'!C115 -> 40 | D115: ='Rhaniad y Ddeiliadaeth (Cymru)'!D115 -> 40 | E115: ='Rhaniad y Ddeiliadaeth (Cymru)'!E115 -> 40 | F115: ='Rhaniad y Ddeiliadaeth (Cymru)'!F115 -> 40 | G115: ='Rhaniad y Ddeiliadaeth (Cymru)'!G115 -> 40
B116: Prynwyr sy'n mynd ymlaen i brynu eiddo am y tro cyntaf | C116: ='Rhaniad y Ddeiliadaeth (Cymru)'!C116 -> - | D116: ='Rhaniad y Ddeiliadaeth (Cymru)'!D116 -> - | E116: ='Rhaniad y Ddeiliadaeth (Cymru)'!E116 -> - | F116: ='Rhaniad y Ddeiliadaeth (Cymru)'!F116 -> - | G116: ='Rhaniad y Ddeiliadaeth (Cymru)'!G116 -> -
B117: Meini Prawf Fforddiadwyedd (Cymdeithasol) | C117: ='Rhaniad y Ddeiliadaeth (Cymru)'!C117 -> 35% | D117: ='Rhaniad y Ddeiliadaeth (Cymru)'!D117 -> 35% | E117: ='Rhaniad y Ddeiliadaeth (Cymru)'!E117 -> 35% | F117: ='Rhaniad y Ddeiliadaeth (Cymru)'!F117 -> 35% | G117: ='Rhaniad y Ddeiliadaeth (Cymru)'!G117 -> 35%
B118: Y Cynnydd i Brisiau Tai | C118: ='Rhaniad y Ddeiliadaeth (Cymru)'!C118 -> 5% | D118: ='Rhaniad y Ddeiliadaeth (Cymru)'!D118 -> 6% | E118: ='Rhaniad y Ddeiliadaeth (Cymru)'!E118 -> 7% | F118: ='Rhaniad y Ddeiliadaeth (Cymru)'!F118 -> 5% | G118: ='Rhaniad y Ddeiliadaeth (Cymru)'!G118 -> 4%
B120: Gwirio Gwallau - Newidynnau 2 Deiliadaeth
B121: Ffynonellau Data | C121: Mater?
B122: Amcanestyniadau Aelwydydd | C122: =IF(E6="Y",0,1) -> 0
B123: Angen Presennol Nas Diwallwyd | C123: =IF(E7="Y",0,1) -> 0
B124: Dosbarthiad Incwm | C124: =IF(E8="Y",0,1) -> 0
B125: Prisiau Rhenti | C125: =IF(E9="Y",0,1) -> 0
B126: Gwerthoedd Blynyddol Penodol
B127: Trothwy Y Sector Rhentu Preifat | C127: =IF(E11="Y",0,1) -> 0
B128: Amser i Gael Gwared ar yr ôl Groniad | C128: =IF(E12="Y",0,1) -> 0
B129: Rhagdybiaethau 5 Mlynedd
B130: Newid i Incwm Canolrifol yr Aelwyd | C130: =IF(E14="Y",0,1) -> 0
B131: Newid i Ddosbarthiad Incwm yr Aelwyd | C131: =IF(E15="Y",0,1) -> 0
B132: Newid i Brisiau Rhenti | C132: =IF(E16="Y",0,1) -> 0
B133: Overall issue - 2 Tenure | C133: =IF(SUM(C122:C132)>0,1,0) -> 0
B135: Gwirio Gwallau - Newidynnau 4 Deiliadaeth
B136: Ffynonellau Data
B137: Dosbarthiad Prisiau Tai | C137: =IF(E18="Y",0,1) -> 0
B138: Gwerthoedd Blynyddol Penodol
B139: Cymhareb Prynwyr am y Tro Cyntaf | C139: =IF(E20="Y",0,1) -> 0
B140: Prynwyr sy'n Prynu Eiddo am y Tro Cyntaf | C140: =IF(E21="Y",0,1) -> 0
B141: % sy'n mynd ymlaen i brynu | C141: =IF(E22="Y",0,1) -> 1
B142: Trothwy Cymdeithasol | C142: =IF(E23="Y",0,1) -> 0
B143: Rhagdybiaethau 5 Mlynedd
B144: Newid i Brisiau Tai | C144: =IF(E25="Y",0,1) -> 0
B145: 4 Deiliadaeth | C145: =IF(SUM(C133,C137:C144)=0,0,1) -> 1
B147: Amcangyfrifon - Rhaniad 2 Deiliadaeth
B148: =IF(C133=1,"Please complete table to view figures.","") ->  | C148: =IF($C$133=0,Year1,"") -> 2019/20 | D148: =IF($C$133=0, Year2,"") -> 2020/21 | E148: =IF($C$133=0,Year3,"") -> 2021/22 | F148: =IF($C$133=0,Year4,"") -> 2022/23 | G148: =IF($C$133=0,Year5,"") -> 2023/24
B149: =IF($C$133=0,"Tai'r Farchnad","") -> Tai'r Farchnad | C149: =IF($C$133=0,'Cyfrifiadau - Canolbarth'!C29,"") -> 16 | D149: =IF($C$133=0,'Cyfrifiadau - Canolbarth'!D29,"") -> 35 | E149: =IF($C$133=0,'Cyfrifiadau - Canolbarth'!E29,"") -> 54 | F149: =IF($C$133=0,'Cyfrifiadau - Canolbarth'!F29,"") -> 67 | G149: =IF($C$133=0,'Cyfrifiadau - Canolbarth'!G29,"") -> 90
B150: =IF($C$133=0,"Tai fforddiadwy","") -> Tai fforddiadwy | C150: =IF($C$133=0,'Cyfrifiadau - Canolbarth'!C30,"") -> 59 | D150: =IF($C$133=0,'Cyfrifiadau - Canolbarth'!D30,"") -> 70 | E150: =IF($C$133=0,'Cyfrifiadau - Canolbarth'!E30,"") -> 82 | F150: =IF($C$133=0,'Cyfrifiadau - Canolbarth'!F30,"") -> 90 | G150: =IF($C$133=0,'Cyfrifiadau - Canolbarth'!G30,"") -> 103
B151: =IF(C133=1,"Please complete table to view figures.","") ->  | C151: =IF($C$133=0,Year1,"") -> 2019/20 | D151: =IF($C$133=0, Year2,"") -> 2020/21 | E151: =IF($C$133=0,Year3,"") -> 2021/22 | F151: =IF($C$133=0,Year4,"") -> 2022/23 | G151: =IF($C$133=0,Year5,"") -> 2023/24 | I151: =IF($C$133=1,"","Rhaniad 5 mlynedd") -> Rhaniad 5 mlynedd
B152: =IF($C$133=0,"Tai'r Farchnad","") -> Tai'r Farchnad | C152: =IF($C$133=1,"",C149/SUM(C$149:C$150)) -> 20.9% | D152: =IF($C$133=1,"",D149/SUM(D$149:D$150)) -> 33.4% | E152: 39.9% | F152: 42.9% | G152: 46.6% | I152: =IF($C$133=1,"",SUM(C149:G149)/SUM($C$149:$G$150)) -> 39.4%
B153: =IF($C$133=0,"Tai fforddiadwy","") -> Tai fforddiadwy | C153: =IF($C$133=1,"",C150/SUM(C$149:C$150)) -> 79.1% | D153: 66.6% | E153: 60.1% | F153: 57.1% | G153: 53.4% | I153: =IF($C$133=1,"",SUM(C150:G150)/SUM($C$149:$G$150)) -> 60.6%
B156: Amcangyfrifon - Rhaniad 4 Deiliadaeth
B157: =IF(C145=1,"Cwblhewch y tabl i weld amcangyfrifon wedi'u rhannu'n 4 deiliadaeth.","") -> Cwblhewch y tabl i weld amcangyfrifon wedi'u rhannu'n 4 deiliadaeth. | C157: =IF($C$145=0,Year1,"") ->  | D157: =IF($C$145=0,Year2,"") ->  | E157: =IF($C$145=0,Year3,"") ->  | F157: =IF($C$145=0,Year4,"") ->  | G157: =IF($C$145=0,Year5,"") -> 
B158: =IF($C$145=0,"Perchen-feddiannydd","") ->  | C158: =IF($C$145=0,'Cyfrifiadau - Canolbarth'!C59,"") ->  | D158: =IF($C$145=0,'Cyfrifiadau - Canolbarth'!D59,"") ->  | E158: =IF($C$145=0,'Cyfrifiadau - Canolbarth'!E59,"") ->  | F158: =IF($C$145=0,'Cyfrifiadau - Canolbarth'!F59,"") ->  | G158: =IF($C$145=0,'Cyfrifiadau - Canolbarth'!G59,"") -> 
B159: =IF($C$145=0,"Y Sector Rhenti Preifat","") ->  | C159: =IF($C$145=0,'Cyfrifiadau - Canolbarth'!C60,"") ->  | D159: =IF($C$145=0,'Cyfrifiadau - Canolbarth'!D60,"") ->  | E159: =IF($C$145=0,'Cyfrifiadau - Canolbarth'!E60,"") ->  | F159: =IF($C$145=0,'Cyfrifiadau - Canolbarth'!F60,"") ->  | G159: =IF($C$145=0,'Cyfrifiadau - Canolbarth'!G60,"") -> 
B160: =IF($C$145=0,"Rhent gymdeithasol","") ->  | C160: =IF($C$145=0,'Cyfrifiadau - Canolbarth'!C61,"") ->  | D160: =IF($C$145=0,'Cyfrifiadau - Canolbarth'!D61,"") ->  | E160: =IF($C$145=0,'Cyfrifiadau - Canolbarth'!E61,"") ->  | F160: =IF($C$145=0,'Cyfrifiadau - Canolbarth'!F61,"") ->  | G160: =IF($C$145=0,'Cyfrifiadau - Canolbarth'!G61,"") -> 
B161: =IF($C$145=0,"Rhent ganolradd","") ->  | C161: =IF($C$145=0,'Cyfrifiadau - Canolbarth'!C62,"") ->  | D161: =IF($C$145=0,'Cyfrifiadau - Canolbarth'!D62,"") ->  | E161: =IF($C$145=0,'Cyfrifiadau - Canolbarth'!E62,"") ->  | F161: =IF($C$145=0,'Cyfrifiadau - Canolbarth'!F62,"") ->  | G161: =IF($C$145=0,'Cyfrifiadau - Canolbarth'!G62,"") -> 
B162: =IF(C145=1,"Cwblhewch y tabl i weld amcangyfrifon wedi'u rhannu'n 4 deiliadaeth.","") -> Cwblhewch y tabl i weld amcangyfrifon wedi'u rhannu'n 4 deiliadaeth. | C162: =IF($C$145=0,Year1,"") ->  | D162: =IF($C$145=0,Year2,"") ->  | E162: =IF($C$145=0,Year3,"") ->  | F162: =IF($C$145=0,Year4,"") ->  | G162: =IF($C$145=0,Year5,"") ->  | I162: =IF(C145=1,"","Rhaniad 5 mlynedd") -> 
B163: =IF($C$145=0,"Perchen-feddiannydd","") ->  | C163: =IF($C$145=1,"",C158/SUM(C$158:C$161)) ->  | D163: =IF($C$145=1,"",D158/SUM(D$158:D$161)) ->  | I163: =IF($C$145=1,"",SUM(C158:G158)/SUM($C$158:$G$161)) -> 
B164: =IF($C$145=0,"Y Sector Rhenti Preifat","") ->  | C164: =IF($C$145=1,"",C159/SUM(C$158:C$161)) ->  | I164: =IF($C$145=1,"",SUM(C159:G159)/SUM($C$158:$G$161)) -> 
B165: =IF($C$145=0,"Rhent gymdeithasol","") -> 
B166: =IF($C$145=0,"Rhent ganolradd","") ->  | C166: =IF($C$145=1,"",C161/SUM(C$158:C$161)) -> 
B168: Sylwadau
C169: Mae'r ffigurau isod yn rhannu yr amcangyfrifon o'r angen am dai yn 2 deiliadaeth ac maent yn seiliedig ar y rhagdybiaethau canlynol. | D169: Yn dilyn yr uchod, caiff yr amcangyfrifon eu rhannu ymhellach yn bedair deiliadaeth. Caiff yr amcangyfrifon hyn eu cynhyrchu gan y defnyddiwr, ac maent yn seiliedig ar y rhagdybiaethau canlynol. | E169: Mae amcangyfrifon sylfaenol yr unedau tai ychwanegol wedi'u seilio ar | F169: , ac amcangyfrif o | G169: Mae data ar brisiau tai yn seiliedig ar | H169: Mae data ar incwm yn seiliedig ar | I169: ac mae data ar renti preifat yn seiliedig ar | J169: =". Mae gan brynwyr am y tro cyntaf gymhareb fforddiadwyedd o "&C175&" a gallant brynu eiddo am y tro cyntaf yn ôl "&C176&" canradd dosbarthiad prisiau tai.. "&C177 -> 
B170: Amcanestyniadau o Aelwyd | C170: =IF(D6="Amcanestyniadau Defnyddwyr","amcanestyniadau'r aelwyd gan y defnyddiwr,",("amcanestyniadau aelwydydd gan Llywodraeth Cymru sy'n seiliedig ar 2018 "&"("&D6&")")) -> amcanestyniadau aelwydydd gan Llywodraeth Cymru sy'n seiliedig ar 2018 (Prif Amcanestyniadau)
B171: Angen Presennol Nas Diwallwyd | C171: =IF(D7="Amcangyfrifon LlC",'Angen Presennol Nas Diwallwyd'!C13,'Angen Presennol Nas Diwallwyd'!C24)&" aelwydydd o ran angen presennol nas diwallwyd " -> 5732 aelwydydd o ran angen presennol nas diwallwyd
B172: Dosbarthiad Incwm | C172: =IF(D8="Arall", " amcangyfrifon defnyddwyr "," Ddata Llywodraeth Cymru ") -> Ddata Llywodraeth Cymru
B173: Dosbarthiad Prisiau Tai | C173: =IF(D18="Arall", " amcangyfrifon defnyddwyr"," Ddata Cofrestrfa Tir") -> Ddata Cofrestrfa Tir
B174: Prisiau Rhenti | C174: =IF(D9="Arall", " amcangyfrifon defnyddwyr"," Ddata Llywodraeth Cymru") -> Ddata Llywodraeth Cymru
B175: Cymhareb Prynwyr am y Tro Cyntaf | C175: =C114 -> 4.03
B176: Prynwyr sy'n Prynu Eiddo am y Tro Cyntaf | C176: =C115 -> 40.00
B177: % sy'n mynd ymlaen i brynu | C177: =C116*100&"% o brynwyr potensial am y tro cyntaf sy'n mynd ymlaen i brynu eiddo. " -> 
B178: Trothwy Y Sector Rhentu Preifat | C178: ="Gall aelwydydd sy'n gwario "&C108*100&"% o incwm yr aelwyd ar rent preifat canolrifol fforddio rhent preifat," -> Gall aelwydydd sy'n gwario 30% o incwm yr aelwyd ar rent preifat canolrifol fforddio rhent preifat,
B179: Trothwy Cymdeithasol | C179: ="Mae aelwydydd sy'n gwario "&C117*100&"% o incwm yr aelwyd ar rent preifat 30 canradd yn addas ar gyfer dai cymdeithasol." -> Mae aelwydydd sy'n gwario 35% o incwm yr aelwyd ar rent preifat 30 canradd yn addas ar gyfer dai cymdeithasol.
B180: Amser i Gael Gwared ar yr ôl Groniad | C180: =" a fydd yn cymryd "&'Angen Presennol Nas Diwallwyd'!C29&" mlynedd i'w diwallu. " -> a fydd yn cymryd 5 mlynedd i'w diwallu.
B181: Newid i Incwm Canolrifol yr Aelwyd | C181: =". Mae'r newid blynyddol i incwm canolrifol yr aelwyd yn seiliedig ar "&IF(D14="Arall","amcangyfrifon defnyddwyr","amcangyfrifon wedi'u rhagosod") -> . Mae'r newid blynyddol i incwm canolrifol yr aelwyd yn seiliedig ar amcangyfrifon wedi'u rhagosod
B182: Newid i Ddosbarthiad Incwm yr Aelwyd | C182: =", mae'r newid blynyddol i ddosbarthiad incwm yr aelwyd yn seiliedig ar "&IF(D15="Arall","amcangyfrifon defnyddwyr","amcangyfrifon wedi'u rhagosod") -> , mae'r newid blynyddol i ddosbarthiad incwm yr aelwyd yn seiliedig ar amcangyfrifon wedi'u rhagosod
B183: Newid i Brisiau Tai | C183: =", mae'r newid blynyddol i brisiau tai yn seiliedig ar "&IF(D25="Arall","amcangyfrifon defnyddwyr","amcangyfrifon wedi'u rhagosod") -> , mae'r newid blynyddol i brisiau tai yn seiliedig ar amcangyfrifon wedi'u rhagosod
B184: Newid i Brisiau Rhenti | C184: =" ac mae'r newid blynyddol i brisiau rhenti yn seiliedig ar "&IF(D16="Arall","amcangyfrifon y defnyddwyr","amcangyfrifon wedi'u rhagosod.") -> ac mae'r newid blynyddol i brisiau rhenti yn seiliedig ar amcangyfrifon wedi'u rhagosod.
B186: Paragraff Olaf - 2 Deiliadaeth
B187: =C169&E169&C170&F169&C171&C180&H169&C172&I169&C174&C181&C182&C184 -> Mae'r ffigurau isod yn rhannu yr amcangyfrifon o'r angen am dai yn 2 deiliadaeth ac maent yn seiliedig ar y rhagdybiaethau canlynol. Mae amcangyfrifon sylfaenol yr unedau tai ychwanegol wedi'u seilio ar amcanestyniadau aelwydydd gan Llywodraeth Cymru sy'n seiliedig ar 2018 (Prif Amcanestyniadau), ac amcangyfrif o 5732 aelwydydd o ran angen presennol nas diwallwyd a fydd yn cymryd 5 mlynedd i'w diwallu. Mae data ar incwm yn seiliedig ar Ddata Llywodraeth Cymru ac mae data ar renti preifat yn seiliedig ar Ddata Llywodraeth Cymru. Mae'r newid blynyddol i incwm canolrifol yr aelwyd yn seiliedig ar amcangyfrifon wedi'u rhagosod, mae'r newid blynyddol i ddosbarthiad incwm yr aelwyd yn seiliedig ar amcangyfrifon wedi'u rhagosod ac mae'r newid blynyddol i brisiau rhenti yn seiliedig ar amcangyfrifon wedi'u rhagosod.
B188: =IF(C133=1,"Estimates will not appear below until the above table is complete.",B187) -> Mae'r ffigurau isod yn rhannu yr amcangyfrifon o'r angen am dai yn 2 deiliadaeth ac maent yn seiliedig ar y rhagdybiaethau canlynol. Mae amcangyfrifon sylfaenol yr unedau tai ychwanegol wedi'u seilio ar amcanestyniadau aelwydydd gan Llywodraeth Cymru sy'n seiliedig ar 2018 (Prif Amcanestyniadau), ac amcangyfrif o 5732 aelwydydd o ran angen presennol nas diwallwyd a fydd yn cymryd 5 mlynedd i'w diwallu. Mae data ar incwm yn seiliedig ar Ddata Llywodraeth Cymru ac mae data ar renti preifat yn seiliedig ar Ddata Llywodraeth Cymru. Mae'r newid blynyddol i incwm canolrifol yr aelwyd yn seiliedig ar amcangyfrifon wedi'u rhagosod, mae'r newid blynyddol i ddosbarthiad incwm yr aelwyd yn seiliedig ar amcangyfrifon wedi'u rhagosod ac mae'r newid blynyddol i brisiau rhenti yn seiliedig ar amcangyfrifon wedi'u rhagosod.
B190: Paragraff Olaf - 4 Deiliadaeth
B191: =D169&G169&C173&C183&J169&C179 -> 
B192: =IF(C145=1,"Ni fydd amcangyfrifon wedi'u rhannu'n 4 deiliadaeth yn ymddangos hyd nes bod y tabl uchod wedi'i gwblhau.",B191) -> Ni fydd amcangyfrifon wedi'u rhannu'n 4 deiliadaeth yn ymddangos hyd nes bod y tabl uchod wedi'i gwblhau.
B194: Gwnewch ddetholiad ar y daflen Rhaniad y Ddeiliadaeth (Cymru)
B195: Data rhagosodedig a ddefnyddiwyd
B196: Data defnyddwyr
B197: Cofnodwch ddata defnyddwyr ar y daflen:
B198: ="'Amcanestyniadau Aelwydydd'" -> 'Amcanestyniadau Aelwydydd'
B199: ="'Angen Presennol Nas Diwallwyd'" -> 'Angen Presennol Nas Diwallwyd'
B200: ="'Incwm (Cymru)'" -> 'Incwm (Cymru)'
B201: ="'Prisiau Tai (Cymru)'" -> 'Prisiau Tai (Cymru)'
B202: ="'Prisiau Rhenti'" -> 'Prisiau Rhenti'
B203: ="'Rhagdybiaeth Blynyddol'" -> 'Rhagdybiaeth Blynyddol'
B204: ="'Rhagolygon y Dyfodol'" -> 'Rhagolygon y Dyfodol'

Sheet Rhaniad y Ddeiliadaeth (De-o)
B1: Lefel Ddaearyddol: | D1: ='Cyfrifiadau - De-orllewin'!B1 -> De-orllewin Cymru
B2: Mae'r dewisiadau a wnaed ar daflen: Rhaniad y Ddeiliadaeth (Cymru) yn cael eu cadw yn y taflenni rhanbarthol. Os byddwch wedi dewis defnyddio eich data eich hunain, ac nad ydych wedi nodi'r data rhanbarthol lle y mae angen eu rhoi, cewch eich atgoffa i wneud hynny.
C4: Newidyn | D4: Dewislen | E4: Wedi'i gwblhau? | F4: Cyfarwyddiadau/Gwirio/Nodyn | K4: Dolenni defnyddiol i dudalennau eraill:
B5: Mae angen y newidynnau hyn i gynhyrchu amcangyfrifon wedi'u rhannu yn ddwy deiliadaeth (marchnad a fforddiadwy). Mae'r daenlen "Canllawiau ar Newidynnau" yn darparu diffiniadau llawn. | C5: Ffynonellau Data (rhaniad 2 ddeiliadaeth)
C6: Rhagdybiaethau yr Aelwyd | D6: ='Rhaniad y Ddeiliadaeth (Cymru)'!D6 -> Prif Amcanestyniadau | E6: =IF(OR(F6=$B$195,F6=$B$196),"Y","N") -> Y | F6: =IF(D6="",B194,IF(D6="Other",IF('Amcanestyniadau Aelwydydd'!J19=0,B197&B198,B196),B195)) -> Data rhagosodedig a ddefnyddiwyd
C7: Angen Nas Diwallwyd Presennol | D7: ='Rhaniad y Ddeiliadaeth (Cymru)'!D7 -> Amcangyfrifon LlC | E7: =IF(OR(F7=$B$195,F7=$B$196),"Y","N") -> Y | F7: =IF(D7="",B194,IF(D7="Other",IF(ISBLANK('Angen Presennol Nas Diwallwyd'!C21),B197&B199,B196),B195)) -> Data rhagosodedig a ddefnyddiwyd
C8: Incwm yr Aelwyd | D8: ='Rhaniad y Ddeiliadaeth (Cymru)'!D8 -> Amcangyfrifon LlC | E8: =IF(OR(F8=$B$195,F8=$B$196),"Y","N") -> Y | F8: =IF(D8="",B194,IF(D8="Arall",IF('Incwm (Gogledd)'!O85=0,B196,B197&B200),B195)) -> Data rhagosodedig a ddefnyddiwyd
C9: Prisiau Rhenti Preifat | D9: ='Rhaniad y Ddeiliadaeth (Cymru)'!D9 -> Prisiau Rhenti | E9: =IF(OR(F9=$B$195,F9=$B$196),"Y","N") -> Y | F9: =IF(D9="",B194,IF(D9="Other",IF(OR(ISBLANK('Prisiau Rhenti'!C20),ISBLANK('Prisiau Rhenti'!D20)),B197&B202,B196),B195)) -> Data rhagosodedig a ddefnyddiwyd
C10: Rhagdybiaethau Blynyddol Penodol (rhaniad 2 ddeiliadaeth)
C11: Meini Prawf Fforddiadwyedd (Marchnad) | D11: ='Rhaniad y Ddeiliadaeth (Cymru)'!D11 -> Wedi'i ragosod | E11: =IF(OR(F11=$B$195,F11=$B$196),"Y","N") -> Y | F11: ='Rhaniad y Ddeiliadaeth (Cymru)'!F11:I11 -> Data rhagosodedig a ddefnyddiwyd
C12: Blynyddoedd i Gael Gwared ar yr ôl Groniad | D12: ='Rhaniad y Ddeiliadaeth (Cymru)'!D12 -> Wedi'i ragosod | E12: =IF(OR(F12=$B$195,F12=$B$196),"Y","N") -> Y | F12: ='Rhaniad y Ddeiliadaeth (Cymru)'!F12:I12 -> Data rhagosodedig a ddefnyddiwyd
C13: Rhagdybiaethau 5 mlynedd (rhaniad 2 deiliadaeth)
C14: Newid i Incwm Canolrifol yr Aelwyd | D14: ='Rhaniad y Ddeiliadaeth (Cymru)'!D14 -> Wedi'i ragosod | E14: =IF(OR(F14=$B$195,F14=$B$196),"Y","N") -> Y | F14: ='Rhaniad y Ddeiliadaeth (Cymru)'!F14:I14 -> Data rhagosodedig a ddefnyddiwyd
C15: Newid i Ddosbarthiad Incwm yr Aelwyd | D15: ='Rhaniad y Ddeiliadaeth (Cymru)'!D15 -> Mwy o Anghydraddoldeb | E15: =IF(OR(F15=$B$195,F15=$B$196),"Y","N") -> Y | F15: ='Rhaniad y Ddeiliadaeth (Cymru)'!F15:I15 -> Data rhagosodedig a ddefnyddiwyd
C16: Newid i Brisiau Rhenti | D16: ='Rhaniad y Ddeiliadaeth (Cymru)'!D16 -> Wedi'i ragosod | E16: =IF(OR(F16=$B$195,F16=$B$196),"Y","N") -> Y | F16: ='Rhaniad y Ddeiliadaeth (Cymru)'!F16:I16 -> Data rhagosodedig a ddefnyddiwyd
B17: Mae angen y newidynnau ychwanegol hyn i gynhyrchu amcangyfrifon wedi'u rhannu yn bedair deiliadaeth (perchen-feddiannydd, rhent preifat, rhent canolradd a chymdeithasol). Mae'r daenlen "Canllawiau ar Newidynnau" yn darparu diffiniadau llawn. | C17: Ffynonellau Data (rhaniad 4 deiliadaeth)
C18: Dosbarthiad Prisiau Tai | D18: ='Rhaniad y Ddeiliadaeth (Cymru)'!D18 -> Data Cofrestrfa Tir | E18: =IF(OR(F18=$B$195,F18=$B$196),"Y","N") -> Y | F18: =IF(D18="",B194,IF(D18="Other",IF('Prisiau Tai (De-orllewin)'!O85=1,B197&B201,B196),B195)) -> Data rhagosodedig a ddefnyddiwyd
C19: Rhagdybiaethau Blynyddol Penodol (rhaniad 4 deiliadaeth)
C20: Cymhareb Incwm Prynwyr am y Tro Cyntaf | D20: ='Rhaniad y Ddeiliadaeth (Cymru)'!D20 -> Wedi'i ragosod | E20: =IF(OR(F20=$B$195,F20=$B$196),"Y","N") -> Y | F20: ='Rhaniad y Ddeiliadaeth (Cymru)'!F20:I20 -> Data rhagosodedig a ddefnyddiwyd
C21: Canradd Mynediad y farchnad ar gyfer y Prynwyr sy'n Prynu Eiddo am y Tro Cyntaf | D21: ='Rhaniad y Ddeiliadaeth (Cymru)'!D21 -> 40 | E21: =IF(OR(F21=$B$195,F21=$B$196),"Y","N") -> Y | F21: ='Rhaniad y Ddeiliadaeth (Cymru)'!F21:I21 -> Data rhagosodedig a ddefnyddiwyd
C22: Prynwyr sy'n mynd ymlaen i brynu eiddo am y tro cyntaf (nid oes newidyn wedi'i ragosod) | D22: ='Rhaniad y Ddeiliadaeth (Cymru)'!D22 -> Gwerth defnyddiwr (nid oes gwerth wedi'i ragosod) | E22: =IF(OR(F22=$B$195,F22=$B$196),"Y","N") -> N | F22: ='Rhaniad y Ddeiliadaeth (Cymru)'!F22:I22 -> Cofnodwch ddata defnyddwyr ar y daflen:'Rhagdybiaeth Blynyddol'
C23: Meini Prawf Fforddiadwyedd (Cymdeithasol) | D23: ='Rhaniad y Ddeiliadaeth (Cymru)'!D23 -> Wedi'i ragosod | E23: =IF(OR(F23=$B$195,F23=$B$196),"Y","N") -> Y | F23: ='Rhaniad y Ddeiliadaeth (Cymru)'!F23:I23 -> Data rhagosodedig a ddefnyddiwyd
C24: Rhagdybiaethau 5 mlynedd (rhaniad 4 deiliadaeth)
C25: Newid i Brisiau Tai | D25: ='Rhaniad y Ddeiliadaeth (Cymru)'!D25 -> Wedi'i ragosod | E25: =IF(OR(F25=$B$195,F25=$B$196),"Y","N") -> Y | F25: ='Rhaniad y Ddeiliadaeth (Cymru)'!F25:I25 -> Data rhagosodedig a ddefnyddiwyd
B27: =IF(C133=1,"","Sylwadau ar y rhagdybiaethau a ddewiswyd ar gyfer rhaniad o ddwy ddeiliadaeth: "&D1) -> Sylwadau ar y rhagdybiaethau a ddewiswyd ar gyfer rhaniad o ddwy ddeiliadaeth: De-orllewin Cymru
B28: =B188 -> Mae'r ffigurau isod yn rhannu yr amcangyfrifon o'r angen am dai yn 2 deiliadaeth ac maent yn seiliedig ar y rhagdybiaethau canlynol. Mae amcangyfrifon sylfaenol yr unedau tai ychwanegol wedi'u seilio ar amcanestyniadau aelwydydd gan Llywodraeth Cymru sy'n seiliedig ar 2018 (Prif Amcanestyniadau), ac amcangyfrif o 5732 aelwydydd o ran angen presennol nas diwallwyd a fydd yn cymryd 5 mlynedd i'w diwallu.Mae data ar incwm yn seiliedig ar Ddata Llywodraeth Cymru ac mae data ar renti preifat yn seiliedig ar Ddata Llywodraeth Cymru. Mae'r newid blynyddol i incwm canolrifol yr aelwyd yn seiliedig ar amcangyfrifon wedi'u rhagosod, mae'r newid blynyddol i ddosbarthiad incwm yr aelwyd yn seiliedig ar amcangyfrifon wedi'u rhagosod ac mae'r newid blynyddol i brisiau rhenti yn seiliedig ar amcangyfrifon wedi'u rhagosod.
B52: Noder: Gall fod gwahaniaethau bach rhwng swm y canlyniadau rhanbarthol a'r canlyniadau cenedlaethol o dan unrhyw amcangyfrifon a rhannwyd yn ôl daliadaeth. Mae hyn oherwydd y cyfrifir amcangyfrifon rhanbarthol gan ddefnyddio data rhanbarthol (incwm aelwyd, prisiau rhentu) ac felly bydd yn wahanol i lefel Cymru gyfan. Ymhellach, bydd unrhyw angen newydd am dai rhanbarthol sy'n negyddol yn cael ei osod fel sero ar gyfer y rhanbarth hwnnw ond fe'i cymerir fel ffigwr negyddol o fewn ffigurau Cymru.
B55: Rhaniad o 2 Ddeiliadaeth a amcangyfrifir - De-orllewin Cymru (yn seiliedig ar ragdybiaethau defnyddwyr)
B56: =B148 ->  | C56: =C148 -> 2019/20 | D56: 2020/21 | E56: 2021/22 | F56: 2022/23 | G56: 2023/24
B57: =B149 -> Tai'r Farchnad | C57: 859 | D57: 895 | E57: 971 | F57: 950 | G57: 893
B58: Tai fforddiadwy | C58: =C150 -> 692 | D58: 713 | E58: 758 | F58: 746 | G58: 735
B60: Rhaniad Cymesur o 2 Ddeiliadaeth - De-orllewin Cymru (yn seiliedig ar ragdybiaethau defnyddwyr)
B61: =B151 ->  | C61: =C151 -> 2019/20 | D61: 2020/21 | E61: 2021/22 | F61: 2022/23 | G61: 2023/24 | I61: =I151 -> Rhaniad 5 mlynedd
B62: =B152 -> Tai'r Farchnad | C62: =C152 -> 55% | D62: 56% | E62: 56% | F62: 56% | G62: 55% | I62: =I152 -> 56%
B63: =B153 -> Tai fforddiadwy | C63: =C153 -> 45% | D63: 44% | E63: 44% | F63: 44% | G63: 45% | I63: =I153 -> 44%
B65: =IF(C145=1,"","Sylwebaeth ar y rhagdybiaethau a ddewiswyd ar gyfer y rhaniad 4 deiliadaeth") -> 
B66: =B192 -> Ni fydd amcangyfrifon wedi'u rhannu'n 4 deiliadaeth yn ymddangos hyd nes bod y tabl uchod wedi'i gwblhau.
B90: Rhaniad o 4 deiliadaeth a amcangyfrifir - De-orllewin Cymru (yn seiliedig ar ragdybiaethau defnyddwyr)
B91: =B157 -> Cwblhewch y tabl i weld amcangyfrifon wedi'u rhannu'n 4 deiliadaeth.
C92: =C157 -> 
B93: =B158 -> 
B94: =B159 -> 
B95: =B160 -> 
B96: =B161 -> 
B98: Rhaniad Cymesur o 4 deiliadaeth - De-orllewin Cymru (yn seiliedig ar ragdybiaethau defnyddwyr)
B99: =B162 -> Cwblhewch y tabl i weld amcangyfrifon wedi'u rhannu'n 4 deiliadaeth. | I99: =I162 -> 
C100: =C162 -> 
B101: =B163 ->  | I101: =I163 -> 
B102: =B164 ->  | I102: =I164 -> 
B103: =B165 ->  | I103: =I165 -> 
B104: =B166 ->  | I104: =I166 -> 
B106: Crynodeb o Ragdybiaethau a Ddewiswyd gan Ddefnyddwyr – De-orllewin Cymru
C107: =Year1 -> 2019/20 | D107: =Year2 -> 2020/21 | E107: =Year3 -> 2021/22 | F107: =Year4 -> 2022/23 | G107: =Year5 -> 2023/24
B108: Meini Prawf Fforddiadwyedd (Marchnad) | C108: ='Rhaniad y Ddeiliadaeth (Cymru)'!C108 -> 30% | D108: ='Rhaniad y Ddeiliadaeth (Cymru)'!D108 -> 30% | E108: ='Rhaniad y Ddeiliadaeth (Cymru)'!E108 -> 30% | F108: ='Rhaniad y Ddeiliadaeth (Cymru)'!F108 -> 30% | G108: ='Rhaniad y Ddeiliadaeth (Cymru)'!G108 -> 30%
B109: Y Cynnydd i Incwm yr Aelwyd | C109: ='Rhaniad y Ddeiliadaeth (Cymru)'!C109 -> 2% | D109: ='Rhaniad y Ddeiliadaeth (Cymru)'!D109 -> 3% | E109: ='Rhaniad y Ddeiliadaeth (Cymru)'!E109 -> 3% | F109: ='Rhaniad y Ddeiliadaeth (Cymru)'!F109 -> 3% | G109: ='Rhaniad y Ddeiliadaeth (Cymru)'!G109 -> 3%
B110: Newid i ddosbarthiad incwm | C110: ='Rhaniad y Ddeiliadaeth (Cymru)'!C110 -> 1% | D110: ='Rhaniad y Ddeiliadaeth (Cymru)'!D110 -> 1% | E110: ='Rhaniad y Ddeiliadaeth (Cymru)'!E110 -> 1% | F110: ='Rhaniad y Ddeiliadaeth (Cymru)'!F110 -> 1% | G110: ='Rhaniad y Ddeiliadaeth (Cymru)'!G110 -> 1%
B111: Y Cynnydd i Brisiau Rhenti Preifat | C111: ='Rhaniad y Ddeiliadaeth (Cymru)'!C111 -> 3% | D111: ='Rhaniad y Ddeiliadaeth (Cymru)'!D111 -> 3% | E111: ='Rhaniad y Ddeiliadaeth (Cymru)'!E111 -> 3% | F111: ='Rhaniad y Ddeiliadaeth (Cymru)'!F111 -> 3% | G111: ='Rhaniad y Ddeiliadaeth (Cymru)'!G111 -> 3%
B112: Rhenti Canolrifol Blynyddol | C112: =INDEX('Prisiau Rhenti'!$D$24:$D$25,MATCH('Rhaniad y Ddeiliadaeth (De-o)'!$D$9,'Prisiau Rhenti'!$B$24:$B$25,0))*(1+C111) -> £6,177 | D112: =C112*(1+D111) -> £6,366 | E112: =D112*(1+E111) -> £6,565 | F112: £6,773 | G112: £6,996
B113: Rhenti 30 Canradd Blynyddol | C113: =INDEX('Prisiau Rhenti'!$C$24:$C$25,MATCH('Rhaniad y Ddeiliadaeth (De-o)'!$D$9,'Prisiau Rhenti'!$B$24:$B$25,0))*(1+C111) -> £5,559 | D113: =C113*(1+D111) -> £5,730 | E113: =D113*(1+E111) -> £5,908 | F113: £6,096 | G113: £6,297
B114: Cymhareb Incwm Prynwyr am y Tro Cyntaf | C114: ='Rhaniad y Ddeiliadaeth (Cymru)'!C114 -> 4.03 | D114: ='Rhaniad y Ddeiliadaeth (Cymru)'!D114 -> 4.03 | E114: ='Rhaniad y Ddeiliadaeth (Cymru)'!E114 -> 4.03 | F114: ='Rhaniad y Ddeiliadaeth (Cymru)'!F114 -> 4.03 | G114: ='Rhaniad y Ddeiliadaeth (Cymru)'!G114 -> 4.03
B115: Canradd y Prynwyr sy'n Prynu Eiddo am y Tro Cyntaf | C115: ='Rhaniad y Ddeiliadaeth (Cymru)'!C115 -> 40 | D115: ='Rhaniad y Ddeiliadaeth (Cymru)'!D115 -> 40 | E115: ='Rhaniad y Ddeiliadaeth (Cymru)'!E115 -> 40 | F115: ='Rhaniad y Ddeiliadaeth (Cymru)'!F115 -> 40 | G115: ='Rhaniad y Ddeiliadaeth (Cymru)'!G115 -> 40
B116: Prynwyr sy'n mynd ymlaen i brynu eiddo am y tro cyntaf | C116: ='Rhaniad y Ddeiliadaeth (Cymru)'!C116 -> - | D116: ='Rhaniad y Ddeiliadaeth (Cymru)'!D116 -> - | E116: ='Rhaniad y Ddeiliadaeth (Cymru)'!E116 -> - | F116: ='Rhaniad y Ddeiliadaeth (Cymru)'!F116 -> - | G116: ='Rhaniad y Ddeiliadaeth (Cymru)'!G116 -> -
B117: Meini Prawf Fforddiadwyedd (Cymdeithasol) | C117: ='Rhaniad y Ddeiliadaeth (Cymru)'!C117 -> 35% | D117: ='Rhaniad y Ddeiliadaeth (Cymru)'!D117 -> 35% | E117: ='Rhaniad y Ddeiliadaeth (Cymru)'!E117 -> 35% | F117: ='Rhaniad y Ddeiliadaeth (Cymru)'!F117 -> 35% | G117: ='Rhaniad y Ddeiliadaeth (Cymru)'!G117 -> 35%
B118: Y Cynnydd i Brisiau Tai | C118: ='Rhaniad y Ddeiliadaeth (Cymru)'!C118 -> 5% | D118: ='Rhaniad y Ddeiliadaeth (Cymru)'!D118 -> 6% | E118: ='Rhaniad y Ddeiliadaeth (Cymru)'!E118 -> 7% | F118: ='Rhaniad y Ddeiliadaeth (Cymru)'!F118 -> 5% | G118: ='Rhaniad y Ddeiliadaeth (Cymru)'!G118 -> 4%
B120: Gwirio Gwallau - Newidynnau 2 Deiliadaeth
B121: Ffynonellau Data | C121: Mater?
B122: Amcanestyniadau Aelwydydd | C122: =IF(E6="Y",0,1) -> 0
B123: Angen Presennol Nas Diwallwyd | C123: =IF(E7="Y",0,1) -> 0
B124: Dosbarthiad Incwm | C124: =IF(E8="Y",0,1) -> 0
B125: Prisiau Rhenti | C125: =IF(E9="Y",0,1) -> 0
B126: Gwerthoedd Blynyddol Penodol
B127: Trothwy Y Sector Rhentu Preifat | C127: =IF(E11="Y",0,1) -> 0
B128: Amser i Gael Gwared ar yr ôl Groniad | C128: =IF(E12="Y",0,1) -> 0
B129: Rhagdybiaethau 5 Mlynedd
B130: Newid i Incwm Canolrifol yr Aelwyd | C130: =IF(E14="Y",0,1) -> 0
B131: Newid i Ddosbarthiad Incwm yr Aelwyd | C131: =IF(E15="Y",0,1) -> 0
B132: Newid i Brisiau Rhenti | C132: =IF(E16="Y",0,1) -> 0
B133: Overall issue - 2 Tenure | C133: =IF(SUM(C122:C132)>0,1,0) -> 0
B135: Gwirio Gwallau - Newidynnau 4 Deiliadaeth
B136: Ffynonellau Data
B137: Dosbarthiad Prisiau Tai | C137: =IF(E18="Y",0,1) -> 0
B138: Gwerthoedd Blynyddol Penodol
B139: Cymhareb Prynwyr am y Tro Cyntaf | C139: =IF(E20="Y",0,1) -> 0
B140: Prynwyr sy'n Prynu Eiddo am y Tro Cyntaf | C140: =IF(E21="Y",0,1) -> 0
B141: % sy'n mynd ymlaen i brynu | C141: =IF(E22="Y",0,1) -> 1
B142: Trothwy Cymdeithasol | C142: =IF(E23="Y",0,1) -> 0
B143: Rhagdybiaethau 5 Mlynedd
B144: Newid i Brisiau Tai | C144: =IF(E25="Y",0,1) -> 0
B145: 4 Deiliadaeth | C145: =IF(SUM(C133,C137:C144)=0,0,1) -> 1
B147: Amcangyfrifon - Rhaniad 2 Deiliadaeth
B148: =IF(C133=1,"Please complete table to view figures.","") ->  | C148: =IF($C$133=0,Year1,"") -> 2019/20 | D148: =IF($C$133=0, Year2,"") -> 2020/21 | E148: =IF($C$133=0,Year3,"") -> 2021/22 | F148: =IF($C$133=0,Year4,"") -> 2022/23 | G148: =IF($C$133=0,Year5,"") -> 2023/24
B149: =IF($C$133=0,"Tai'r Farchnad","") -> Tai'r Farchnad | C149: =IF($C$133=0,'Cyfrifiadau - De-orllewin'!C29,"") -> 859 | D149: =IF($C$133=0,'Cyfrifiadau - De-orllewin'!D29,"") -> 895 | E149: =IF($C$133=0,'Cyfrifiadau - De-orllewin'!E29,"") -> 971 | F149: =IF($C$133=0,'Cyfrifiadau - De-orllewin'!F29,"") -> 950 | G149: =IF($C$133=0,'Cyfrifiadau - De-orllewin'!G29,"") -> 893
B150: =IF($C$133=0,"Tai fforddiadwy","") -> Tai fforddiadwy | C150: =IF($C$133=0,'Cyfrifiadau - De-orllewin'!C30,"") -> 692 | D150: =IF($C$133=0,'Cyfrifiadau - De-orllewin'!D30,"") -> 713 | E150: =IF($C$133=0,'Cyfrifiadau - De-orllewin'!E30,"") -> 758 | F150: =IF($C$133=0,'Cyfrifiadau - De-orllewin'!F30,"") -> 746 | G150: =IF($C$133=0,'Cyfrifiadau - De-orllewin'!G30,"") -> 735
B151: =IF(C133=1,"Please complete table to view figures.","") ->  | C151: =IF($C$133=0,Year1,"") -> 2019/20 | D151: =IF($C$133=0, Year2,"") -> 2020/21 | E151: =IF($C$133=0,Year3,"") -> 2021/22 | F151: =IF($C$133=0,Year4,"") -> 2022/23 | G151: =IF($C$133=0,Year5,"") -> 2023/24 | I151: =IF($C$133=1,"","Rhaniad 5 mlynedd") -> Rhaniad 5 mlynedd
B152: =IF($C$133=0,"Tai'r Farchnad","") -> Tai'r Farchnad | C152: =IF($C$133=1,"",C149/SUM(C$149:C$150)) -> 55.38% | D152: =IF($C$133=1,"",D149/SUM(D$149:D$150)) -> 55.65% | E152: 56.16% | F152: 56.03% | G152: 54.85% | I152: =IF($C$133=1,"",SUM(C149:G149)/SUM($C$149:$G$150)) -> 55.63%
B153: =IF($C$133=0,"Tai fforddiadwy","") -> Tai fforddiadwy | C153: =IF($C$133=1,"",C150/SUM(C$149:C$150)) -> 44.62% | D153: 44.35% | E153: 43.84% | F153: 43.97% | G153: 45.15% | I153: =IF($C$133=1,"",SUM(C150:G150)/SUM($C$149:$G$150)) -> 44.37%
B156: Amcangyfrifon - Rhaniad 4 Deiliadaeth
B157: =IF(C145=1,"Cwblhewch y tabl i weld amcangyfrifon wedi'u rhannu'n 4 deiliadaeth.","") -> Cwblhewch y tabl i weld amcangyfrifon wedi'u rhannu'n 4 deiliadaeth. | C157: =IF($C$145=0,Year1,"") ->  | D157: =IF($C$145=0,Year2,"") ->  | E157: =IF($C$145=0,Year3,"") ->  | F157: =IF($C$145=0,Year4,"") ->  | G157: =IF($C$145=0,Year5,"") -> 
B158: =IF($C$145=0,"Perchen-feddiannydd","") ->  | C158: =IF($C$145=0,'Cyfrifiadau - De-orllewin'!C59,"") ->  | D158: =IF($C$145=0,'Cyfrifiadau - De-orllewin'!D59,"") ->  | E158: =IF($C$145=0,'Cyfrifiadau - De-orllewin'!E59,"") ->  | F158: =IF($C$145=0,'Cyfrifiadau - De-orllewin'!F59,"") ->  | G158: =IF($C$145=0,'Cyfrifiadau - De-orllewin'!G59,"") -> 
B159: =IF($C$145=0,"Y Sector Rhenti Preifat","") ->  | C159: =IF($C$145=0,'Cyfrifiadau - De-orllewin'!C60,"") ->  | D159: =IF($C$145=0,'Cyfrifiadau - De-orllewin'!D60,"") ->  | E159: =IF($C$145=0,'Cyfrifiadau - De-orllewin'!E60,"") ->  | F159: =IF($C$145=0,'Cyfrifiadau - De-orllewin'!F60,"") ->  | G159: =IF($C$145=0,'Cyfrifiadau - De-orllewin'!G60,"") -> 
B160: =IF($C$145=0,"Rhent gymdeithasol","") ->  | C160: =IF($C$145=0,'Cyfrifiadau - De-orllewin'!C61,"") ->  | D160: =IF($C$145=0,'Cyfrifiadau - De-orllewin'!D61,"") ->  | E160: =IF($C$145=0,'Cyfrifiadau - De-orllewin'!E61,"") ->  | F160: =IF($C$145=0,'Cyfrifiadau - De-orllewin'!F61,"") ->  | G160: =IF($C$145=0,'Cyfrifiadau - De-orllewin'!G61,"") -> 
B161: =IF($C$145=0,"Rhent ganolradd","") ->  | C161: =IF($C$145=0,'Cyfrifiadau - De-orllewin'!C62,"") ->  | D161: =IF($C$145=0,'Cyfrifiadau - De-orllewin'!D62,"") ->  | E161: =IF($C$145=0,'Cyfrifiadau - De-orllewin'!E62,"") ->  | F161: =IF($C$145=0,'Cyfrifiadau - De-orllewin'!F62,"") ->  | G161: =IF($C$145=0,'Cyfrifiadau - De-orllewin'!G62,"") -> 
B162: =IF(C145=1,"Cwblhewch y tabl i weld amcangyfrifon wedi'u rhannu'n 4 deiliadaeth.","") -> Cwblhewch y tabl i weld amcangyfrifon wedi'u rhannu'n 4 deiliadaeth. | C162: =IF($C$145=0,Year1,"") ->  | D162: =IF($C$145=0,Year2,"") ->  | E162: =IF($C$145=0,Year3,"") ->  | F162: =IF($C$145=0,Year4,"") ->  | G162: =IF($C$145=0,Year5,"") ->  | I162: =IF(C145=1,"","Rhaniad 5 mlynedd") -> 
B163: =IF($C$145=0,"Perchen-feddiannydd","") ->  | C163: =IF($C$145=1,"",C158/SUM(C$158:C$161)) ->  | D163: =IF($C$145=1,"",D158/SUM(D$158:D$161)) ->  | I163: =IF($C$145=1,"",SUM(C158:G158)/SUM($C$158:$G$161)) -> 
B164: =IF($C$145=0,"Y Sector Rhenti Preifat","") ->  | C164: =IF($C$145=1,"",C159/SUM(C$158:C$161)) ->  | I164: =IF($C$145=1,"",SUM(C159:G159)/SUM($C$158:$G$161)) -> 
B165: =IF($C$145=0,"Rhent gymdeithasol","") -> 
B166: =IF($C$145=0,"Rhent ganolradd","") ->  | C166: =IF($C$145=1,"",C161/SUM(C$158:C$161)) -> 
B168: Sylwadau
C169: Mae'r ffigurau isod yn rhannu yr amcangyfrifon o'r angen am dai yn 2 deiliadaeth ac maent yn seiliedig ar y rhagdybiaethau canlynol. | D169: Yn dilyn yr uchod, caiff yr amcangyfrifon eu rhannu ymhellach yn bedair deiliadaeth. Caiff yr amcangyfrifon hyn eu cynhyrchu gan y defnyddiwr, ac maent yn seiliedig ar y rhagdybiaethau canlynol. | E169: Mae amcangyfrifon sylfaenol yr unedau tai ychwanegol wedi'u seilio ar | F169: , ac amcangyfrif o | G169: Mae data ar brisiau tai yn seiliedig ar | H169: Mae data ar incwm yn seiliedig ar | I169: ac mae data ar renti preifat yn seiliedig ar | J169: =". Mae gan brynwyr am y tro cyntaf gymhareb fforddiadwyedd o "&C175&" a gallant brynu eiddo am y tro cyntaf yn ôl "&C176&" canradd dosbarthiad prisiau tai.. "&C177 -> 
B170: Amcanestyniadau o Aelwyd | C170: =IF(D6="Amcanestyniadau Defnyddwyr","amcanestyniadau'r aelwyd gan y defnyddiwr,",("amcanestyniadau aelwydydd gan Llywodraeth Cymru sy'n seiliedig ar 2018 "&"("&D6&")")) -> amcanestyniadau aelwydydd gan Llywodraeth Cymru sy'n seiliedig ar 2018 (Prif Amcanestyniadau)
B171: Angen Presennol Nas Diwallwyd | C171: =IF(D7="Amcangyfrifon LlC",'Angen Presennol Nas Diwallwyd'!C13,'Angen Presennol Nas Diwallwyd'!C24)&" aelwydydd o ran angen presennol nas diwallwyd " -> 5732 aelwydydd o ran angen presennol nas diwallwyd
B172: Dosbarthiad Incwm | C172: =IF(D8="Arall", " amcangyfrifon defnyddwyr "," Ddata Llywodraeth Cymru ") -> Ddata Llywodraeth Cymru
B173: Dosbarthiad Prisiau Tai | C173: =IF(D18="Arall", " amcangyfrifon defnyddwyr"," Ddata Cofrestrfa Tir") -> Ddata Cofrestrfa Tir
B174: Prisiau Rhenti | C174: =IF(D9="Arall", " amcangyfrifon defnyddwyr"," Ddata Llywodraeth Cymru") -> Ddata Llywodraeth Cymru
B175: Cymhareb Prynwyr am y Tro Cyntaf | C175: =C114 -> 4.03
B176: Prynwyr sy'n Prynu Eiddo am y Tro Cyntaf | C176: =C115 -> 40.00
B177: % sy'n mynd ymlaen i brynu | C177: =C116*100&"% o brynwyr potensial am y tro cyntaf sy'n mynd ymlaen i brynu eiddo. " -> 
B178: Trothwy Y Sector Rhentu Preifat | C178: ="Gall aelwydydd sy'n gwario "&C108*100&"% o incwm yr aelwyd ar rent preifat canolrifol fforddio rhent preifat," -> Gall aelwydydd sy'n gwario 30% o incwm yr aelwyd ar rent preifat canolrifol fforddio rhent preifat,
B179: Trothwy Cymdeithasol | C179: ="Mae aelwydydd sy'n gwario "&C117*100&"% o incwm yr aelwyd ar rent preifat 30 canradd yn addas ar gyfer dai cymdeithasol." -> Mae aelwydydd sy'n gwario 35% o incwm yr aelwyd ar rent preifat 30 canradd yn addas ar gyfer dai cymdeithasol.
B180: Amser i Gael Gwared ar yr ôl Groniad | C180: =" a fydd yn cymryd "&'Angen Presennol Nas Diwallwyd'!C29&" mlynedd i'w diwallu." -> a fydd yn cymryd 5 mlynedd i'w diwallu.
B181: Newid i Incwm Canolrifol yr Aelwyd | C181: =". Mae'r newid blynyddol i incwm canolrifol yr aelwyd yn seiliedig ar "&IF(D14="Arall","amcangyfrifon defnyddwyr","amcangyfrifon wedi'u rhagosod") -> . Mae'r newid blynyddol i incwm canolrifol yr aelwyd yn seiliedig ar amcangyfrifon wedi'u rhagosod
B182: Newid i Ddosbarthiad Incwm yr Aelwyd | C182: =", mae'r newid blynyddol i ddosbarthiad incwm yr aelwyd yn seiliedig ar "&IF(D15="Arall","amcangyfrifon defnyddwyr","amcangyfrifon wedi'u rhagosod") -> , mae'r newid blynyddol i ddosbarthiad incwm yr aelwyd yn seiliedig ar amcangyfrifon wedi'u rhagosod
B183: Newid i Brisiau Tai | C183: =", mae'r newid blynyddol i brisiau tai yn seiliedig ar "&IF(D25="Arall","amcangyfrifon defnyddwyr","amcangyfrifon wedi'u rhagosod") -> , mae'r newid blynyddol i brisiau tai yn seiliedig ar amcangyfrifon wedi'u rhagosod
B184: Newid i Brisiau Rhenti | C184: =" ac mae'r newid blynyddol i brisiau rhenti yn seiliedig ar "&IF(D16="Arall","amcangyfrifon y defnyddwyr","amcangyfrifon wedi'u rhagosod.") -> ac mae'r newid blynyddol i brisiau rhenti yn seiliedig ar amcangyfrifon wedi'u rhagosod.
B186: Paragraff Olaf - 2 Deiliadaeth
B187: =C169&E169&C170&F169&C171&C180&H169&C172&I169&C174&C181&C182&C184 -> Mae'r ffigurau isod yn rhannu yr amcangyfrifon o'r angen am dai yn 2 deiliadaeth ac maent yn seiliedig ar y rhagdybiaethau canlynol. Mae amcangyfrifon sylfaenol yr unedau tai ychwanegol wedi'u seilio ar amcanestyniadau aelwydydd gan Llywodraeth Cymru sy'n seiliedig ar 2018 (Prif Amcanestyniadau), ac amcangyfrif o 5732 aelwydydd o ran angen presennol nas diwallwyd a fydd yn cymryd 5 mlynedd i'w diwallu.Mae data ar incwm yn seiliedig ar Ddata Llywodraeth Cymru ac mae data ar renti preifat yn seiliedig ar Ddata Llywodraeth Cymru. Mae'r newid blynyddol i incwm canolrifol yr aelwyd yn seiliedig ar amcangyfrifon wedi'u rhagosod, mae'r newid blynyddol i ddosbarthiad incwm yr aelwyd yn seiliedig ar amcangyfrifon wedi'u rhagosod ac mae'r newid blynyddol i brisiau rhenti yn seiliedig ar amcangyfrifon wedi'u rhagosod.
B188: =IF(C133=1,"Estimates will not appear below until the above table is complete.",B187) -> Mae'r ffigurau isod yn rhannu yr amcangyfrifon o'r angen am dai yn 2 deiliadaeth ac maent yn seiliedig ar y rhagdybiaethau canlynol. Mae amcangyfrifon sylfaenol yr unedau tai ychwanegol wedi'u seilio ar amcanestyniadau aelwydydd gan Llywodraeth Cymru sy'n seiliedig ar 2018 (Prif Amcanestyniadau), ac amcangyfrif o 5732 aelwydydd o ran angen presennol nas diwallwyd a fydd yn cymryd 5 mlynedd i'w diwallu.Mae data ar incwm yn seiliedig ar Ddata Llywodraeth Cymru ac mae data ar renti preifat yn seiliedig ar Ddata Llywodraeth Cymru. Mae'r newid blynyddol i incwm canolrifol yr aelwyd yn seiliedig ar amcangyfrifon wedi'u rhagosod, mae'r newid blynyddol i ddosbarthiad incwm yr aelwyd yn seiliedig ar amcangyfrifon wedi'u rhagosod ac mae'r newid blynyddol i brisiau rhenti yn seiliedig ar amcangyfrifon wedi'u rhagosod.
B190: Paragraff Olaf - 4 Deiliadaeth
B191: =D169&G169&C173&C183&J169&C179 -> 
B192: =IF(C145=1,"Ni fydd amcangyfrifon wedi'u rhannu'n 4 deiliadaeth yn ymddangos hyd nes bod y tabl uchod wedi'i gwblhau.",B191) -> Ni fydd amcangyfrifon wedi'u rhannu'n 4 deiliadaeth yn ymddangos hyd nes bod y tabl uchod wedi'i gwblhau.
B194: Gwnewch ddetholiad ar y daflen Rhaniad y Ddeiliadaeth (Cymru)
B195: Data rhagosodedig a ddefnyddiwyd
B196: Data defnyddwyr
B197: Cofnodwch ddata defnyddwyr ar y daflen:
B198: ="'Amcanestyniadau Aelwydydd'" -> 'Amcanestyniadau Aelwydydd'
B199: ="'Angen Presennol Nas Diwallwyd'" -> 'Angen Presennol Nas Diwallwyd'
B200: ="'Incwm (Cymru)'" -> 'Incwm (Cymru)'
B201: ="'Prisiau Tai (Cymru)'" -> 'Prisiau Tai (Cymru)'
B202: ="'Prisiau Rhenti'" -> 'Prisiau Rhenti'
B203: ="'Rhagdybiaeth Blynyddol'" -> 'Rhagdybiaeth Blynyddol'
B204: ="'Rhagolygon y Dyfodol'" -> 'Rhagolygon y Dyfodol'

Sheet Rhaniad y Ddeiliadaeth (De-ddn)
B1: Lefel Ddaearyddol: | D1: ='Cyfrifiadau De-ddwyrain'!B1 -> De-ddwyrain Cymru
B2: Mae'r dewisiadau a wnaed ar daflen: Rhaniad y Ddeiliadaeth (Cymru) yn cael eu cadw yn y taflenni rhanbarthol. Os byddwch wedi dewis defnyddio eich data eich hunain, ac nad ydych wedi nodi'r data rhanbarthol lle y mae angen eu rhoi, cewch eich atgoffa i wneud hynny.
C4: Newidyn | D4: Dewislen | E4: Wedi'i gwblhau? | F4: Cyfarwyddiadau/Gwirio/Nodyn | K4: Dolenni defnyddiol i dudalennau eraill:
B5: Mae angen y newidynnau hyn i gynhyrchu amcangyfrifon wedi'u rhannu yn ddwy deiliadaeth (marchnad a fforddiadwy). Mae'r daenlen "Canllawiau ar Newidynnau" yn darparu diffiniadau llawn. | C5: Ffynonellau Data (rhaniad 2 ddeiliadaeth)
C6: Rhagdybiaethau yr Aelwyd | D6: ='Rhaniad y Ddeiliadaeth (Cymru)'!D6 -> Prif Amcanestyniadau | E6: =IF(OR(F6=$B$195,F6=$B$196),"Y","N") -> Y | F6: =IF(D6="",B194,IF(D6="Other",IF('Amcanestyniadau Aelwydydd'!J21=0,B197&B198,B196),B195)) -> Data rhagosodedig a ddefnyddiwyd
C7: Angen Nas Diwallwyd Presennol | D7: ='Rhaniad y Ddeiliadaeth (Cymru)'!D7 -> Amcangyfrifon LlC | E7: =IF(OR(F7=$B$195,F7=$B$196),"Y","N") -> Y | F7: =IF(D7="",B194,IF(D7="Other",IF(ISBLANK('Angen Presennol Nas Diwallwyd'!C21),B197&B199,B196),B195)) -> Data rhagosodedig a ddefnyddiwyd
C8: Incwm yr Aelwyd | D8: ='Rhaniad y Ddeiliadaeth (Cymru)'!D8 -> Amcangyfrifon LlC | E8: =IF(OR(F8=$B$195,F8=$B$196),"Y","N") -> Y | F8: =IF(D8="",B194,IF(D8="Arall",IF('Incwm (Gogledd)'!O85=0,B196,B197&B200),B195)) -> Data rhagosodedig a ddefnyddiwyd
C9: Prisiau Rhenti Preifat | D9: ='Rhaniad y Ddeiliadaeth (Cymru)'!D9 -> Prisiau Rhenti | E9: =IF(OR(F9=$B$195,F9=$B$196),"Y","N") -> Y | F9: =IF(D9="",B194,IF(D9="Other",IF(OR(ISBLANK('Prisiau Rhenti'!C30),ISBLANK('Prisiau Rhenti'!D30)),B197&B202,B196),B195)) -> Data rhagosodedig a ddefnyddiwyd
C10: Rhagdybiaethau Blynyddol Penodol (rhaniad 2 ddeiliadaeth)
C11: Meini Prawf Fforddiadwyedd (Marchnad) | D11: ='Rhaniad y Ddeiliadaeth (Cymru)'!D11 -> Wedi'i ragosod | E11: =IF(OR(F11=$B$195,F11=$B$196),"Y","N") -> Y | F11: ='Rhaniad y Ddeiliadaeth (Cymru)'!F11:I11 -> Data rhagosodedig a ddefnyddiwyd
C12: Blynyddoedd i Gael Gwared ar yr ôl Groniad | D12: ='Rhaniad y Ddeiliadaeth (Cymru)'!D12 -> Wedi'i ragosod | E12: =IF(OR(F12=$B$195,F12=$B$196),"Y","N") -> Y | F12: ='Rhaniad y Ddeiliadaeth (Cymru)'!F12:I12 -> Data rhagosodedig a ddefnyddiwyd
C13: Rhagdybiaethau 5 mlynedd (rhaniad 2 deiliadaeth)
C14: Newid i Incwm Canolrifol yr Aelwyd | D14: ='Rhaniad y Ddeiliadaeth (Cymru)'!D14 -> Wedi'i ragosod | E14: =IF(OR(F14=$B$195,F14=$B$196),"Y","N") -> Y | F14: ='Rhaniad y Ddeiliadaeth (Cymru)'!F14:I14 -> Data rhagosodedig a ddefnyddiwyd
C15: Newid i Ddosbarthiad Incwm yr Aelwyd | D15: ='Rhaniad y Ddeiliadaeth (Cymru)'!D15 -> Mwy o Anghydraddoldeb | E15: =IF(OR(F15=$B$195,F15=$B$196),"Y","N") -> Y | F15: ='Rhaniad y Ddeiliadaeth (Cymru)'!F15:I15 -> Data rhagosodedig a ddefnyddiwyd
C16: Newid i Brisiau Rhenti | D16: ='Rhaniad y Ddeiliadaeth (Cymru)'!D16 -> Wedi'i ragosod | E16: =IF(OR(F16=$B$195,F16=$B$196),"Y","N") -> Y | F16: ='Rhaniad y Ddeiliadaeth (Cymru)'!F16:I16 -> Data rhagosodedig a ddefnyddiwyd
B17: Mae angen y newidynnau ychwanegol hyn i gynhyrchu amcangyfrifon wedi'u rhannu yn bedair deiliadaeth (perchen-feddiannydd, rhent preifat, rhent canolradd a chymdeithasol). Mae'r daenlen "Canllawiau ar Newidynnau" yn darparu diffiniadau llawn. | C17: Ffynonellau Data (rhaniad 4 deiliadaeth)
C18: Dosbarthiad Prisiau Tai | D18: ='Rhaniad y Ddeiliadaeth (Cymru)'!D18 -> Data Cofrestrfa Tir | E18: =IF(OR(F18=$B$195,F18=$B$196),"Y","N") -> Y | F18: =IF(D18="",B194,IF(D18="Other",IF('Prisiau Tai (De-ddwyrain)'!O85=1,B197&B201,B196),B195)) -> Data rhagosodedig a ddefnyddiwyd
C19: Rhagdybiaethau Blynyddol Penodol (rhaniad 4 deiliadaeth)
C20: Cymhareb Incwm Prynwyr am y Tro Cyntaf | D20: ='Rhaniad y Ddeiliadaeth (Cymru)'!D20 -> Wedi'i ragosod | E20: =IF(OR(F20=$B$195,F20=$B$196),"Y","N") -> Y | F20: ='Rhaniad y Ddeiliadaeth (Cymru)'!F20:I20 -> Data rhagosodedig a ddefnyddiwyd
C21: Canradd Mynediad y farchnad ar gyfer y Prynwyr sy'n Prynu Eiddo am y Tro Cyntaf | D21: ='Rhaniad y Ddeiliadaeth (Cymru)'!D21 -> 40 | E21: =IF(OR(F21=$B$195,F21=$B$196),"Y","N") -> Y | F21: ='Rhaniad y Ddeiliadaeth (Cymru)'!F21:I21 -> Data rhagosodedig a ddefnyddiwyd
C22: Prynwyr sy'n mynd ymlaen i brynu eiddo am y tro cyntaf (nid oes newidyn wedi'i ragosod) | D22: ='Rhaniad y Ddeiliadaeth (Cymru)'!D22 -> Gwerth defnyddiwr (nid oes gwerth wedi'i ragosod) | E22: =IF(OR(F22=$B$195,F22=$B$196),"Y","N") -> N | F22: ='Rhaniad y Ddeiliadaeth (Cymru)'!F22:I22 -> Cofnodwch ddata defnyddwyr ar y daflen:'Rhagdybiaeth Blynyddol'
C23: Meini Prawf Fforddiadwyedd (Cymdeithasol) | D23: ='Rhaniad y Ddeiliadaeth (Cymru)'!D23 -> Wedi'i ragosod | E23: =IF(OR(F23=$B$195,F23=$B$196),"Y","N") -> Y | F23: ='Rhaniad y Ddeiliadaeth (Cymru)'!F23:I23 -> Data rhagosodedig a ddefnyddiwyd
C24: Rhagdybiaethau 5 mlynedd (rhaniad 4 deiliadaeth)
C25: Newid i Brisiau Tai | D25: ='Rhaniad y Ddeiliadaeth (Cymru)'!D25 -> Wedi'i ragosod | E25: =IF(OR(F25=$B$195,F25=$B$196),"Y","N") -> Y | F25: ='Rhaniad y Ddeiliadaeth (Cymru)'!F25:I25 -> Data rhagosodedig a ddefnyddiwyd
B27: =IF(C133=1,"","Sylwadau ar y rhagdybiaethau a ddewiswyd ar gyfer rhaniad o ddwy ddeiliadaeth: "&D1) -> Sylwadau ar y rhagdybiaethau a ddewiswyd ar gyfer rhaniad o ddwy ddeiliadaeth: De-ddwyrain Cymru
B28: =B188 -> Mae'r ffigurau isod yn rhannu yr amcangyfrifon o'r angen am dai yn 2 deiliadaeth ac maent yn seiliedig ar y rhagdybiaethau canlynol. Mae amcangyfrifon sylfaenol yr unedau tai ychwanegol wedi'u seilio ar amcanestyniadau aelwydydd gan Llywodraeth Cymru sy'n seiliedig ar 2018 (Prif Amcanestyniadau), ac amcangyfrif o 5732 aelwydydd o ran angen presennol nas diwallwyd a fydd yn cymryd 5 mlynedd i'w diwallu.Mae data ar incwm yn seiliedig ar Ddata Llywodraeth Cymru ac mae data ar renti preifat yn seiliedig ar Ddata Llywodraeth Cymru. Mae'r newid blynyddol i incwm canolrifol yr aelwyd yn seiliedig ar amcangyfrifon wedi'u rhagosod, mae'r newid blynyddol i ddosbarthiad incwm yr aelwyd yn seiliedig ar amcangyfrifon wedi'u rhagosod ac mae'r newid blynyddol i brisiau rhenti yn seiliedig ar amcangyfrifon wedi'u rhagosod.
B52: Noder: Gall fod gwahaniaethau bach rhwng swm y canlyniadau rhanbarthol a'r canlyniadau cenedlaethol o dan unrhyw amcangyfrifon a rhannwyd yn ôl daliadaeth. Mae hyn oherwydd y cyfrifir amcangyfrifon rhanbarthol gan ddefnyddio data rhanbarthol (incwm aelwyd, prisiau rhentu) ac felly bydd yn wahanol i lefel Cymru gyfan. Ymhellach, bydd unrhyw angen newydd am dai rhanbarthol sy'n negyddol yn cael ei osod fel sero ar gyfer y rhanbarth hwnnw ond fe'i cymerir fel ffigwr negyddol o fewn ffigurau Cymru.
B55: Rhaniad o 2 Ddeiliadaeth a amcangyfrifir - De-ddwyrain Cymru (yn seiliedig ar ragdybiaethau defnyddwyr)
B56: =B148 ->  | C56: =C148 -> 2019/20 | D56: 2020/21 | E56: 2021/22 | F56: 2022/23 | G56: 2023/24
B57: =B149 -> Tai'r Farchnad | C57: 2,223 | D57: 2,223 | E57: 2,368 | F57: 2,262 | G57: 2,231
B58: Tai fforddiadwy | C58: =C150 -> 2,072 | D58: 2,072 | E58: 2,165 | F58: 2,097 | G58: 2,077
B60: Rhaniad Cymesur o 2 Ddeiliadaeth - De-ddwyrain Cymru (yn seiliedig ar ragdybiaethau defnyddwyr)
B61: =B151 ->  | C61: =C151 -> 2019/20 | D61: 2020/21 | E61: 2021/22 | F61: 2022/23 | G61: 2023/24 | I61: =I151 -> Rhaniad 5 mlynedd
B62: =B152 -> Tai'r Farchnad | C62: =C152 -> 52% | D62: 52% | E62: 52% | F62: 52% | G62: 52% | I62: =I152 -> 52%
B63: =B153 -> Tai fforddiadwy | C63: =C153 -> 48% | D63: 48% | E63: 48% | F63: 48% | G63: 48% | I63: =I153 -> 48%
B65: =IF(C145=1,"","Sylwebaeth ar y rhagdybiaethau a ddewiswyd ar gyfer y rhaniad 4 deiliadaeth") -> 
B66: =B192 -> Ni fydd amcangyfrifon wedi'u rhannu'n 4 deiliadaeth yn ymddangos hyd nes bod y tabl uchod wedi'i gwblhau.
B90: Rhaniad o 4 deiliadaeth a amcangyfrifir - De-ddwyrain Cymru (yn seiliedig ar ragdybiaethau defnyddwyr)
B91: =B157 -> Cwblhewch y tabl i weld amcangyfrifon wedi'u rhannu'n 4 deiliadaeth.
C92: =C157 -> 
B93: =B158 -> 
B94: =B159 -> 
B95: =B160 -> 
B96: =B161 -> 
B98: Rhaniad Cymesur o 4 deiliadaeth - De-ddwyrain Cymru (yn seiliedig ar ragdybiaethau defnyddwyr)
B99: =B162 -> Cwblhewch y tabl i weld amcangyfrifon wedi'u rhannu'n 4 deiliadaeth. | I99: =I162 -> 
C100: =C162 -> 
B101: =B163 ->  | I101: =I163 -> 
B102: =B164 ->  | I102: =I164 -> 
B103: =B165 ->  | I103: =I165 -> 
B104: =B166 ->  | I104: =I166 -> 
B106: Crynodeb o Ragdybiaethau a Ddewiswyd gan Ddefnyddwyr – De-ddwyrain Cymru
C107: =Year1 -> 2019/20 | D107: =Year2 -> 2020/21 | E107: =Year3 -> 2021/22 | F107: =Year4 -> 2022/23 | G107: =Year5 -> 2023/24
B108: Meini Prawf Fforddiadwyedd (Marchnad) | C108: ='Rhaniad y Ddeiliadaeth (Cymru)'!C108 -> 30% | D108: ='Rhaniad y Ddeiliadaeth (Cymru)'!D108 -> 30% | E108: ='Rhaniad y Ddeiliadaeth (Cymru)'!E108 -> 30% | F108: ='Rhaniad y Ddeiliadaeth (Cymru)'!F108 -> 30% | G108: ='Rhaniad y Ddeiliadaeth (Cymru)'!G108 -> 30%
B109: Y Cynnydd i Incwm yr Aelwyd | C109: ='Rhaniad y Ddeiliadaeth (Cymru)'!C109 -> 2% | D109: ='Rhaniad y Ddeiliadaeth (Cymru)'!D109 -> 3% | E109: ='Rhaniad y Ddeiliadaeth (Cymru)'!E109 -> 3% | F109: ='Rhaniad y Ddeiliadaeth (Cymru)'!F109 -> 3% | G109: ='Rhaniad y Ddeiliadaeth (Cymru)'!G109 -> 3%
B110: Newid i ddosbarthiad incwm | C110: ='Rhaniad y Ddeiliadaeth (Cymru)'!C110 -> 1% | D110: ='Rhaniad y Ddeiliadaeth (Cymru)'!D110 -> 1% | E110: ='Rhaniad y Ddeiliadaeth (Cymru)'!E110 -> 1% | F110: ='Rhaniad y Ddeiliadaeth (Cymru)'!F110 -> 1% | G110: ='Rhaniad y Ddeiliadaeth (Cymru)'!G110 -> 1%
B111: Y Cynnydd i Brisiau Rhenti Preifat | C111: ='Rhaniad y Ddeiliadaeth (Cymru)'!C111 -> 3% | D111: ='Rhaniad y Ddeiliadaeth (Cymru)'!D111 -> 3% | E111: ='Rhaniad y Ddeiliadaeth (Cymru)'!E111 -> 3% | F111: ='Rhaniad y Ddeiliadaeth (Cymru)'!F111 -> 3% | G111: ='Rhaniad y Ddeiliadaeth (Cymru)'!G111 -> 3%
B112: Rhenti Canolrifol Blynyddol | C112: =INDEX('Prisiau Rhenti'!$D$29:$D$30,MATCH('Rhaniad y Ddeiliadaeth (De-ddn)'!$D$9,'Prisiau Rhenti'!$B$29:$B$30,0))*(1+C111) -> £6,795 | D112: =C112*(1+D111) -> £7,003 | E112: =D112*(1+E111) -> £7,221 | F112: £7,450 | G112: £7,696
B113: Rhenti 30 Canradd Blynyddol | C113: =INDEX('Prisiau Rhenti'!$C$29:$C$30,MATCH('Rhaniad y Ddeiliadaeth (De-ddn)'!$D$9,'Prisiau Rhenti'!$B$29:$B$30,0))*(1+C111) -> £5,868 | D113: =C113*(1+D111) -> £6,048 | E113: =D113*(1+E111) -> £6,237 | F113: £6,435 | G113: £6,647
B114: Cymhareb Incwm Prynwyr am y Tro Cyntaf | C114: ='Rhaniad y Ddeiliadaeth (Cymru)'!C114 -> 4.03 | D114: ='Rhaniad y Ddeiliadaeth (Cymru)'!D114 -> 4.03 | E114: ='Rhaniad y Ddeiliadaeth (Cymru)'!E114 -> 4.03 | F114: ='Rhaniad y Ddeiliadaeth (Cymru)'!F114 -> 4.03 | G114: ='Rhaniad y Ddeiliadaeth (Cymru)'!G114 -> 4.03
B115: Canradd y Prynwyr sy'n Prynu Eiddo am y Tro Cyntaf | C115: ='Rhaniad y Ddeiliadaeth (Cymru)'!C115 -> 40 | D115: ='Rhaniad y Ddeiliadaeth (Cymru)'!D115 -> 40 | E115: ='Rhaniad y Ddeiliadaeth (Cymru)'!E115 -> 40 | F115: ='Rhaniad y Ddeiliadaeth (Cymru)'!F115 -> 40 | G115: ='Rhaniad y Ddeiliadaeth (Cymru)'!G115 -> 40
B116: Prynwyr sy'n mynd ymlaen i brynu eiddo am y tro cyntaf | C116: ='Rhaniad y Ddeiliadaeth (Cymru)'!C116 -> - | D116: ='Rhaniad y Ddeiliadaeth (Cymru)'!D116 -> - | E116: ='Rhaniad y Ddeiliadaeth (Cymru)'!E116 -> - | F116: ='Rhaniad y Ddeiliadaeth (Cymru)'!F116 -> - | G116: ='Rhaniad y Ddeiliadaeth (Cymru)'!G116 -> -
B117: Meini Prawf Fforddiadwyedd (Cymdeithasol) | C117: ='Rhaniad y Ddeiliadaeth (Cymru)'!C117 -> 35% | D117: ='Rhaniad y Ddeiliadaeth (Cymru)'!D117 -> 35% | E117: ='Rhaniad y Ddeiliadaeth (Cymru)'!E117 -> 35% | F117: ='Rhaniad y Ddeiliadaeth (Cymru)'!F117 -> 35% | G117: ='Rhaniad y Ddeiliadaeth (Cymru)'!G117 -> 35%
B118: Y Cynnydd i Brisiau Tai | C118: ='Rhaniad y Ddeiliadaeth (Cymru)'!C118 -> 5% | D118: ='Rhaniad y Ddeiliadaeth (Cymru)'!D118 -> 6% | E118: ='Rhaniad y Ddeiliadaeth (Cymru)'!E118 -> 7% | F118: ='Rhaniad y Ddeiliadaeth (Cymru)'!F118 -> 5% | G118: ='Rhaniad y Ddeiliadaeth (Cymru)'!G118 -> 4%
B120: Gwirio Gwallau - Newidynnau 2 Deiliadaeth
B121: Ffynonellau Data | C121: Mater?
B122: Amcanestyniadau Aelwydydd | C122: =IF(E6="Y",0,1) -> 0
B123: Angen Presennol Nas Diwallwyd | C123: =IF(E7="Y",0,1) -> 0
B124: Dosbarthiad Incwm | C124: =IF(E8="Y",0,1) -> 0
B125: Prisiau Rhenti | C125: =IF(E9="Y",0,1) -> 0
B126: Gwerthoedd Blynyddol Penodol
B127: Trothwy Y Sector Rhentu Preifat | C127: =IF(E11="Y",0,1) -> 0
B128: Amser i Gael Gwared ar yr ôl Groniad | C128: =IF(E12="Y",0,1) -> 0
B129: Rhagdybiaethau 5 Mlynedd
B130: Newid i Incwm Canolrifol yr Aelwyd | C130: =IF(E14="Y",0,1) -> 0
B131: Newid i Ddosbarthiad Incwm yr Aelwyd | C131: =IF(E15="Y",0,1) -> 0
B132: Newid i Brisiau Rhenti | C132: =IF(E16="Y",0,1) -> 0
B133: Overall issue - 2 Tenure | C133: =IF(SUM(C122:C132)>0,1,0) -> 0
B135: Gwirio Gwallau - Newidynnau 4 Deiliadaeth
B136: Ffynonellau Data
B137: Dosbarthiad Prisiau Tai | C137: =IF(E18="Y",0,1) -> 0
B138: Gwerthoedd Blynyddol Penodol
B139: Cymhareb Prynwyr am y Tro Cyntaf | C139: =IF(E20="Y",0,1) -> 0
B140: Prynwyr sy'n Prynu Eiddo am y Tro Cyntaf | C140: =IF(E21="Y",0,1) -> 0
B141: % sy'n mynd ymlaen i brynu | C141: =IF(E22="Y",0,1) -> 1
B142: Trothwy Cymdeithasol | C142: =IF(E23="Y",0,1) -> 0
B143: Rhagdybiaethau 5 Mlynedd
B144: Newid i Brisiau Tai | C144: =IF(E25="Y",0,1) -> 0
B145: 4 Deiliadaeth | C145: =IF(SUM(C133,C137:C144)=0,0,1) -> 1
B147: Amcangyfrifon - Rhaniad 2 Deiliadaeth
B148: =IF(C133=1,"Please complete table to view figures.","") ->  | C148: =IF($C$133=0,Year1,"") -> 2019/20 | D148: =IF($C$133=0, Year2,"") -> 2020/21 | E148: =IF($C$133=0,Year3,"") -> 2021/22 | F148: =IF($C$133=0,Year4,"") -> 2022/23 | G148: =IF($C$133=0,Year5,"") -> 2023/24
B149: =IF($C$133=0,"Tai'r Farchnad","") -> Tai'r Farchnad | C149: =IF($C$133=0,'Cyfrifiadau De-ddwyrain'!C29,"") -> 2,223 | D149: =IF($C$133=0,'Cyfrifiadau De-ddwyrain'!D29,"") -> 2,223 | E149: =IF($C$133=0,'Cyfrifiadau De-ddwyrain'!E29,"") -> 2,368 | F149: =IF($C$133=0,'Cyfrifiadau De-ddwyrain'!F29,"") -> 2,262 | G149: =IF($C$133=0,'Cyfrifiadau De-ddwyrain'!G29,"") -> 2,231
B150: =IF($C$133=0,"Tai fforddiadwy","") -> Tai fforddiadwy | C150: =IF($C$133=0,'Cyfrifiadau De-ddwyrain'!C30,"") -> 2,072 | D150: =IF($C$133=0,'Cyfrifiadau De-ddwyrain'!D30,"") -> 2,072 | E150: =IF($C$133=0,'Cyfrifiadau De-ddwyrain'!E30,"") -> 2,165 | F150: =IF($C$133=0,'Cyfrifiadau De-ddwyrain'!F30,"") -> 2,097 | G150: =IF($C$133=0,'Cyfrifiadau De-ddwyrain'!G30,"") -> 2,077
B151: =IF(C133=1,"Please complete table to view figures.","") ->  | C151: =IF($C$133=0,Year1,"") -> 2019/20 | D151: =IF($C$133=0, Year2,"") -> 2020/21 | E151: =IF($C$133=0,Year3,"") -> 2021/22 | F151: =IF($C$133=0,Year4,"") -> 2022/23 | G151: =IF($C$133=0,Year5,"") -> 2023/24 | I151: =IF(C133=1,"","Rhaniad 5 mlynedd") -> Rhaniad 5 mlynedd
B152: =IF($C$133=0,"Tai'r Farchnad","") -> Tai'r Farchnad | C152: =IF($C$133=1,"",C149/SUM(C$149:C$150)) -> 51.76% | D152: =IF($C$133=1,"",D149/SUM(D$149:D$150)) -> 51.76% | E152: 52.25% | F152: 51.90% | G152: 51.79% | I152: =IF($C$133=1,"",SUM(C149:G149)/SUM($C$149:$G$150)) -> 51.89%
B153: =IF($C$133=0,"Tai fforddiadwy","") -> Tai fforddiadwy | C153: =IF($C$133=1,"",C150/SUM(C$149:C$150)) -> 48.24% | D153: 48.24% | E153: 47.75% | F153: 48.10% | G153: 48.21% | I153: =IF($C$133=1,"",SUM(C150:G150)/SUM($C$149:$G$150)) -> 48.11%
B156: Amcangyfrifon - Rhaniad 4 Deiliadaeth
B157: =IF(C145=1,"Cwblhewch y tabl i weld amcangyfrifon wedi'u rhannu'n 4 deiliadaeth.","") -> Cwblhewch y tabl i weld amcangyfrifon wedi'u rhannu'n 4 deiliadaeth. | C157: =IF($C$145=0,Year1,"") ->  | D157: =IF($C$145=0,Year2,"") ->  | E157: =IF($C$145=0,Year3,"") ->  | F157: =IF($C$145=0,Year4,"") ->  | G157: =IF($C$145=0,Year5,"") -> 
B158: =IF($C$145=0,"Perchen-feddiannydd","") ->  | C158: =IF($C$145=0,'Cyfrifiadau De-ddwyrain'!C59,"") ->  | D158: =IF($C$145=0,'Cyfrifiadau De-ddwyrain'!D59,"") ->  | E158: =IF($C$145=0,'Cyfrifiadau De-ddwyrain'!E59,"") ->  | F158: =IF($C$145=0,'Cyfrifiadau De-ddwyrain'!F59,"") ->  | G158: =IF($C$145=0,'Cyfrifiadau De-ddwyrain'!G59,"") -> 
B159: =IF($C$145=0,"Y Sector Rhenti Preifat","") ->  | C159: =IF($C$145=0,'Cyfrifiadau De-ddwyrain'!C60,"") ->  | D159: =IF($C$145=0,'Cyfrifiadau De-ddwyrain'!D60,"") ->  | E159: =IF($C$145=0,'Cyfrifiadau De-ddwyrain'!E60,"") ->  | F159: =IF($C$145=0,'Cyfrifiadau De-ddwyrain'!F60,"") ->  | G159: =IF($C$145=0,'Cyfrifiadau De-ddwyrain'!G60,"") -> 
B160: =IF($C$145=0,"Rhent gymdeithasol","") ->  | C160: =IF($C$145=0,'Cyfrifiadau De-ddwyrain'!C61,"") ->  | D160: =IF($C$145=0,'Cyfrifiadau De-ddwyrain'!D61,"") ->  | E160: =IF($C$145=0,'Cyfrifiadau De-ddwyrain'!E61,"") ->  | F160: =IF($C$145=0,'Cyfrifiadau De-ddwyrain'!F61,"") ->  | G160: =IF($C$145=0,'Cyfrifiadau De-ddwyrain'!G61,"") -> 
B161: =IF($C$145=0,"Rhent ganolradd","") ->  | C161: =IF($C$145=0,'Cyfrifiadau De-ddwyrain'!C62,"") ->  | D161: =IF($C$145=0,'Cyfrifiadau De-ddwyrain'!D62,"") ->  | E161: =IF($C$145=0,'Cyfrifiadau De-ddwyrain'!E62,"") ->  | F161: =IF($C$145=0,'Cyfrifiadau De-ddwyrain'!F62,"") ->  | G161: =IF($C$145=0,'Cyfrifiadau De-ddwyrain'!G62,"") -> 
B162: =IF(C145=1,"Cwblhewch y tabl i weld amcangyfrifon wedi'u rhannu'n 4 deiliadaeth.","") -> Cwblhewch y tabl i weld amcangyfrifon wedi'u rhannu'n 4 deiliadaeth. | C162: =IF($C$145=0,Year1,"") ->  | D162: =IF($C$145=0,Year2,"") ->  | E162: =IF($C$145=0,Year3,"") ->  | F162: =IF($C$145=0,Year4,"") ->  | G162: =IF($C$145=0,Year5,"") ->  | I162: =IF(C145=1,"","Rhaniad 5 mlynedd") -> 
B163: =IF($C$145=0,"Perchen-feddiannydd","") ->  | C163: =IF($C$145=1,"",C158/SUM(C$158:C$161)) ->  | D163: =IF($C$145=1,"",D158/SUM(D$158:D$161)) ->  | I163: =IF($C$145=1,"",SUM(C158:G158)/SUM($C$158:$G$161)) -> 
B164: =IF($C$145=0,"Y Sector Rhenti Preifat","") ->  | C164: =IF($C$145=1,"",C159/SUM(C$158:C$161)) ->  | I164: =IF($C$145=1,"",SUM(C159:G159)/SUM($C$158:$G$161)) -> 
B165: =IF($C$145=0,"Rhent gymdeithasol","") -> 
B166: =IF($C$145=0,"Rhent ganolradd","") ->  | C166: =IF($C$145=1,"",C161/SUM(C$158:C$161)) -> 
B168: Sylwadau
C169: Mae'r ffigurau isod yn rhannu yr amcangyfrifon o'r angen am dai yn 2 deiliadaeth ac maent yn seiliedig ar y rhagdybiaethau canlynol. | D169: Yn dilyn yr uchod, caiff yr amcangyfrifon eu rhannu ymhellach yn bedair deiliadaeth. Caiff yr amcangyfrifon hyn eu cynhyrchu gan y defnyddiwr, ac maent yn seiliedig ar y rhagdybiaethau canlynol. | E169: Mae amcangyfrifon sylfaenol yr unedau tai ychwanegol wedi'u seilio ar | F169: , ac amcangyfrif o | G169: Mae data ar brisiau tai yn seiliedig ar | H169: Mae data ar incwm yn seiliedig ar | I169: ac mae data ar renti preifat yn seiliedig ar | J169: =". Mae gan brynwyr am y tro cyntaf gymhareb fforddiadwyedd o "&C175&" a gallant brynu eiddo am y tro cyntaf yn ôl "&C176&" canradd dosbarthiad prisiau tai.. "&C177 -> 
B170: Amcanestyniadau o Aelwyd | C170: =IF(D6="Amcanestyniadau Defnyddwyr","amcanestyniadau'r aelwyd gan y defnyddiwr,",("amcanestyniadau aelwydydd gan Llywodraeth Cymru sy'n seiliedig ar 2018 "&"("&D6&")")) -> amcanestyniadau aelwydydd gan Llywodraeth Cymru sy'n seiliedig ar 2018 (Prif Amcanestyniadau)
B171: Angen Presennol Nas Diwallwyd | C171: =IF(D7="Amcangyfrifon LlC",'Angen Presennol Nas Diwallwyd'!C13,'Angen Presennol Nas Diwallwyd'!C24)&" aelwydydd o ran angen presennol nas diwallwyd " -> 5732 aelwydydd o ran angen presennol nas diwallwyd
B172: Dosbarthiad Incwm | C172: =IF(D8="Arall", " amcangyfrifon defnyddwyr "," Ddata Llywodraeth Cymru ") -> Ddata Llywodraeth Cymru
B173: Dosbarthiad Prisiau Tai | C173: =IF(D18="Arall", " amcangyfrifon defnyddwyr"," Ddata Cofrestrfa Tir") -> Ddata Cofrestrfa Tir
B174: Prisiau Rhenti | C174: =IF(D9="Arall", " amcangyfrifon defnyddwyr"," Ddata Llywodraeth Cymru") -> Ddata Llywodraeth Cymru
B175: Cymhareb Prynwyr am y Tro Cyntaf | C175: =C114 -> 4.03
B176: Prynwyr sy'n Prynu Eiddo am y Tro Cyntaf | C176: =C115 -> 40.00
B177: % sy'n mynd ymlaen i brynu | C177: =C116*100&"% o brynwyr potensial am y tro cyntaf sy'n mynd ymlaen i brynu eiddo. " -> 
B178: Trothwy Y Sector Rhentu Preifat | C178: ="Gall aelwydydd sy'n gwario "&C108*100&"% o incwm yr aelwyd ar rent preifat canolrifol fforddio rhent preifat," -> Gall aelwydydd sy'n gwario 30% o incwm yr aelwyd ar rent preifat canolrifol fforddio rhent preifat,
B179: Trothwy Cymdeithasol | C179: ="Mae aelwydydd sy'n gwario "&C117*100&"% o incwm yr aelwyd ar rent preifat 30 canradd yn addas ar gyfer dai cymdeithasol." -> Mae aelwydydd sy'n gwario 35% o incwm yr aelwyd ar rent preifat 30 canradd yn addas ar gyfer dai cymdeithasol.
B180: Amser i Gael Gwared ar yr ôl Groniad | C180: =" a fydd yn cymryd "&'Angen Presennol Nas Diwallwyd'!C29&" mlynedd i'w diwallu." -> a fydd yn cymryd 5 mlynedd i'w diwallu.
B181: Newid i Incwm Canolrifol yr Aelwyd | C181: =". Mae'r newid blynyddol i incwm canolrifol yr aelwyd yn seiliedig ar "&IF(D14="Arall","amcangyfrifon defnyddwyr","amcangyfrifon wedi'u rhagosod") -> . Mae'r newid blynyddol i incwm canolrifol yr aelwyd yn seiliedig ar amcangyfrifon wedi'u rhagosod
B182: Newid i Ddosbarthiad Incwm yr Aelwyd | C182: =", mae'r newid blynyddol i ddosbarthiad incwm yr aelwyd yn seiliedig ar "&IF(D15="Arall","amcangyfrifon defnyddwyr","amcangyfrifon wedi'u rhagosod") -> , mae'r newid blynyddol i ddosbarthiad incwm yr aelwyd yn seiliedig ar amcangyfrifon wedi'u rhagosod
B183: Newid i Brisiau Tai | C183: =", mae'r newid blynyddol i brisiau tai yn seiliedig ar "&IF(D25="Arall","amcangyfrifon defnyddwyr","amcangyfrifon wedi'u rhagosod") -> , mae'r newid blynyddol i brisiau tai yn seiliedig ar amcangyfrifon wedi'u rhagosod
B184: Newid i Brisiau Rhenti | C184: =" ac mae'r newid blynyddol i brisiau rhenti yn seiliedig ar "&IF(D16="Arall","amcangyfrifon y defnyddwyr","amcangyfrifon wedi'u rhagosod.") -> ac mae'r newid blynyddol i brisiau rhenti yn seiliedig ar amcangyfrifon wedi'u rhagosod.
B186: Paragraff Olaf - 2 Deiliaiadaeth
B187: =C169&E169&C170&F169&C171&C180&H169&C172&I169&C174&C181&C182&C184 -> Mae'r ffigurau isod yn rhannu yr amcangyfrifon o'r angen am dai yn 2 deiliadaeth ac maent yn seiliedig ar y rhagdybiaethau canlynol. Mae amcangyfrifon sylfaenol yr unedau tai ychwanegol wedi'u seilio ar amcanestyniadau aelwydydd gan Llywodraeth Cymru sy'n seiliedig ar 2018 (Prif Amcanestyniadau), ac amcangyfrif o 5732 aelwydydd o ran angen presennol nas diwallwyd a fydd yn cymryd 5 mlynedd i'w diwallu.Mae data ar incwm yn seiliedig ar Ddata Llywodraeth Cymru ac mae data ar renti preifat yn seiliedig ar Ddata Llywodraeth Cymru. Mae'r newid blynyddol i incwm canolrifol yr aelwyd yn seiliedig ar amcangyfrifon wedi'u rhagosod, mae'r newid blynyddol i ddosbarthiad incwm yr aelwyd yn seiliedig ar amcangyfrifon wedi'u rhagosod ac mae'r newid blynyddol i brisiau rhenti yn seiliedig ar amcangyfrifon wedi'u rhagosod.
B188: =IF(C133=1,"Estimates will not appear below until the above table is complete.",B187) -> Mae'r ffigurau isod yn rhannu yr amcangyfrifon o'r angen am dai yn 2 deiliadaeth ac maent yn seiliedig ar y rhagdybiaethau canlynol. Mae amcangyfrifon sylfaenol yr unedau tai ychwanegol wedi'u seilio ar amcanestyniadau aelwydydd gan Llywodraeth Cymru sy'n seiliedig ar 2018 (Prif Amcanestyniadau), ac amcangyfrif o 5732 aelwydydd o ran angen presennol nas diwallwyd a fydd yn cymryd 5 mlynedd i'w diwallu.Mae data ar incwm yn seiliedig ar Ddata Llywodraeth Cymru ac mae data ar renti preifat yn seiliedig ar Ddata Llywodraeth Cymru. Mae'r newid blynyddol i incwm canolrifol yr aelwyd yn seiliedig ar amcangyfrifon wedi'u rhagosod, mae'r newid blynyddol i ddosbarthiad incwm yr aelwyd yn seiliedig ar amcangyfrifon wedi'u rhagosod ac mae'r newid blynyddol i brisiau rhenti yn seiliedig ar amcangyfrifon wedi'u rhagosod.
B190: Paragraff Olaf - 4 Deiliadaeth
B191: =D169&G169&C173&C183&J169&C179 -> 
B192: =IF(C145=1,"Ni fydd amcangyfrifon wedi'u rhannu'n 4 deiliadaeth yn ymddangos hyd nes bod y tabl uchod wedi'i gwblhau.",B191) -> Ni fydd amcangyfrifon wedi'u rhannu'n 4 deiliadaeth yn ymddangos hyd nes bod y tabl uchod wedi'i gwblhau.
B194: Gwnewch ddetholiad ar y daflen Rhaniad y Ddeiliadaeth (Cymru)
B195: Data rhagosodedig a ddefnyddiwyd
B196: Data defnyddwyr
B197: Cofnodwch ddata defnyddwyr ar y daflen:
B198: ="'Amcanestyniadau Aelwydydd'" -> 'Amcanestyniadau Aelwydydd'
B199: ="'Angen Presennol Nas Diwallwyd'" -> 'Angen Presennol Nas Diwallwyd'
B200: ="'Incwm (Cymru)'" -> 'Incwm (Cymru)'
B201: ="'Prisiau Tai (Cymru)'" -> 'Prisiau Tai (Cymru)'
B202: ="'Prisiau Rhenti'" -> 'Prisiau Rhenti'
B203: ="'Rhagdybiaeth Blynyddol'" -> 'Rhagdybiaeth Blynyddol'
B204: ="'Rhagolygon y Dyfodol'" -> 'Rhagolygon y Dyfodol'

Sheet Cyfrifiadau - Cymru
B1: Cymru
B3: Mae'r daflen hon yn defnyddio'r set o ragdybiaethau i gyfrifo faint o aelwydydd a fyddai'n addas ar gyfer pob deiliadaeth tŷ ym mhob blwyddyn. Caiff y canlyniadau yn y daflen hon eu bwydo i'r daflen Rhaniad y Ddeiliadaeth (Cymru). Nid oes angen ichi roi unrhyw beth ar y daflen hon. Os bydd gennych unrhyw gofnodion o ddata na chwblhawyd ar unrhyw newidynnau, bydd cyfeiliornadau'n digwydd.
B8: Unedau Tai Ychwanegol
C9: 1 | D9: 2 | E9: 3 | F9: 4 | G9: 5
C10: =Year1 -> 2019/20 | D10: =Year2 -> 2020/21 | E10: =Year3 -> 2021/22 | F10: =Year4 -> 2022/23 | G10: =Year5 -> 2023/24
B11: Angen o'r Newydd | C11: =INDEX('Angen o''r Newydd'!D8:D27,MATCH(1,($B$1='Angen o''r Newydd'!$C$8:$C$27)*('Rhaniad y Ddeiliadaeth (Cymru)'!$D$6='Angen o''r Newydd'!$B$8:$B$27),0)) -> 5,948 | D11: =INDEX('Angen o''r Newydd'!E8:E27,MATCH(1,($B$1='Angen o''r Newydd'!$C$8:$C$27)*('Rhaniad y Ddeiliadaeth (Cymru)'!$D$6='Angen o''r Newydd'!$B$8:$B$27),0)) -> 6,080 | E11: =INDEX('Angen o''r Newydd'!F8:F27,MATCH(1,($B$1='Angen o''r Newydd'!$C$8:$C$27)*('Rhaniad y Ddeiliadaeth (Cymru)'!$D$6='Angen o''r Newydd'!$B$8:$B$27),0)) -> 6,564 | F11: =INDEX('Angen o''r Newydd'!G8:G27,MATCH(1,($B$1='Angen o''r Newydd'!$C$8:$C$27)*('Rhaniad y Ddeiliadaeth (Cymru)'!$D$6='Angen o''r Newydd'!$B$8:$B$27),0)) -> 6,306 | G11: =INDEX('Angen o''r Newydd'!H8:H27,MATCH(1,($B$1='Angen o''r Newydd'!$C$8:$C$27)*('Rhaniad y Ddeiliadaeth (Cymru)'!$D$6='Angen o''r Newydd'!$B$8:$B$27),0)) -> 6,202
B12: Angen Presennol Nas Diwallwyd | C12: =IF('Angen Presennol Nas Diwallwyd'!$C$29>='Cyfrifiadau - Cymru'!C9,IF('Rhaniad y Ddeiliadaeth (Cymru)'!$D$7="Amcangyfrifon LlC",'Angen Presennol Nas Diwallwyd'!$C$13/'Angen Presennol Nas Diwallwyd'!$C$29,'Angen Presennol Nas Diwallwyd'!$C$20/'Angen Presennol Nas Diwallwyd'!$C$29),0) -> 1,146 | D12: =IF('Angen Presennol Nas Diwallwyd'!$C$29>='Cyfrifiadau - Cymru'!D9,IF('Rhaniad y Ddeiliadaeth (Cymru)'!$D$7="Amcangyfrifon LlC",'Angen Presennol Nas Diwallwyd'!$C$13/'Angen Presennol Nas Diwallwyd'!$C$29,'Angen Presennol Nas Diwallwyd'!$C$20/'Angen Presennol Nas Diwallwyd'!$C$29),0) -> 1,146 | E12: =IF('Angen Presennol Nas Diwallwyd'!$C$29>='Cyfrifiadau - Cymru'!E9,IF('Rhaniad y Ddeiliadaeth (Cymru)'!$D$7="Amcangyfrifon LlC",'Angen Presennol Nas Diwallwyd'!$C$13/'Angen Presennol Nas Diwallwyd'!$C$29,'Angen Presennol Nas Diwallwyd'!$C$20/'Angen Presennol Nas Diwallwyd'!$C$29),0) -> 1,146 | F12: =IF('Angen Presennol Nas Diwallwyd'!$C$29>='Cyfrifiadau - Cymru'!F9,IF('Rhaniad y Ddeiliadaeth (Cymru)'!$D$7="Amcangyfrifon LlC",'Angen Presennol Nas Diwallwyd'!$C$13/'Angen Presennol Nas Diwallwyd'!$C$29,'Angen Presennol Nas Diwallwyd'!$C$20/'Angen Presennol Nas Diwallwyd'!$C$29),0) -> 1,146 | G12: =IF('Angen Presennol Nas Diwallwyd'!$C$29>='Cyfrifiadau - Cymru'!G9,IF('Rhaniad y Ddeiliadaeth (Cymru)'!$D$7="Amcangyfrifon LlC",'Angen Presennol Nas Diwallwyd'!$C$13/'Angen Presennol Nas Diwallwyd'!$C$29,'Angen Presennol Nas Diwallwyd'!$C$20/'Angen Presennol Nas Diwallwyd'!$C$29),0) -> 1,146
B13: Cyfanswm | C13: =SUM(C11:C12) -> 7,094 | D13: =SUM(D11:D12) -> 7,227 | E13: =SUM(E11:E12) -> 7,710 | F13: =SUM(F11:F12) -> 7,452 | G13: =SUM(G11:G12) -> 7,348
B15: Rhaniad y Ddeiliadaeth: Tai Fforddiadwy ac ar y Farchnad
B17: Tai'r Farchnad
B18: Rhent Preifat Canolrifol | C18: ='Rhaniad y Ddeiliadaeth (Cymru)'!C112 -> £6,486 | D18: ='Rhaniad y Ddeiliadaeth (Cymru)'!D112 -> £6,685 | E18: ='Rhaniad y Ddeiliadaeth (Cymru)'!E112 -> £6,893 | F18: ='Rhaniad y Ddeiliadaeth (Cymru)'!F112 -> £7,112 | G18: ='Rhaniad y Ddeiliadaeth (Cymru)'!G112 -> £7,346
B19: Isafswm Incwm yr Aelwyd | C19: =C18/'Rhaniad y Ddeiliadaeth (Cymru)'!C108 -> £21,620.26 | D19: =D18/'Rhaniad y Ddeiliadaeth (Cymru)'!D108 -> £22,282 | E19: =E18/'Rhaniad y Ddeiliadaeth (Cymru)'!E108 -> £22,977 | F19: =F18/'Rhaniad y Ddeiliadaeth (Cymru)'!F108 -> £23,706 | G19: =G18/'Rhaniad y Ddeiliadaeth (Cymru)'!G108 -> £24,487
B20: Canradd dosbarthiad incwm | C20: =IFERROR(INDEX('Incwm (Cymru)'!$AC$4:$AC$84,MATCH('Cyfrifiadau - Cymru'!C19,'Incwm (Cymru)'!AD$4:AD$84,1)),10) -> 38 | D20: =IFERROR(INDEX('Incwm (Cymru)'!$AC$4:$AC$84,MATCH('Cyfrifiadau - Cymru'!D19,'Incwm (Cymru)'!AE$4:AE$84,1)),10) -> 38 | E20: =IFERROR(INDEX('Incwm (Cymru)'!$AC$4:$AC$84,MATCH('Cyfrifiadau - Cymru'!E19,'Incwm (Cymru)'!AF$4:AF$84,1)),10) -> 38 | F20: =IFERROR(INDEX('Incwm (Cymru)'!$AC$4:$AC$84,MATCH('Cyfrifiadau - Cymru'!F19,'Incwm (Cymru)'!AG$4:AG$84,1)),10) -> 38 | G20: =IFERROR(INDEX('Incwm (Cymru)'!$AC$4:$AC$84,MATCH('Cyfrifiadau - Cymru'!G19,'Incwm (Cymru)'!AH$4:AH$84,1)),10) -> 38
B21: Canran yr angen o'r newydd sy'n gallu fforddio | C21: =(100-C20)/100 -> 62% | D21: =(100-D20)/100 -> 62% | E21: 62% | F21: 62% | G21: 62%
B22: Cyfanswm yr aelwydydd newydd all fforddio'r farchnad | C22: =C21*C11 -> 3688 | D22: =D21*D11 -> 3770 | E22: =E21*E11 -> 4070 | F22: =F21*F11 -> 3910 | G22: =G21*G11 -> 3845
B25: Tai Fforddiadwy
B26: Gweddill yr aelwydydd na all fforddio'r farchnad | C26: =C13-C22 -> 3407 | D26: =D13-D22 -> 3457 | E26: 3641 | F26: 3543 | G26: 3503
B28: Amcangyfrifon
B29: Tai'r Farchnad Agored | C29: =C22 -> 3,688 | D29: =D22 -> 3,770 | E29: =E22 -> 4,070 | F29: =F22 -> 3,910 | G29: =G22 -> 3,845
B30: Tai Fforddiadwy | C30: =C26 -> 3,407 | D30: =D26 -> 3,457 | E30: =E26 -> 3,641 | F30: =F26 -> 3,543 | G30: =G26 -> 3,503
B32: Rhaniad y Ddeiliadaeth: Perchen-feddianwyr, Y Sector Rhentu Preifat, Rhent Canolradd a Chymdeithasol
B33: NODWCH: OS NAD YDYCH WEDI CWBLHAU OPSIYNAU'R DDEWISLEN, BYDD CYFEILIORNADAU'N DIGWYDD ISOD
B35: Perchen-feddiannydd
B36: ="Canradd Mynediad y farchnad ar gyfer y Prynwyr Tro Cyntaf: "&'Rhaniad y Ddeiliadaeth (Cymru)'!C115 -> Canradd Mynediad y farchnad ar gyfer y Prynwyr Tro Cyntaf: 40 | C36: =INDEX('Prisiau Tai (Cymru)'!AD$4:AD$84,MATCH('Rhaniad y Ddeiliadaeth (Cymru)'!C115,'Prisiau Tai (Cymru)'!$AC$4:$AC$84,0)) -> £143,576 | D36: =INDEX('Prisiau Tai (Cymru)'!AE$4:AE$84,MATCH('Rhaniad y Ddeiliadaeth (Cymru)'!D115,'Prisiau Tai (Cymru)'!$AC$4:$AC$84,0)) -> £151,946 | E36: =INDEX('Prisiau Tai (Cymru)'!AF$4:AF$84,MATCH('Rhaniad y Ddeiliadaeth (Cymru)'!E115,'Prisiau Tai (Cymru)'!$AC$4:$AC$84,0)) -> £162,680 | F36: =INDEX('Prisiau Tai (Cymru)'!AG$4:AG$84,MATCH('Rhaniad y Ddeiliadaeth (Cymru)'!F115,'Prisiau Tai (Cymru)'!$AC$4:$AC$84,0)) -> £171,533 | G36: =INDEX('Prisiau Tai (Cymru)'!AH$4:AH$84,MATCH('Rhaniad y Ddeiliadaeth (Cymru)'!G115,'Prisiau Tai (Cymru)'!$AC$4:$AC$84,0)) -> £178,769
B37: Isafswm Incwm yr Aelwyd | C37: =C36/'Rhaniad y Ddeiliadaeth (Cymru)'!C114 -> £35,627 | D37: =D36/'Rhaniad y Ddeiliadaeth (Cymru)'!D114 -> £37,704 | E37: =E36/'Rhaniad y Ddeiliadaeth (Cymru)'!E114 -> £40,367 | F37: =F36/'Rhaniad y Ddeiliadaeth (Cymru)'!F114 -> £42,564 | G37: =G36/'Rhaniad y Ddeiliadaeth (Cymru)'!G114 -> £44,359
B38: Canradd dosbarthiad incwm | C38: =IFERROR(INDEX('Incwm (Cymru)'!$AC$4:$AC$84,MATCH('Cyfrifiadau - Cymru'!C37,'Incwm (Cymru)'!AD$4:AD$84,1)),10) -> 63 | D38: =IFERROR(INDEX('Incwm (Cymru)'!$AC$4:$AC$84,MATCH('Cyfrifiadau - Cymru'!D37,'Incwm (Cymru)'!AE$4:AE$84,1)),10) -> 63 | E38: =IFERROR(INDEX('Incwm (Cymru)'!$AC$4:$AC$84,MATCH('Cyfrifiadau - Cymru'!E37,'Incwm (Cymru)'!AF$4:AF$84,1)),10) -> 65 | F38: =IFERROR(INDEX('Incwm (Cymru)'!$AC$4:$AC$84,MATCH('Cyfrifiadau - Cymru'!F37,'Incwm (Cymru)'!AG$4:AG$84,1)),10) -> 66 | G38: =IFERROR(INDEX('Incwm (Cymru)'!$AC$4:$AC$84,MATCH('Cyfrifiadau - Cymru'!G37,'Incwm (Cymru)'!AH$4:AH$84,1)),10) -> 66
B39: Canran angen sydd newydd ymddangos sy'n gallu fforddio | C39: =(100-C38)/100 -> 37% | D39: =(100-D38)/100 -> 37% | E39: 35% | F39: 34% | G39: 34%
B40: Canran sy'n gallu fforddio a mynd ymlaen i brynu eiddo | C40: =C39*'Rhaniad y Ddeiliadaeth (Cymru)'!C116 ->  | D40: =D39*'Rhaniad y Ddeiliadaeth (Cymru)'!D116 ->  | E40: =E39*'Rhaniad y Ddeiliadaeth (Cymru)'!E116 ->  | F40: =F39*'Rhaniad y Ddeiliadaeth (Cymru)'!F116 ->  | G40: =G39*'Rhaniad y Ddeiliadaeth (Cymru)'!G116 -> 
B41: Perchen-feddiannydd | C41: =C40*C11 ->  | D41: =D40*D11 ->  | E41: =E40*E11 ->  | F41: =F40*F11 ->  | G41: =G40*G11 -> 
B43: Y Sector Rhentu Preifat
B44: Llai y rheini sy'n mynd ymlaen i brynu eiddo (ar gyfer rhaniad o bedair deiliadaeth) | C44: =C22-C41 ->  | D44: =D22-D41 ->  | E44: =E22-E41 ->  | F44: =F22-F41 ->  | G44: =G22-G41 -> 
B46: Tai Cymdeithasol
B47: 30 Canradd Rhenti Preifat | C47: ='Rhaniad y Ddeiliadaeth (Cymru)'!C113 -> £5,868 | D47: ='Rhaniad y Ddeiliadaeth (Cymru)'!D113 -> £6,048 | E47: ='Rhaniad y Ddeiliadaeth (Cymru)'!E113 -> £6,237 | F47: ='Rhaniad y Ddeiliadaeth (Cymru)'!F113 -> £6,435 | G47: ='Rhaniad y Ddeiliadaeth (Cymru)'!G113 -> £6,647
B48: Trothwy Uwch incwm yr aelwyd | C48: =C47/'Rhaniad y Ddeiliadaeth (Cymru)'!C117 -> £16,767 | D48: =D47/'Rhaniad y Ddeiliadaeth (Cymru)'!D117 -> £17,280 | E48: =E47/'Rhaniad y Ddeiliadaeth (Cymru)'!E117 -> £17,819 | F48: =F47/'Rhaniad y Ddeiliadaeth (Cymru)'!F117 -> £18,384 | G48: =G47/'Rhaniad y Ddeiliadaeth (Cymru)'!G117 -> £18,990
B49: Canradd dosbarthiad incwm | C49: =IFERROR(INDEX('Incwm (Cymru)'!$AC$4:$AC$84,MATCH('Cyfrifiadau - Cymru'!C48,'Incwm (Cymru)'!AD$4:AD$84,1)),10) -> 26 | D49: =IFERROR(INDEX('Incwm (Cymru)'!$AC$4:$AC$84,MATCH('Cyfrifiadau - Cymru'!D48,'Incwm (Cymru)'!AE$4:AE$84,1)),10) -> 26 | E49: =IFERROR(INDEX('Incwm (Cymru)'!$AC$4:$AC$84,MATCH('Cyfrifiadau - Cymru'!E48,'Incwm (Cymru)'!AF$4:AF$84,1)),10) -> 26 | F49: =IFERROR(INDEX('Incwm (Cymru)'!$AC$4:$AC$84,MATCH('Cyfrifiadau - Cymru'!F48,'Incwm (Cymru)'!AG$4:AG$84,1)),10) -> 26 | G49: =IFERROR(INDEX('Incwm (Cymru)'!$AC$4:$AC$84,MATCH('Cyfrifiadau - Cymru'!G48,'Incwm (Cymru)'!AH$4:AH$84,1)),10) -> 27
B50: Canran yr angen o'r newydd sy'n addas ar gyfer rhent cymdeithasol | C50: =C49/100 -> 26% | D50: =D49/100 -> 26% | E50: 26% | F50: 26% | G50: 27%
B51: Aelwydydd o ran Angen o'r newydd | C51: =C50*C11 -> 1,546 | D51: =D50*D11 -> 1,581 | E51: =E50*E11 -> 1,707 | F51: =F50*F11 -> 1,639 | G51: =G50*G11 -> 1,674
B52: Aelwydydd o ran Angen Presennol nas Diwallwyd | C52: =C12 -> 1,146 | D52: =D12 -> 1,146 | E52: =E12 -> 1,146 | F52: =F12 -> 1,146 | G52: =G12 -> 1,146
B53: Cyfanswm yr aelwydydd sy'n addas ar gyfer rhent cymdeithasol | C53: =C52+C51 -> 2,693 | D53: =D52+D51 -> 2,727 | E53: 2,853 | F53: 2,786 | G53: 2,821
B55: Tai Canolradd
B56: Aelwydydd nad ydynt wedi'u neilltuo | C56: =C11-C41-C44-C51 ->  | D56: =D11-D41-D44-D51 ->  | E56: =E11-E41-E44-E51 ->  | F56: =F11-F41-F44-F51 ->  | G56: =G11-G41-G44-G51 -> 
B58: Amcangyfrifon
B59: Perchen-Feddiannydd | C59: =C41 ->  | D59: =D41 ->  | E59: =E41 ->  | F59: =F41 ->  | G59: =G41 -> 
B60: Y Sector Rhentu Preifat | C60: =C44 ->  | D60: =D44 ->  | E60: =E44 ->  | F60: =F44 ->  | G60: =G44 -> 
B61: Tai Cymdeithasol | C61: =C53 -> 2,693 | D61: =D53 -> 2,727 | E61: =E53 -> 2,853 | F61: =F53 -> 2,786 | G61: =G53 -> 2,821
B62: Tai Canolradd | C62: =C56 ->  | D62: =D56 ->  | E62: =E56 ->  | F62: =F56 ->  | G62: =G56 -> 

Sheet Cyfrifiadau - Gogledd
B1: Gogledd Cymru
B3: Mae'r daflen hon yn defnyddio'r set o ragdybiaethau i gyfrifo faint o aelwydydd a fyddai'n addas ar gyfer pob deiliadaeth tŷ ym mhob blwyddyn. Caiff y canlyniadau yn y daflen hon eu bwydo i'r daflen Rhaniad y Ddeiliadaeth (Gogledd). Nid oes angen ichi roi unrhyw beth ar y daflen hon. Os bydd gennych unrhyw gofnodion o ddata na chwblhawyd ar unrhyw newidynnau, bydd cyfeiliornadau'n digwydd.
B8: Unedau Tai Ychwanegol
C9: 1 | D9: 2 | E9: 3 | F9: 4 | G9: 5
C10: =Year1 -> 2019/20 | D10: =Year2 -> 2020/21 | E10: =Year3 -> 2021/22 | F10: =Year4 -> 2022/23 | G10: =Year5 -> 2023/24
B11: Angen o'r Newydd | C11: =INDEX('Angen o''r Newydd'!D8:D27,MATCH(1,($B$1='Angen o''r Newydd'!$C$8:$C$27)*('Rhaniad y Ddeiliadaeth (Cymru)'!$D$6='Angen o''r Newydd'!$B$8:$B$27),0)) -> 915 | D11: =INDEX('Angen o''r Newydd'!E8:E27,MATCH(1,($B$1='Angen o''r Newydd'!$C$8:$C$27)*('Rhaniad y Ddeiliadaeth (Cymru)'!$D$6='Angen o''r Newydd'!$B$8:$B$27),0)) -> 960 | E11: =INDEX('Angen o''r Newydd'!F8:F27,MATCH(1,($B$1='Angen o''r Newydd'!$C$8:$C$27)*('Rhaniad y Ddeiliadaeth (Cymru)'!$D$6='Angen o''r Newydd'!$B$8:$B$27),0)) -> 1,054 | F11: =INDEX('Angen o''r Newydd'!G8:G27,MATCH(1,($B$1='Angen o''r Newydd'!$C$8:$C$27)*('Rhaniad y Ddeiliadaeth (Cymru)'!$D$6='Angen o''r Newydd'!$B$8:$B$27),0)) -> 982 | G11: =INDEX('Angen o''r Newydd'!H8:H27,MATCH(1,($B$1='Angen o''r Newydd'!$C$8:$C$27)*('Rhaniad y Ddeiliadaeth (Cymru)'!$D$6='Angen o''r Newydd'!$B$8:$B$27),0)) -> 963
B12: Angen Presennol Nas Diwallwyd | C12: =IF('Angen Presennol Nas Diwallwyd'!$C$29>='Cyfrifiadau - Gogledd'!C9,IF('Rhaniad y Ddeiliadaeth (Cymru)'!$D$7="Amcangyfrifon LlC",'Angen Presennol Nas Diwallwyd'!$C$9/'Angen Presennol Nas Diwallwyd'!$C$29,'Angen Presennol Nas Diwallwyd'!$C$20/'Angen Presennol Nas Diwallwyd'!$C$29),0) -> 257 | D12: =IF('Angen Presennol Nas Diwallwyd'!$C$29>='Cyfrifiadau - Gogledd'!D9,IF('Rhaniad y Ddeiliadaeth (Cymru)'!$D$7="Amcangyfrifon LlC",'Angen Presennol Nas Diwallwyd'!$C$9/'Angen Presennol Nas Diwallwyd'!$C$29,'Angen Presennol Nas Diwallwyd'!$C$20/'Angen Presennol Nas Diwallwyd'!$C$29),0) -> 257 | E12: =IF('Angen Presennol Nas Diwallwyd'!$C$29>='Cyfrifiadau - Gogledd'!E9,IF('Rhaniad y Ddeiliadaeth (Cymru)'!$D$7="Amcangyfrifon LlC",'Angen Presennol Nas Diwallwyd'!$C$9/'Angen Presennol Nas Diwallwyd'!$C$29,'Angen Presennol Nas Diwallwyd'!$C$20/'Angen Presennol Nas Diwallwyd'!$C$29),0) -> 257 | F12: =IF('Angen Presennol Nas Diwallwyd'!$C$29>='Cyfrifiadau - Gogledd'!F9,IF('Rhaniad y Ddeiliadaeth (Cymru)'!$D$7="Amcangyfrifon LlC",'Angen Presennol Nas Diwallwyd'!$C$9/'Angen Presennol Nas Diwallwyd'!$C$29,'Angen Presennol Nas Diwallwyd'!$C$20/'Angen Presennol Nas Diwallwyd'!$C$29),0) -> 257 | G12: =IF('Angen Presennol Nas Diwallwyd'!$C$29>='Cyfrifiadau - Gogledd'!G9,IF('Rhaniad y Ddeiliadaeth (Cymru)'!$D$7="Amcangyfrifon LlC",'Angen Presennol Nas Diwallwyd'!$C$9/'Angen Presennol Nas Diwallwyd'!$C$29,'Angen Presennol Nas Diwallwyd'!$C$20/'Angen Presennol Nas Diwallwyd'!$C$29),0) -> 257
B13: Cyfanswm | C13: =SUM(C11:C12) -> 1,171 | D13: =SUM(D11:D12) -> 1,216 | E13: 1,311 | F13: 1,238 | G13: 1,220
B15: Rhaniad y Ddeiliadaeth: Tai Fforddiadwy ac ar y Farchnad
B17: Tai'r Farchnad
B18: Rhent Preifat Canolrifol | C18: ='Rhaniad y Ddeiliadaeth (Gog)'!C112 -> £6,795 | D18: ='Rhaniad y Ddeiliadaeth (Gog)'!D112 -> £7,003 | E18: ='Rhaniad y Ddeiliadaeth (Gog)'!E112 -> £7,221 | F18: ='Rhaniad y Ddeiliadaeth (Gog)'!F112 -> £7,450 | G18: ='Rhaniad y Ddeiliadaeth (Gog)'!G112 -> £7,696
B19: Isafswm Incwm yr Aelwyd | C19: =C18/'Rhaniad y Ddeiliadaeth (Gog)'!C108 -> £22,650 | D19: =D18/'Rhaniad y Ddeiliadaeth (Gog)'!D108 -> £23,343 | E19: =E18/'Rhaniad y Ddeiliadaeth (Gog)'!E108 -> £24,071 | F19: =F18/'Rhaniad y Ddeiliadaeth (Gog)'!F108 -> £24,835 | G19: =G18/'Rhaniad y Ddeiliadaeth (Gog)'!G108 -> £25,653
B20: Canradd dosbarthiad incwm | C20: =IFERROR(INDEX('Incwm (Gogledd)'!$AC$4:$AC$84,MATCH('Cyfrifiadau - Gogledd'!C19,'Incwm (Gogledd)'!AD$4:AD$84,1)),10) -> 41 | D20: =IFERROR(INDEX('Incwm (Gogledd)'!$AC$4:$AC$84,MATCH('Cyfrifiadau - Gogledd'!D19,'Incwm (Gogledd)'!AE$4:AE$84,1)),10) -> 41 | E20: =IFERROR(INDEX('Incwm (Gogledd)'!$AC$4:$AC$84,MATCH('Cyfrifiadau - Gogledd'!E19,'Incwm (Gogledd)'!AF$4:AF$84,1)),10) -> 41 | F20: =IFERROR(INDEX('Incwm (Gogledd)'!$AC$4:$AC$84,MATCH('Cyfrifiadau - Gogledd'!F19,'Incwm (Gogledd)'!AG$4:AG$84,1)),10) -> 41 | G20: =IFERROR(INDEX('Incwm (Gogledd)'!$AC$4:$AC$84,MATCH('Cyfrifiadau - Gogledd'!G19,'Incwm (Gogledd)'!AH$4:AH$84,1)),10) -> 41
B21: Canran yr angen o'r newydd sy'n gallu fforddio | C21: =(100-C20)/100 -> 59% | D21: =(100-D20)/100 -> 59% | E21: 59% | F21: 59% | G21: 59%
B22: Cyfanswm yr aelwydydd newydd all fforddio'r farchnad | C22: =C21*C11 -> 540 | D22: =D21*D11 -> 566 | E22: =E21*E11 -> 622 | F22: =F21*F11 -> 579 | G22: =G21*G11 -> 568
B25: Tai Fforddiadwy
B26: Gweddill yr aelwydydd na all fforddio'r farchnad | C26: =C13-C22 -> 632 | D26: =D13-D22 -> 650 | E26: =E13-E22 -> 689 | F26: 659 | G26: 652
B28: Amcangyfrifon
B29: Tai'r Farchnad Agored | C29: =C22 -> 540 | D29: =D22 -> 566 | E29: =E22 -> 622 | F29: =F22 -> 579 | G29: =G22 -> 568
B30: Tai Fforddiadwy | C30: =C26 -> 632 | D30: =D26 -> 650 | E30: =E26 -> 689 | F30: =F26 -> 659 | G30: =G26 -> 652
B32: Rhaniad y Ddeiliadaeth: Perchen-feddianwyr, Y Sector Rhentu Preifat, Rhent Canolradd a Chymdeithasol
B33: NODWCH: OS NAD YDYCH WEDI CWBLHAU OPSIYNAU'R DDEWISLEN, BYDD CYFEILIORNADAU'N DIGWYDD ISOD
B35: Perchen-feddiannydd
B36: ="Canradd Mynediad y farchnad ar gyfer y Prynwyr Tro Cyntaf: "&'Rhaniad y Ddeiliadaeth (Cymru)'!C115 -> Canradd Mynediad y farchnad ar gyfer y Prynwyr Tro Cyntaf: 40 | C36: =INDEX('Prisiau Tai (Gogledd)'!AD$4:AD$84,MATCH('Rhaniad y Ddeiliadaeth (Gog)'!C115,'Prisiau Tai (Gogledd)'!$AC$4:$AC$84,0)) -> £146,720 | D36: =INDEX('Prisiau Tai (Gogledd)'!AE$4:AE$84,MATCH('Rhaniad y Ddeiliadaeth (Gog)'!D115,'Prisiau Tai (Gogledd)'!$AC$4:$AC$84,0)) -> £155,274 | E36: =INDEX('Prisiau Tai (Gogledd)'!AF$4:AF$84,MATCH('Rhaniad y Ddeiliadaeth (Gog)'!E115,'Prisiau Tai (Gogledd)'!$AC$4:$AC$84,0)) -> £166,242 | F36: =INDEX('Prisiau Tai (Gogledd)'!AG$4:AG$84,MATCH('Rhaniad y Ddeiliadaeth (Gog)'!F115,'Prisiau Tai (Gogledd)'!$AC$4:$AC$84,0)) -> £175,289 | G36: =INDEX('Prisiau Tai (Gogledd)'!AH$4:AH$84,MATCH('Rhaniad y Ddeiliadaeth (Gog)'!G115,'Prisiau Tai (Gogledd)'!$AC$4:$AC$84,0)) -> £182,683
B37: Isafswm Incwm yr Aelwyd | C37: =C36/'Rhaniad y Ddeiliadaeth (Gog)'!C114 -> £36,407 | D37: =D36/'Rhaniad y Ddeiliadaeth (Gog)'!D114 -> £38,529 | E37: =E36/'Rhaniad y Ddeiliadaeth (Gog)'!E114 -> £41,251 | F37: =F36/'Rhaniad y Ddeiliadaeth (Gog)'!F114 -> £43,496 | G37: =G36/'Rhaniad y Ddeiliadaeth (Gog)'!G114 -> £45,331
B38: Canradd dosbarthiad incwm | C38: =IFERROR(INDEX('Incwm (Gogledd)'!$AC$4:$AC$84,MATCH('Cyfrifiadau - Gogledd'!C37,'Incwm (Gogledd)'!AD$4:AD$84,1)),10) -> 64 | D38: =IFERROR(INDEX('Incwm (Gogledd)'!$AC$4:$AC$84,MATCH('Cyfrifiadau - Gogledd'!D37,'Incwm (Gogledd)'!AE$4:AE$84,1)),10) -> 65 | E38: =IFERROR(INDEX('Incwm (Gogledd)'!$AC$4:$AC$84,MATCH('Cyfrifiadau - Gogledd'!E37,'Incwm (Gogledd)'!AF$4:AF$84,1)),10) -> 67 | F38: =IFERROR(INDEX('Incwm (Gogledd)'!$AC$4:$AC$84,MATCH('Cyfrifiadau - Gogledd'!F37,'Incwm (Gogledd)'!AG$4:AG$84,1)),10) -> 67 | G38: =IFERROR(INDEX('Incwm (Gogledd)'!$AC$4:$AC$84,MATCH('Cyfrifiadau - Gogledd'!G37,'Incwm (Gogledd)'!AH$4:AH$84,1)),10) -> 68
B39: Canran angen sydd newydd ymddangos sy'n gallu fforddio | C39: =(100-C38)/100 -> 36% | D39: =(100-D38)/100 -> 35% | E39: 33% | F39: 33% | G39: 32%
B40: Canran sy'n gallu fforddio a mynd ymlaen i brynu eiddo | C40: =C39*'Rhaniad y Ddeiliadaeth (Gog)'!C116 ->  | D40: =D39*'Rhaniad y Ddeiliadaeth (Gog)'!D116 ->  | E40: =E39*'Rhaniad y Ddeiliadaeth (Gog)'!E116 ->  | F40: =F39*'Rhaniad y Ddeiliadaeth (Gog)'!F116 ->  | G40: =G39*'Rhaniad y Ddeiliadaeth (Gog)'!G116 -> 
B41: Perchen-feddiannydd | C41: =C40*C11 ->  | D41: =D40*D11 ->  | E41: =E40*E11 ->  | F41: =F40*F11 ->  | G41: =G40*G11 -> 
B43: Y Sector Rhentu Preifat
B44: Llai y rheini sy'n mynd ymlaen i brynu eiddo (ar gyfer rhaniad o bedair deiliadaeth) | C44: =C22-C41 ->  | D44: =D22-D41 ->  | E44: =E22-E41 ->  | F44: =F22-F41 ->  | G44: =G22-G41 -> 
B46: Tai Cymdeithasol
B47: 30 Canradd Rhenti Preifat | C47: ='Rhaniad y Ddeiliadaeth (Gog)'!C113 -> £6,177 | D47: ='Rhaniad y Ddeiliadaeth (Gog)'!D113 -> £6,366 | E47: ='Rhaniad y Ddeiliadaeth (Gog)'!E113 -> £6,565 | F47: ='Rhaniad y Ddeiliadaeth (Gog)'!F113 -> £6,773 | G47: ='Rhaniad y Ddeiliadaeth (Gog)'!G113 -> £6,996
B48: Trothwy Uwch incwm yr aelwyd | C48: =C47/'Rhaniad y Ddeiliadaeth (Gog)'!C117 -> £17,649 | D48: =D47/'Rhaniad y Ddeiliadaeth (Gog)'!D117 -> £18,189 | E48: =E47/'Rhaniad y Ddeiliadaeth (Gog)'!E117 -> £18,757 | F48: =F47/'Rhaniad y Ddeiliadaeth (Gog)'!F117 -> £19,352 | G48: =G47/'Rhaniad y Ddeiliadaeth (Gog)'!G117 -> £19,990
B49: Canradd dosbarthiad incwm | C49: =IFERROR(INDEX('Incwm (Gogledd)'!$AC$4:$AC$84,MATCH('Cyfrifiadau - Gogledd'!C48,'Incwm (Gogledd)'!AD$4:AD$84,1)),10) -> 30 | D49: =IFERROR(INDEX('Incwm (Gogledd)'!$AC$4:$AC$84,MATCH('Cyfrifiadau - Gogledd'!D48,'Incwm (Gogledd)'!AE$4:AE$84,1)),10) -> 30 | E49: =IFERROR(INDEX('Incwm (Gogledd)'!$AC$4:$AC$84,MATCH('Cyfrifiadau - Gogledd'!E48,'Incwm (Gogledd)'!AF$4:AF$84,1)),10) -> 30 | F49: =IFERROR(INDEX('Incwm (Gogledd)'!$AC$4:$AC$84,MATCH('Cyfrifiadau - Gogledd'!F48,'Incwm (Gogledd)'!AG$4:AG$84,1)),10) -> 30 | G49: =IFERROR(INDEX('Incwm (Gogledd)'!$AC$4:$AC$84,MATCH('Cyfrifiadau - Gogledd'!G48,'Incwm (Gogledd)'!AH$4:AH$84,1)),10) -> 30
B50: Canran yr angen o'r newydd sy'n addas ar gyfer rhent cymdeithasol | C50: =C49/100 -> 30% | D50: =D49/100 -> 30% | E50: 30% | F50: 30% | G50: 30%
B51: Aelwydydd o ran Angen o'r newydd | C51: =C50*C11 -> 274 | D51: =D50*D11 -> 288 | E51: =E50*E11 -> 316 | F51: =F50*F11 -> 294 | G51: =G50*G11 -> 289
B52: Aelwydydd o ran Angen Presennol nas Diwallwyd | C52: =C12 -> 257 | D52: =D12 -> 257 | E52: =E12 -> 257 | F52: =F12 -> 257 | G52: =G12 -> 257
B53: Cyfanswm yr aelwydydd sy'n addas ar gyfer rhent cymdeithasol | C53: =C52+C51 -> 531 | D53: =D52+D51 -> 545 | E53: 573 | F53: 551 | G53: 546
B55: Tai Canolradd
B56: Aelwydydd nad ydynt wedi'u neilltuo | C56: =C11-C41-C44-C51 ->  | D56: =D11-D41-D44-D51 ->  | E56: =E11-E41-E44-E51 ->  | F56: =F11-F41-F44-F51 ->  | G56: =G11-G41-G44-G51 -> 
B58: Amcangyfrifon
B59: Perchen-Feddiannydd | C59: =C41 ->  | D59: =D41 ->  | E59: =E41 ->  | F59: =F41 ->  | G59: =G41 -> 
B60: Y Sector Rhentu Preifat | C60: =C44 ->  | D60: =D44 ->  | E60: =E44 ->  | F60: =F44 ->  | G60: =G44 -> 
B61: Tai Cymdeithasol | C61: =C53 -> 531 | D61: =D53 -> 545 | E61: =E53 -> 573 | F61: =F53 -> 551 | G61: =G53 -> 546
B62: Tai Canolradd | C62: =C56 ->  | D62: =D56 ->  | E62: =E56 ->  | F62: =F56 ->  | G62: =G56 -> 

Sheet Cyfrifiadau - Canolbarth
B1: Canolbarth Cymru
B3: Mae'r daflen hon yn defnyddio'r set o ragdybiaethau i gyfrifo faint o aelwydydd a fyddai'n addas ar gyfer pob deiliadaeth tŷ ym mhob blwyddyn. Caiff y canlyniadau yn y daflen hon eu bwydo i'r daflen Rhaniad y Ddeiliadaeth (Canolbarth). Nid oes angen ichi roi unrhyw beth ar y daflen hon. Os bydd gennych unrhyw gofnodion o ddata na chwblhawyd ar unrhyw newidynnau, bydd cyfeiliornadau'n digwydd.
B8: Unedau Tai Ychwanegol
C9: 1 | D9: 2 | E9: 3 | F9: 4 | G9: 5
C10: =Year1 -> 2019/20 | D10: =Year2 -> 2020/21 | E10: =Year3 -> 2021/22 | F10: =Year4 -> 2022/23 | G10: =Year5 -> 2023/24
B11: Angen o'r Newydd | C11: =INDEX('Angen o''r Newydd'!D8:D27,MATCH(1,($B$1='Angen o''r Newydd'!$C$8:$C$27)*('Rhaniad y Ddeiliadaeth (Cymru)'!$D$6='Angen o''r Newydd'!$B$8:$B$27),0)) -> 24 | D11: =INDEX('Angen o''r Newydd'!E8:E27,MATCH(1,($B$1='Angen o''r Newydd'!$C$8:$C$27)*('Rhaniad y Ddeiliadaeth (Cymru)'!$D$6='Angen o''r Newydd'!$B$8:$B$27),0)) -> 55 | E11: =INDEX('Angen o''r Newydd'!F8:F27,MATCH(1,($B$1='Angen o''r Newydd'!$C$8:$C$27)*('Rhaniad y Ddeiliadaeth (Cymru)'!$D$6='Angen o''r Newydd'!$B$8:$B$27),0)) -> 86 | F11: =INDEX('Angen o''r Newydd'!G8:G27,MATCH(1,($B$1='Angen o''r Newydd'!$C$8:$C$27)*('Rhaniad y Ddeiliadaeth (Cymru)'!$D$6='Angen o''r Newydd'!$B$8:$B$27),0)) -> 107 | G11: =INDEX('Angen o''r Newydd'!H8:H27,MATCH(1,($B$1='Angen o''r Newydd'!$C$8:$C$27)*('Rhaniad y Ddeiliadaeth (Cymru)'!$D$6='Angen o''r Newydd'!$B$8:$B$27),0)) -> 142
B12: Angen Presennol Nas Diwallwyd | C12: =IF('Angen Presennol Nas Diwallwyd'!$C$29>='Cyfrifiadau - Canolbarth'!C9,IF('Rhaniad y Ddeiliadaeth (Cymru)'!$D$7="Amcangyfrifon LlC",'Angen Presennol Nas Diwallwyd'!$C$10/'Angen Presennol Nas Diwallwyd'!$C$29,'Angen Presennol Nas Diwallwyd'!$C$21/'Angen Presennol Nas Diwallwyd'!$C$29),0) -> 50 | D12: =IF('Angen Presennol Nas Diwallwyd'!$C$29>='Cyfrifiadau - Canolbarth'!D9,IF('Rhaniad y Ddeiliadaeth (Cymru)'!$D$7="Amcangyfrifon LlC",'Angen Presennol Nas Diwallwyd'!$C$10/'Angen Presennol Nas Diwallwyd'!$C$29,'Angen Presennol Nas Diwallwyd'!$C$21/'Angen Presennol Nas Diwallwyd'!$C$29),0) -> 50 | E12: =IF('Angen Presennol Nas Diwallwyd'!$C$29>='Cyfrifiadau - Canolbarth'!E9,IF('Rhaniad y Ddeiliadaeth (Cymru)'!$D$7="Amcangyfrifon LlC",'Angen Presennol Nas Diwallwyd'!$C$10/'Angen Presennol Nas Diwallwyd'!$C$29,'Angen Presennol Nas Diwallwyd'!$C$21/'Angen Presennol Nas Diwallwyd'!$C$29),0) -> 50 | F12: =IF('Angen Presennol Nas Diwallwyd'!$C$29>='Cyfrifiadau - Canolbarth'!F9,IF('Rhaniad y Ddeiliadaeth (Cymru)'!$D$7="Amcangyfrifon LlC",'Angen Presennol Nas Diwallwyd'!$C$10/'Angen Presennol Nas Diwallwyd'!$C$29,'Angen Presennol Nas Diwallwyd'!$C$21/'Angen Presennol Nas Diwallwyd'!$C$29),0) -> 50 | G12: =IF('Angen Presennol Nas Diwallwyd'!$C$29>='Cyfrifiadau - Canolbarth'!G9,IF('Rhaniad y Ddeiliadaeth (Cymru)'!$D$7="Amcangyfrifon LlC",'Angen Presennol Nas Diwallwyd'!$C$10/'Angen Presennol Nas Diwallwyd'!$C$29,'Angen Presennol Nas Diwallwyd'!$C$21/'Angen Presennol Nas Diwallwyd'!$C$29),0) -> 50
B13: Cyfanswm | C13: =SUM(C11:C12) -> 75 | D13: =SUM(D11:D12) -> 105 | E13: 137 | F13: 157 | G13: 192
B15: Rhaniad y Ddeiliadaeth: Tai Fforddiadwy ac ar y Farchnad
B17: Tai'r Farchnad
B18: Rhent Preifat Canolrifol | C18: ='Rhaniad y Ddeiliadaeth (Canol)'!C112 -> £6,424 | D18: ='Rhaniad y Ddeiliadaeth (Canol)'!D112 -> £6,621 | E18: ='Rhaniad y Ddeiliadaeth (Canol)'!E112 -> £6,828 | F18: ='Rhaniad y Ddeiliadaeth (Canol)'!F112 -> £7,044 | G18: ='Rhaniad y Ddeiliadaeth (Canol)'!G112 -> £7,276
B19: Isafswm Incwm yr Aelwyd | C19: =C18/'Rhaniad y Ddeiliadaeth (Canol)'!C108 -> £21,414 | D19: =D18/'Rhaniad y Ddeiliadaeth (Canol)'!D108 -> £22,070 | E19: =E18/'Rhaniad y Ddeiliadaeth (Canol)'!E108 -> £22,758 | F19: =F18/'Rhaniad y Ddeiliadaeth (Canol)'!F108 -> £23,480 | G19: =G18/'Rhaniad y Ddeiliadaeth (Canol)'!G108 -> £24,254
B20: Canradd dosbarthiad incwm | C20: =IFERROR(INDEX('Incwm (Canolbarth)'!$AC$4:$AC$84,MATCH('Cyfrifiadau - Canolbarth'!C19,'Incwm (Canolbarth)'!AD$4:AD$84,1)),10) -> 36 | D20: =IFERROR(INDEX('Incwm (Canolbarth)'!$AC$4:$AC$84,MATCH('Cyfrifiadau - Canolbarth'!D19,'Incwm (Canolbarth)'!AE$4:AE$84,1)),10) -> 36 | E20: =IFERROR(INDEX('Incwm (Canolbarth)'!$AC$4:$AC$84,MATCH('Cyfrifiadau - Canolbarth'!E19,'Incwm (Canolbarth)'!AF$4:AF$84,1)),10) -> 37 | F20: =IFERROR(INDEX('Incwm (Canolbarth)'!$AC$4:$AC$84,MATCH('Cyfrifiadau - Canolbarth'!F19,'Incwm (Canolbarth)'!AG$4:AG$84,1)),10) -> 37 | G20: =IFERROR(INDEX('Incwm (Canolbarth)'!$AC$4:$AC$84,MATCH('Cyfrifiadau - Canolbarth'!G19,'Incwm (Canolbarth)'!AH$4:AH$84,1)),10) -> 37
B21: Canran yr angen o'r newydd sy'n gallu fforddio | C21: =(100-C20)/100 -> 64% | D21: =(100-D20)/100 -> 64% | E21: 63% | F21: 63% | G21: 63%
B22: Cyfanswm yr aelwydydd newydd all fforddio'r farchnad | C22: =C21*C11 -> 16 | D22: =D21*D11 -> 35 | E22: =E21*E11 -> 54 | F22: =F21*F11 -> 67 | G22: =G21*G11 -> 90
B25: Tai Fforddiadwy
B26: Gweddill yr aelwydydd na all fforddio'r farchnad | C26: =C13-C22 -> 59 | D26: =D13-D22 -> 70 | E26: =E13-E22 -> 82 | F26: 90 | G26: 103
B28: Amcangyfrifon
B29: Tai'r Farchnad Agored | C29: =C22 -> 16 | D29: =D22 -> 35 | E29: =E22 -> 54 | F29: =F22 -> 67 | G29: =G22 -> 90
B30: Tai Fforddiadwy | C30: =C26 -> 59 | D30: =D26 -> 70 | E30: =E26 -> 82 | F30: =F26 -> 90 | G30: =G26 -> 103
B32: Rhaniad y Ddeiliadaeth: Perchen-feddianwyr, Y Sector Rhentu Preifat, Rhent Canolradd a Chymdeithasol
B33: NODWCH: OS NAD YDYCH WEDI CWBLHAU OPSIYNAU'R DDEWISLEN, BYDD CYFEILIORNADAU'N DIGWYDD ISOD
B35: Perchen-feddiannydd
B36: ="Canradd Mynediad y farchnad ar gyfer y Prynwyr Tro Cyntaf: "&'Rhaniad y Ddeiliadaeth (Cymru)'!C115 -> Canradd Mynediad y farchnad ar gyfer y Prynwyr Tro Cyntaf: 40 | C36: =INDEX('Prisiau Tai (Canolbarth)'!AD$4:AD$84,MATCH('Rhaniad y Ddeiliadaeth (Canol)'!C115,'Prisiau Tai (Canolbarth)'!$AC$4:$AC$84,0)) -> £169,776 | D36: =INDEX('Prisiau Tai (Canolbarth)'!AE$4:AE$84,MATCH('Rhaniad y Ddeiliadaeth (Canol)'!D115,'Prisiau Tai (Canolbarth)'!$AC$4:$AC$84,0)) -> £179,674 | E36: =INDEX('Prisiau Tai (Canolbarth)'!AF$4:AF$84,MATCH('Rhaniad y Ddeiliadaeth (Canol)'!E115,'Prisiau Tai (Canolbarth)'!$AC$4:$AC$84,0)) -> £192,366 | F36: =INDEX('Prisiau Tai (Canolbarth)'!AG$4:AG$84,MATCH('Rhaniad y Ddeiliadaeth (Canol)'!F115,'Prisiau Tai (Canolbarth)'!$AC$4:$AC$84,0)) -> £202,834 | G36: =INDEX('Prisiau Tai (Canolbarth)'!AH$4:AH$84,MATCH('Rhaniad y Ddeiliadaeth (Canol)'!G115,'Prisiau Tai (Canolbarth)'!$AC$4:$AC$84,0)) -> £211,391
B37: Isafswm Incwm yr Aelwyd | C37: =C36/'Rhaniad y Ddeiliadaeth (Canol)'!C114 -> £42,128 | D37: =D36/'Rhaniad y Ddeiliadaeth (Canol)'!D114 -> £44,584 | E37: =E36/'Rhaniad y Ddeiliadaeth (Canol)'!E114 -> £47,733 | F37: =F36/'Rhaniad y Ddeiliadaeth (Canol)'!F114 -> £50,331 | G37: =G36/'Rhaniad y Ddeiliadaeth (Canol)'!G114 -> £52,454
B38: Canradd dosbarthiad incwm | C38: =IFERROR(INDEX('Incwm (Canolbarth)'!$AC$4:$AC$84,MATCH('Cyfrifiadau - Canolbarth'!C37,'Incwm (Canolbarth)'!AD$4:AD$84,1)),10) -> 71 | D38: =IFERROR(INDEX('Incwm (Canolbarth)'!$AC$4:$AC$84,MATCH('Cyfrifiadau - Canolbarth'!D37,'Incwm (Canolbarth)'!AE$4:AE$84,1)),10) -> 71 | E38: =IFERROR(INDEX('Incwm (Canolbarth)'!$AC$4:$AC$84,MATCH('Cyfrifiadau - Canolbarth'!E37,'Incwm (Canolbarth)'!AF$4:AF$84,1)),10) -> 72 | F38: =IFERROR(INDEX('Incwm (Canolbarth)'!$AC$4:$AC$84,MATCH('Cyfrifiadau - Canolbarth'!F37,'Incwm (Canolbarth)'!AG$4:AG$84,1)),10) -> 73 | G38: =IFERROR(INDEX('Incwm (Canolbarth)'!$AC$4:$AC$84,MATCH('Cyfrifiadau - Canolbarth'!G37,'Incwm (Canolbarth)'!AH$4:AH$84,1)),10) -> 73
B39: Canran angen sydd newydd ymddangos sy'n gallu fforddio | C39: =(100-C38)/100 -> 29% | D39: =(100-D38)/100 -> 29% | E39: 28% | F39: 27% | G39: 27%
B40: Canran sy'n gallu fforddio a mynd ymlaen i brynu eiddo | C40: =C39*'Rhaniad y Ddeiliadaeth (Canol)'!C116 ->  | D40: =D39*'Rhaniad y Ddeiliadaeth (Canol)'!D116 ->  | E40: =E39*'Rhaniad y Ddeiliadaeth (Canol)'!E116 ->  | F40: =F39*'Rhaniad y Ddeiliadaeth (Canol)'!F116 ->  | G40: =G39*'Rhaniad y Ddeiliadaeth (Canol)'!G116 -> 
B41: Perchen-feddiannydd | C41: =C40*C11 ->  | D41: =D40*D11 ->  | E41: =E40*E11 ->  | F41: =F40*F11 ->  | G41: =G40*G11 -> 
B43: Y Sector Rhentu Preifat
B44: Llai y rheini sy'n mynd ymlaen i brynu eiddo (ar gyfer rhaniad o bedair deiliadaeth) | C44: =C22-C41 ->  | D44: =D22-D41 ->  | E44: =E22-E41 ->  | F44: =F22-F41 ->  | G44: =G22-G41 -> 
B46: Tai Cymdeithasol
B47: 30 Canradd Rhenti Preifat | C47: ='Rhaniad y Ddeiliadaeth (Canol)'!C113 -> £5,559 | D47: ='Rhaniad y Ddeiliadaeth (Canol)'!D113 -> £5,730 | E47: ='Rhaniad y Ddeiliadaeth (Canol)'!E113 -> £5,908 | F47: ='Rhaniad y Ddeiliadaeth (Canol)'!F113 -> £6,096 | G47: ='Rhaniad y Ddeiliadaeth (Canol)'!G113 -> £6,297
B48: Trothwy Uwch incwm yr aelwyd | C48: =C47/'Rhaniad y Ddeiliadaeth (Canol)'!C117 -> £15,884 | D48: =D47/'Rhaniad y Ddeiliadaeth (Canol)'!D117 -> £16,370 | E48: =E47/'Rhaniad y Ddeiliadaeth (Canol)'!E117 -> £16,881 | F48: =F47/'Rhaniad y Ddeiliadaeth (Canol)'!F117 -> £17,417 | G48: =G47/'Rhaniad y Ddeiliadaeth (Canol)'!G117 -> £17,991
B49: Canradd dosbarthiad incwm | C49: =IFERROR(INDEX('Incwm (Canolbarth)'!$AC$4:$AC$84,MATCH('Cyfrifiadau - Canolbarth'!C48,'Incwm (Canolbarth)'!AD$4:AD$84,1)),10) -> 22 | D49: =IFERROR(INDEX('Incwm (Canolbarth)'!$AC$4:$AC$84,MATCH('Cyfrifiadau - Canolbarth'!D48,'Incwm (Canolbarth)'!AE$4:AE$84,1)),10) -> 22 | E49: =IFERROR(INDEX('Incwm (Canolbarth)'!$AC$4:$AC$84,MATCH('Cyfrifiadau - Canolbarth'!E48,'Incwm (Canolbarth)'!AF$4:AF$84,1)),10) -> 23 | F49: =IFERROR(INDEX('Incwm (Canolbarth)'!$AC$4:$AC$84,MATCH('Cyfrifiadau - Canolbarth'!F48,'Incwm (Canolbarth)'!AG$4:AG$84,1)),10) -> 23 | G49: =IFERROR(INDEX('Incwm (Canolbarth)'!$AC$4:$AC$84,MATCH('Cyfrifiadau - Canolbarth'!G48,'Incwm (Canolbarth)'!AH$4:AH$84,1)),10) -> 24
B50: Canran yr angen o'r newydd sy'n addas ar gyfer rhent cymdeithasol | C50: =C49/100 -> 22% | D50: =D49/100 -> 22% | E50: 23% | F50: 23% | G50: 24%
B51: Aelwydydd o ran Angen o'r newydd | C51: =C50*C11 -> 5.35 | D51: =D50*D11 -> 12 | E51: =E50*E11 -> 20 | F51: =F50*F11 -> 25 | G51: =G50*G11 -> 34
B52: Aelwydydd o ran Angen Presennol nas Diwallwyd | C52: =C12 -> 50 | D52: =D12 -> 50 | E52: =E12 -> 50 | F52: =F12 -> 50 | G52: =G12 -> 50
B53: Cyfanswm yr aelwydydd sy'n addas ar gyfer rhent cymdeithasol | C53: =C52+C51 -> 56 | D53: =D52+D51 -> 62 | E53: 70 | F53: 75 | G53: 84
B55: Tai Canolradd
B56: Aelwydydd nad ydynt wedi'u neilltuo | C56: =C11-C41-C44-C51 ->  | D56: =D11-D41-D44-D51 ->  | E56: =E11-E41-E44-E51 ->  | F56: =F11-F41-F44-F51 ->  | G56: =G11-G41-G44-G51 -> 
B58: Amcangyfrifon
B59: Perchen-Feddiannydd | C59: =C41 ->  | D59: =D41 ->  | E59: =E41 ->  | F59: =F41 ->  | G59: =G41 -> 
B60: Y Sector Rhentu Preifat | C60: =C44 ->  | D60: =D44 ->  | E60: =E44 ->  | F60: =F44 ->  | G60: =G44 -> 
B61: Tai Cymdeithasol | C61: =C53 -> 56 | D61: =D53 -> 62 | E61: =E53 -> 70 | F61: =F53 -> 75 | G61: =G53 -> 84
B62: Tai Canolradd | C62: =C56 ->  | D62: =D56 ->  | E62: =E56 ->  | F62: =F56 ->  | G62: =G56 -> 

Sheet Cyfrifiadau - De-orllewin
B1: De-orllewin Cymru
B3: Mae'r daflen hon yn defnyddio'r set o ragdybiaethau i gyfrifo faint o aelwydydd a fyddai'n addas ar gyfer pob deiliadaeth tŷ ym mhob blwyddyn. Caiff y canlyniadau yn y daflen hon eu bwydo i'r daflen Rhaniad y Ddeiliadaeth (De-orllewin). Nid oes angen ichi roi unrhyw beth ar y daflen hon. Os bydd gennych unrhyw gofnodion o ddata na chwblhawyd ar unrhyw newidynnau, bydd cyfeiliornadau'n digwydd.
B8: Unedau Tai Ychwanegol
C9: 1 | D9: 2 | E9: 3 | F9: 4 | G9: 5
C10: =Year1 -> 2019/20 | D10: =Year2 -> 2020/21 | E10: =Year3 -> 2021/22 | F10: =Year4 -> 2022/23 | G10: =Year5 -> 2023/24
B11: Angen o'r Newydd | C11: =INDEX('Angen o''r Newydd'!D8:D27,MATCH(1,($B$1='Angen o''r Newydd'!$C$8:$C$27)*('Rhaniad y Ddeiliadaeth (Cymru)'!$D$6='Angen o''r Newydd'!$B$8:$B$27),0)) -> 1,364 | D11: =INDEX('Angen o''r Newydd'!E8:E27,MATCH(1,($B$1='Angen o''r Newydd'!$C$8:$C$27)*('Rhaniad y Ddeiliadaeth (Cymru)'!$D$6='Angen o''r Newydd'!$B$8:$B$27),0)) -> 1,421 | E11: =INDEX('Angen o''r Newydd'!F8:F27,MATCH(1,($B$1='Angen o''r Newydd'!$C$8:$C$27)*('Rhaniad y Ddeiliadaeth (Cymru)'!$D$6='Angen o''r Newydd'!$B$8:$B$27),0)) -> 1,541 | F11: =INDEX('Angen o''r Newydd'!G8:G27,MATCH(1,($B$1='Angen o''r Newydd'!$C$8:$C$27)*('Rhaniad y Ddeiliadaeth (Cymru)'!$D$6='Angen o''r Newydd'!$B$8:$B$27),0)) -> 1,508 | G11: =INDEX('Angen o''r Newydd'!H8:H27,MATCH(1,($B$1='Angen o''r Newydd'!$C$8:$C$27)*('Rhaniad y Ddeiliadaeth (Cymru)'!$D$6='Angen o''r Newydd'!$B$8:$B$27),0)) -> 1,440
B12: Angen Presennol Nas Diwallwyd | C12: =IF('Angen Presennol Nas Diwallwyd'!$C$29>='Cyfrifiadau - De-orllewin'!C9,IF('Rhaniad y Ddeiliadaeth (Cymru)'!$D$7="Amcangyfrifon LlC",'Angen Presennol Nas Diwallwyd'!$C$11/'Angen Presennol Nas Diwallwyd'!$C$29,'Angen Presennol Nas Diwallwyd'!$C$22/'Angen Presennol Nas Diwallwyd'!$C$29),0) -> 188 | D12: =IF('Angen Presennol Nas Diwallwyd'!$C$29>='Cyfrifiadau - De-orllewin'!D9,IF('Rhaniad y Ddeiliadaeth (Cymru)'!$D$7="Amcangyfrifon LlC",'Angen Presennol Nas Diwallwyd'!$C$11/'Angen Presennol Nas Diwallwyd'!$C$29,'Angen Presennol Nas Diwallwyd'!$C$22/'Angen Presennol Nas Diwallwyd'!$C$29),0) -> 188 | E12: =IF('Angen Presennol Nas Diwallwyd'!$C$29>='Cyfrifiadau - De-orllewin'!E9,IF('Rhaniad y Ddeiliadaeth (Cymru)'!$D$7="Amcangyfrifon LlC",'Angen Presennol Nas Diwallwyd'!$C$11/'Angen Presennol Nas Diwallwyd'!$C$29,'Angen Presennol Nas Diwallwyd'!$C$22/'Angen Presennol Nas Diwallwyd'!$C$29),0) -> 188 | F12: =IF('Angen Presennol Nas Diwallwyd'!$C$29>='Cyfrifiadau - De-orllewin'!F9,IF('Rhaniad y Ddeiliadaeth (Cymru)'!$D$7="Amcangyfrifon LlC",'Angen Presennol Nas Diwallwyd'!$C$11/'Angen Presennol Nas Diwallwyd'!$C$29,'Angen Presennol Nas Diwallwyd'!$C$22/'Angen Presennol Nas Diwallwyd'!$C$29),0) -> 188 | G12: =IF('Angen Presennol Nas Diwallwyd'!$C$29>='Cyfrifiadau - De-orllewin'!G9,IF('Rhaniad y Ddeiliadaeth (Cymru)'!$D$7="Amcangyfrifon LlC",'Angen Presennol Nas Diwallwyd'!$C$11/'Angen Presennol Nas Diwallwyd'!$C$29,'Angen Presennol Nas Diwallwyd'!$C$22/'Angen Presennol Nas Diwallwyd'!$C$29),0) -> 188
B13: Cyfanswm | C13: =SUM(C11:C12) -> 1,552 | D13: =SUM(D11:D12) -> 1,609 | E13: 1,729 | F13: 1,696 | G13: 1,627
B15: Rhaniad y Ddeiliadaeth: Tai Fforddiadwy ac ar y Farchnad
B17: Tai'r Farchnad
B18: Rhent Preifat Canolrifol | C18: ='Rhaniad y Ddeiliadaeth (De-o)'!C112 -> £6,177 | D18: ='Rhaniad y Ddeiliadaeth (De-o)'!D112 -> £6,366 | E18: ='Rhaniad y Ddeiliadaeth (De-o)'!E112 -> £6,565 | F18: ='Rhaniad y Ddeiliadaeth (De-o)'!F112 -> £6,773 | G18: ='Rhaniad y Ddeiliadaeth (De-o)'!G112 -> £6,996
B19: Isafswm Incwm yr Aelwyd | C19: =C18/'Rhaniad y Ddeiliadaeth (De-o)'!C108 -> £20,591 | D19: =D18/'Rhaniad y Ddeiliadaeth (De-o)'!D108 -> £21,221 | E19: =E18/'Rhaniad y Ddeiliadaeth (De-o)'!E108 -> £21,883 | F19: =F18/'Rhaniad y Ddeiliadaeth (De-o)'!F108 -> £22,577 | G19: =G18/'Rhaniad y Ddeiliadaeth (De-o)'!G108 -> £23,321
B20: Canradd dosbarthiad incwm | C20: =IFERROR(INDEX('Incwm (De-orllewin)'!$AC$4:$AC$84,MATCH(C19,'Incwm (De-orllewin)'!AD$4:AD$84,1)),10) -> 37 | D20: =IFERROR(INDEX('Incwm (De-orllewin)'!$AC$4:$AC$84,MATCH(D19,'Incwm (De-orllewin)'!AE$4:AE$84,1)),10) -> 37 | E20: =IFERROR(INDEX('Incwm (De-orllewin)'!$AC$4:$AC$84,MATCH(E19,'Incwm (De-orllewin)'!AF$4:AF$84,1)),10) -> 37 | F20: =IFERROR(INDEX('Incwm (De-orllewin)'!$AC$4:$AC$84,MATCH(F19,'Incwm (De-orllewin)'!AG$4:AG$84,1)),10) -> 37 | G20: =IFERROR(INDEX('Incwm (De-orllewin)'!$AC$4:$AC$84,MATCH(G19,'Incwm (De-orllewin)'!AH$4:AH$84,1)),10) -> 38
B21: Canran yr angen o'r newydd sy'n gallu fforddio | C21: =(100-C20)/100 -> 63% | D21: =(100-D20)/100 -> 63% | E21: 63% | F21: 63% | G21: 62%
B22: Cyfanswm yr aelwydydd newydd all fforddio'r farchnad | C22: =C21*C11 -> 859 | D22: =D21*D11 -> 895 | E22: =E21*E11 -> 971 | F22: =F21*F11 -> 950 | G22: =G21*G11 -> 893
B25: Tai Fforddiadwy
B26: Gweddill yr aelwydydd na all fforddio'r farchnad | C26: =C13-C22 -> 692 | D26: =D13-D22 -> 713 | E26: =E13-E22 -> 758 | F26: 746 | G26: 735
B28: Amcangyfrifon
B29: Tai'r Farchnad Agored | C29: =C22 -> 859 | D29: =D22 -> 895 | E29: =E22 -> 971 | F29: =F22 -> 950 | G29: =G22 -> 893
B30: Tai Fforddiadwy | C30: =C26 -> 692 | D30: =D26 -> 713 | E30: =E26 -> 758 | F30: =F26 -> 746 | G30: =G26 -> 735
B32: Rhaniad y Ddeiliadaeth: Perchen-feddianwyr, Y Sector Rhentu Preifat, Rhent Canolradd a Chymdeithasol
B33: NODWCH: OS NAD YDYCH WEDI CWBLHAU OPSIYNAU'R DDEWISLEN, BYDD CYFEILIORNADAU'N DIGWYDD ISOD
B35: Perchen-feddiannydd
B36: ="Canradd Mynediad y farchnad ar gyfer y Prynwyr Tro Cyntaf: "&'Rhaniad y Ddeiliadaeth (Cymru)'!C115 -> Canradd Mynediad y farchnad ar gyfer y Prynwyr Tro Cyntaf: 40 | C36: =INDEX('Prisiau Tai (De-orllewin)'!AD$4:AD$84,MATCH('Rhaniad y Ddeiliadaeth (De-o)'!C115,'Prisiau Tai (De-orllewin)'!$AC$4:$AC$84,0)) -> £128,904 | D36: =INDEX('Prisiau Tai (De-orllewin)'!AE$4:AE$84,MATCH('Rhaniad y Ddeiliadaeth (De-o)'!D115,'Prisiau Tai (De-orllewin)'!$AC$4:$AC$84,0)) -> £136,419 | E36: =INDEX('Prisiau Tai (De-orllewin)'!AF$4:AF$84,MATCH('Rhaniad y Ddeiliadaeth (De-o)'!E115,'Prisiau Tai (De-orllewin)'!$AC$4:$AC$84,0)) -> £146,055 | F36: =INDEX('Prisiau Tai (De-orllewin)'!AG$4:AG$84,MATCH('Rhaniad y Ddeiliadaeth (De-o)'!F115,'Prisiau Tai (De-orllewin)'!$AC$4:$AC$84,0)) -> £154,004 | G36: =INDEX('Prisiau Tai (De-orllewin)'!AH$4:AH$84,MATCH('Rhaniad y Ddeiliadaeth (De-o)'!G115,'Prisiau Tai (De-orllewin)'!$AC$4:$AC$84,0)) -> £160,500
B37: Isafswm Incwm yr Aelwyd | C37: =C36/'Rhaniad y Ddeiliadaeth (De-o)'!C114 -> £31,986 | D37: =D36/'Rhaniad y Ddeiliadaeth (De-o)'!D114 -> £33,851 | E37: =E36/'Rhaniad y Ddeiliadaeth (De-o)'!E114 -> £36,242 | F37: =F36/'Rhaniad y Ddeiliadaeth (De-o)'!F114 -> £38,214 | G37: =G36/'Rhaniad y Ddeiliadaeth (De-o)'!G114 -> £39,826
B38: Canradd dosbarthiad incwm | C38: =IFERROR(INDEX('Incwm (De-orllewin)'!$AC$4:$AC$84,MATCH('Cyfrifiadau - De-orllewin'!C37,'Incwm (De-orllewin)'!AD$4:AD$84,1)),10) -> 60 | D38: =IFERROR(INDEX('Incwm (De-orllewin)'!$AC$4:$AC$84,MATCH('Cyfrifiadau - De-orllewin'!D37,'Incwm (De-orllewin)'!AE$4:AE$84,1)),10) -> 61 | E38: =IFERROR(INDEX('Incwm (De-orllewin)'!$AC$4:$AC$84,MATCH('Cyfrifiadau - De-orllewin'!E37,'Incwm (De-orllewin)'!AF$4:AF$84,1)),10) -> 63 | F38: =IFERROR(INDEX('Incwm (De-orllewin)'!$AC$4:$AC$84,MATCH('Cyfrifiadau - De-orllewin'!F37,'Incwm (De-orllewin)'!AG$4:AG$84,1)),10) -> 64 | G38: =IFERROR(INDEX('Incwm (De-orllewin)'!$AC$4:$AC$84,MATCH('Cyfrifiadau - De-orllewin'!G37,'Incwm (De-orllewin)'!AH$4:AH$84,1)),10) -> 64
B39: Canran angen sydd newydd ymddangos sy'n gallu fforddio | C39: =(100-C38)/100 -> 40% | D39: =(100-D38)/100 -> 39% | E39: 37% | F39: 36% | G39: 36%
B40: Canran sy'n gallu fforddio a mynd ymlaen i brynu eiddo | C40: =C39*'Rhaniad y Ddeiliadaeth (De-o)'!C116 ->  | D40: =D39*'Rhaniad y Ddeiliadaeth (De-o)'!D116 ->  | E40: =E39*'Rhaniad y Ddeiliadaeth (De-o)'!E116 ->  | F40: =F39*'Rhaniad y Ddeiliadaeth (De-o)'!F116 ->  | G40: =G39*'Rhaniad y Ddeiliadaeth (De-o)'!G116 -> 
B41: Perchen-feddiannydd | C41: =C40*C11 ->  | D41: =D40*D11 ->  | E41: =E40*E11 ->  | F41: =F40*F11 ->  | G41: =G40*G11 -> 
B43: Y Sector Rhentu Preifat
B44: Llai y rheini sy'n mynd ymlaen i brynu eiddo (ar gyfer rhaniad o bedair deiliadaeth) | C44: =C22-C41 ->  | D44: =D22-D41 ->  | E44: =E22-E41 ->  | F44: =F22-F41 ->  | G44: =G22-G41 -> 
B46: Tai Cymdeithasol
B47: 30 Canradd Rhenti Preifat | C47: ='Rhaniad y Ddeiliadaeth (De-o)'!C113 -> £5,559 | D47: ='Rhaniad y Ddeiliadaeth (De-o)'!D113 -> £5,730 | E47: ='Rhaniad y Ddeiliadaeth (De-o)'!E113 -> £5,908 | F47: ='Rhaniad y Ddeiliadaeth (De-o)'!F113 -> £6,096 | G47: ='Rhaniad y Ddeiliadaeth (De-o)'!G113 -> £6,297
B48: Trothwy Uwch incwm yr aelwyd | C48: =C47/'Rhaniad y Ddeiliadaeth (De-o)'!C117 -> £15,884 | D48: =D47/'Rhaniad y Ddeiliadaeth (De-o)'!D117 -> £16,370 | E48: =E47/'Rhaniad y Ddeiliadaeth (De-o)'!E117 -> £16,881 | F48: =F47/'Rhaniad y Ddeiliadaeth (De-o)'!F117 -> £17,417 | G48: =G47/'Rhaniad y Ddeiliadaeth (De-o)'!G117 -> £17,991
B49: Canradd dosbarthiad incwm | C49: =IFERROR(INDEX('Incwm (De-orllewin)'!$AC$4:$AC$84,MATCH('Cyfrifiadau - De-orllewin'!C48,'Incwm (De-orllewin)'!AD$4:AD$84,1)),10) -> 22 | D49: =IFERROR(INDEX('Incwm (De-orllewin)'!$AC$4:$AC$84,MATCH('Cyfrifiadau - De-orllewin'!D48,'Incwm (De-orllewin)'!AE$4:AE$84,1)),10) -> 23 | E49: =IFERROR(INDEX('Incwm (De-orllewin)'!$AC$4:$AC$84,MATCH('Cyfrifiadau - De-orllewin'!E48,'Incwm (De-orllewin)'!AF$4:AF$84,1)),10) -> 23 | F49: =IFERROR(INDEX('Incwm (De-orllewin)'!$AC$4:$AC$84,MATCH('Cyfrifiadau - De-orllewin'!F48,'Incwm (De-orllewin)'!AG$4:AG$84,1)),10) -> 23 | G49: =IFERROR(INDEX('Incwm (De-orllewin)'!$AC$4:$AC$84,MATCH('Cyfrifiadau - De-orllewin'!G48,'Incwm (De-orllewin)'!AH$4:AH$84,1)),10) -> 24
B50: Canran yr angen o'r newydd sy'n addas ar gyfer rhent cymdeithasol | C50: =C49/100 -> 22% | D50: =D49/100 -> 23% | E50: 23% | F50: 23% | G50: 24%
B51: Aelwydydd o ran Angen o'r newydd | C51: =C50*C11 -> 300 | D51: =D50*D11 -> 327 | E51: =E50*E11 -> 354 | F51: =F50*F11 -> 347 | G51: =G50*G11 -> 345
B52: Aelwydydd o ran Angen Presennol nas Diwallwyd | C52: =C12 -> 188 | D52: =D12 -> 188 | E52: =E12 -> 188 | F52: =F12 -> 188 | G52: =G12 -> 188
B53: Cyfanswm yr aelwydydd sy'n addas ar gyfer rhent cymdeithasol | C53: =C52+C51 -> 488 | D53: =D52+D51 -> 514 | E53: 542 | F53: 535 | G53: 533
B55: Tai Canolradd
B56: Aelwydydd nad ydynt wedi'u neilltuo | C56: =C11-C41-C44-C51 ->  | D56: =D11-D41-D44-D51 ->  | E56: =E11-E41-E44-E51 ->  | F56: =F11-F41-F44-F51 ->  | G56: =G11-G41-G44-G51 -> 
B58: Amcangyfrifon
B59: Perchen-Feddiannydd | C59: =C41 ->  | D59: =D41 ->  | E59: =E41 ->  | F59: =F41 ->  | G59: =G41 -> 
B60: Y Sector Rhentu Preifat | C60: =C44 ->  | D60: =D44 ->  | E60: =E44 ->  | F60: =F44 ->  | G60: =G44 -> 
B61: Tai Cymdeithasol | C61: =C53 -> 488 | D61: =D53 -> 514 | E61: =E53 -> 542 | F61: =F53 -> 535 | G61: =G53 -> 533
B62: Tai Canolradd | C62: =C56 ->  | D62: =D56 ->  | E62: =E56 ->  | F62: =F56 ->  | G62: =G56 -> 

Sheet Cyfrifiadau De-ddwyrain
B1: De-ddwyrain Cymru
B3: Mae'r daflen hon yn defnyddio'r set o ragdybiaethau i gyfrifo faint o aelwydydd a fyddai'n addas ar gyfer pob deiliadaeth tŷ ym mhob blwyddyn. Caiff y canlyniadau yn y daflen hon eu bwydo i'r daflen Rhaniad y Ddeiliadaeth (De-ddwyrain). Nid oes angen ichi roi unrhyw beth ar y daflen hon. Os bydd gennych unrhyw gofnodion o ddata na chwblhawyd ar unrhyw newidynnau, bydd cyfeiliornadau'n digwydd.
B8: Unedau Tai Ychwanegol
C9: 1 | D9: 2 | E9: 3 | F9: 4 | G9: 5
C10: =Year1 -> 2019/20 | D10: =Year2 -> 2020/21 | E10: =Year3 -> 2021/22 | F10: =Year4 -> 2022/23 | G10: =Year5 -> 2023/24
B11: Angen o'r Newydd | C11: =INDEX('Angen o''r Newydd'!D8:D27,MATCH(1,($B$1='Angen o''r Newydd'!$C$8:$C$27)*('Rhaniad y Ddeiliadaeth (Cymru)'!$D$6='Angen o''r Newydd'!$B$8:$B$27),0)) -> 3,645 | D11: =INDEX('Angen o''r Newydd'!E8:E27,MATCH(1,($B$1='Angen o''r Newydd'!$C$8:$C$27)*('Rhaniad y Ddeiliadaeth (Cymru)'!$D$6='Angen o''r Newydd'!$B$8:$B$27),0)) -> 3,645 | E11: =INDEX('Angen o''r Newydd'!F8:F27,MATCH(1,($B$1='Angen o''r Newydd'!$C$8:$C$27)*('Rhaniad y Ddeiliadaeth (Cymru)'!$D$6='Angen o''r Newydd'!$B$8:$B$27),0)) -> 3,883 | F11: =INDEX('Angen o''r Newydd'!G8:G27,MATCH(1,($B$1='Angen o''r Newydd'!$C$8:$C$27)*('Rhaniad y Ddeiliadaeth (Cymru)'!$D$6='Angen o''r Newydd'!$B$8:$B$27),0)) -> 3,709 | G11: =INDEX('Angen o''r Newydd'!H8:H27,MATCH(1,($B$1='Angen o''r Newydd'!$C$8:$C$27)*('Rhaniad y Ddeiliadaeth (Cymru)'!$D$6='Angen o''r Newydd'!$B$8:$B$27),0)) -> 3,657
B12: Angen Presennol Nas Diwallwyd | C12: =IF('Angen Presennol Nas Diwallwyd'!$C$29>='Cyfrifiadau De-ddwyrain'!C9,IF('Rhaniad y Ddeiliadaeth (Cymru)'!$D$7="Amcangyfrifon LlC",'Angen Presennol Nas Diwallwyd'!$C$12/'Angen Presennol Nas Diwallwyd'!$C$29,'Angen Presennol Nas Diwallwyd'!$C$23/'Angen Presennol Nas Diwallwyd'!$C$29),0) -> 651 | D12: =IF('Angen Presennol Nas Diwallwyd'!$C$29>='Cyfrifiadau De-ddwyrain'!D9,IF('Rhaniad y Ddeiliadaeth (Cymru)'!$D$7="Amcangyfrifon LlC",'Angen Presennol Nas Diwallwyd'!$C$12/'Angen Presennol Nas Diwallwyd'!$C$29,'Angen Presennol Nas Diwallwyd'!$C$23/'Angen Presennol Nas Diwallwyd'!$C$29),0) -> 651 | E12: =IF('Angen Presennol Nas Diwallwyd'!$C$29>='Cyfrifiadau De-ddwyrain'!E9,IF('Rhaniad y Ddeiliadaeth (Cymru)'!$D$7="Amcangyfrifon LlC",'Angen Presennol Nas Diwallwyd'!$C$12/'Angen Presennol Nas Diwallwyd'!$C$29,'Angen Presennol Nas Diwallwyd'!$C$23/'Angen Presennol Nas Diwallwyd'!$C$29),0) -> 651 | F12: =IF('Angen Presennol Nas Diwallwyd'!$C$29>='Cyfrifiadau De-ddwyrain'!F9,IF('Rhaniad y Ddeiliadaeth (Cymru)'!$D$7="Amcangyfrifon LlC",'Angen Presennol Nas Diwallwyd'!$C$12/'Angen Presennol Nas Diwallwyd'!$C$29,'Angen Presennol Nas Diwallwyd'!$C$23/'Angen Presennol Nas Diwallwyd'!$C$29),0) -> 651 | G12: =IF('Angen Presennol Nas Diwallwyd'!$C$29>='Cyfrifiadau De-ddwyrain'!G9,IF('Rhaniad y Ddeiliadaeth (Cymru)'!$D$7="Amcangyfrifon LlC",'Angen Presennol Nas Diwallwyd'!$C$12/'Angen Presennol Nas Diwallwyd'!$C$29,'Angen Presennol Nas Diwallwyd'!$C$23/'Angen Presennol Nas Diwallwyd'!$C$29),0) -> 651
B13: Cyfanswm | C13: =SUM(C11:C12) -> 4,295 | D13: =SUM(D11:D12) -> 4,295 | E13: 4,533 | F13: 4,359 | G13: 4,308
B15: Rhaniad y Ddeiliadaeth: Tai Fforddiadwy ac ar y Farchnad
B17: Tai'r Farchnad
B18: Rhent Preifat Canolrifol | C18: ='Rhaniad y Ddeiliadaeth (De-ddn)'!C112 -> £6,795 | D18: ='Rhaniad y Ddeiliadaeth (De-ddn)'!D112 -> £7,003 | E18: ='Rhaniad y Ddeiliadaeth (De-ddn)'!E112 -> £7,221 | F18: ='Rhaniad y Ddeiliadaeth (De-ddn)'!F112 -> £7,450 | G18: ='Rhaniad y Ddeiliadaeth (De-ddn)'!G112 -> £7,696
B19: Isafswm Incwm yr Aelwyd | C19: =C18/'Rhaniad y Ddeiliadaeth (De-ddn)'!C108 -> £22,649.80 | D19: =D18/'Rhaniad y Ddeiliadaeth (De-ddn)'!D108 -> £23,343 | E19: =E18/'Rhaniad y Ddeiliadaeth (De-ddn)'!E108 -> £24,071 | F19: =F18/'Rhaniad y Ddeiliadaeth (De-ddn)'!F108 -> £24,835 | G19: =G18/'Rhaniad y Ddeiliadaeth (De-ddn)'!G108 -> £25,653
B20: Canradd dosbarthiad incwm | C20: =IFERROR(INDEX('Incwm (De-ddwyrain)'!$AC$4:$AC$84,MATCH('Cyfrifiadau De-ddwyrain'!C19,'Incwm (De-ddwyrain)'!AD$4:AD$84,1)),10) -> 39 | D20: =IFERROR(INDEX('Incwm (De-ddwyrain)'!$AC$4:$AC$84,MATCH('Cyfrifiadau De-ddwyrain'!D19,'Incwm (De-ddwyrain)'!AE$4:AE$84,1)),10) -> 39 | E20: =IFERROR(INDEX('Incwm (De-ddwyrain)'!$AC$4:$AC$84,MATCH('Cyfrifiadau De-ddwyrain'!E19,'Incwm (De-ddwyrain)'!AF$4:AF$84,1)),10) -> 39 | F20: =IFERROR(INDEX('Incwm (De-ddwyrain)'!$AC$4:$AC$84,MATCH('Cyfrifiadau De-ddwyrain'!F19,'Incwm (De-ddwyrain)'!AG$4:AG$84,1)),10) -> 39 | G20: =IFERROR(INDEX('Incwm (De-ddwyrain)'!$AC$4:$AC$84,MATCH('Cyfrifiadau De-ddwyrain'!G19,'Incwm (De-ddwyrain)'!AH$4:AH$84,1)),10) -> 39
B21: Canran yr angen o'r newydd sy'n gallu fforddio | C21: =(100-C20)/100 -> 61% | D21: =(100-D20)/100 -> 61% | E21: 61% | F21: 61% | G21: 61%
B22: Cyfanswm yr aelwydydd newydd all fforddio'r farchnad | C22: =C21*C11 -> 2223 | D22: =D21*D11 -> 2223 | E22: =E21*E11 -> 2368 | F22: =F21*F11 -> 2262 | G22: =G21*G11 -> 2231
B25: Tai Fforddiadwy
B26: Gweddill yr aelwydydd na all fforddio'r farchnad | C26: =C13-C22 -> 2072 | D26: =D13-D22 -> 2072 | E26: =E13-E22 -> 2165 | F26: 2097 | G26: 2077
B28: Amcangyfrifon
B29: Tai'r Farchnad Agored | C29: =C22 -> 2,223 | D29: =D22 -> 2,223 | E29: =E22 -> 2,368 | F29: =F22 -> 2,262 | G29: =G22 -> 2,231
B30: Tai Fforddiadwy | C30: =C26 -> 2,072 | D30: =D26 -> 2,072 | E30: =E26 -> 2,165 | F30: =F26 -> 2,097 | G30: =G26 -> 2,077
B32: Rhaniad y Ddeiliadaeth: Perchen-feddianwyr, Y Sector Rhentu Preifat, Rhent Canolradd a Chymdeithasol
B33: NODWCH: OS NAD YDYCH WEDI CWBLHAU OPSIYNAU'R DDEWISLEN, BYDD CYFEILIORNADAU'N DIGWYDD ISOD
B35: Perchen-feddiannydd
B36: ="Canradd Mynediad y farchnad ar gyfer y Prynwyr Tro Cyntaf: "&'Rhaniad y Ddeiliadaeth (Cymru)'!C115 -> Canradd Mynediad y farchnad ar gyfer y Prynwyr Tro Cyntaf: 40 | C36: =INDEX('Prisiau Tai (De-ddwyrain)'!AD$4:AD$84,MATCH('Rhaniad y Ddeiliadaeth (De-ddn)'!C115,'Prisiau Tai (De-ddwyrain)'!$AC$4:$AC$84,0)) -> £146,720 | D36: =INDEX('Prisiau Tai (De-ddwyrain)'!AE$4:AE$84,MATCH('Rhaniad y Ddeiliadaeth (De-ddn)'!D115,'Prisiau Tai (De-ddwyrain)'!$AC$4:$AC$84,0)) -> £155,274 | E36: =INDEX('Prisiau Tai (De-ddwyrain)'!AF$4:AF$84,MATCH('Rhaniad y Ddeiliadaeth (De-ddn)'!E115,'Prisiau Tai (De-ddwyrain)'!$AC$4:$AC$84,0)) -> £166,242 | F36: =INDEX('Prisiau Tai (De-ddwyrain)'!AG$4:AG$84,MATCH('Rhaniad y Ddeiliadaeth (De-ddn)'!F115,'Prisiau Tai (De-ddwyrain)'!$AC$4:$AC$84,0)) -> £175,289 | G36: =INDEX('Prisiau Tai (De-ddwyrain)'!AH$4:AH$84,MATCH('Rhaniad y Ddeiliadaeth (De-ddn)'!G115,'Prisiau Tai (De-ddwyrain)'!$AC$4:$AC$84,0)) -> £182,683
B37: Isafswm Incwm yr Aelwyd | C37: =C36/'Rhaniad y Ddeiliadaeth (De-ddn)'!C114 -> £36,407 | D37: =D36/'Rhaniad y Ddeiliadaeth (De-ddn)'!D114 -> £38,529 | E37: =E36/'Rhaniad y Ddeiliadaeth (De-ddn)'!E114 -> £41,251 | F37: =F36/'Rhaniad y Ddeiliadaeth (De-ddn)'!F114 -> £43,496 | G37: =G36/'Rhaniad y Ddeiliadaeth (De-ddn)'!G114 -> £45,331
B38: Canradd dosbarthiad incwm | C38: =IFERROR(INDEX('Incwm (De-ddwyrain)'!$AC$4:$AC$84,MATCH('Cyfrifiadau De-ddwyrain'!C37,'Incwm (De-ddwyrain)'!AD$4:AD$84,1)),10) -> 62 | D38: =IFERROR(INDEX('Incwm (De-ddwyrain)'!$AC$4:$AC$84,MATCH('Cyfrifiadau De-ddwyrain'!D37,'Incwm (De-ddwyrain)'!AE$4:AE$84,1)),10) -> 62 | E38: =IFERROR(INDEX('Incwm (De-ddwyrain)'!$AC$4:$AC$84,MATCH('Cyfrifiadau De-ddwyrain'!E37,'Incwm (De-ddwyrain)'!AF$4:AF$84,1)),10) -> 64 | F38: =IFERROR(INDEX('Incwm (De-ddwyrain)'!$AC$4:$AC$84,MATCH('Cyfrifiadau De-ddwyrain'!F37,'Incwm (De-ddwyrain)'!AG$4:AG$84,1)),10) -> 65 | G38: =IFERROR(INDEX('Incwm (De-ddwyrain)'!$AC$4:$AC$84,MATCH('Cyfrifiadau De-ddwyrain'!G37,'Incwm (De-ddwyrain)'!AH$4:AH$84,1)),10) -> 65
B39: Canran angen sydd newydd ymddangos sy'n gallu fforddio | C39: =(100-C38)/100 -> 38% | D39: =(100-D38)/100 -> 38% | E39: 36% | F39: 35% | G39: 35%
B40: Canran sy'n gallu fforddio a mynd ymlaen i brynu eiddo | C40: =C39*'Rhaniad y Ddeiliadaeth (De-ddn)'!C116 ->  | D40: =D39*'Rhaniad y Ddeiliadaeth (De-ddn)'!D116 ->  | E40: =E39*'Rhaniad y Ddeiliadaeth (De-ddn)'!E116 ->  | F40: =F39*'Rhaniad y Ddeiliadaeth (De-ddn)'!F116 ->  | G40: =G39*'Rhaniad y Ddeiliadaeth (De-ddn)'!G116 -> 
B41: Perchen-feddiannydd | C41: =C40*C11 ->  | D41: =D40*D11 ->  | E41: =E40*E11 ->  | F41: =F40*F11 ->  | G41: =G40*G11 -> 
B43: Y Sector Rhentu Preifat
B44: Llai y rheini sy'n mynd ymlaen i brynu eiddo (ar gyfer rhaniad o bedair deiliadaeth) | C44: =C22-C41 ->  | D44: =D22-D41 ->  | E44: =E22-E41 ->  | F44: =F22-F41 ->  | G44: =G22-G41 -> 
B46: Tai Cymdeithasol
B47: 30 Canradd Rhenti Preifat | C47: ='Rhaniad y Ddeiliadaeth (De-ddn)'!C113 -> £5,868 | D47: ='Rhaniad y Ddeiliadaeth (De-ddn)'!D113 -> £6,048 | E47: ='Rhaniad y Ddeiliadaeth (De-ddn)'!E113 -> £6,237 | F47: ='Rhaniad y Ddeiliadaeth (De-ddn)'!F113 -> £6,435 | G47: ='Rhaniad y Ddeiliadaeth (De-ddn)'!G113 -> £6,647
B48: Trothwy Uwch incwm yr aelwyd | C48: =C47/'Rhaniad y Ddeiliadaeth (De-ddn)'!C117 -> £16,767 | D48: =D47/'Rhaniad y Ddeiliadaeth (De-ddn)'!D117 -> £17,280 | E48: =E47/'Rhaniad y Ddeiliadaeth (De-ddn)'!E117 -> £17,819 | F48: =F47/'Rhaniad y Ddeiliadaeth (De-ddn)'!F117 -> £18,384 | G48: =G47/'Rhaniad y Ddeiliadaeth (De-ddn)'!G117 -> £18,990
B49: Canradd dosbarthiad incwm | C49: =IFERROR(INDEX('Incwm (De-ddwyrain)'!$AC$4:$AC$84,MATCH('Cyfrifiadau De-ddwyrain'!C48,'Incwm (De-ddwyrain)'!AD$4:AD$84,1)),10) -> 25 | D49: =IFERROR(INDEX('Incwm (De-ddwyrain)'!$AC$4:$AC$84,MATCH('Cyfrifiadau De-ddwyrain'!D48,'Incwm (De-ddwyrain)'!AE$4:AE$84,1)),10) -> 25 | E49: =IFERROR(INDEX('Incwm (De-ddwyrain)'!$AC$4:$AC$84,MATCH('Cyfrifiadau De-ddwyrain'!E48,'Incwm (De-ddwyrain)'!AF$4:AF$84,1)),10) -> 26 | F49: =IFERROR(INDEX('Incwm (De-ddwyrain)'!$AC$4:$AC$84,MATCH('Cyfrifiadau De-ddwyrain'!F48,'Incwm (De-ddwyrain)'!AG$4:AG$84,1)),10) -> 26 | G49: =IFERROR(INDEX('Incwm (De-ddwyrain)'!$AC$4:$AC$84,MATCH('Cyfrifiadau De-ddwyrain'!G48,'Incwm (De-ddwyrain)'!AH$4:AH$84,1)),10) -> 26
B50: Canran yr angen o'r newydd sy'n addas ar gyfer rhent cymdeithasol | C50: =C49/100 -> 25% | D50: =D49/100 -> 25% | E50: 26% | F50: 26% | G50: 26%
B51: Aelwydydd o ran Angen o'r newydd | C51: =C50*C11 -> 911 | D51: =D50*D11 -> 911 | E51: =E50*E11 -> 1,010 | F51: =F50*F11 -> 964 | G51: =G50*G11 -> 951
B52: Aelwydydd o ran Angen Presennol nas Diwallwyd | C52: =C12 -> 651 | D52: =D12 -> 651 | E52: =E12 -> 651 | F52: =F12 -> 651 | G52: =G12 -> 651
B53: Cyfanswm yr aelwydydd sy'n addas ar gyfer rhent cymdeithasol | C53: =C52+C51 -> 1,562 | D53: =D52+D51 -> 1,562 | E53: 1,660 | F53: 1,615 | G53: 1,602
B55: Tai Canolradd
B56: Aelwydydd nad ydynt wedi'u neilltuo | C56: =C11-C41-C44-C51 ->  | D56: =D11-D41-D44-D51 ->  | E56: =E11-E41-E44-E51 ->  | F56: =F11-F41-F44-F51 ->  | G56: =G11-G41-G44-G51 -> 
B58: Amcangyfrifon
B59: Perchen-Feddiannydd | C59: =C41 ->  | D59: =D41 ->  | E59: =E41 ->  | F59: =F41 ->  | G59: =G41 -> 
B60: Y Sector Rhentu Preifat | C60: =C44 ->  | D60: =D44 ->  | E60: =E44 ->  | F60: =F44 ->  | G60: =G44 -> 
B61: Tai Cymdeithasol | C61: =C53 -> 1,562 | D61: =D53 -> 1,562 | E61: =E53 -> 1,660 | F61: =F53 -> 1,615 | G61: =G53 -> 1,602
B62: Tai Canolradd | C62: =C56 ->  | D62: =D56 ->  | E62: =E56 ->  | F62: =F56 ->  | G62: =G56 -> 

Sheet Amcanestyniadau Aelwydydd
B2: Amcanestyniadau Aelwydydd | C2: Lefel Ddaearyddol | D2: 2019 | E2: =D2+1 -> 2020 | F2: =E2+1 -> 2021 | G2: 2022 | H2: 2023 | I2: 2024 | J2: 2025
B3: Prif | C3: Gogledd Cymru | D3: 305,906 | E3: 306,821 | F3: 307,780 | G3: 308,834 | H3: 309,816 | I3: 310,778
B4: Prif | C4: Canolbarth Cymru | D4: 90,861 | E4: 90,886 | F4: 90,940 | G4: 91,027 | H4: 91,134 | I4: 91,276
B5: Prif | C5: De-orllewin Cymru | D5: 309,498 | E5: 310,863 | F5: 312,284 | G5: 313,825 | H5: 315,333 | I5: 316,773
B6: Prif | C6: De-ddwyrain Cymru | D6: 658,921 | E6: 662,565 | F6: 666,210 | G6: 670,093 | H6: 673,801 | I6: 677,459
B7: Prif | C7: Cymru | D7: 1,365,186 | E7: 1,371,134 | F7: 1,377,214 | G7: 1,383,779 | H7: 1,390,084 | I7: 1,396,286 | J7: =SUM(J3:J6) -> 
B8: Newidyn Uwch | C8: Gogledd Cymru | D8: 305,910 | E8: 306,975 | F8: 308,116 | G8: 309,386 | H8: 310,612 | I8: 311,843
B9: Newidyn Uwch | C9: Canolbarth Cymru | D9: 90,863 | E9: 90,931 | F9: 91,038 | G9: 91,187 | H9: 91,364 | I9: 91,584
B10: Newidyn Uwch | C10: De-orllewin Cymru | D10: 309,502 | E10: 311,020 | F10: 312,626 | G10: 314,385 | H10: 316,142 | I10: 317,853
B11: Newidyn Uwch | C11: De-ddwyrain Cymru | D11: 658,930 | E11: 662,896 | F11: 666,942 | G11: 671,315 | H11: 675,589 | I11: 679,871
B12: Newidyn Uwch | C12: Cymru | D12: 1,365,204 | E12: 1,371,823 | F12: 1,378,722 | G12: 1,386,273 | H12: 1,393,708 | I12: 1,401,151
B13: Newidyn Is | C13: Gogledd Cymru | D13: 305,903 | E13: 306,635 | F13: 307,372 | G13: 308,163 | H13: 308,843 | I13: 309,461
B14: Newidyn Is | C14: Canolbarth Cymru | D14: 90,860 | E14: 90,833 | F14: 90,825 | G14: 90,838 | H14: 90,861 | I14: 90,907
B15: Newidyn Is | C15: De-orllewin Cymru | D15: 309,495 | E15: 310,674 | F15: 311,869 | G15: 313,144 | H15: 314,346 | I15: 315,437
B16: Newidyn Is | C16: De-ddwyrain Cymru | D16: 658,912 | E16: 662,156 | F16: 665,295 | G16: 668,568 | H16: 671,564 | I16: 674,404
B17: Newidyn Is | C17: Cymru | D17: 1,365,170 | E17: 1,370,298 | F17: 1,375,361 | G17: 1,380,713 | H17: 1,385,613 | I17: 1,390,209
B18: Amcanestyniad Defnyddwyr | C18: Gogledd Cymru | J18: =COUNTA(D18:I18) -> 0 | K18: =IF(OR('Rhaniad y Ddeiliadaeth (Gog)'!$F$6='Rhaniad y Ddeiliadaeth (Gog)'!$B$194,'Rhaniad y Ddeiliadaeth (Gog)'!$F$6='Rhaniad y Ddeiliadaeth (Gog)'!$B$195,'Rhaniad y Ddeiliadaeth (Gog)'!$F$6='Rhaniad y Ddeiliadaeth (Gog)'!$B$196),"","<< Rhowch y data yma") -> 
B19: Amcanestyniad Defnyddwyr | C19: Canolbarth Cymru | J19: =COUNTA(D19:I19) -> 0 | K19: =IF(OR('Rhaniad y Ddeiliadaeth (Gog)'!$F$6='Rhaniad y Ddeiliadaeth (Gog)'!$B$194,'Rhaniad y Ddeiliadaeth (Gog)'!$F$6='Rhaniad y Ddeiliadaeth (Gog)'!$B$195,'Rhaniad y Ddeiliadaeth (Gog)'!$F$6='Rhaniad y Ddeiliadaeth (Gog)'!$B$196),"","<< Rhowch y data yma") -> 
B20: Amcanestyniad Defnyddwyr | C20: De-orllewin Cymru | J20: 0 | K20: =IF(OR('Rhaniad y Ddeiliadaeth (Gog)'!$F$6='Rhaniad y Ddeiliadaeth (Gog)'!$B$194,'Rhaniad y Ddeiliadaeth (Gog)'!$F$6='Rhaniad y Ddeiliadaeth (Gog)'!$B$195,'Rhaniad y Ddeiliadaeth (Gog)'!$F$6='Rhaniad y Ddeiliadaeth (Gog)'!$B$196),"","<< Rhowch y data yma") -> 
B21: Amcanestyniad Defnyddwyr | C21: De-ddwyrain Cymru | J21: 0 | K21: =IF(OR('Rhaniad y Ddeiliadaeth (Gog)'!$F$6='Rhaniad y Ddeiliadaeth (Gog)'!$B$194,'Rhaniad y Ddeiliadaeth (Gog)'!$F$6='Rhaniad y Ddeiliadaeth (Gog)'!$B$195,'Rhaniad y Ddeiliadaeth (Gog)'!$F$6='Rhaniad y Ddeiliadaeth (Gog)'!$B$196),"","<< Rhowch y data yma") -> 
B22: Amcanestyniad Defnyddwyr | C22: Cymru | J22: 0 | K22: =IF(OR('Rhaniad y Ddeiliadaeth (Gog)'!$F$6='Rhaniad y Ddeiliadaeth (Gog)'!$B$194,'Rhaniad y Ddeiliadaeth (Gog)'!$F$6='Rhaniad y Ddeiliadaeth (Gog)'!$B$195,'Rhaniad y Ddeiliadaeth (Gog)'!$F$6='Rhaniad y Ddeiliadaeth (Gog)'!$B$196),"","<< Rhowch y data yma") -> 
B24: Noder: Amcanestyniadau aelwydydd Cymru yw cyfanswm amcanestyniadau aelwydydd y pedwar rhanbarth. Efallai y bydd gwahaniaethau bach (oherwydd talgrynnu) rhwng y ffigurau hyn a'r rhai a gyhoeddir ar StatsCymru.

Sheet Angen o'r Newydd
B2: Mae'r daflen hon yn defnyddio amcanestyniadau aelwydydd i gyfrifo faint o aelwydydd sy'n ymddangos o'r newydd bob blwyddyn (y gwahaniaeth yn yr amcanestyniadau aelwydydd o un flwyddyn i'r llall). Nid oes angen ichi roi unrhyw beth ar y daflen hon. Os byddwch wedi cofnodi eich amcanestyniadau eich hunain o aelwydydd, bydd yr angen o'r newydd yn cael ei gyfrifo ar sail eich data.
B7: Angen o'r Newydd | C7: Lefel Ddaearyddol | D7: =Year1 -> 2019/20 | E7: =Year2 -> 2020/21 | F7: =Year3 -> 2021/22 | G7: =Year4 -> 2022/23 | H7: =Year5 -> 2023/24
B8: Prif Amcanestyniadau | C8: Gogledd Cymru | D8: =MAX('Amcanestyniadau Aelwydydd'!E3-'Amcanestyniadau Aelwydydd'!D3,0) -> 915 | E8: =MAX('Amcanestyniadau Aelwydydd'!F3-'Amcanestyniadau Aelwydydd'!E3,0) -> 960 | F8: =MAX('Amcanestyniadau Aelwydydd'!G3-'Amcanestyniadau Aelwydydd'!F3,0) -> 1,054 | G8: =MAX('Amcanestyniadau Aelwydydd'!H3-'Amcanestyniadau Aelwydydd'!G3,0) -> 982 | H8: =MAX('Amcanestyniadau Aelwydydd'!I3-'Amcanestyniadau Aelwydydd'!H3,0) -> 963
B9: Prif Amcanestyniadau | C9: Canolbarth Cymru | D9: =MAX('Amcanestyniadau Aelwydydd'!E4-'Amcanestyniadau Aelwydydd'!D4,0) -> 24 | E9: =MAX('Amcanestyniadau Aelwydydd'!F4-'Amcanestyniadau Aelwydydd'!E4,0) -> 55 | F9: =MAX('Amcanestyniadau Aelwydydd'!G4-'Amcanestyniadau Aelwydydd'!F4,0) -> 86 | G9: =MAX('Amcanestyniadau Aelwydydd'!H4-'Amcanestyniadau Aelwydydd'!G4,0) -> 107 | H9: =MAX('Amcanestyniadau Aelwydydd'!I4-'Amcanestyniadau Aelwydydd'!H4,0) -> 142
B10: Prif Amcanestyniadau | C10: De-orllewin Cymru | D10: =MAX('Amcanestyniadau Aelwydydd'!E5-'Amcanestyniadau Aelwydydd'!D5,0) -> 1,364 | E10: =MAX('Amcanestyniadau Aelwydydd'!F5-'Amcanestyniadau Aelwydydd'!E5,0) -> 1,421 | F10: =MAX('Amcanestyniadau Aelwydydd'!G5-'Amcanestyniadau Aelwydydd'!F5,0) -> 1,541 | G10: =MAX('Amcanestyniadau Aelwydydd'!H5-'Amcanestyniadau Aelwydydd'!G5,0) -> 1,508 | H10: =MAX('Amcanestyniadau Aelwydydd'!I5-'Amcanestyniadau Aelwydydd'!H5,0) -> 1,440
B11: Prif Amcanestyniadau | C11: De-ddwyrain Cymru | D11: =MAX('Amcanestyniadau Aelwydydd'!E6-'Amcanestyniadau Aelwydydd'!D6,0) -> 3,645 | E11: =MAX('Amcanestyniadau Aelwydydd'!F6-'Amcanestyniadau Aelwydydd'!E6,0) -> 3,645 | F11: =MAX('Amcanestyniadau Aelwydydd'!G6-'Amcanestyniadau Aelwydydd'!F6,0) -> 3,883 | G11: =MAX('Amcanestyniadau Aelwydydd'!H6-'Amcanestyniadau Aelwydydd'!G6,0) -> 3,709 | H11: =MAX('Amcanestyniadau Aelwydydd'!I6-'Amcanestyniadau Aelwydydd'!H6,0) -> 3,657
B12: Prif Amcanestyniadau | C12: Cymru | D12: =MAX('Amcanestyniadau Aelwydydd'!E7-'Amcanestyniadau Aelwydydd'!D7,0) -> 5,948 | E12: =MAX('Amcanestyniadau Aelwydydd'!F7-'Amcanestyniadau Aelwydydd'!E7,0) -> 6,080 | F12: =MAX('Amcanestyniadau Aelwydydd'!G7-'Amcanestyniadau Aelwydydd'!F7,0) -> 6,564 | G12: =MAX('Amcanestyniadau Aelwydydd'!H7-'Amcanestyniadau Aelwydydd'!G7,0) -> 6,306 | H12: =MAX('Amcanestyniadau Aelwydydd'!I7-'Amcanestyniadau Aelwydydd'!H7,0) -> 6,202
B13: Amrywiolyn Uwch | C13: =C8 -> Gogledd Cymru | D13: =MAX('Amcanestyniadau Aelwydydd'!E8-'Amcanestyniadau Aelwydydd'!D8,0) -> 1,066 | E13: =MAX('Amcanestyniadau Aelwydydd'!F8-'Amcanestyniadau Aelwydydd'!E8,0) -> 1,141 | F13: =MAX('Amcanestyniadau Aelwydydd'!G8-'Amcanestyniadau Aelwydydd'!F8,0) -> 1,270 | G13: =MAX('Amcanestyniadau Aelwydydd'!H8-'Amcanestyniadau Aelwydydd'!G8,0) -> 1,227 | H13: =MAX('Amcanestyniadau Aelwydydd'!I8-'Amcanestyniadau Aelwydydd'!H8,0) -> 1,230
B14: Amrywiolyn Uwch | C14: =C9 -> Canolbarth Cymru | D14: =MAX('Amcanestyniadau Aelwydydd'!E9-'Amcanestyniadau Aelwydydd'!D9,0) -> 68 | E14: =MAX('Amcanestyniadau Aelwydydd'!F9-'Amcanestyniadau Aelwydydd'!E9,0) -> 107 | F14: =MAX('Amcanestyniadau Aelwydydd'!G9-'Amcanestyniadau Aelwydydd'!F9,0) -> 149 | G14: =MAX('Amcanestyniadau Aelwydydd'!H9-'Amcanestyniadau Aelwydydd'!G9,0) -> 178 | H14: =MAX('Amcanestyniadau Aelwydydd'!I9-'Amcanestyniadau Aelwydydd'!H9,0) -> 220
B15: Amrywiolyn Uwch | C15: De-orllewin Cymru | D15: =MAX('Amcanestyniadau Aelwydydd'!E10-'Amcanestyniadau Aelwydydd'!D10,0) -> 1,518 | E15: =MAX('Amcanestyniadau Aelwydydd'!F10-'Amcanestyniadau Aelwydydd'!E10,0) -> 1,605 | F15: =MAX('Amcanestyniadau Aelwydydd'!G10-'Amcanestyniadau Aelwydydd'!F10,0) -> 1,760 | G15: =MAX('Amcanestyniadau Aelwydydd'!H10-'Amcanestyniadau Aelwydydd'!G10,0) -> 1,757 | H15: =MAX('Amcanestyniadau Aelwydydd'!I10-'Amcanestyniadau Aelwydydd'!H10,0) -> 1,711
B16: Amrywiolyn Uwch | C16: De-ddwyrain Cymru | D16: =MAX('Amcanestyniadau Aelwydydd'!E11-'Amcanestyniadau Aelwydydd'!D11,0) -> 3,966 | E16: =MAX('Amcanestyniadau Aelwydydd'!F11-'Amcanestyniadau Aelwydydd'!E11,0) -> 4,045 | F16: =MAX('Amcanestyniadau Aelwydydd'!G11-'Amcanestyniadau Aelwydydd'!F11,0) -> 4,373 | G16: =MAX('Amcanestyniadau Aelwydydd'!H11-'Amcanestyniadau Aelwydydd'!G11,0) -> 4,274 | H16: =MAX('Amcanestyniadau Aelwydydd'!I11-'Amcanestyniadau Aelwydydd'!H11,0) -> 4,282
B17: Amrywiolyn Uwch | C17: Cymru | D17: =MAX('Amcanestyniadau Aelwydydd'!E12-'Amcanestyniadau Aelwydydd'!D12,0) -> 6,619 | E17: =MAX('Amcanestyniadau Aelwydydd'!F12-'Amcanestyniadau Aelwydydd'!E12,0) -> 6,899 | F17: =MAX('Amcanestyniadau Aelwydydd'!G12-'Amcanestyniadau Aelwydydd'!F12,0) -> 7,551 | G17: =MAX('Amcanestyniadau Aelwydydd'!H12-'Amcanestyniadau Aelwydydd'!G12,0) -> 7,435 | H17: =MAX('Amcanestyniadau Aelwydydd'!I12-'Amcanestyniadau Aelwydydd'!H12,0) -> 7,443
B18: Amrywiolyn Is | C18: =C13 -> Gogledd Cymru | D18: =MAX('Amcanestyniadau Aelwydydd'!E13-'Amcanestyniadau Aelwydydd'!D13,0) -> 732 | E18: =MAX('Amcanestyniadau Aelwydydd'!F13-'Amcanestyniadau Aelwydydd'!E13,0) -> 737 | F18: =MAX('Amcanestyniadau Aelwydydd'!G13-'Amcanestyniadau Aelwydydd'!F13,0) -> 791 | G18: =MAX('Amcanestyniadau Aelwydydd'!H13-'Amcanestyniadau Aelwydydd'!G13,0) -> 679 | H18: =MAX('Amcanestyniadau Aelwydydd'!I13-'Amcanestyniadau Aelwydydd'!H13,0) -> 619
B19: Amrywiolyn Is | C19: Canolbarth Cymru | D19: =MAX('Amcanestyniadau Aelwydydd'!E14-'Amcanestyniadau Aelwydydd'!D14,0) -> 0 | E19: =MAX('Amcanestyniadau Aelwydydd'!F14-'Amcanestyniadau Aelwydydd'!E14,0) -> 0 | F19: =MAX('Amcanestyniadau Aelwydydd'!G14-'Amcanestyniadau Aelwydydd'!F14,0) -> 13 | G19: =MAX('Amcanestyniadau Aelwydydd'!H14-'Amcanestyniadau Aelwydydd'!G14,0) -> 23 | H19: =MAX('Amcanestyniadau Aelwydydd'!I14-'Amcanestyniadau Aelwydydd'!H14,0) -> 46
B20: Amrywiolyn Is | C20: De-orllewin Cymru | D20: =MAX('Amcanestyniadau Aelwydydd'!E15-'Amcanestyniadau Aelwydydd'!D15,0) -> 1,179 | E20: =MAX('Amcanestyniadau Aelwydydd'!F15-'Amcanestyniadau Aelwydydd'!E15,0) -> 1,195 | F20: =MAX('Amcanestyniadau Aelwydydd'!G15-'Amcanestyniadau Aelwydydd'!F15,0) -> 1,275 | G20: =MAX('Amcanestyniadau Aelwydydd'!H15-'Amcanestyniadau Aelwydydd'!G15,0) -> 1,202 | H20: =MAX('Amcanestyniadau Aelwydydd'!I15-'Amcanestyniadau Aelwydydd'!H15,0) -> 1,091
B21: Amrywiolyn Is | C21: De-ddwyrain Cymru | D21: =MAX('Amcanestyniadau Aelwydydd'!E16-'Amcanestyniadau Aelwydydd'!D16,0) -> 3,245 | E21: =MAX('Amcanestyniadau Aelwydydd'!F16-'Amcanestyniadau Aelwydydd'!E16,0) -> 3,139 | F21: =MAX('Amcanestyniadau Aelwydydd'!G16-'Amcanestyniadau Aelwydydd'!F16,0) -> 3,273 | G21: =MAX('Amcanestyniadau Aelwydydd'!H16-'Amcanestyniadau Aelwydydd'!G16,0) -> 2,996 | H21: =MAX('Amcanestyniadau Aelwydydd'!I16-'Amcanestyniadau Aelwydydd'!H16,0) -> 2,840
B22: Amrywiolyn Is | C22: Cymru | D22: =MAX('Amcanestyniadau Aelwydydd'!E17-'Amcanestyniadau Aelwydydd'!D17,0) -> 5,128 | E22: =MAX('Amcanestyniadau Aelwydydd'!F17-'Amcanestyniadau Aelwydydd'!E17,0) -> 5,063 | F22: =MAX('Amcanestyniadau Aelwydydd'!G17-'Amcanestyniadau Aelwydydd'!F17,0) -> 5,352 | G22: =MAX('Amcanestyniadau Aelwydydd'!H17-'Amcanestyniadau Aelwydydd'!G17,0) -> 4,900 | H22: =MAX('Amcanestyniadau Aelwydydd'!I17-'Amcanestyniadau Aelwydydd'!H17,0) -> 4,596 | J22: =SUM(D22:H22)+'Amcanestyniadau Aelwydydd'!D17-'Amcanestyniadau Aelwydydd'!I17 -> 0
B23: Amcanestyniadau Defnyddwyr | C23: =C18 -> Gogledd Cymru | D23: =MAX('Amcanestyniadau Aelwydydd'!E18-'Amcanestyniadau Aelwydydd'!D18,0) -> 0 | E23: =MAX('Amcanestyniadau Aelwydydd'!F18-'Amcanestyniadau Aelwydydd'!E18,0) -> 0 | F23: =MAX('Amcanestyniadau Aelwydydd'!G18-'Amcanestyniadau Aelwydydd'!F18,0) -> 0 | G23: =MAX('Amcanestyniadau Aelwydydd'!H18-'Amcanestyniadau Aelwydydd'!G18,0) -> 0 | H23: =MAX('Amcanestyniadau Aelwydydd'!I18-'Amcanestyniadau Aelwydydd'!H18,0) -> 0
B24: Amcanestyniadau Defnyddwyr | C24: =C19 -> Canolbarth Cymru | D24: =MAX('Amcanestyniadau Aelwydydd'!E19-'Amcanestyniadau Aelwydydd'!D19,0) -> 0 | E24: =MAX('Amcanestyniadau Aelwydydd'!F19-'Amcanestyniadau Aelwydydd'!E19,0) -> 0 | F24: =MAX('Amcanestyniadau Aelwydydd'!G19-'Amcanestyniadau Aelwydydd'!F19,0) -> 0 | G24: =MAX('Amcanestyniadau Aelwydydd'!H19-'Amcanestyniadau Aelwydydd'!G19,0) -> 0 | H24: =MAX('Amcanestyniadau Aelwydydd'!I19-'Amcanestyniadau Aelwydydd'!H19,0) -> 0
B25: Amcanestyniadau Defnyddwyr | C25: De-orllewin Cymru | D25: =MAX('Amcanestyniadau Aelwydydd'!E20-'Amcanestyniadau Aelwydydd'!D20,0) -> 0 | E25: =MAX('Amcanestyniadau Aelwydydd'!F20-'Amcanestyniadau Aelwydydd'!E20,0) -> 0 | F25: =MAX('Amcanestyniadau Aelwydydd'!G20-'Amcanestyniadau Aelwydydd'!F20,0) -> 0 | G25: =MAX('Amcanestyniadau Aelwydydd'!H20-'Amcanestyniadau Aelwydydd'!G20,0) -> 0 | H25: =MAX('Amcanestyniadau Aelwydydd'!I20-'Amcanestyniadau Aelwydydd'!H20,0) -> 0
B26: Amcanestyniadau Defnyddwyr | C26: De-ddwyrain Cymru | D26: =MAX('Amcanestyniadau Aelwydydd'!E21-'Amcanestyniadau Aelwydydd'!D21,0) -> 0 | E26: =MAX('Amcanestyniadau Aelwydydd'!F21-'Amcanestyniadau Aelwydydd'!E21,0) -> 0 | F26: =MAX('Amcanestyniadau Aelwydydd'!G21-'Amcanestyniadau Aelwydydd'!F21,0) -> 0 | G26: =MAX('Amcanestyniadau Aelwydydd'!H21-'Amcanestyniadau Aelwydydd'!G21,0) -> 0 | H26: =MAX('Amcanestyniadau Aelwydydd'!I21-'Amcanestyniadau Aelwydydd'!H21,0) -> 0
B27: Amcanestyniadau Defnyddwyr | C27: Cymru | D27: =SUM(D23:D26) -> 0 | E27: =SUM(E23:E26) -> 0 | F27: 0 | G27: 0 | H27: 0
B29: Noder: O dan yr amrywiolyn is, mae swm yr angen o'r newydd ar gyfer y pedair rhanbarth yn fwy na Chymru. Mae'r angen o'r newydd yng nghanolbarth Cymru yn negyddol ar gyfer 2019/20 a 2020/21 ac mae'r ffigurau negatif hyn wedi'u cynnwys yn ffigurau Cymru ond wedi'u pennu i sero ar gyfer rhanbarth Canolbarth Cymru (dangosir fel "-" uchod).

Sheet Angen Presennol Nas Diwallwyd
B2: Mae'r daflen hon yn cynnwys y rhagdybiaethau wedi'u rhagosod (fel sy'n cael ei egluro yn y daflen canllawiau ar newidynnau) ar gyfer amcangyfrifon o'r angen presennol nas diwallwyd. Os byddwch wedi dewis mewngofnodi eich data eich hunain, cewch eich atgoffa o dan y newidynnau perthnasol i roi eich data. Cyfeiriwch at y Canllawiau ar Newidynnau i gael rhagor o wybodaeth.
B6: Angen Presennol Nas Diwallwyd
B7: Amcangyfrifon LlC
B8: Lefel Ddaearyddol | C8: Cyfanswm | D8: …ac o'r rhain, y nifer sy'n Gudd ac yn Orlawn | E8: …ac o'r rhain, y nifer sy'n Aelwydydd Digartref mewn Llety Dros Dro
B9: Gogledd | C9: =D9+E9 -> 1,284 | D9: 735 | E9: 549
B10: Canolbarth | C10: =D10+E10 -> 251 | D10: 167 | E10: 84
B11: De-orllewin | C11: 938 | D11: 695 | E11: 243
B12: De-ddwyrain | C12: 3,253 | D12: 1,906 | E12: 1,347
B13: Cymru | C13: 5,732 | D13: 3,503 | E13: 2,229
E14: Mae'r ffigurau wedi'u talgrynnu i'r 3 agosaf ac efallai na fydd cyfanswm y ffigurau rhanbarthol yn cyfateb i gyfanswm Cymru.
B16: Blynyddoedd i gael gwared ar yr ôl groniad | C16: 5
B18: Amcangyfrifon Defnyddwyr
B19: Lefel Ddaearyddol | C19: Cyfanswm
B20: Gogledd | D20: =IF(AND('Rhaniad y Ddeiliadaeth (Gog)'!$D$7="Other",ISBLANK(C20)),"<< Rhowch y data yma","") -> 
B21: Canolbarth | D21: =IF(AND('Rhaniad y Ddeiliadaeth (Gog)'!$D$7="Other",ISBLANK(C21)),"<< Rhowch y data yma","") -> 
B22: De-orllewin | D22: =IF(AND('Rhaniad y Ddeiliadaeth (Gog)'!$D$7="Other",ISBLANK(C22)),"<< Rhowch y data yma","") -> 
B23: De-ddwyrain | D23: =IF(AND('Rhaniad y Ddeiliadaeth (Gog)'!$D$7="Other",ISBLANK(C23)),"<< Rhowch y data yma","") -> 
B24: Cyfanswm Cymru | D24: =IF(AND('Rhaniad y Ddeiliadaeth (Gog)'!$D$7="Other",ISBLANK(C24)),"<< Rhowch y data yma","") -> 
B27: Blynyddoedd i gael gwared ar yr ôl groniad | D27: =IF(OR('Rhaniad y Ddeiliadaeth (Cymru)'!F12='Rhaniad y Ddeiliadaeth (Cymru)'!$B$194,'Rhaniad y Ddeiliadaeth (Cymru)'!F12='Rhaniad y Ddeiliadaeth (Cymru)'!$B$195,'Rhaniad y Ddeiliadaeth (Cymru)'!F12='Rhaniad y Ddeiliadaeth (Cymru)'!$B$196),"","<< Rhowch y data yma") -> 
B29: Ffigur i'w ddefnyddio: | C29: =IF('Rhaniad y Ddeiliadaeth (Cymru)'!D12="Wedi'i ragosod",C16,C27) -> 5

Sheet Rhagdybiaeth Blynyddol
B2: Mae'r daflen hon yn cynnwys y rhagdybiaethau wedi'u rhagosod (fel sy'n cael ei egluro yn y daflen canllawiau ar newidynnau) ar gyfer yr holl newidynnau sy'n aros yr un fath dros gyfnod yr amcangyfrifon. Os byddwch wedi dewis mewngofnodi eich data eich hunain, cewch eich atgoffa o dan y newidynnau perthnasol i roi eich data. Cyfeiriwch at y Canllawiau ar Newidynnau i gael rhagor o wybodaeth.
B7: Newidynnau sydd eu hangen i gynhyrchu amcangyfrifon wedi eu rhannu i ddwy ddeiliadaeth | C7: Meini Prawf Fforddiadwyedd (Marchnad)
C8: Wedi'i ragosod | D8: 30%
C9: Gwerth Defnyddiwr | E9: =IF(OR('Rhaniad y Ddeiliadaeth (Cymru)'!F11='Rhaniad y Ddeiliadaeth (Cymru)'!$B$194,'Rhaniad y Ddeiliadaeth (Cymru)'!F11='Rhaniad y Ddeiliadaeth (Cymru)'!$B$195,'Rhaniad y Ddeiliadaeth (Cymru)'!F11='Rhaniad y Ddeiliadaeth (Cymru)'!$B$196),"","<< Rhowch y data yma") -> 
B10: Newidynnau sydd eu hangen i gynhyrchu amcangyfrifon wedi eu rhannu i bedair deiliadaeth | C10: Canradd Mynediad y farchnad ar gyfer y Prynwyr sy'n Prynu Eiddo am y Tro Cyntaf
C11: Wedi'i ragosod | D11: 4.0
C12: Gwerth Defnyddiwr | E12: =IF(OR('Rhaniad y Ddeiliadaeth (Cymru)'!F20='Rhaniad y Ddeiliadaeth (Cymru)'!$B$194,'Rhaniad y Ddeiliadaeth (Cymru)'!F20='Rhaniad y Ddeiliadaeth (Cymru)'!$B$195,'Rhaniad y Ddeiliadaeth (Cymru)'!F20='Rhaniad y Ddeiliadaeth (Cymru)'!$B$196),"","<< Rhowch y data yma") -> 
C13: Canradd y Prynwyr sy'n Prynu Eiddo am y Tro Cyntaf
C14: Wedi'i ragosod (1) | D14: 25
C15: Wedi'i ragosod (2) | D15: 40
C16: Gwerth Defnyddiwr | E16: =IF(OR('Rhaniad y Ddeiliadaeth (Cymru)'!F21='Rhaniad y Ddeiliadaeth (Cymru)'!$B$194,'Rhaniad y Ddeiliadaeth (Cymru)'!F21='Rhaniad y Ddeiliadaeth (Cymru)'!$B$195,'Rhaniad y Ddeiliadaeth (Cymru)'!F21='Rhaniad y Ddeiliadaeth (Cymru)'!$B$196),"","<< Rhowch y data yma") -> 
C17: Canran y Prynwyr am y Tro Cyntaf sy'n mynd ymlaen i brynu eiddo
C18: Gwerth Defnyddiwr | E18: =IF(OR('Rhaniad y Ddeiliadaeth (Cymru)'!F22='Rhaniad y Ddeiliadaeth (Cymru)'!$B$194,'Rhaniad y Ddeiliadaeth (Cymru)'!F22='Rhaniad y Ddeiliadaeth (Cymru)'!$B$195,'Rhaniad y Ddeiliadaeth (Cymru)'!F22='Rhaniad y Ddeiliadaeth (Cymru)'!$B$196),"","<< Rhowch y data yma") -> << Rhowch y data yma
C19: Meini Prawf Fforddiadwyedd (Cymdeithasol)
C20: Wedi'i ragosod | D20: 35%
C21: Gwerth Defnyddiwr | E21: =IF(OR('Rhaniad y Ddeiliadaeth (Cymru)'!F23='Rhaniad y Ddeiliadaeth (Cymru)'!$B$194,'Rhaniad y Ddeiliadaeth (Cymru)'!F23='Rhaniad y Ddeiliadaeth (Cymru)'!$B$195,'Rhaniad y Ddeiliadaeth (Cymru)'!F23='Rhaniad y Ddeiliadaeth (Cymru)'!$B$196),"","<< Rhowch y data yma") -> 

Sheet Rhagolygon y Dyfodol
B2: Mae'r daflen hon yn cynnwys y rhagdybiaethau wedi'u rhagosod (fel sy'n cael ei egluro yn y daflen canllawiau ar newidynnau) ar gyfer y newidynnau hynny a all gael ffigur blynyddol gwahanol. Os byddwch wedi dewis mewngofnodi eich data eich hunain, cewch eich atgoffa o dan y newidynnau perthnasol i roi eich data. Cyfeiriwch at y Canllawiau ar Newidynnau i gael rhagor o wybodaeth.
B7: Incwm | D7: =Year1 -> 2019/20 | E7: =Year2 -> 2020/21 | F7: =Year3 -> 2021/22 | G7: =Year4 -> 2022/23 | H7: =Year5 -> 2023/24
B8: 1. Newid i incwm canolrifol yr aelwyd
B9: Yn seiliedig ar incwm gwario yr aelwyd
B10: OBR (2020 Outlook Supplementary tables, 1.13) | C10: Wedi'i ragosod | D10: 2.24% | E10: 3.43% | F10: 3.42% | G10: 3.47% | H10: 3.45%
B11: Rhagolygon defnyddwyr | C11: Arall | I11: =COUNTA(D11:H11) -> 0 | K11: =IF(OR('Rhaniad y Ddeiliadaeth (Cymru)'!F14='Rhaniad y Ddeiliadaeth (Cymru)'!$B$194,'Rhaniad y Ddeiliadaeth (Cymru)'!F14='Rhaniad y Ddeiliadaeth (Cymru)'!$B$195,'Rhaniad y Ddeiliadaeth (Cymru)'!F14='Rhaniad y Ddeiliadaeth (Cymru)'!$B$196),"","<< Rhowch eich data yma") -> 
B13: 2. Newid i ddosbarthiad incwm yr aelwyd
B14: Mwy o Anghydraddoldeb | C14: Mwy o anghydraddoldeb | D14: 1.00% | E14: =D14 -> 1.00% | F14: =D14 -> 1.00% | G14: =D14 -> 1.00% | H14: =D14 -> 1.00%
B15: Dim Newid | C15: Dim newid | D15: 0.00% | E15: 0.00% | F15: 0.00% | G15: 0.00% | H15: 0.00%
B16: Rhagolygon defnyddwyr | C16: Arall | I16: =COUNTA(D16:H16) -> 0 | K16: =IF(OR('Rhaniad y Ddeiliadaeth (Cymru)'!F15='Rhaniad y Ddeiliadaeth (Cymru)'!$B$194,'Rhaniad y Ddeiliadaeth (Cymru)'!F15='Rhaniad y Ddeiliadaeth (Cymru)'!$B$195,'Rhaniad y Ddeiliadaeth (Cymru)'!F15='Rhaniad y Ddeiliadaeth (Cymru)'!$B$196),"","<< Rhowch eich data yma") -> 
B18: Prisiau Rhenti
B19: 4. Newid i brisiau rhenti preifat
B20: Yn seiliedig ar % dwf enillion cyfartalog
B21: OBR (2020 Outlook Supplementary tables, 1.6) | C21: Wedi'i ragosod | D21: 2.95% | E21: 3.06% | F21: 3.12% | G21: 3.17% | H21: 3.29%
B22: Rhagolygon defnyddwyr | C22: Arall | I22: =COUNTA(D22:H22) -> 0 | K22: =IF(OR('Rhaniad y Ddeiliadaeth (Cymru)'!F16='Rhaniad y Ddeiliadaeth (Cymru)'!$B$194,'Rhaniad y Ddeiliadaeth (Cymru)'!F16='Rhaniad y Ddeiliadaeth (Cymru)'!$B$195,'Rhaniad y Ddeiliadaeth (Cymru)'!F16='Rhaniad y Ddeiliadaeth (Cymru)'!$B$196),"","<<Rhowch eich data yma") -> 
B24: Prisiau Tai
B25: 3. Newid i brisiau tai
B26: Yn seiliedig ar Fynegai Prisiau Tai (% y newid ar y flwyddyn flaenorol)
B27: OBR (2020 Outlook Supplementary tables, 1.21) | C27: Wedi'i ragosod | D27: 4.80% | E27: 5.83% | F27: 7.06% | G27: 5.44% | H27: 4.22%
B28: Rhagolygon defnyddwyr | C28: Arall | I28: =COUNTA(D28:H28) -> 0 | K28: =IF(OR('Rhaniad y Ddeiliadaeth (Cymru)'!F25='Rhaniad y Ddeiliadaeth (Cymru)'!$B$194,'Rhaniad y Ddeiliadaeth (Cymru)'!F25='Rhaniad y Ddeiliadaeth (Cymru)'!$B$195,'Rhaniad y Ddeiliadaeth (Cymru)'!F25='Rhaniad y Ddeiliadaeth (Cymru)'!$B$196),"","<< Rhowch eich data yma") -> 

Sheet Prisiau Rhenti
B2: Mae'r daflen hon yn cynnwys y rhagdybiaethau wedi'u rhagosod (fel sy'n cael ei egluro yn y daflen canllawiau ar newidynnau) ar gyfer gwerthoedd rhenti 30 canradd a chanolrifol. Os byddwch wedi dewis mewngofnodi eich data eich hunain, cewch eich atgoffa o dan y newidynnau perthnasol i roi eich data. Cyfeiriwch at y Canllawiau ar Newidynnau i gael rhagor o wybodaeth. Mae'r ffigyrau yn cyfeirio at 2018/19.
B7: Cymru | C7: 2018/19
C8: 30 Canradd | D8: Canolrif
B9: Prisiau Rhenti | C9: £5,700 | D9: £6,300
B10: Arall
B12: Gogledd Cymru
C13: 30 Canradd | D13: Canolrif
B14: Prisiau Rhenti | C14: £6,000 | D14: £6,600
B15: Arall
B17: Canolbarth Cymru
C18: 30 Canradd | D18: Canolrif
B19: Prisiau Rhenti | C19: £5,400 | D19: £6,240
B20: Arall
B22: De-orllewin Cymru
C23: 30 Canradd | D23: Canolrif
B24: Prisiau Rhenti | C24: £5,400 | D24: £6,000
B25: Arall
B27: De-ddwyrain Cymru
C28: 30 Canradd | D28: Canolrif
B29: Prisiau Rhenti | C29: £5,700 | D29: £6,600
B30: Arall

Sheet Incwm (Cymru)
B2: Dosbarthiad Incwm Wedi'i Ragosod - Cymru | K2: Dosbarthiad incwm defnyddwyr | V2: User Income Distribution | AC2: Dosbarthiad Incwm a Ddewiswyd (unai LlC neu defnyddwyr)
B3: Canradd | C3: 2017/18 | D3: 2018/19 | E3: 2019/20 | F3: 2020/21 | G3: 2021/22 | H3: 2022/23 | I3: 2023/24 | M3: Canradd | N3: =L4 -> 0 | O3: Blank? | V3: 2017 | W3: 2018 | X3: 2019 | Y3: 2020 | Z3: 2021 | AA3: 2022 | AD3: =E3 -> 2019/20 | AE3: =F3 -> 2020/21 | AF3: 2021/22 | AG3: 2022/23 | AH3: 2023/24
B4: 10 | C4: £11,621 | D4: £11,903 | E4: =D4*(1+'Rhaniad y Ddeiliadaeth (Cymru)'!C$109)+(D$44*(-(50-$B4)*('Rhaniad y Ddeiliadaeth (Cymru)'!C$110/40))) -> £11,906 | F4: =E4*(1+'Rhaniad y Ddeiliadaeth (Cymru)'!D$109)+(E$44*(-(50-$B4)*('Rhaniad y Ddeiliadaeth (Cymru)'!D$110/40))) -> £12,043 | G4: =F4*(1+'Rhaniad y Ddeiliadaeth (Cymru)'!E$109)+(F$44*(-(50-$B4)*('Rhaniad y Ddeiliadaeth (Cymru)'!E$110/40))) -> £12,174 | H4: =G4*(1+'Rhaniad y Ddeiliadaeth (Cymru)'!F$109)+(G$44*(-(50-$B4)*('Rhaniad y Ddeiliadaeth (Cymru)'!F$110/40))) -> £12,306 | I4: =H4*(1+'Rhaniad y Ddeiliadaeth (Cymru)'!G$109)+(H$44*(-(50-$B4)*('Rhaniad y Ddeiliadaeth (Cymru)'!G$110/40))) -> £12,431 | K4: =IF('Rhaniad y Ddeiliadaeth (Cymru)'!D8="Arall","Dewiswch data ar gyfer pa flwyddyn:","") ->  | M4: =IF(ISBLANK($L$4),"",B4) ->  | O4: =IF(ISBLANK(N4),1,0) -> 1 | P4: =IF(K4="","","<< Rhowch y gwerthoedd yma.") ->  | U4: =B4 -> 10 | V4: =IF($N$3=$V$3,N4,"") ->  | W4: =IF($W$3=$N$3,N4,V4*(1+'Rhaniad y Ddeiliadaeth (Cymru)'!C$109)+(V$44*(-(50-$U4)*('Rhaniad y Ddeiliadaeth (Cymru)'!C$110/40)))) ->  | X4: =W4*(1+'Rhaniad y Ddeiliadaeth (Cymru)'!D$109)+(W$44*(-(50-$U4)*('Rhaniad y Ddeiliadaeth (Cymru)'!D$110/40))) ->  | Y4: =X4*(1+'Rhaniad y Ddeiliadaeth (Cymru)'!E$109)+(X$44*(-(50-$U4)*('Rhaniad y Ddeiliadaeth (Cymru)'!E$110/40))) ->  | Z4: =Y4*(1+'Rhaniad y Ddeiliadaeth (Cymru)'!F$109)+(Y$44*(-(50-$U4)*('Rhaniad y Ddeiliadaeth (Cymru)'!F$110/40))) ->  | AA4: =Z4*(1+'Rhaniad y Ddeiliadaeth (Cymru)'!G$109)+(Z$44*(-(50-$U4)*('Rhaniad y Ddeiliadaeth (Cymru)'!G$110/40))) ->  | AC4: 10 | AD4: =IF('Rhaniad y Ddeiliadaeth (Cymru)'!$D$8="Amcangyfrifon LlC",'Incwm (Cymru)'!E4,'Incwm (Cymru)'!W4) -> £11,906 | AE4: =IF('Rhaniad y Ddeiliadaeth (Cymru)'!$D$8="Amcangyfrifon LlC",'Incwm (Cymru)'!F4,'Incwm (Cymru)'!X4) -> £12,043 | AF4: =IF('Rhaniad y Ddeiliadaeth (Cymru)'!$D$8="Amcangyfrifon LlC",'Incwm (Cymru)'!G4,'Incwm (Cymru)'!Y4) -> £12,174 | AG4: =IF('Rhaniad y Ddeiliadaeth (Cymru)'!$D$8="Amcangyfrifon LlC",'Incwm (Cymru)'!H4,'Incwm (Cymru)'!Z4) -> £12,306 | AH4: =IF('Rhaniad y Ddeiliadaeth (Cymru)'!$D$8="Amcangyfrifon LlC",'Incwm (Cymru)'!I4,'Incwm (Cymru)'!AA4) -> £12,431
B5: 11 | C5: £12,235 | D5: £12,532 | E5: =D5*(1+'Rhaniad y Ddeiliadaeth (Cymru)'!C$109)+(D$44*(-(50-$B5)*('Rhaniad y Ddeiliadaeth (Cymru)'!C$110/40))) -> £12,555 | F5: =E5*(1+'Rhaniad y Ddeiliadaeth (Cymru)'!D$109)+(E$44*(-(50-$B5)*('Rhaniad y Ddeiliadaeth (Cymru)'!D$110/40))) -> £12,721 | G5: =F5*(1+'Rhaniad y Ddeiliadaeth (Cymru)'!E$109)+(F$44*(-(50-$B5)*('Rhaniad y Ddeiliadaeth (Cymru)'!E$110/40))) -> £12,883 | H5: =G5*(1+'Rhaniad y Ddeiliadaeth (Cymru)'!F$109)+(G$44*(-(50-$B5)*('Rhaniad y Ddeiliadaeth (Cymru)'!F$110/40))) -> £13,047 | I5: =H5*(1+'Rhaniad y Ddeiliadaeth (Cymru)'!G$109)+(H$44*(-(50-$B5)*('Rhaniad y Ddeiliadaeth (Cymru)'!G$110/40))) -> £13,204 | K5: =IF(K4="","","Dim ond data ar gyfer un blwyddyn sydd angen (naill ai 2017 neu 2018)") ->  | O5: =IF(ISBLANK(N5),1,0) -> 1 | U5: 11 | W5: =IF($W$3=$N$3,N5,V5*(1+'Rhaniad y Ddeiliadaeth (Cymru)'!C$109)+(V$44*(-(50-$U5)*('Rhaniad y Ddeiliadaeth (Cymru)'!C$110/40)))) ->  | X5: =W5*(1+'Rhaniad y Ddeiliadaeth (Cymru)'!D$109)+(W$44*(-(50-$U5)*('Rhaniad y Ddeiliadaeth (Cymru)'!D$110/40))) ->  | Y5: =X5*(1+'Rhaniad y Ddeiliadaeth (Cymru)'!E$109)+(X$44*(-(50-$U5)*('Rhaniad y Ddeiliadaeth (Cymru)'!E$110/40))) ->  | Z5: =Y5*(1+'Rhaniad y Ddeiliadaeth (Cymru)'!F$109)+(Y$44*(-(50-$U5)*('Rhaniad y Ddeiliadaeth (Cymru)'!F$110/40))) ->  | AA5: =Z5*(1+'Rhaniad y Ddeiliadaeth (Cymru)'!G$109)+(Z$44*(-(50-$U5)*('Rhaniad y Ddeiliadaeth (Cymru)'!G$110/40))) ->  | AC5: 11 | AD5: =IF('Rhaniad y Ddeiliadaeth (Cymru)'!$D$8="Amcangyfrifon LlC",'Incwm (Cymru)'!E5,'Incwm (Cymru)'!W5) -> £12,555 | AE5: =IF('Rhaniad y Ddeiliadaeth (Cymru)'!$D$8="Amcangyfrifon LlC",'Incwm (Cymru)'!F5,'Incwm (Cymru)'!X5) -> £12,721 | AF5: =IF('Rhaniad y Ddeiliadaeth (Cymru)'!$D$8="Amcangyfrifon LlC",'Incwm (Cymru)'!G5,'Incwm (Cymru)'!Y5) -> £12,883 | AG5: =IF('Rhaniad y Ddeiliadaeth (Cymru)'!$D$8="Amcangyfrifon LlC",'Incwm (Cymru)'!H5,'Incwm (Cymru)'!Z5) -> £13,047 | AH5: =IF('Rhaniad y Ddeiliadaeth (Cymru)'!$D$8="Amcangyfrifon LlC",'Incwm (Cymru)'!I5,'Incwm (Cymru)'!AA5) -> £13,204
B6: 12 | C6: £12,633 | D6: £12,940 | E6: =D6*(1+'Rhaniad y Ddeiliadaeth (Cymru)'!C$109)+(D$44*(-(50-$B6)*('Rhaniad y Ddeiliadaeth (Cymru)'!C$110/40))) -> £12,979 | F6: =E6*(1+'Rhaniad y Ddeiliadaeth (Cymru)'!D$109)+(E$44*(-(50-$B6)*('Rhaniad y Ddeiliadaeth (Cymru)'!D$110/40))) -> £13,166 | G6: =F6*(1+'Rhaniad y Ddeiliadaeth (Cymru)'!E$109)+(F$44*(-(50-$B6)*('Rhaniad y Ddeiliadaeth (Cymru)'!E$110/40))) -> £13,350 | H6: =G6*(1+'Rhaniad y Ddeiliadaeth (Cymru)'!F$109)+(G$44*(-(50-$B6)*('Rhaniad y Ddeiliadaeth (Cymru)'!F$110/40))) -> £13,537 | I6: =H6*(1+'Rhaniad y Ddeiliadaeth (Cymru)'!G$109)+(H$44*(-(50-$B6)*('Rhaniad y Ddeiliadaeth (Cymru)'!G$110/40))) -> £13,719 | O6: 1 | U6: 12 | W6: =IF($W$3=$N$3,N6,V6*(1+'Rhaniad y Ddeiliadaeth (Cymru)'!C$109)+(V$44*(-(50-$U6)*('Rhaniad y Ddeiliadaeth (Cymru)'!C$110/40)))) ->  | X6: =W6*(1+'Rhaniad y Ddeiliadaeth (Cymru)'!D$109)+(W$44*(-(50-$U6)*('Rhaniad y Ddeiliadaeth (Cymru)'!D$110/40))) ->  | Y6: =X6*(1+'Rhaniad y Ddeiliadaeth (Cymru)'!E$109)+(X$44*(-(50-$U6)*('Rhaniad y Ddeiliadaeth (Cymru)'!E$110/40))) ->  | Z6: =Y6*(1+'Rhaniad y Ddeiliadaeth (Cymru)'!F$109)+(Y$44*(-(50-$U6)*('Rhaniad y Ddeiliadaeth (Cymru)'!F$110/40))) ->  | AA6: =Z6*(1+'Rhaniad y Ddeiliadaeth (Cymru)'!G$109)+(Z$44*(-(50-$U6)*('Rhaniad y Ddeiliadaeth (Cymru)'!G$110/40))) ->  | AC6: 12 | AD6: =IF('Rhaniad y Ddeiliadaeth (Cymru)'!$D$8="Amcangyfrifon LlC",'Incwm (Cymru)'!E6,'Incwm (Cymru)'!W6) -> £12,979 | AE6: =IF('Rhaniad y Ddeiliadaeth (Cymru)'!$D$8="Amcangyfrifon LlC",'Incwm (Cymru)'!F6,'Incwm (Cymru)'!X6) -> £13,166 | AF6: =IF('Rhaniad y Ddeiliadaeth (Cymru)'!$D$8="Amcangyfrifon LlC",'Incwm (Cymru)'!G6,'Incwm (Cymru)'!Y6) -> £13,350 | AG6: =IF('Rhaniad y Ddeiliadaeth (Cymru)'!$D$8="Amcangyfrifon LlC",'Incwm (Cymru)'!H6,'Incwm (Cymru)'!Z6) -> £13,537 | AH6: =IF('Rhaniad y Ddeiliadaeth (Cymru)'!$D$8="Amcangyfrifon LlC",'Incwm (Cymru)'!I6,'Incwm (Cymru)'!AA6) -> £13,719
B7: 13 | C7: £12,919 | D7: £13,233 | E7: =D7*(1+'Rhaniad y Ddeiliadaeth (Cymru)'!C$109)+(D$44*(-(50-$B7)*('Rhaniad y Ddeiliadaeth (Cymru)'!C$110/40))) -> £13,285 | F7: =E7*(1+'Rhaniad y Ddeiliadaeth (Cymru)'!D$109)+(E$44*(-(50-$B7)*('Rhaniad y Ddeiliadaeth (Cymru)'!D$110/40))) -> £13,490 | G7: =F7*(1+'Rhaniad y Ddeiliadaeth (Cymru)'!E$109)+(F$44*(-(50-$B7)*('Rhaniad y Ddeiliadaeth (Cymru)'!E$110/40))) -> £13,691 | H7: =G7*(1+'Rhaniad y Ddeiliadaeth (Cymru)'!F$109)+(G$44*(-(50-$B7)*('Rhaniad y Ddeiliadaeth (Cymru)'!F$110/40))) -> £13,898 | I7: =H7*(1+'Rhaniad y Ddeiliadaeth (Cymru)'!G$109)+(H$44*(-(50-$B7)*('Rhaniad y Ddeiliadaeth (Cymru)'!G$110/40))) -> £14,100 | K7: =IF(K4="","",IF(O85=1,"Dewis defnyddiwr anghyflawn",IF(O85=0,"Dewis defnyddiwr yn gyflawn",""))) ->  | O7: 1 | U7: 13 | W7: =IF($W$3=$N$3,N7,V7*(1+'Rhaniad y Ddeiliadaeth (Cymru)'!C$109)+(V$44*(-(50-$U7)*('Rhaniad y Ddeiliadaeth (Cymru)'!C$110/40)))) ->  | X7: =W7*(1+'Rhaniad y Ddeiliadaeth (Cymru)'!D$109)+(W$44*(-(50-$U7)*('Rhaniad y Ddeiliadaeth (Cymru)'!D$110/40))) ->  | Y7: =X7*(1+'Rhaniad y Ddeiliadaeth (Cymru)'!E$109)+(X$44*(-(50-$U7)*('Rhaniad y Ddeiliadaeth (Cymru)'!E$110/40))) ->  | Z7: =Y7*(1+'Rhaniad y Ddeiliadaeth (Cymru)'!F$109)+(Y$44*(-(50-$U7)*('Rhaniad y Ddeiliadaeth (Cymru)'!F$110/40))) ->  | AA7: =Z7*(1+'Rhaniad y Ddeiliadaeth (Cymru)'!G$109)+(Z$44*(-(50-$U7)*('Rhaniad y Ddeiliadaeth (Cymru)'!G$110/40))) ->  | AC7: 13 | AD7: =IF('Rhaniad y Ddeiliadaeth (Cymru)'!$D$8="Amcangyfrifon LlC",'Incwm (Cymru)'!E7,'Incwm (Cymru)'!W7) -> £13,285 | AE7: =IF('Rhaniad y Ddeiliadaeth (Cymru)'!$D$8="Amcangyfrifon LlC",'Incwm (Cymru)'!F7,'Incwm (Cymru)'!X7) -> £13,490 | AF7: =IF('Rhaniad y Ddeiliadaeth (Cymru)'!$D$8="Amcangyfrifon LlC",'Incwm (Cymru)'!G7,'Incwm (Cymru)'!Y7) -> £13,691 | AG7: =IF('Rhaniad y Ddeiliadaeth (Cymru)'!$D$8="Amcangyfrifon LlC",'Incwm (Cymru)'!H7,'Incwm (Cymru)'!Z7) -> £13,898 | AH7: =IF('Rhaniad y Ddeiliadaeth (Cymru)'!$D$8="Amcangyfrifon LlC",'Incwm (Cymru)'!I7,'Incwm (Cymru)'!AA7) -> £14,100
B8: 14 | C8: £12,975 | D8: £13,290 | E8: =D8*(1+'Rhaniad y Ddeiliadaeth (Cymru)'!C$109)+(D$44*(-(50-$B8)*('Rhaniad y Ddeiliadaeth (Cymru)'!C$110/40))) -> £13,350 | F8: =E8*(1+'Rhaniad y Ddeiliadaeth (Cymru)'!D$109)+(E$44*(-(50-$B8)*('Rhaniad y Ddeiliadaeth (Cymru)'!D$110/40))) -> £13,563 | G8: =F8*(1+'Rhaniad y Ddeiliadaeth (Cymru)'!E$109)+(F$44*(-(50-$B8)*('Rhaniad y Ddeiliadaeth (Cymru)'!E$110/40))) -> £13,775 | H8: =G8*(1+'Rhaniad y Ddeiliadaeth (Cymru)'!F$109)+(G$44*(-(50-$B8)*('Rhaniad y Ddeiliadaeth (Cymru)'!F$110/40))) -> £13,992 | I8: =H8*(1+'Rhaniad y Ddeiliadaeth (Cymru)'!G$109)+(H$44*(-(50-$B8)*('Rhaniad y Ddeiliadaeth (Cymru)'!G$110/40))) -> £14,204 | O8: 1 | U8: 14 | W8: =IF($W$3=$N$3,N8,V8*(1+'Rhaniad y Ddeiliadaeth (Cymru)'!C$109)+(V$44*(-(50-$U8)*('Rhaniad y Ddeiliadaeth (Cymru)'!C$110/40)))) ->  | X8: =W8*(1+'Rhaniad y Ddeiliadaeth (Cymru)'!D$109)+(W$44*(-(50-$U8)*('Rhaniad y Ddeiliadaeth (Cymru)'!D$110/40))) ->  | Y8: =X8*(1+'Rhaniad y Ddeiliadaeth (Cymru)'!E$109)+(X$44*(-(50-$U8)*('Rhaniad y Ddeiliadaeth (Cymru)'!E$110/40))) ->  | Z8: =Y8*(1+'Rhaniad y Ddeiliadaeth (Cymru)'!F$109)+(Y$44*(-(50-$U8)*('Rhaniad y Ddeiliadaeth (Cymru)'!F$110/40))) ->  | AA8: =Z8*(1+'Rhaniad y Ddeiliadaeth (Cymru)'!G$109)+(Z$44*(-(50-$U8)*('Rhaniad y Ddeiliadaeth (Cymru)'!G$110/40))) ->  | AC8: 14 | AD8: =IF('Rhaniad y Ddeiliadaeth (Cymru)'!$D$8="Amcangyfrifon LlC",'Incwm (Cymru)'!E8,'Incwm (Cymru)'!W8) -> £13,350 | AE8: =IF('Rhaniad y Ddeiliadaeth (Cymru)'!$D$8="Amcangyfrifon LlC",'Incwm (Cymru)'!F8,'Incwm (Cymru)'!X8) -> £13,563 | AF8: =IF('Rhaniad y Ddeiliadaeth (Cymru)'!$D$8="Amcangyfrifon LlC",'Incwm (Cymru)'!G8,'Incwm (Cymru)'!Y8) -> £13,775 | AG8: =IF('Rhaniad y Ddeiliadaeth (Cymru)'!$D$8="Amcangyfrifon LlC",'Incwm (Cymru)'!H8,'Incwm (Cymru)'!Z8) -> £13,992 | AH8: =IF('Rhaniad y Ddeiliadaeth (Cymru)'!$D$8="Amcangyfrifon LlC",'Incwm (Cymru)'!I8,'Incwm (Cymru)'!AA8) -> £14,204
B9: 15 | C9: £13,210 | D9: £13,531 | E9: =D9*(1+'Rhaniad y Ddeiliadaeth (Cymru)'!C$109)+(D$44*(-(50-$B9)*('Rhaniad y Ddeiliadaeth (Cymru)'!C$110/40))) -> £13,603 | F9: =E9*(1+'Rhaniad y Ddeiliadaeth (Cymru)'!D$109)+(E$44*(-(50-$B9)*('Rhaniad y Ddeiliadaeth (Cymru)'!D$110/40))) -> £13,832 | G9: =F9*(1+'Rhaniad y Ddeiliadaeth (Cymru)'!E$109)+(F$44*(-(50-$B9)*('Rhaniad y Ddeiliadaeth (Cymru)'!E$110/40))) -> £14,059 | H9: =G9*(1+'Rhaniad y Ddeiliadaeth (Cymru)'!F$109)+(G$44*(-(50-$B9)*('Rhaniad y Ddeiliadaeth (Cymru)'!F$110/40))) -> £14,293 | I9: =H9*(1+'Rhaniad y Ddeiliadaeth (Cymru)'!G$109)+(H$44*(-(50-$B9)*('Rhaniad y Ddeiliadaeth (Cymru)'!G$110/40))) -> £14,524 | K9: =IF(K4="","Os ydych am ddefnyddio eich dosraniad data incwm eich hunan, newidiwch y dewis yn y blwch","") -> Os ydych am ddefnyddio eich dosraniad data incwm eich hunan, newidiwch y dewis yn y blwch | O9: 1 | U9: 15 | W9: =IF($W$3=$N$3,N9,V9*(1+'Rhaniad y Ddeiliadaeth (Cymru)'!C$109)+(V$44*(-(50-$U9)*('Rhaniad y Ddeiliadaeth (Cymru)'!C$110/40)))) ->  | X9: =W9*(1+'Rhaniad y Ddeiliadaeth (Cymru)'!D$109)+(W$44*(-(50-$U9)*('Rhaniad y Ddeiliadaeth (Cymru)'!D$110/40))) ->  | Y9: =X9*(1+'Rhaniad y Ddeiliadaeth (Cymru)'!E$109)+(X$44*(-(50-$U9)*('Rhaniad y Ddeiliadaeth (Cymru)'!E$110/40))) ->  | Z9: =Y9*(1+'Rhaniad y Ddeiliadaeth (Cymru)'!F$109)+(Y$44*(-(50-$U9)*('Rhaniad y Ddeiliadaeth (Cymru)'!F$110/40))) ->  | AA9: =Z9*(1+'Rhaniad y Ddeiliadaeth (Cymru)'!G$109)+(Z$44*(-(50-$U9)*('Rhaniad y Ddeiliadaeth (Cymru)'!G$110/40))) ->  | AC9: 15 | AD9: =IF('Rhaniad y Ddeiliadaeth (Cymru)'!$D$8="Amcangyfrifon LlC",'Incwm (Cymru)'!E9,'Incwm (Cymru)'!W9) -> £13,603 | AE9: =IF('Rhaniad y Ddeiliadaeth (Cymru)'!$D$8="Amcangyfrifon LlC",'Incwm (Cymru)'!F9,'Incwm (Cymru)'!X9) -> £13,832 | AF9: =IF('Rhaniad y Ddeiliadaeth (Cymru)'!$D$8="Amcangyfrifon LlC",'Incwm (Cymru)'!G9,'Incwm (Cymru)'!Y9) -> £14,059 | AG9: =IF('Rhaniad y Ddeiliadaeth (Cymru)'!$D$8="Amcangyfrifon LlC",'Incwm (Cymru)'!H9,'Incwm (Cymru)'!Z9) -> £14,293 | AH9: =IF('Rhaniad y Ddeiliadaeth (Cymru)'!$D$8="Amcangyfrifon LlC",'Incwm (Cymru)'!I9,'Incwm (Cymru)'!AA9) -> £14,524
B10: 16 | C10: £13,605 | D10: £13,936 | E10: =D10*(1+'Rhaniad y Ddeiliadaeth (Cymru)'!C$109)+(D$44*(-(50-$B10)*('Rhaniad y Ddeiliadaeth (Cymru)'!C$110/40))) -> £14,023 | F10: =E10*(1+'Rhaniad y Ddeiliadaeth (Cymru)'!D$109)+(E$44*(-(50-$B10)*('Rhaniad y Ddeiliadaeth (Cymru)'!D$110/40))) -> £14,274 | G10: =F10*(1+'Rhaniad y Ddeiliadaeth (Cymru)'!E$109)+(F$44*(-(50-$B10)*('Rhaniad y Ddeiliadaeth (Cymru)'!E$110/40))) -> £14,523 | H10: =G10*(1+'Rhaniad y Ddeiliadaeth (Cymru)'!F$109)+(G$44*(-(50-$B10)*('Rhaniad y Ddeiliadaeth (Cymru)'!F$110/40))) -> £14,780 | I10: =H10*(1+'Rhaniad y Ddeiliadaeth (Cymru)'!G$109)+(H$44*(-(50-$B10)*('Rhaniad y Ddeiliadaeth (Cymru)'!G$110/40))) -> £15,035 | O10: 1 | U10: 16 | W10: =IF($W$3=$N$3,N10,V10*(1+'Rhaniad y Ddeiliadaeth (Cymru)'!C$109)+(V$44*(-(50-$U10)*('Rhaniad y Ddeiliadaeth (Cymru)'!C$110/40)))) ->  | X10: =W10*(1+'Rhaniad y Ddeiliadaeth (Cymru)'!D$109)+(W$44*(-(50-$U10)*('Rhaniad y Ddeiliadaeth (Cymru)'!D$110/40))) ->  | Y10: =X10*(1+'Rhaniad y Ddeiliadaeth (Cymru)'!E$109)+(X$44*(-(50-$U10)*('Rhaniad y Ddeiliadaeth (Cymru)'!E$110/40))) ->  | Z10: =Y10*(1+'Rhaniad y Ddeiliadaeth (Cymru)'!F$109)+(Y$44*(-(50-$U10)*('Rhaniad y Ddeiliadaeth (Cymru)'!F$110/40))) ->  | AA10: =Z10*(1+'Rhaniad y Ddeiliadaeth (Cymru)'!G$109)+(Z$44*(-(50-$U10)*('Rhaniad y Ddeiliadaeth (Cymru)'!G$110/40))) ->  | AC10: 16 | AD10: =IF('Rhaniad y Ddeiliadaeth (Cymru)'!$D$8="Amcangyfrifon LlC",'Incwm (Cymru)'!E10,'Incwm (Cymru)'!W10) -> £14,023 | AE10: =IF('Rhaniad y Ddeiliadaeth (Cymru)'!$D$8="Amcangyfrifon LlC",'Incwm (Cymru)'!F10,'Incwm (Cymru)'!X10) -> £14,274 | AF10: =IF('Rhaniad y Ddeiliadaeth (Cymru)'!$D$8="Amcangyfrifon LlC",'Incwm (Cymru)'!G10,'Incwm (Cymru)'!Y10) -> £14,523 | AG10: =IF('Rhaniad y Ddeiliadaeth (Cymru)'!$D$8="Amcangyfrifon LlC",'Incwm (Cymru)'!H10,'Incwm (Cymru)'!Z10) -> £14,780 | AH10: =IF('Rhaniad y Ddeiliadaeth (Cymru)'!$D$8="Amcangyfrifon LlC",'Incwm (Cymru)'!I10,'Incwm (Cymru)'!AA10) -> £15,035
B11: 17 | C11: £13,978 | D11: £14,317 | E11: =D11*(1+'Rhaniad y Ddeiliadaeth (Cymru)'!C$109)+(D$44*(-(50-$B11)*('Rhaniad y Ddeiliadaeth (Cymru)'!C$110/40))) -> £14,420 | F11: =E11*(1+'Rhaniad y Ddeiliadaeth (Cymru)'!D$109)+(E$44*(-(50-$B11)*('Rhaniad y Ddeiliadaeth (Cymru)'!D$110/40))) -> £14,691 | G11: =F11*(1+'Rhaniad y Ddeiliadaeth (Cymru)'!E$109)+(F$44*(-(50-$B11)*('Rhaniad y Ddeiliadaeth (Cymru)'!E$110/40))) -> £14,961 | H11: =G11*(1+'Rhaniad y Ddeiliadaeth (Cymru)'!F$109)+(G$44*(-(50-$B11)*('Rhaniad y Ddeiliadaeth (Cymru)'!F$110/40))) -> £15,241 | I11: =H11*(1+'Rhaniad y Ddeiliadaeth (Cymru)'!G$109)+(H$44*(-(50-$B11)*('Rhaniad y Ddeiliadaeth (Cymru)'!G$110/40))) -> £15,519 | O11: 1 | U11: 17 | W11: =IF($W$3=$N$3,N11,V11*(1+'Rhaniad y Ddeiliadaeth (Cymru)'!C$109)+(V$44*(-(50-$U11)*('Rhaniad y Ddeiliadaeth (Cymru)'!C$110/40)))) ->  | X11: =W11*(1+'Rhaniad y Ddeiliadaeth (Cymru)'!D$109)+(W$44*(-(50-$U11)*('Rhaniad y Ddeiliadaeth (Cymru)'!D$110/40))) ->  | Y11: =X11*(1+'Rhaniad y Ddeiliadaeth (Cymru)'!E$109)+(X$44*(-(50-$U11)*('Rhaniad y Ddeiliadaeth (Cymru)'!E$110/40))) ->  | Z11: =Y11*(1+'Rhaniad y Ddeiliadaeth (Cymru)'!F$109)+(Y$44*(-(50-$U11)*('Rhaniad y Ddeiliadaeth (Cymru)'!F$110/40))) ->  | AA11: =Z11*(1+'Rhaniad y Ddeiliadaeth (Cymru)'!G$109)+(Z$44*(-(50-$U11)*('Rhaniad y Ddeiliadaeth (Cymru)'!G$110/40))) ->  | AC11: 17 | AD11: =IF('Rhaniad y Ddeiliadaeth (Cymru)'!$D$8="Amcangyfrifon LlC",'Incwm (Cymru)'!E11,'Incwm (Cymru)'!W11) -> £14,420 | AE11: =IF('Rhaniad y Ddeiliadaeth (Cymru)'!$D$8="Amcangyfrifon LlC",'Incwm (Cymru)'!F11,'Incwm (Cymru)'!X11) -> £14,691 | AF11: =IF('Rhaniad y Ddeiliadaeth (Cymru)'!$D$8="Amcangyfrifon LlC",'Incwm (Cymru)'!G11,'Incwm (Cymru)'!Y11) -> £14,961 | AG11: =IF('Rhaniad y Ddeiliadaeth (Cymru)'!$D$8="Amcangyfrifon LlC",'Incwm (Cymru)'!H11,'Incwm (Cymru)'!Z11) -> £15,241 | AH11: =IF('Rhaniad y Ddeiliadaeth (Cymru)'!$D$8="Amcangyfrifon LlC",'Incwm (Cymru)'!I11,'Incwm (Cymru)'!AA11) -> £15,519
B12: 18 | C12: £14,243 | D12: £14,589 | E12: =D12*(1+'Rhaniad y Ddeiliadaeth (Cymru)'!C$109)+(D$44*(-(50-$B12)*('Rhaniad y Ddeiliadaeth (Cymru)'!C$110/40))) -> £14,704 | F12: =E12*(1+'Rhaniad y Ddeiliadaeth (Cymru)'!D$109)+(E$44*(-(50-$B12)*('Rhaniad y Ddeiliadaeth (Cymru)'!D$110/40))) -> £14,991 | G12: =F12*(1+'Rhaniad y Ddeiliadaeth (Cymru)'!E$109)+(F$44*(-(50-$B12)*('Rhaniad y Ddeiliadaeth (Cymru)'!E$110/40))) -> £15,280 | H12: =G12*(1+'Rhaniad y Ddeiliadaeth (Cymru)'!F$109)+(G$44*(-(50-$B12)*('Rhaniad y Ddeiliadaeth (Cymru)'!F$110/40))) -> £15,578 | I12: =H12*(1+'Rhaniad y Ddeiliadaeth (Cymru)'!G$109)+(H$44*(-(50-$B12)*('Rhaniad y Ddeiliadaeth (Cymru)'!G$110/40))) -> £15,875 | O12: 1 | U12: 18 | W12: =IF($W$3=$N$3,N12,V12*(1+'Rhaniad y Ddeiliadaeth (Cymru)'!C$109)+(V$44*(-(50-$U12)*('Rhaniad y Ddeiliadaeth (Cymru)'!C$110/40)))) ->  | X12: =W12*(1+'Rhaniad y Ddeiliadaeth (Cymru)'!D$109)+(W$44*(-(50-$U12)*('Rhaniad y Ddeiliadaeth (Cymru)'!D$110/40))) ->  | Y12: =X12*(1+'Rhaniad y Ddeiliadaeth (Cymru)'!E$109)+(X$44*(-(50-$U12)*('Rhaniad y Ddeiliadaeth (Cymru)'!E$110/40))) ->  | Z12: =Y12*(1+'Rhaniad y Ddeiliadaeth (Cymru)'!F$109)+(Y$44*(-(50-$U12)*('Rhaniad y Ddeiliadaeth (Cymru)'!F$110/40))) ->  | AA12: =Z12*(1+'Rhaniad y Ddeiliadaeth (Cymru)'!G$109)+(Z$44*(-(50-$U12)*('Rhaniad y Ddeiliadaeth (Cymru)'!G$110/40))) ->  | AC12: 18 | AD12: =IF('Rhaniad y Ddeiliadaeth (Cymru)'!$D$8="Amcangyfrifon LlC",'Incwm (Cymru)'!E12,'Incwm (Cymru)'!W12) -> £14,704 | AE12: =IF('Rhaniad y Ddeiliadaeth (Cymru)'!$D$8="Amcangyfrifon LlC",'Incwm (Cymru)'!F12,'Incwm (Cymru)'!X12) -> £14,991 | AF12: =IF('Rhaniad y Ddeiliadaeth (Cymru)'!$D$8="Amcangyfrifon LlC",'Incwm (Cymru)'!G12,'Incwm (Cymru)'!Y12) -> £15,280 | AG12: =IF('Rhaniad y Ddeiliadaeth (Cymru)'!$D$8="Amcangyfrifon LlC",'Incwm (Cymru)'!H12,'Incwm (Cymru)'!Z12) -> £15,578 | AH12: =IF('Rhaniad y Ddeiliadaeth (Cymru)'!$D$8="Amcangyfrifon LlC",'Incwm (Cymru)'!I12,'Incwm (Cymru)'!AA12) -> £15,875
B13: 19 | C13: £14,643 | D13: £14,998 | E13: =D13*(1+'Rhaniad y Ddeiliadaeth (Cymru)'!C$109)+(D$44*(-(50-$B13)*('Rhaniad y Ddeiliadaeth (Cymru)'!C$110/40))) -> £15,130 | F13: =E13*(1+'Rhaniad y Ddeiliadaeth (Cymru)'!D$109)+(E$44*(-(50-$B13)*('Rhaniad y Ddeiliadaeth (Cymru)'!D$110/40))) -> £15,438 | G13: =F13*(1+'Rhaniad y Ddeiliadaeth (Cymru)'!E$109)+(F$44*(-(50-$B13)*('Rhaniad y Ddeiliadaeth (Cymru)'!E$110/40))) -> £15,748 | H13: =G13*(1+'Rhaniad y Ddeiliadaeth (Cymru)'!F$109)+(G$44*(-(50-$B13)*('Rhaniad y Ddeiliadaeth (Cymru)'!F$110/40))) -> £16,070 | I13: =H13*(1+'Rhaniad y Ddeiliadaeth (Cymru)'!G$109)+(H$44*(-(50-$B13)*('Rhaniad y Ddeiliadaeth (Cymru)'!G$110/40))) -> £16,392 | O13: 1 | U13: 19 | W13: =IF($W$3=$N$3,N13,V13*(1+'Rhaniad y Ddeiliadaeth (Cymru)'!C$109)+(V$44*(-(50-$U13)*('Rhaniad y Ddeiliadaeth (Cymru)'!C$110/40)))) ->  | X13: =W13*(1+'Rhaniad y Ddeiliadaeth (Cymru)'!D$109)+(W$44*(-(50-$U13)*('Rhaniad y Ddeiliadaeth (Cymru)'!D$110/40))) ->  | Y13: =X13*(1+'Rhaniad y Ddeiliadaeth (Cymru)'!E$109)+(X$44*(-(50-$U13)*('Rhaniad y Ddeiliadaeth (Cymru)'!E$110/40))) ->  | Z13: =Y13*(1+'Rhaniad y Ddeiliadaeth (Cymru)'!F$109)+(Y$44*(-(50-$U13)*('Rhaniad y Ddeiliadaeth (Cymru)'!F$110/40))) ->  | AA13: =Z13*(1+'Rhaniad y Ddeiliadaeth (Cymru)'!G$109)+(Z$44*(-(50-$U13)*('Rhaniad y Ddeiliadaeth (Cymru)'!G$110/40))) ->  | AC13: 19 | AD13: =IF('Rhaniad y Ddeiliadaeth (Cymru)'!$D$8="Amcangyfrifon LlC",'Incwm (Cymru)'!E13,'Incwm (Cymru)'!W13) -> £15,130 | AE13: =IF('Rhaniad y Ddeiliadaeth (Cymru)'!$D$8="Amcangyfrifon LlC",'Incwm (Cymru)'!F13,'Incwm (Cymru)'!X13) -> £15,438 | AF13: =IF('Rhaniad y Ddeiliadaeth (Cymru)'!$D$8="Amcangyfrifon LlC",'Incwm (Cymru)'!G13,'Incwm (Cymru)'!Y13) -> £15,748 | AG13: =IF('Rhaniad y Ddeiliadaeth (Cymru)'!$D$8="Amcangyfrifon LlC",'Incwm (Cymru)'!H13,'Incwm (Cymru)'!Z13) -> £16,070 | AH13: =IF('Rhaniad y Ddeiliadaeth (Cymru)'!$D$8="Amcangyfrifon LlC",'Incwm (Cymru)'!I13,'Incwm (Cymru)'!AA13) -> £16,392
B14: 20 | C14: £14,900 | D14: £15,282 | E14: =D14*(1+'Rhaniad y Ddeiliadaeth (Cymru)'!C$109)+(D$44*(-(50-$B14)*('Rhaniad y Ddeiliadaeth (Cymru)'!C$110/40))) -> £15,426 | F14: =E14*(1+'Rhaniad y Ddeiliadaeth (Cymru)'!D$109)+(E$44*(-(50-$B14)*('Rhaniad y Ddeiliadaeth (Cymru)'!D$110/40))) -> £15,751 | G14: =F14*(1+'Rhaniad y Ddeiliadaeth (Cymru)'!E$109)+(F$44*(-(50-$B14)*('Rhaniad y Ddeiliadaeth (Cymru)'!E$110/40))) -> £16,079 | H14: =G14*(1+'Rhaniad y Ddeiliadaeth (Cymru)'!F$109)+(G$44*(-(50-$B14)*('Rhaniad y Ddeiliadaeth (Cymru)'!F$110/40))) -> £16,419 | I14: =H14*(1+'Rhaniad y Ddeiliadaeth (Cymru)'!G$109)+(H$44*(-(50-$B14)*('Rhaniad y Ddeiliadaeth (Cymru)'!G$110/40))) -> £16,761 | O14: 1 | U14: 20 | W14: =IF($W$3=$N$3,N14,V14*(1+'Rhaniad y Ddeiliadaeth (Cymru)'!C$109)+(V$44*(-(50-$U14)*('Rhaniad y Ddeiliadaeth (Cymru)'!C$110/40)))) ->  | X14: =W14*(1+'Rhaniad y Ddeiliadaeth (Cymru)'!D$109)+(W$44*(-(50-$U14)*('Rhaniad y Ddeiliadaeth (Cymru)'!D$110/40))) ->  | Y14: =X14*(1+'Rhaniad y Ddeiliadaeth (Cymru)'!E$109)+(X$44*(-(50-$U14)*('Rhaniad y Ddeiliadaeth (Cymru)'!E$110/40))) ->  | Z14: =Y14*(1+'Rhaniad y Ddeiliadaeth (Cymru)'!F$109)+(Y$44*(-(50-$U14)*('Rhaniad y Ddeiliadaeth (Cymru)'!F$110/40))) ->  | AA14: =Z14*(1+'Rhaniad y Ddeiliadaeth (Cymru)'!G$109)+(Z$44*(-(50-$U14)*('Rhaniad y Ddeiliadaeth (Cymru)'!G$110/40))) ->  | AC14: 20 | AD14: =IF('Rhaniad y Ddeiliadaeth (Cymru)'!$D$8="Amcangyfrifon LlC",'Incwm (Cymru)'!E14,'Incwm (Cymru)'!W14) -> £15,426 | AE14: =IF('Rhaniad y Ddeiliadaeth (Cymru)'!$D$8="Amcangyfrifon LlC",'Incwm (Cymru)'!F14,'Incwm (Cymru)'!X14) -> £15,751 | AF14: =IF('Rhaniad y Ddeiliadaeth (Cymru)'!$D$8="Amcangyfrifon LlC",'Incwm (Cymru)'!G14,'Incwm (Cymru)'!Y14) -> £16,079 | AG14: =IF('Rhaniad y Ddeiliadaeth (Cymru)'!$D$8="Amcangyfrifon LlC",'Incwm (Cymru)'!H14,'Incwm (Cymru)'!Z14) -> £16,419 | AH14: =IF('Rhaniad y Ddeiliadaeth (Cymru)'!$D$8="Amcangyfrifon LlC",'Incwm (Cymru)'!I14,'Incwm (Cymru)'!AA14) -> £16,761
B15: 21 | C15: £14,970 | D15: £15,353 | E15: =D15*(1+'Rhaniad y Ddeiliadaeth (Cymru)'!C$109)+(D$44*(-(50-$B15)*('Rhaniad y Ddeiliadaeth (Cymru)'!C$110/40))) -> £15,506 | F15: =E15*(1+'Rhaniad y Ddeiliadaeth (Cymru)'!D$109)+(E$44*(-(50-$B15)*('Rhaniad y Ddeiliadaeth (Cymru)'!D$110/40))) -> £15,841 | G15: =F15*(1+'Rhaniad y Ddeiliadaeth (Cymru)'!E$109)+(F$44*(-(50-$B15)*('Rhaniad y Ddeiliadaeth (Cymru)'!E$110/40))) -> £16,179 | H15: =G15*(1+'Rhaniad y Ddeiliadaeth (Cymru)'!F$109)+(G$44*(-(50-$B15)*('Rhaniad y Ddeiliadaeth (Cymru)'!F$110/40))) -> £16,530 | I15: =H15*(1+'Rhaniad y Ddeiliadaeth (Cymru)'!G$109)+(H$44*(-(50-$B15)*('Rhaniad y Ddeiliadaeth (Cymru)'!G$110/40))) -> £16,883 | O15: 1 | U15: 21 | W15: =IF($W$3=$N$3,N15,V15*(1+'Rhaniad y Ddeiliadaeth (Cymru)'!C$109)+(V$44*(-(50-$U15)*('Rhaniad y Ddeiliadaeth (Cymru)'!C$110/40)))) ->  | X15: =W15*(1+'Rhaniad y Ddeiliadaeth (Cymru)'!D$109)+(W$44*(-(50-$U15)*('Rhaniad y Ddeiliadaeth (Cymru)'!D$110/40))) ->  | Y15: =X15*(1+'Rhaniad y Ddeiliadaeth (Cymru)'!E$109)+(X$44*(-(50-$U15)*('Rhaniad y Ddeiliadaeth (Cymru)'!E$110/40))) ->  | Z15: =Y15*(1+'Rhaniad y Ddeiliadaeth (Cymru)'!F$109)+(Y$44*(-(50-$U15)*('Rhaniad y Ddeiliadaeth (Cymru)'!F$110/40))) ->  | AA15: =Z15*(1+'Rhaniad y Ddeiliadaeth (Cymru)'!G$109)+(Z$44*(-(50-$U15)*('Rhaniad y Ddeiliadaeth (Cymru)'!G$110/40))) ->  | AC15: 21 | AD15: =IF('Rhaniad y Ddeiliadaeth (Cymru)'!$D$8="Amcangyfrifon LlC",'Incwm (Cymru)'!E15,'Incwm (Cymru)'!W15) -> £15,506 | AE15: =IF('Rhaniad y Ddeiliadaeth (Cymru)'!$D$8="Amcangyfrifon LlC",'Incwm (Cymru)'!F15,'Incwm (Cymru)'!X15) -> £15,841 | AF15: =IF('Rhaniad y Ddeiliadaeth (Cymru)'!$D$8="Amcangyfrifon LlC",'Incwm (Cymru)'!G15,'Incwm (Cymru)'!Y15) -> £16,179 | AG15: =IF('Rhaniad y Ddeiliadaeth (Cymru)'!$D$8="Amcangyfrifon LlC",'Incwm (Cymru)'!H15,'Incwm (Cymru)'!Z15) -> £16,530 | AH15: =IF('Rhaniad y Ddeiliadaeth (Cymru)'!$D$8="Amcangyfrifon LlC",'Incwm (Cymru)'!I15,'Incwm (Cymru)'!AA15) -> £16,883
B16: 22 | C16: £15,070 | D16: £15,456 | E16: =D16*(1+'Rhaniad y Ddeiliadaeth (Cymru)'!C$109)+(D$44*(-(50-$B16)*('Rhaniad y Ddeiliadaeth (Cymru)'!C$110/40))) -> £15,617 | F16: =E16*(1+'Rhaniad y Ddeiliadaeth (Cymru)'!D$109)+(E$44*(-(50-$B16)*('Rhaniad y Ddeiliadaeth (Cymru)'!D$110/40))) -> £15,963 | G16: =F16*(1+'Rhaniad y Ddeiliadaeth (Cymru)'!E$109)+(F$44*(-(50-$B16)*('Rhaniad y Ddeiliadaeth (Cymru)'!E$110/40))) -> £16,312 | H16: =G16*(1+'Rhaniad y Ddeiliadaeth (Cymru)'!F$109)+(G$44*(-(50-$B16)*('Rhaniad y Ddeiliadaeth (Cymru)'!F$110/40))) -> £16,675 | I16: =H16*(1+'Rhaniad y Ddeiliadaeth (Cymru)'!G$109)+(H$44*(-(50-$B16)*('Rhaniad y Ddeiliadaeth (Cymru)'!G$110/40))) -> £17,040 | O16: 1 | U16: 22 | W16: =IF($W$3=$N$3,N16,V16*(1+'Rhaniad y Ddeiliadaeth (Cymru)'!C$109)+(V$44*(-(50-$U16)*('Rhaniad y Ddeiliadaeth (Cymru)'!C$110/40)))) ->  | X16: =W16*(1+'Rhaniad y Ddeiliadaeth (Cymru)'!D$109)+(W$44*(-(50-$U16)*('Rhaniad y Ddeiliadaeth (Cymru)'!D$110/40))) ->  | Y16: =X16*(1+'Rhaniad y Ddeiliadaeth (Cymru)'!E$109)+(X$44*(-(50-$U16)*('Rhaniad y Ddeiliadaeth (Cymru)'!E$110/40))) ->  | Z16: =Y16*(1+'Rhaniad y Ddeiliadaeth (Cymru)'!F$109)+(Y$44*(-(50-$U16)*('Rhaniad y Ddeiliadaeth (Cymru)'!F$110/40))) ->  | AA16: =Z16*(1+'Rhaniad y Ddeiliadaeth (Cymru)'!G$109)+(Z$44*(-(50-$U16)*('Rhaniad y Ddeiliadaeth (Cymru)'!G$110/40))) ->  | AC16: 22 | AD16: =IF('Rhaniad y Ddeiliadaeth (Cymru)'!$D$8="Amcangyfrifon LlC",'Incwm (Cymru)'!E16,'Incwm (Cymru)'!W16) -> £15,617 | AE16: =IF('Rhaniad y Ddeiliadaeth (Cymru)'!$D$8="Amcangyfrifon LlC",'Incwm (Cymru)'!F16,'Incwm (Cymru)'!X16) -> £15,963 | AF16: =IF('Rhaniad y Ddeiliadaeth (Cymru)'!$D$8="Amcangyfrifon LlC",'Incwm (Cymru)'!G16,'Incwm (Cymru)'!Y16) -> £16,312 | AG16: =IF('Rhaniad y Ddeiliadaeth (Cymru)'!$D$8="Amcangyfrifon LlC",'Incwm (Cymru)'!H16,'Incwm (Cymru)'!Z16) -> £16,675 | AH16: =IF('Rhaniad y Ddeiliadaeth (Cymru)'!$D$8="Amcangyfrifon LlC",'Incwm (Cymru)'!I16,'Incwm (Cymru)'!AA16) -> £17,040
B17: 23 | C17: £15,280 | D17: £15,671 | E17: =D17*(1+'Rhaniad y Ddeiliadaeth (Cymru)'!C$109)+(D$44*(-(50-$B17)*('Rhaniad y Ddeiliadaeth (Cymru)'!C$110/40))) -> £15,844 | F17: =E17*(1+'Rhaniad y Ddeiliadaeth (Cymru)'!D$109)+(E$44*(-(50-$B17)*('Rhaniad y Ddeiliadaeth (Cymru)'!D$110/40))) -> £16,204 | G17: =F17*(1+'Rhaniad y Ddeiliadaeth (Cymru)'!E$109)+(F$44*(-(50-$B17)*('Rhaniad y Ddeiliadaeth (Cymru)'!E$110/40))) -> £16,569 | H17: =G17*(1+'Rhaniad y Ddeiliadaeth (Cymru)'!F$109)+(G$44*(-(50-$B17)*('Rhaniad y Ddeiliadaeth (Cymru)'!F$110/40))) -> £16,948 | I17: =H17*(1+'Rhaniad y Ddeiliadaeth (Cymru)'!G$109)+(H$44*(-(50-$B17)*('Rhaniad y Ddeiliadaeth (Cymru)'!G$110/40))) -> £17,330 | O17: 1 | U17: 23 | W17: =IF($W$3=$N$3,N17,V17*(1+'Rhaniad y Ddeiliadaeth (Cymru)'!C$109)+(V$44*(-(50-$U17)*('Rhaniad y Ddeiliadaeth (Cymru)'!C$110/40)))) ->  | X17: =W17*(1+'Rhaniad y Ddeiliadaeth (Cymru)'!D$109)+(W$44*(-(50-$U17)*('Rhaniad y Ddeiliadaeth (Cymru)'!D$110/40))) ->  | Y17: =X17*(1+'Rhaniad y Ddeiliadaeth (Cymru)'!E$109)+(X$44*(-(50-$U17)*('Rhaniad y Ddeiliadaeth (Cymru)'!E$110/40))) ->  | Z17: =Y17*(1+'Rhaniad y Ddeiliadaeth (Cymru)'!F$109)+(Y$44*(-(50-$U17)*('Rhaniad y Ddeiliadaeth (Cymru)'!F$110/40))) ->  | AA17: =Z17*(1+'Rhaniad y Ddeiliadaeth (Cymru)'!G$109)+(Z$44*(-(50-$U17)*('Rhaniad y Ddeiliadaeth (Cymru)'!G$110/40))) ->  | AC17: 23 | AD17: =IF('Rhaniad y Ddeiliadaeth (Cymru)'!$D$8="Amcangyfrifon LlC",'Incwm (Cymru)'!E17,'Incwm (Cymru)'!W17) -> £15,844 | AE17: =IF('Rhaniad y Ddeiliadaeth (Cymru)'!$D$8="Amcangyfrifon LlC",'Incwm (Cymru)'!F17,'Incwm (Cymru)'!X17) -> £16,204 | AF17: =IF('Rhaniad y Ddeiliadaeth (Cymru)'!$D$8="Amcangyfrifon LlC",'Incwm (Cymru)'!G17,'Incwm (Cymru)'!Y17) -> £16,569 | AG17: =IF('Rhaniad y Ddeiliadaeth (Cymru)'!$D$8="Amcangyfrifon LlC",'Incwm (Cymru)'!H17,'Incwm (Cymru)'!Z17) -> £16,948 | AH17: =IF('Rhaniad y Ddeiliadaeth (Cymru)'!$D$8="Amcangyfrifon LlC",'Incwm (Cymru)'!I17,'Incwm (Cymru)'!AA17) -> £17,330
B18: 24 | C18: £15,600 | D18: £15,999 | E18: =D18*(1+'Rhaniad y Ddeiliadaeth (Cymru)'!C$109)+(D$44*(-(50-$B18)*('Rhaniad y Ddeiliadaeth (Cymru)'!C$110/40))) -> £16,186 | F18: =E18*(1+'Rhaniad y Ddeiliadaeth (Cymru)'!D$109)+(E$44*(-(50-$B18)*('Rhaniad y Ddeiliadaeth (Cymru)'!D$110/40))) -> £16,565 | G18: =F18*(1+'Rhaniad y Ddeiliadaeth (Cymru)'!E$109)+(F$44*(-(50-$B18)*('Rhaniad y Ddeiliadaeth (Cymru)'!E$110/40))) -> £16,949 | H18: =G18*(1+'Rhaniad y Ddeiliadaeth (Cymru)'!F$109)+(G$44*(-(50-$B18)*('Rhaniad y Ddeiliadaeth (Cymru)'!F$110/40))) -> £17,348 | I18: =H18*(1+'Rhaniad y Ddeiliadaeth (Cymru)'!G$109)+(H$44*(-(50-$B18)*('Rhaniad y Ddeiliadaeth (Cymru)'!G$110/40))) -> £17,752 | O18: 1 | U18: 24 | W18: =IF($W$3=$N$3,N18,V18*(1+'Rhaniad y Ddeiliadaeth (Cymru)'!C$109)+(V$44*(-(50-$U18)*('Rhaniad y Ddeiliadaeth (Cymru)'!C$110/40)))) ->  | X18: =W18*(1+'Rhaniad y Ddeiliadaeth (Cymru)'!D$109)+(W$44*(-(50-$U18)*('Rhaniad y Ddeiliadaeth (Cymru)'!D$110/40))) ->  | Y18: =X18*(1+'Rhaniad y Ddeiliadaeth (Cymru)'!E$109)+(X$44*(-(50-$U18)*('Rhaniad y Ddeiliadaeth (Cymru)'!E$110/40))) ->  | Z18: =Y18*(1+'Rhaniad y Ddeiliadaeth (Cymru)'!F$109)+(Y$44*(-(50-$U18)*('Rhaniad y Ddeiliadaeth (Cymru)'!F$110/40))) ->  | AA18: =Z18*(1+'Rhaniad y Ddeiliadaeth (Cymru)'!G$109)+(Z$44*(-(50-$U18)*('Rhaniad y Ddeiliadaeth (Cymru)'!G$110/40))) ->  | AC18: 24 | AD18: =IF('Rhaniad y Ddeiliadaeth (Cymru)'!$D$8="Amcangyfrifon LlC",'Incwm (Cymru)'!E18,'Incwm (Cymru)'!W18) -> £16,186 | AE18: =IF('Rhaniad y Ddeiliadaeth (Cymru)'!$D$8="Amcangyfrifon LlC",'Incwm (Cymru)'!F18,'Incwm (Cymru)'!X18) -> £16,565 | AF18: =IF('Rhaniad y Ddeiliadaeth (Cymru)'!$D$8="Amcangyfrifon LlC",'Incwm (Cymru)'!G18,'Incwm (Cymru)'!Y18) -> £16,949 | AG18: =IF('Rhaniad y Ddeiliadaeth (Cymru)'!$D$8="Amcangyfrifon LlC",'Incwm (Cymru)'!H18,'Incwm (Cymru)'!Z18) -> £17,348 | AH18: =IF('Rhaniad y Ddeiliadaeth (Cymru)'!$D$8="Amcangyfrifon LlC",'Incwm (Cymru)'!I18,'Incwm (Cymru)'!AA18) -> £17,752
B19: 25 | C19: £15,838 | D19: £16,244 | E19: =D19*(1+'Rhaniad y Ddeiliadaeth (Cymru)'!C$109)+(D$44*(-(50-$B19)*('Rhaniad y Ddeiliadaeth (Cymru)'!C$110/40))) -> £16,442 | F19: =E19*(1+'Rhaniad y Ddeiliadaeth (Cymru)'!D$109)+(E$44*(-(50-$B19)*('Rhaniad y Ddeiliadaeth (Cymru)'!D$110/40))) -> £16,837 | G19: =F19*(1+'Rhaniad y Ddeiliadaeth (Cymru)'!E$109)+(F$44*(-(50-$B19)*('Rhaniad y Ddeiliadaeth (Cymru)'!E$110/40))) -> £17,237 | H19: =G19*(1+'Rhaniad y Ddeiliadaeth (Cymru)'!F$109)+(G$44*(-(50-$B19)*('Rhaniad y Ddeiliadaeth (Cymru)'!F$110/40))) -> £17,653 | I19: =H19*(1+'Rhaniad y Ddeiliadaeth (Cymru)'!G$109)+(H$44*(-(50-$B19)*('Rhaniad y Ddeiliadaeth (Cymru)'!G$110/40))) -> £18,075 | O19: 1 | U19: 25 | W19: =IF($W$3=$N$3,N19,V19*(1+'Rhaniad y Ddeiliadaeth (Cymru)'!C$109)+(V$44*(-(50-$U19)*('Rhaniad y Ddeiliadaeth (Cymru)'!C$110/40)))) ->  | X19: =W19*(1+'Rhaniad y Ddeiliadaeth (Cymru)'!D$109)+(W$44*(-(50-$U19)*('Rhaniad y Ddeiliadaeth (Cymru)'!D$110/40))) ->  | Y19: =X19*(1+'Rhaniad y Ddeiliadaeth (Cymru)'!E$109)+(X$44*(-(50-$U19)*('Rhaniad y Ddeiliadaeth (Cymru)'!E$110/40))) ->  | Z19: =Y19*(1+'Rhaniad y Ddeiliadaeth (Cymru)'!F$109)+(Y$44*(-(50-$U19)*('Rhaniad y Ddeiliadaeth (Cymru)'!F$110/40))) ->  | AA19: =Z19*(1+'Rhaniad y Ddeiliadaeth (Cymru)'!G$109)+(Z$44*(-(50-$U19)*('Rhaniad y Ddeiliadaeth (Cymru)'!G$110/40))) ->  | AC19: 25 | AD19: =IF('Rhaniad y Ddeiliadaeth (Cymru)'!$D$8="Amcangyfrifon LlC",'Incwm (Cymru)'!E19,'Incwm (Cymru)'!W19) -> £16,442 | AE19: =IF('Rhaniad y Ddeiliadaeth (Cymru)'!$D$8="Amcangyfrifon LlC",'Incwm (Cymru)'!F19,'Incwm (Cymru)'!X19) -> £16,837 | AF19: =IF('Rhaniad y Ddeiliadaeth (Cymru)'!$D$8="Amcangyfrifon LlC",'Incwm (Cymru)'!G19,'Incwm (Cymru)'!Y19) -> £17,237 | AG19: =IF('Rhaniad y Ddeiliadaeth (Cymru)'!$D$8="Amcangyfrifon LlC",'Incwm (Cymru)'!H19,'Incwm (Cymru)'!Z19) -> £17,653 | AH19: =IF('Rhaniad y Ddeiliadaeth (Cymru)'!$D$8="Amcangyfrifon LlC",'Incwm (Cymru)'!I19,'Incwm (Cymru)'!AA19) -> £18,075
B20: 26 | C20: £16,123 | D20: £16,535 | E20: =D20*(1+'Rhaniad y Ddeiliadaeth (Cymru)'!C$109)+(D$44*(-(50-$B20)*('Rhaniad y Ddeiliadaeth (Cymru)'!C$110/40))) -> £16,748 | F20: =E20*(1+'Rhaniad y Ddeiliadaeth (Cymru)'!D$109)+(E$44*(-(50-$B20)*('Rhaniad y Ddeiliadaeth (Cymru)'!D$110/40))) -> £17,159 | G20: =F20*(1+'Rhaniad y Ddeiliadaeth (Cymru)'!E$109)+(F$44*(-(50-$B20)*('Rhaniad y Ddeiliadaeth (Cymru)'!E$110/40))) -> £17,577 | H20: =G20*(1+'Rhaniad y Ddeiliadaeth (Cymru)'!F$109)+(G$44*(-(50-$B20)*('Rhaniad y Ddeiliadaeth (Cymru)'!F$110/40))) -> £18,013 | I20: =H20*(1+'Rhaniad y Ddeiliadaeth (Cymru)'!G$109)+(H$44*(-(50-$B20)*('Rhaniad y Ddeiliadaeth (Cymru)'!G$110/40))) -> £18,454 | O20: 1 | U20: 26 | W20: =IF($W$3=$N$3,N20,V20*(1+'Rhaniad y Ddeiliadaeth (Cymru)'!C$109)+(V$44*(-(50-$U20)*('Rhaniad y Ddeiliadaeth (Cymru)'!C$110/40)))) ->  | X20: =W20*(1+'Rhaniad y Ddeiliadaeth (Cymru)'!D$109)+(W$44*(-(50-$U20)*('Rhaniad y Ddeiliadaeth (Cymru)'!D$110/40))) ->  | Y20: =X20*(1+'Rhaniad y Ddeiliadaeth (Cymru)'!E$109)+(X$44*(-(50-$U20)*('Rhaniad y Ddeiliadaeth (Cymru)'!E$110/40))) ->  | Z20: =Y20*(1+'Rhaniad y Ddeiliadaeth (Cymru)'!F$109)+(Y$44*(-(50-$U20)*('Rhaniad y Ddeiliadaeth (Cymru)'!F$110/40))) ->  | AA20: =Z20*(1+'Rhaniad y Ddeiliadaeth (Cymru)'!G$109)+(Z$44*(-(50-$U20)*('Rhaniad y Ddeiliadaeth (Cymru)'!G$110/40))) ->  | AC20: 26 | AD20: =IF('Rhaniad y Ddeiliadaeth (Cymru)'!$D$8="Amcangyfrifon LlC",'Incwm (Cymru)'!E20,'Incwm (Cymru)'!W20) -> £16,748 | AE20: =IF('Rhaniad y Ddeiliadaeth (Cymru)'!$D$8="Amcangyfrifon LlC",'Incwm (Cymru)'!F20,'Incwm (Cymru)'!X20) -> £17,159 | AF20: =IF('Rhaniad y Ddeiliadaeth (Cymru)'!$D$8="Amcangyfrifon LlC",'Incwm (Cymru)'!G20,'Incwm (Cymru)'!Y20) -> £17,577 | AG20: =IF('Rhaniad y Ddeiliadaeth (Cymru)'!$D$8="Amcangyfrifon LlC",'Incwm (Cymru)'!H20,'Incwm (Cymru)'!Z20) -> £18,013 | AH20: =IF('Rhaniad y Ddeiliadaeth (Cymru)'!$D$8="Amcangyfrifon LlC",'Incwm (Cymru)'!I20,'Incwm (Cymru)'!AA20) -> £18,454
B21: 27 | C21: £16,424 | D21: £16,845 | E21: =D21*(1+'Rhaniad y Ddeiliadaeth (Cymru)'!C$109)+(D$44*(-(50-$B21)*('Rhaniad y Ddeiliadaeth (Cymru)'!C$110/40))) -> £17,070 | F21: =E21*(1+'Rhaniad y Ddeiliadaeth (Cymru)'!D$109)+(E$44*(-(50-$B21)*('Rhaniad y Ddeiliadaeth (Cymru)'!D$110/40))) -> £17,499 | G21: =F21*(1+'Rhaniad y Ddeiliadaeth (Cymru)'!E$109)+(F$44*(-(50-$B21)*('Rhaniad y Ddeiliadaeth (Cymru)'!E$110/40))) -> £17,936 | H21: =G21*(1+'Rhaniad y Ddeiliadaeth (Cymru)'!F$109)+(G$44*(-(50-$B21)*('Rhaniad y Ddeiliadaeth (Cymru)'!F$110/40))) -> £18,392 | I21: =H21*(1+'Rhaniad y Ddeiliadaeth (Cymru)'!G$109)+(H$44*(-(50-$B21)*('Rhaniad y Ddeiliadaeth (Cymru)'!G$110/40))) -> £18,854 | O21: 1 | U21: 27 | W21: =IF($W$3=$N$3,N21,V21*(1+'Rhaniad y Ddeiliadaeth (Cymru)'!C$109)+(V$44*(-(50-$U21)*('Rhaniad y Ddeiliadaeth (Cymru)'!C$110/40)))) ->  | X21: =W21*(1+'Rhaniad y Ddeiliadaeth (Cymru)'!D$109)+(W$44*(-(50-$U21)*('Rhaniad y Ddeiliadaeth (Cymru)'!D$110/40))) ->  | Y21: =X21*(1+'Rhaniad y Ddeiliadaeth (Cymru)'!E$109)+(X$44*(-(50-$U21)*('Rhaniad y Ddeiliadaeth (Cymru)'!E$110/40))) ->  | Z21: =Y21*(1+'Rhaniad y Ddeiliadaeth (Cymru)'!F$109)+(Y$44*(-(50-$U21)*('Rhaniad y Ddeiliadaeth (Cymru)'!F$110/40))) ->  | AA21: =Z21*(1+'Rhaniad y Ddeiliadaeth (Cymru)'!G$109)+(Z$44*(-(50-$U21)*('Rhaniad y Ddeiliadaeth (Cymru)'!G$110/40))) ->  | AC21: 27 | AD21: =IF('Rhaniad y Ddeiliadaeth (Cymru)'!$D$8="Amcangyfrifon LlC",'Incwm (Cymru)'!E21,'Incwm (Cymru)'!W21) -> £17,070 | AE21: =IF('Rhaniad y Ddeiliadaeth (Cymru)'!$D$8="Amcangyfrifon LlC",'Incwm (Cymru)'!F21,'Incwm (Cymru)'!X21) -> £17,499 | AF21: =IF('Rhaniad y Ddeiliadaeth (Cymru)'!$D$8="Amcangyfrifon LlC",'Incwm (Cymru)'!G21,'Incwm (Cymru)'!Y21) -> £17,936 | AG21: =IF('Rhaniad y Ddeiliadaeth (Cymru)'!$D$8="Amcangyfrifon LlC",'Incwm (Cymru)'!H21,'Incwm (Cymru)'!Z21) -> £18,392 | AH21: =IF('Rhaniad y Ddeiliadaeth (Cymru)'!$D$8="Amcangyfrifon LlC",'Incwm (Cymru)'!I21,'Incwm (Cymru)'!AA21) -> £18,854
B22: 28 | C22: £16,704 | D22: £17,131 | E22: =D22*(1+'Rhaniad y Ddeiliadaeth (Cymru)'!C$109)+(D$44*(-(50-$B22)*('Rhaniad y Ddeiliadaeth (Cymru)'!C$110/40))) -> £17,370 | F22: =E22*(1+'Rhaniad y Ddeiliadaeth (Cymru)'!D$109)+(E$44*(-(50-$B22)*('Rhaniad y Ddeiliadaeth (Cymru)'!D$110/40))) -> £17,816 | G22: =F22*(1+'Rhaniad y Ddeiliadaeth (Cymru)'!E$109)+(F$44*(-(50-$B22)*('Rhaniad y Ddeiliadaeth (Cymru)'!E$110/40))) -> £18,271 | H22: =G22*(1+'Rhaniad y Ddeiliadaeth (Cymru)'!F$109)+(G$44*(-(50-$B22)*('Rhaniad y Ddeiliadaeth (Cymru)'!F$110/40))) -> £18,745 | I22: =H22*(1+'Rhaniad y Ddeiliadaeth (Cymru)'!G$109)+(H$44*(-(50-$B22)*('Rhaniad y Ddeiliadaeth (Cymru)'!G$110/40))) -> £19,227 | O22: 1 | U22: 28 | W22: =IF($W$3=$N$3,N22,V22*(1+'Rhaniad y Ddeiliadaeth (Cymru)'!C$109)+(V$44*(-(50-$U22)*('Rhaniad y Ddeiliadaeth (Cymru)'!C$110/40)))) ->  | X22: =W22*(1+'Rhaniad y Ddeiliadaeth (Cymru)'!D$109)+(W$44*(-(50-$U22)*('Rhaniad y Ddeiliadaeth (Cymru)'!D$110/40))) ->  | Y22: =X22*(1+'Rhaniad y Ddeiliadaeth (Cymru)'!E$109)+(X$44*(-(50-$U22)*('Rhaniad y Ddeiliadaeth (Cymru)'!E$110/40))) ->  | Z22: =Y22*(1+'Rhaniad y Ddeiliadaeth (Cymru)'!F$109)+(Y$44*(-(50-$U22)*('Rhaniad y Ddeiliadaeth (Cymru)'!F$110/40))) ->  | AA22: =Z22*(1+'Rhaniad y Ddeiliadaeth (Cymru)'!G$109)+(Z$44*(-(50-$U22)*('Rhaniad y Ddeiliadaeth (Cymru)'!G$110/40))) ->  | AC22: 28 | AD22: =IF('Rhaniad y Ddeiliadaeth (Cymru)'!$D$8="Amcangyfrifon LlC",'Incwm (Cymru)'!E22,'Incwm (Cymru)'!W22) -> £17,370 | AE22: =IF('Rhaniad y Ddeiliadaeth (Cymru)'!$D$8="Amcangyfrifon LlC",'Incwm (Cymru)'!F22,'Incwm (Cymru)'!X22) -> £17,816 | AF22: =IF('Rhaniad y Ddeiliadaeth (Cymru)'!$D$8="Amcangyfrifon LlC",'Incwm (Cymru)'!G22,'Incwm (Cymru)'!Y22) -> £18,271 | AG22: =IF('Rhaniad y Ddeiliadaeth (Cymru)'!$D$8="Amcangyfrifon LlC",'Incwm (Cymru)'!H22,'Incwm (Cymru)'!Z22) -> £18,745 | AH22: =IF('Rhaniad y Ddeiliadaeth (Cymru)'!$D$8="Amcangyfrifon LlC",'Incwm (Cymru)'!I22,'Incwm (Cymru)'!AA22) -> £19,227
B23: 29 | C23: £17,070 | D23: £17,507 | E23: =D23*(1+'Rhaniad y Ddeiliadaeth (Cymru)'!C$109)+(D$44*(-(50-$B23)*('Rhaniad y Ddeiliadaeth (Cymru)'!C$110/40))) -> £17,761 | F23: =E23*(1+'Rhaniad y Ddeiliadaeth (Cymru)'!D$109)+(E$44*(-(50-$B23)*('Rhaniad y Ddeiliadaeth (Cymru)'!D$110/40))) -> £18,227 | G23: =F23*(1+'Rhaniad y Ddeiliadaeth (Cymru)'!E$109)+(F$44*(-(50-$B23)*('Rhaniad y Ddeiliadaeth (Cymru)'!E$110/40))) -> £18,703 | H23: =G23*(1+'Rhaniad y Ddeiliadaeth (Cymru)'!F$109)+(G$44*(-(50-$B23)*('Rhaniad y Ddeiliadaeth (Cymru)'!F$110/40))) -> £19,200 | I23: =H23*(1+'Rhaniad y Ddeiliadaeth (Cymru)'!G$109)+(H$44*(-(50-$B23)*('Rhaniad y Ddeiliadaeth (Cymru)'!G$110/40))) -> £19,704 | O23: 1 | U23: 29 | W23: =IF($W$3=$N$3,N23,V23*(1+'Rhaniad y Ddeiliadaeth (Cymru)'!C$109)+(V$44*(-(50-$U23)*('Rhaniad y Ddeiliadaeth (Cymru)'!C$110/40)))) ->  | X23: =W23*(1+'Rhaniad y Ddeiliadaeth (Cymru)'!D$109)+(W$44*(-(50-$U23)*('Rhaniad y Ddeiliadaeth (Cymru)'!D$110/40))) ->  | Y23: =X23*(1+'Rhaniad y Ddeiliadaeth (Cymru)'!E$109)+(X$44*(-(50-$U23)*('Rhaniad y Ddeiliadaeth (Cymru)'!E$110/40))) ->  | Z23: =Y23*(1+'Rhaniad y Ddeiliadaeth (Cymru)'!F$109)+(Y$44*(-(50-$U23)*('Rhaniad y Ddeiliadaeth (Cymru)'!F$110/40))) ->  | AA23: =Z23*(1+'Rhaniad y Ddeiliadaeth (Cymru)'!G$109)+(Z$44*(-(50-$U23)*('Rhaniad y Ddeiliadaeth (Cymru)'!G$110/40))) ->  | AC23: 29 | AD23: =IF('Rhaniad y Ddeiliadaeth (Cymru)'!$D$8="Amcangyfrifon LlC",'Incwm (Cymru)'!E23,'Incwm (Cymru)'!W23) -> £17,761 | AE23: =IF('Rhaniad y Ddeiliadaeth (Cymru)'!$D$8="Amcangyfrifon LlC",'Incwm (Cymru)'!F23,'Incwm (Cymru)'!X23) -> £18,227 | AF23: =IF('Rhaniad y Ddeiliadaeth (Cymru)'!$D$8="Amcangyfrifon LlC",'Incwm (Cymru)'!G23,'Incwm (Cymru)'!Y23) -> £18,703 | AG23: =IF('Rhaniad y Ddeiliadaeth (Cymru)'!$D$8="Amcangyfrifon LlC",'Incwm (Cymru)'!H23,'Incwm (Cymru)'!Z23) -> £19,200 | AH23: =IF('Rhaniad y Ddeiliadaeth (Cymru)'!$D$8="Amcangyfrifon LlC",'Incwm (Cymru)'!I23,'Incwm (Cymru)'!AA23) -> £19,704
B24: 30 | C24: £17,411 | D24: £17,807 | E24: =D24*(1+'Rhaniad y Ddeiliadaeth (Cymru)'!C$109)+(D$44*(-(50-$B24)*('Rhaniad y Ddeiliadaeth (Cymru)'!C$110/40))) -> £18,074 | F24: =E24*(1+'Rhaniad y Ddeiliadaeth (Cymru)'!D$109)+(E$44*(-(50-$B24)*('Rhaniad y Ddeiliadaeth (Cymru)'!D$110/40))) -> £18,558 | G24: =F24*(1+'Rhaniad y Ddeiliadaeth (Cymru)'!E$109)+(F$44*(-(50-$B24)*('Rhaniad y Ddeiliadaeth (Cymru)'!E$110/40))) -> £19,052 | H24: =G24*(1+'Rhaniad y Ddeiliadaeth (Cymru)'!F$109)+(G$44*(-(50-$B24)*('Rhaniad y Ddeiliadaeth (Cymru)'!F$110/40))) -> £19,568 | I24: =H24*(1+'Rhaniad y Ddeiliadaeth (Cymru)'!G$109)+(H$44*(-(50-$B24)*('Rhaniad y Ddeiliadaeth (Cymru)'!G$110/40))) -> £20,093 | O24: 1 | U24: 30 | W24: =IF($W$3=$N$3,N24,V24*(1+'Rhaniad y Ddeiliadaeth (Cymru)'!C$109)+(V$44*(-(50-$U24)*('Rhaniad y Ddeiliadaeth (Cymru)'!C$110/40)))) ->  | X24: =W24*(1+'Rhaniad y Ddeiliadaeth (Cymru)'!D$109)+(W$44*(-(50-$U24)*('Rhaniad y Ddeiliadaeth (Cymru)'!D$110/40))) ->  | Y24: =X24*(1+'Rhaniad y Ddeiliadaeth (Cymru)'!E$109)+(X$44*(-(50-$U24)*('Rhaniad y Ddeiliadaeth (Cymru)'!E$110/40))) ->  | Z24: =Y24*(1+'Rhaniad y Ddeiliadaeth (Cymru)'!F$109)+(Y$44*(-(50-$U24)*('Rhaniad y Ddeiliadaeth (Cymru)'!F$110/40))) ->  | AA24: =Z24*(1+'Rhaniad y Ddeiliadaeth (Cymru)'!G$109)+(Z$44*(-(50-$U24)*('Rhaniad y Ddeiliadaeth (Cymru)'!G$110/40))) ->  | AC24: 30 | AD24: =IF('Rhaniad y Ddeiliadaeth (Cymru)'!$D$8="Amcangyfrifon LlC",'Incwm (Cymru)'!E24,'Incwm (Cymru)'!W24) -> £18,074 | AE24: =IF('Rhaniad y Ddeiliadaeth (Cymru)'!$D$8="Amcangyfrifon LlC",'Incwm (Cymru)'!F24,'Incwm (Cymru)'!X24) -> £18,558 | AF24: =IF('Rhaniad y Ddeiliadaeth (Cymru)'!$D$8="Amcangyfrifon LlC",'Incwm (Cymru)'!G24,'Incwm (Cymru)'!Y24) -> £19,052 | AG24: =IF('Rhaniad y Ddeiliadaeth (Cymru)'!$D$8="Amcangyfrifon LlC",'Incwm (Cymru)'!H24,'Incwm (Cymru)'!Z24) -> £19,568 | AH24: =IF('Rhaniad y Ddeiliadaeth (Cymru)'!$D$8="Amcangyfrifon LlC",'Incwm (Cymru)'!I24,'Incwm (Cymru)'!AA24) -> £20,093
B25: 31 | C25: £17,727 | D25: £18,131 | E25: =D25*(1+'Rhaniad y Ddeiliadaeth (Cymru)'!C$109)+(D$44*(-(50-$B25)*('Rhaniad y Ddeiliadaeth (Cymru)'!C$110/40))) -> £18,412 | F25: =E25*(1+'Rhaniad y Ddeiliadaeth (Cymru)'!D$109)+(E$44*(-(50-$B25)*('Rhaniad y Ddeiliadaeth (Cymru)'!D$110/40))) -> £18,914 | G25: =F25*(1+'Rhaniad y Ddeiliadaeth (Cymru)'!E$109)+(F$44*(-(50-$B25)*('Rhaniad y Ddeiliadaeth (Cymru)'!E$110/40))) -> £19,428 | H25: =G25*(1+'Rhaniad y Ddeiliadaeth (Cymru)'!F$109)+(G$44*(-(50-$B25)*('Rhaniad y Ddeiliadaeth (Cymru)'!F$110/40))) -> £19,964 | I25: =H25*(1+'Rhaniad y Ddeiliadaeth (Cymru)'!G$109)+(H$44*(-(50-$B25)*('Rhaniad y Ddeiliadaeth (Cymru)'!G$110/40))) -> £20,510 | O25: 1 | U25: 31 | W25: =IF($W$3=$N$3,N25,V25*(1+'Rhaniad y Ddeiliadaeth (Cymru)'!C$109)+(V$44*(-(50-$U25)*('Rhaniad y Ddeiliadaeth (Cymru)'!C$110/40)))) ->  | X25: =W25*(1+'Rhaniad y Ddeiliadaeth (Cymru)'!D$109)+(W$44*(-(50-$U25)*('Rhaniad y Ddeiliadaeth (Cymru)'!D$110/40))) ->  | Y25: =X25*(1+'Rhaniad y Ddeiliadaeth (Cymru)'!E$109)+(X$44*(-(50-$U25)*('Rhaniad y Ddeiliadaeth (Cymru)'!E$110/40))) ->  | Z25: =Y25*(1+'Rhaniad y Ddeiliadaeth (Cymru)'!F$109)+(Y$44*(-(50-$U25)*('Rhaniad y Ddeiliadaeth (Cymru)'!F$110/40))) ->  | AA25: =Z25*(1+'Rhaniad y Ddeiliadaeth (Cymru)'!G$109)+(Z$44*(-(50-$U25)*('Rhaniad y Ddeiliadaeth (Cymru)'!G$110/40))) ->  | AC25: 31 | AD25: =IF('Rhaniad y Ddeiliadaeth (Cymru)'!$D$8="Amcangyfrifon LlC",'Incwm (Cymru)'!E25,'Incwm (Cymru)'!W25) -> £18,412 | AE25: =IF('Rhaniad y Ddeiliadaeth (Cymru)'!$D$8="Amcangyfrifon LlC",'Incwm (Cymru)'!F25,'Incwm (Cymru)'!X25) -> £18,914 | AF25: =IF('Rhaniad y Ddeiliadaeth (Cymru)'!$D$8="Amcangyfrifon LlC",'Incwm (Cymru)'!G25,'Incwm (Cymru)'!Y25) -> £19,428 | AG25: =IF('Rhaniad y Ddeiliadaeth (Cymru)'!$D$8="Amcangyfrifon LlC",'Incwm (Cymru)'!H25,'Incwm (Cymru)'!Z25) -> £19,964 | AH25: =IF('Rhaniad y Ddeiliadaeth (Cymru)'!$D$8="Amcangyfrifon LlC",'Incwm (Cymru)'!I25,'Incwm (Cymru)'!AA25) -> £20,510
B26: 32 | C26: £18,146 | D26: £18,558 | E26: =D26*(1+'Rhaniad y Ddeiliadaeth (Cymru)'!C$109)+(D$44*(-(50-$B26)*('Rhaniad y Ddeiliadaeth (Cymru)'!C$110/40))) -> £18,856 | F26: =E26*(1+'Rhaniad y Ddeiliadaeth (Cymru)'!D$109)+(E$44*(-(50-$B26)*('Rhaniad y Ddeiliadaeth (Cymru)'!D$110/40))) -> £19,380 | G26: =F26*(1+'Rhaniad y Ddeiliadaeth (Cymru)'!E$109)+(F$44*(-(50-$B26)*('Rhaniad y Ddeiliadaeth (Cymru)'!E$110/40))) -> £19,916 | H26: =G26*(1+'Rhaniad y Ddeiliadaeth (Cymru)'!F$109)+(G$44*(-(50-$B26)*('Rhaniad y Ddeiliadaeth (Cymru)'!F$110/40))) -> £20,477 | I26: =H26*(1+'Rhaniad y Ddeiliadaeth (Cymru)'!G$109)+(H$44*(-(50-$B26)*('Rhaniad y Ddeiliadaeth (Cymru)'!G$110/40))) -> £21,048 | O26: 1 | U26: 32 | W26: =IF($W$3=$N$3,N26,V26*(1+'Rhaniad y Ddeiliadaeth (Cymru)'!C$109)+(V$44*(-(50-$U26)*('Rhaniad y Ddeiliadaeth (Cymru)'!C$110/40)))) ->  | X26: =W26*(1+'Rhaniad y Ddeiliadaeth (Cymru)'!D$109)+(W$44*(-(50-$U26)*('Rhaniad y Ddeiliadaeth (Cymru)'!D$110/40))) ->  | Y26: =X26*(1+'Rhaniad y Ddeiliadaeth (Cymru)'!E$109)+(X$44*(-(50-$U26)*('Rhaniad y Ddeiliadaeth (Cymru)'!E$110/40))) ->  | Z26: =Y26*(1+'Rhaniad y Ddeiliadaeth (Cymru)'!F$109)+(Y$44*(-(50-$U26)*('Rhaniad y Ddeiliadaeth (Cymru)'!F$110/40))) ->  | AA26: =Z26*(1+'Rhaniad y Ddeiliadaeth (Cymru)'!G$109)+(Z$44*(-(50-$U26)*('Rhaniad y Ddeiliadaeth (Cymru)'!G$110/40))) ->  | AC26: 32 | AD26: =IF('Rhaniad y Ddeiliadaeth (Cymru)'!$D$8="Amcangyfrifon LlC",'Incwm (Cymru)'!E26,'Incwm (Cymru)'!W26) -> £18,856 | AE26: =IF('Rhaniad y Ddeiliadaeth (Cymru)'!$D$8="Amcangyfrifon LlC",'Incwm (Cymru)'!F26,'Incwm (Cymru)'!X26) -> £19,380 | AF26: =IF('Rhaniad y Ddeiliadaeth (Cymru)'!$D$8="Amcangyfrifon LlC",'Incwm (Cymru)'!G26,'Incwm (Cymru)'!Y26) -> £19,916 | AG26: =IF('Rhaniad y Ddeiliadaeth (Cymru)'!$D$8="Amcangyfrifon LlC",'Incwm (Cymru)'!H26,'Incwm (Cymru)'!Z26) -> £20,477 | AH26: =IF('Rhaniad y Ddeiliadaeth (Cymru)'!$D$8="Amcangyfrifon LlC",'Incwm (Cymru)'!I26,'Incwm (Cymru)'!AA26) -> £21,048
B27: 33 | C27: £18,572 | D27: £18,995 | E27: =D27*(1+'Rhaniad y Ddeiliadaeth (Cymru)'!C$109)+(D$44*(-(50-$B27)*('Rhaniad y Ddeiliadaeth (Cymru)'!C$110/40))) -> £19,308 | F27: =E27*(1+'Rhaniad y Ddeiliadaeth (Cymru)'!D$109)+(E$44*(-(50-$B27)*('Rhaniad y Ddeiliadaeth (Cymru)'!D$110/40))) -> £19,855 | G27: =F27*(1+'Rhaniad y Ddeiliadaeth (Cymru)'!E$109)+(F$44*(-(50-$B27)*('Rhaniad y Ddeiliadaeth (Cymru)'!E$110/40))) -> £20,414 | H27: =G27*(1+'Rhaniad y Ddeiliadaeth (Cymru)'!F$109)+(G$44*(-(50-$B27)*('Rhaniad y Ddeiliadaeth (Cymru)'!F$110/40))) -> £20,999 | I27: =H27*(1+'Rhaniad y Ddeiliadaeth (Cymru)'!G$109)+(H$44*(-(50-$B27)*('Rhaniad y Ddeiliadaeth (Cymru)'!G$110/40))) -> £21,596 | O27: 1 | U27: 33 | W27: =IF($W$3=$N$3,N27,V27*(1+'Rhaniad y Ddeiliadaeth (Cymru)'!C$109)+(V$44*(-(50-$U27)*('Rhaniad y Ddeiliadaeth (Cymru)'!C$110/40)))) ->  | X27: =W27*(1+'Rhaniad y Ddeiliadaeth (Cymru)'!D$109)+(W$44*(-(50-$U27)*('Rhaniad y Ddeiliadaeth (Cymru)'!D$110/40))) ->  | Y27: =X27*(1+'Rhaniad y Ddeiliadaeth (Cymru)'!E$109)+(X$44*(-(50-$U27)*('Rhaniad y Ddeiliadaeth (Cymru)'!E$110/40))) ->  | Z27: =Y27*(1+'Rhaniad y Ddeiliadaeth (Cymru)'!F$109)+(Y$44*(-(50-$U27)*('Rhaniad y Ddeiliadaeth (Cymru)'!F$110/40))) ->  | AA27: =Z27*(1+'Rhaniad y Ddeiliadaeth (Cymru)'!G$109)+(Z$44*(-(50-$U27)*('Rhaniad y Ddeiliadaeth (Cymru)'!G$110/40))) ->  | AC27: 33 | AD27: =IF('Rhaniad y Ddeiliadaeth (Cymru)'!$D$8="Amcangyfrifon LlC",'Incwm (Cymru)'!E27,'Incwm (Cymru)'!W27) -> £19,308 | AE27: =IF('Rhaniad y Ddeiliadaeth (Cymru)'!$D$8="Amcangyfrifon LlC",'Incwm (Cymru)'!F27,'Incwm (Cymru)'!X27) -> £19,855 | AF27: =IF('Rhaniad y Ddeiliadaeth (Cymru)'!$D$8="Amcangyfrifon LlC",'Incwm (Cymru)'!G27,'Incwm (Cymru)'!Y27) -> £20,414 | AG27: =IF('Rhaniad y Ddeiliadaeth (Cymru)'!$D$8="Amcangyfrifon LlC",'Incwm (Cymru)'!H27,'Incwm (Cymru)'!Z27) -> £20,999 | AH27: =IF('Rhaniad y Ddeiliadaeth (Cymru)'!$D$8="Amcangyfrifon LlC",'Incwm (Cymru)'!I27,'Incwm (Cymru)'!AA27) -> £21,596
B28: 34 | C28: £18,966 | D28: £19,398 | E28: =D28*(1+'Rhaniad y Ddeiliadaeth (Cymru)'!C$109)+(D$44*(-(50-$B28)*('Rhaniad y Ddeiliadaeth (Cymru)'!C$110/40))) -> £19,727 | F28: =E28*(1+'Rhaniad y Ddeiliadaeth (Cymru)'!D$109)+(E$44*(-(50-$B28)*('Rhaniad y Ddeiliadaeth (Cymru)'!D$110/40))) -> £20,295 | G28: =F28*(1+'Rhaniad y Ddeiliadaeth (Cymru)'!E$109)+(F$44*(-(50-$B28)*('Rhaniad y Ddeiliadaeth (Cymru)'!E$110/40))) -> £20,876 | H28: =G28*(1+'Rhaniad y Ddeiliadaeth (Cymru)'!F$109)+(G$44*(-(50-$B28)*('Rhaniad y Ddeiliadaeth (Cymru)'!F$110/40))) -> £21,485 | I28: =H28*(1+'Rhaniad y Ddeiliadaeth (Cymru)'!G$109)+(H$44*(-(50-$B28)*('Rhaniad y Ddeiliadaeth (Cymru)'!G$110/40))) -> £22,106 | O28: 1 | U28: 34 | W28: =IF($W$3=$N$3,N28,V28*(1+'Rhaniad y Ddeiliadaeth (Cymru)'!C$109)+(V$44*(-(50-$U28)*('Rhaniad y Ddeiliadaeth (Cymru)'!C$110/40)))) ->  | X28: =W28*(1+'Rhaniad y Ddeiliadaeth (Cymru)'!D$109)+(W$44*(-(50-$U28)*('Rhaniad y Ddeiliadaeth (Cymru)'!D$110/40))) ->  | Y28: =X28*(1+'Rhaniad y Ddeiliadaeth (Cymru)'!E$109)+(X$44*(-(50-$U28)*('Rhaniad y Ddeiliadaeth (Cymru)'!E$110/40))) ->  | Z28: =Y28*(1+'Rhaniad y Ddeiliadaeth (Cymru)'!F$109)+(Y$44*(-(50-$U28)*('Rhaniad y Ddeiliadaeth (Cymru)'!F$110/40))) ->  | AA28: =Z28*(1+'Rhaniad y Ddeiliadaeth (Cymru)'!G$109)+(Z$44*(-(50-$U28)*('Rhaniad y Ddeiliadaeth (Cymru)'!G$110/40))) ->  | AC28: 34 | AD28: =IF('Rhaniad y Ddeiliadaeth (Cymru)'!$D$8="Amcangyfrifon LlC",'Incwm (Cymru)'!E28,'Incwm (Cymru)'!W28) -> £19,727 | AE28: =IF('Rhaniad y Ddeiliadaeth (Cymru)'!$D$8="Amcangyfrifon LlC",'Incwm (Cymru)'!F28,'Incwm (Cymru)'!X28) -> £20,295 | AF28: =IF('Rhaniad y Ddeiliadaeth (Cymru)'!$D$8="Amcangyfrifon LlC",'Incwm (Cymru)'!G28,'Incwm (Cymru)'!Y28) -> £20,876 | AG28: =IF('Rhaniad y Ddeiliadaeth (Cymru)'!$D$8="Amcangyfrifon LlC",'Incwm (Cymru)'!H28,'Incwm (Cymru)'!Z28) -> £21,485 | AH28: =IF('Rhaniad y Ddeiliadaeth (Cymru)'!$D$8="Amcangyfrifon LlC",'Incwm (Cymru)'!I28,'Incwm (Cymru)'!AA28) -> £22,106
B29: 35 | C29: £19,363 | D29: £19,803 | E29: =D29*(1+'Rhaniad y Ddeiliadaeth (Cymru)'!C$109)+(D$44*(-(50-$B29)*('Rhaniad y Ddeiliadaeth (Cymru)'!C$110/40))) -> £20,149 | F29: =E29*(1+'Rhaniad y Ddeiliadaeth (Cymru)'!D$109)+(E$44*(-(50-$B29)*('Rhaniad y Ddeiliadaeth (Cymru)'!D$110/40))) -> £20,737 | G29: =F29*(1+'Rhaniad y Ddeiliadaeth (Cymru)'!E$109)+(F$44*(-(50-$B29)*('Rhaniad y Ddeiliadaeth (Cymru)'!E$110/40))) -> £21,341 | H29: =G29*(1+'Rhaniad y Ddeiliadaeth (Cymru)'!F$109)+(G$44*(-(50-$B29)*('Rhaniad y Ddeiliadaeth (Cymru)'!F$110/40))) -> £21,973 | I29: =H29*(1+'Rhaniad y Ddeiliadaeth (Cymru)'!G$109)+(H$44*(-(50-$B29)*('Rhaniad y Ddeiliadaeth (Cymru)'!G$110/40))) -> £22,618 | O29: 1 | U29: 35 | W29: =IF($W$3=$N$3,N29,V29*(1+'Rhaniad y Ddeiliadaeth (Cymru)'!C$109)+(V$44*(-(50-$U29)*('Rhaniad y Ddeiliadaeth (Cymru)'!C$110/40)))) ->  | X29: =W29*(1+'Rhaniad y Ddeiliadaeth (Cymru)'!D$109)+(W$44*(-(50-$U29)*('Rhaniad y Ddeiliadaeth (Cymru)'!D$110/40))) ->  | Y29: =X29*(1+'Rhaniad y Ddeiliadaeth (Cymru)'!E$109)+(X$44*(-(50-$U29)*('Rhaniad y Ddeiliadaeth (Cymru)'!E$110/40))) ->  | Z29: =Y29*(1+'Rhaniad y Ddeiliadaeth (Cymru)'!F$109)+(Y$44*(-(50-$U29)*('Rhaniad y Ddeiliadaeth (Cymru)'!F$110/40))) ->  | AA29: =Z29*(1+'Rhaniad y Ddeiliadaeth (Cymru)'!G$109)+(Z$44*(-(50-$U29)*('Rhaniad y Ddeiliadaeth (Cymru)'!G$110/40))) ->  | AC29: 35 | AD29: =IF('Rhaniad y Ddeiliadaeth (Cymru)'!$D$8="Amcangyfrifon LlC",'Incwm (Cymru)'!E29,'Incwm (Cymru)'!W29) -> £20,149 | AE29: =IF('Rhaniad y Ddeiliadaeth (Cymru)'!$D$8="Amcangyfrifon LlC",'Incwm (Cymru)'!F29,'Incwm (Cymru)'!X29) -> £20,737 | AF29: =IF('Rhaniad y Ddeiliadaeth (Cymru)'!$D$8="Amcangyfrifon LlC",'Incwm (Cymru)'!G29,'Incwm (Cymru)'!Y29) -> £21,341 | AG29: =IF('Rhaniad y Ddeiliadaeth (Cymru)'!$D$8="Amcangyfrifon LlC",'Incwm (Cymru)'!H29,'Incwm (Cymru)'!Z29) -> £21,973 | AH29: =IF('Rhaniad y Ddeiliadaeth (Cymru)'!$D$8="Amcangyfrifon LlC",'Incwm (Cymru)'!I29,'Incwm (Cymru)'!AA29) -> £22,618
B30: 36 | C30: £19,693 | D30: £20,141 | E30: =D30*(1+'Rhaniad y Ddeiliadaeth (Cymru)'!C$109)+(D$44*(-(50-$B30)*('Rhaniad y Ddeiliadaeth (Cymru)'!C$110/40))) -> £20,500 | F30: =E30*(1+'Rhaniad y Ddeiliadaeth (Cymru)'!D$109)+(E$44*(-(50-$B30)*('Rhaniad y Ddeiliadaeth (Cymru)'!D$110/40))) -> £21,108 | G30: =F30*(1+'Rhaniad y Ddeiliadaeth (Cymru)'!E$109)+(F$44*(-(50-$B30)*('Rhaniad y Ddeiliadaeth (Cymru)'!E$110/40))) -> £21,731 | H30: =G30*(1+'Rhaniad y Ddeiliadaeth (Cymru)'!F$109)+(G$44*(-(50-$B30)*('Rhaniad y Ddeiliadaeth (Cymru)'!F$110/40))) -> £22,383 | I30: =H30*(1+'Rhaniad y Ddeiliadaeth (Cymru)'!G$109)+(H$44*(-(50-$B30)*('Rhaniad y Ddeiliadaeth (Cymru)'!G$110/40))) -> £23,050 | O30: 1 | U30: 36 | W30: =IF($W$3=$N$3,N30,V30*(1+'Rhaniad y Ddeiliadaeth (Cymru)'!C$109)+(V$44*(-(50-$U30)*('Rhaniad y Ddeiliadaeth (Cymru)'!C$110/40)))) ->  | X30: =W30*(1+'Rhaniad y Ddeiliadaeth (Cymru)'!D$109)+(W$44*(-(50-$U30)*('Rhaniad y Ddeiliadaeth (Cymru)'!D$110/40))) ->  | Y30: =X30*(1+'Rhaniad y Ddeiliadaeth (Cymru)'!E$109)+(X$44*(-(50-$U30)*('Rhaniad y Ddeiliadaeth (Cymru)'!E$110/40))) ->  | Z30: =Y30*(1+'Rhaniad y Ddeiliadaeth (Cymru)'!F$109)+(Y$44*(-(50-$U30)*('Rhaniad y Ddeiliadaeth (Cymru)'!F$110/40))) ->  | AA30: =Z30*(1+'Rhaniad y Ddeiliadaeth (Cymru)'!G$109)+(Z$44*(-(50-$U30)*('Rhaniad y Ddeiliadaeth (Cymru)'!G$110/40))) ->  | AC30: 36 | AD30: =IF('Rhaniad y Ddeiliadaeth (Cymru)'!$D$8="Amcangyfrifon LlC",'Incwm (Cymru)'!E30,'Incwm (Cymru)'!W30) -> £20,500 | AE30: =IF('Rhaniad y Ddeiliadaeth (Cymru)'!$D$8="Amcangyfrifon LlC",'Incwm (Cymru)'!F30,'Incwm (Cymru)'!X30) -> £21,108 | AF30: =IF('Rhaniad y Ddeiliadaeth (Cymru)'!$D$8="Amcangyfrifon LlC",'Incwm (Cymru)'!G30,'Incwm (Cymru)'!Y30) -> £21,731 | AG30: =IF('Rhaniad y Ddeiliadaeth (Cymru)'!$D$8="Amcangyfrifon LlC",'Incwm (Cymru)'!H30,'Incwm (Cymru)'!Z30) -> £22,383 | AH30: =IF('Rhaniad y Ddeiliadaeth (Cymru)'!$D$8="Amcangyfrifon LlC",'Incwm (Cymru)'!I30,'Incwm (Cymru)'!AA30) -> £23,050
B31: 37 | C31: £20,073 | D31: £20,530 | E31: =D31*(1+'Rhaniad y Ddeiliadaeth (Cymru)'!C$109)+(D$44*(-(50-$B31)*('Rhaniad y Ddeiliadaeth (Cymru)'!C$110/40))) -> £20,905 | F31: =E31*(1+'Rhaniad y Ddeiliadaeth (Cymru)'!D$109)+(E$44*(-(50-$B31)*('Rhaniad y Ddeiliadaeth (Cymru)'!D$110/40))) -> £21,533 | G31: =F31*(1+'Rhaniad y Ddeiliadaeth (Cymru)'!E$109)+(F$44*(-(50-$B31)*('Rhaniad y Ddeiliadaeth (Cymru)'!E$110/40))) -> £22,178 | H31: =G31*(1+'Rhaniad y Ddeiliadaeth (Cymru)'!F$109)+(G$44*(-(50-$B31)*('Rhaniad y Ddeiliadaeth (Cymru)'!F$110/40))) -> £22,853 | I31: =H31*(1+'Rhaniad y Ddeiliadaeth (Cymru)'!G$109)+(H$44*(-(50-$B31)*('Rhaniad y Ddeiliadaeth (Cymru)'!G$110/40))) -> £23,544 | O31: 1 | U31: 37 | W31: =IF($W$3=$N$3,N31,V31*(1+'Rhaniad y Ddeiliadaeth (Cymru)'!C$109)+(V$44*(-(50-$U31)*('Rhaniad y Ddeiliadaeth (Cymru)'!C$110/40)))) ->  | X31: =W31*(1+'Rhaniad y Ddeiliadaeth (Cymru)'!D$109)+(W$44*(-(50-$U31)*('Rhaniad y Ddeiliadaeth (Cymru)'!D$110/40))) ->  | Y31: =X31*(1+'Rhaniad y Ddeiliadaeth (Cymru)'!E$109)+(X$44*(-(50-$U31)*('Rhaniad y Ddeiliadaeth (Cymru)'!E$110/40))) ->  | Z31: =Y31*(1+'Rhaniad y Ddeiliadaeth (Cymru)'!F$109)+(Y$44*(-(50-$U31)*('Rhaniad y Ddeiliadaeth (Cymru)'!F$110/40))) ->  | AA31: =Z31*(1+'Rhaniad y Ddeiliadaeth (Cymru)'!G$109)+(Z$44*(-(50-$U31)*('Rhaniad y Ddeiliadaeth (Cymru)'!G$110/40))) ->  | AC31: 37 | AD31: =IF('Rhaniad y Ddeiliadaeth (Cymru)'!$D$8="Amcangyfrifon LlC",'Incwm (Cymru)'!E31,'Incwm (Cymru)'!W31) -> £20,905 | AE31: =IF('Rhaniad y Ddeiliadaeth (Cymru)'!$D$8="Amcangyfrifon LlC",'Incwm (Cymru)'!F31,'Incwm (Cymru)'!X31) -> £21,533 | AF31: =IF('Rhaniad y Ddeiliadaeth (Cymru)'!$D$8="Amcangyfrifon LlC",'Incwm (Cymru)'!G31,'Incwm (Cymru)'!Y31) -> £22,178 | AG31: =IF('Rhaniad y Ddeiliadaeth (Cymru)'!$D$8="Amcangyfrifon LlC",'Incwm (Cymru)'!H31,'Incwm (Cymru)'!Z31) -> £22,853 | AH31: =IF('Rhaniad y Ddeiliadaeth (Cymru)'!$D$8="Amcangyfrifon LlC",'Incwm (Cymru)'!I31,'Incwm (Cymru)'!AA31) -> £23,544
B32: 38 | C32: £20,488 | D32: £20,954 | E32: =D32*(1+'Rhaniad y Ddeiliadaeth (Cymru)'!C$109)+(D$44*(-(50-$B32)*('Rhaniad y Ddeiliadaeth (Cymru)'!C$110/40))) -> £21,345 | F32: =E32*(1+'Rhaniad y Ddeiliadaeth (Cymru)'!D$109)+(E$44*(-(50-$B32)*('Rhaniad y Ddeiliadaeth (Cymru)'!D$110/40))) -> £21,995 | G32: =F32*(1+'Rhaniad y Ddeiliadaeth (Cymru)'!E$109)+(F$44*(-(50-$B32)*('Rhaniad y Ddeiliadaeth (Cymru)'!E$110/40))) -> £22,663 | H32: =G32*(1+'Rhaniad y Ddeiliadaeth (Cymru)'!F$109)+(G$44*(-(50-$B32)*('Rhaniad y Ddeiliadaeth (Cymru)'!F$110/40))) -> £23,362 | I32: =H32*(1+'Rhaniad y Ddeiliadaeth (Cymru)'!G$109)+(H$44*(-(50-$B32)*('Rhaniad y Ddeiliadaeth (Cymru)'!G$110/40))) -> £24,078 | O32: 1 | U32: 38 | W32: =IF($W$3=$N$3,N32,V32*(1+'Rhaniad y Ddeiliadaeth (Cymru)'!C$109)+(V$44*(-(50-$U32)*('Rhaniad y Ddeiliadaeth (Cymru)'!C$110/40)))) ->  | X32: =W32*(1+'Rhaniad y Ddeiliadaeth (Cymru)'!D$109)+(W$44*(-(50-$U32)*('Rhaniad y Ddeiliadaeth (Cymru)'!D$110/40))) ->  | Y32: =X32*(1+'Rhaniad y Ddeiliadaeth (Cymru)'!E$109)+(X$44*(-(50-$U32)*('Rhaniad y Ddeiliadaeth (Cymru)'!E$110/40))) ->  | Z32: =Y32*(1+'Rhaniad y Ddeiliadaeth (Cymru)'!F$109)+(Y$44*(-(50-$U32)*('Rhaniad y Ddeiliadaeth (Cymru)'!F$110/40))) ->  | AA32: =Z32*(1+'Rhaniad y Ddeiliadaeth (Cymru)'!G$109)+(Z$44*(-(50-$U32)*('Rhaniad y Ddeiliadaeth (Cymru)'!G$110/40))) ->  | AC32: 38 | AD32: =IF('Rhaniad y Ddeiliadaeth (Cymru)'!$D$8="Amcangyfrifon LlC",'Incwm (Cymru)'!E32,'Incwm (Cymru)'!W32) -> £21,345 | AE32: =IF('Rhaniad y Ddeiliadaeth (Cymru)'!$D$8="Amcangyfrifon LlC",'Incwm (Cymru)'!F32,'Incwm (Cymru)'!X32) -> £21,995 | AF32: =IF('Rhaniad y Ddeiliadaeth (Cymru)'!$D$8="Amcangyfrifon LlC",'Incwm (Cymru)'!G32,'Incwm (Cymru)'!Y32) -> £22,663 | AG32: =IF('Rhaniad y Ddeiliadaeth (Cymru)'!$D$8="Amcangyfrifon LlC",'Incwm (Cymru)'!H32,'Incwm (Cymru)'!Z32) -> £23,362 | AH32: =IF('Rhaniad y Ddeiliadaeth (Cymru)'!$D$8="Amcangyfrifon LlC",'Incwm (Cymru)'!I32,'Incwm (Cymru)'!AA32) -> £24,078
B33: 39 | C33: £21,011 | D33: £21,489 | E33: =D33*(1+'Rhaniad y Ddeiliadaeth (Cymru)'!C$109)+(D$44*(-(50-$B33)*('Rhaniad y Ddeiliadaeth (Cymru)'!C$110/40))) -> £21,899 | F33: =E33*(1+'Rhaniad y Ddeiliadaeth (Cymru)'!D$109)+(E$44*(-(50-$B33)*('Rhaniad y Ddeiliadaeth (Cymru)'!D$110/40))) -> £22,575 | G33: =F33*(1+'Rhaniad y Ddeiliadaeth (Cymru)'!E$109)+(F$44*(-(50-$B33)*('Rhaniad y Ddeiliadaeth (Cymru)'!E$110/40))) -> £23,269 | H33: =G33*(1+'Rhaniad y Ddeiliadaeth (Cymru)'!F$109)+(G$44*(-(50-$B33)*('Rhaniad y Ddeiliadaeth (Cymru)'!F$110/40))) -> £23,997 | I33: =H33*(1+'Rhaniad y Ddeiliadaeth (Cymru)'!G$109)+(H$44*(-(50-$B33)*('Rhaniad y Ddeiliadaeth (Cymru)'!G$110/40))) -> £24,742 | O33: 1 | U33: 39 | W33: =IF($W$3=$N$3,N33,V33*(1+'Rhaniad y Ddeiliadaeth (Cymru)'!C$109)+(V$44*(-(50-$U33)*('Rhaniad y Ddeiliadaeth (Cymru)'!C$110/40)))) ->  | X33: =W33*(1+'Rhaniad y Ddeiliadaeth (Cymru)'!D$109)+(W$44*(-(50-$U33)*('Rhaniad y Ddeiliadaeth (Cymru)'!D$110/40))) ->  | Y33: =X33*(1+'Rhaniad y Ddeiliadaeth (Cymru)'!E$109)+(X$44*(-(50-$U33)*('Rhaniad y Ddeiliadaeth (Cymru)'!E$110/40))) ->  | Z33: =Y33*(1+'Rhaniad y Ddeiliadaeth (Cymru)'!F$109)+(Y$44*(-(50-$U33)*('Rhaniad y Ddeiliadaeth (Cymru)'!F$110/40))) ->  | AA33: =Z33*(1+'Rhaniad y Ddeiliadaeth (Cymru)'!G$109)+(Z$44*(-(50-$U33)*('Rhaniad y Ddeiliadaeth (Cymru)'!G$110/40))) ->  | AC33: 39 | AD33: =IF('Rhaniad y Ddeiliadaeth (Cymru)'!$D$8="Amcangyfrifon LlC",'Incwm (Cymru)'!E33,'Incwm (Cymru)'!W33) -> £21,899 | AE33: =IF('Rhaniad y Ddeiliadaeth (Cymru)'!$D$8="Amcangyfrifon LlC",'Incwm (Cymru)'!F33,'Incwm (Cymru)'!X33) -> £22,575 | AF33: =IF('Rhaniad y Ddeiliadaeth (Cymru)'!$D$8="Amcangyfrifon LlC",'Incwm (Cymru)'!G33,'Incwm (Cymru)'!Y33) -> £23,269 | AG33: =IF('Rhaniad y Ddeiliadaeth (Cymru)'!$D$8="Amcangyfrifon LlC",'Incwm (Cymru)'!H33,'Incwm (Cymru)'!Z33) -> £23,997 | AH33: =IF('Rhaniad y Ddeiliadaeth (Cymru)'!$D$8="Amcangyfrifon LlC",'Incwm (Cymru)'!I33,'Incwm (Cymru)'!AA33) -> £24,742
B34: 40 | C34: £21,350 | D34: £21,870 | E34: =D34*(1+'Rhaniad y Ddeiliadaeth (Cymru)'!C$109)+(D$44*(-(50-$B34)*('Rhaniad y Ddeiliadaeth (Cymru)'!C$110/40))) -> £22,295 | F34: =E34*(1+'Rhaniad y Ddeiliadaeth (Cymru)'!D$109)+(E$44*(-(50-$B34)*('Rhaniad y Ddeiliadaeth (Cymru)'!D$110/40))) -> £22,991 | G34: =F34*(1+'Rhaniad y Ddeiliadaeth (Cymru)'!E$109)+(F$44*(-(50-$B34)*('Rhaniad y Ddeiliadaeth (Cymru)'!E$110/40))) -> £23,707 | H34: =G34*(1+'Rhaniad y Ddeiliadaeth (Cymru)'!F$109)+(G$44*(-(50-$B34)*('Rhaniad y Ddeiliadaeth (Cymru)'!F$110/40))) -> £24,457 | I34: =H34*(1+'Rhaniad y Ddeiliadaeth (Cymru)'!G$109)+(H$44*(-(50-$B34)*('Rhaniad y Ddeiliadaeth (Cymru)'!G$110/40))) -> £25,226 | O34: 1 | U34: 40 | W34: =IF($W$3=$N$3,N34,V34*(1+'Rhaniad y Ddeiliadaeth (Cymru)'!C$109)+(V$44*(-(50-$U34)*('Rhaniad y Ddeiliadaeth (Cymru)'!C$110/40)))) ->  | X34: =W34*(1+'Rhaniad y Ddeiliadaeth (Cymru)'!D$109)+(W$44*(-(50-$U34)*('Rhaniad y Ddeiliadaeth (Cymru)'!D$110/40))) ->  | Y34: =X34*(1+'Rhaniad y Ddeiliadaeth (Cymru)'!E$109)+(X$44*(-(50-$U34)*('Rhaniad y Ddeiliadaeth (Cymru)'!E$110/40))) ->  | Z34: =Y34*(1+'Rhaniad y Ddeiliadaeth (Cymru)'!F$109)+(Y$44*(-(50-$U34)*('Rhaniad y Ddeiliadaeth (Cymru)'!F$110/40))) ->  | AA34: =Z34*(1+'Rhaniad y Ddeiliadaeth (Cymru)'!G$109)+(Z$44*(-(50-$U34)*('Rhaniad y Ddeiliadaeth (Cymru)'!G$110/40))) ->  | AC34: 40 | AD34: =IF('Rhaniad y Ddeiliadaeth (Cymru)'!$D$8="Amcangyfrifon LlC",'Incwm (Cymru)'!E34,'Incwm (Cymru)'!W34) -> £22,295 | AE34: =IF('Rhaniad y Ddeiliadaeth (Cymru)'!$D$8="Amcangyfrifon LlC",'Incwm (Cymru)'!F34,'Incwm (Cymru)'!X34) -> £22,991 | AF34: =IF('Rhaniad y Ddeiliadaeth (Cymru)'!$D$8="Amcangyfrifon LlC",'Incwm (Cymru)'!G34,'Incwm (Cymru)'!Y34) -> £23,707 | AG34: =IF('Rhaniad y Ddeiliadaeth (Cymru)'!$D$8="Amcangyfrifon LlC",'Incwm (Cymru)'!H34,'Incwm (Cymru)'!Z34) -> £24,457 | AH34: =IF('Rhaniad y Ddeiliadaeth (Cymru)'!$D$8="Amcangyfrifon LlC",'Incwm (Cymru)'!I34,'Incwm (Cymru)'!AA34) -> £25,226
B35: 41 | C35: £21,799 | D35: £22,330 | E35: =D35*(1+'Rhaniad y Ddeiliadaeth (Cymru)'!C$109)+(D$44*(-(50-$B35)*('Rhaniad y Ddeiliadaeth (Cymru)'!C$110/40))) -> £22,772 | F35: =E35*(1+'Rhaniad y Ddeiliadaeth (Cymru)'!D$109)+(E$44*(-(50-$B35)*('Rhaniad y Ddeiliadaeth (Cymru)'!D$110/40))) -> £23,491 | G35: =F35*(1+'Rhaniad y Ddeiliadaeth (Cymru)'!E$109)+(F$44*(-(50-$B35)*('Rhaniad y Ddeiliadaeth (Cymru)'!E$110/40))) -> £24,231 | H35: =G35*(1+'Rhaniad y Ddeiliadaeth (Cymru)'!F$109)+(G$44*(-(50-$B35)*('Rhaniad y Ddeiliadaeth (Cymru)'!F$110/40))) -> £25,007 | I35: =H35*(1+'Rhaniad y Ddeiliadaeth (Cymru)'!G$109)+(H$44*(-(50-$B35)*('Rhaniad y Ddeiliadaeth (Cymru)'!G$110/40))) -> £25,802 | O35: 1 | U35: 41 | W35: =IF($W$3=$N$3,N35,V35*(1+'Rhaniad y Ddeiliadaeth (Cymru)'!C$109)+(V$44*(-(50-$U35)*('Rhaniad y Ddeiliadaeth (Cymru)'!C$110/40)))) ->  | X35: =W35*(1+'Rhaniad y Ddeiliadaeth (Cymru)'!D$109)+(W$44*(-(50-$U35)*('Rhaniad y Ddeiliadaeth (Cymru)'!D$110/40))) ->  | Y35: =X35*(1+'Rhaniad y Ddeiliadaeth (Cymru)'!E$109)+(X$44*(-(50-$U35)*('Rhaniad y Ddeiliadaeth (Cymru)'!E$110/40))) ->  | Z35: =Y35*(1+'Rhaniad y Ddeiliadaeth (Cymru)'!F$109)+(Y$44*(-(50-$U35)*('Rhaniad y Ddeiliadaeth (Cymru)'!F$110/40))) ->  | AA35: =Z35*(1+'Rhaniad y Ddeiliadaeth (Cymru)'!G$109)+(Z$44*(-(50-$U35)*('Rhaniad y Ddeiliadaeth (Cymru)'!G$110/40))) ->  | AC35: 41 | AD35: =IF('Rhaniad y Ddeiliadaeth (Cymru)'!$D$8="Amcangyfrifon LlC",'Incwm (Cymru)'!E35,'Incwm (Cymru)'!W35) -> £22,772 | AE35: =IF('Rhaniad y Ddeiliadaeth (Cymru)'!$D$8="Amcangyfrifon LlC",'Incwm (Cymru)'!F35,'Incwm (Cymru)'!X35) -> £23,491 | AF35: =IF('Rhaniad y Ddeiliadaeth (Cymru)'!$D$8="Amcangyfrifon LlC",'Incwm (Cymru)'!G35,'Incwm (Cymru)'!Y35) -> £24,231 | AG35: =IF('Rhaniad y Ddeiliadaeth (Cymru)'!$D$8="Amcangyfrifon LlC",'Incwm (Cymru)'!H35,'Incwm (Cymru)'!Z35) -> £25,007 | AH35: =IF('Rhaniad y Ddeiliadaeth (Cymru)'!$D$8="Amcangyfrifon LlC",'Incwm (Cymru)'!I35,'Incwm (Cymru)'!AA35) -> £25,802
B36: 42 | C36: £22,200 | D36: £22,741 | E36: =D36*(1+'Rhaniad y Ddeiliadaeth (Cymru)'!C$109)+(D$44*(-(50-$B36)*('Rhaniad y Ddeiliadaeth (Cymru)'!C$110/40))) -> £23,198 | F36: =E36*(1+'Rhaniad y Ddeiliadaeth (Cymru)'!D$109)+(E$44*(-(50-$B36)*('Rhaniad y Ddeiliadaeth (Cymru)'!D$110/40))) -> £23,939 | G36: =F36*(1+'Rhaniad y Ddeiliadaeth (Cymru)'!E$109)+(F$44*(-(50-$B36)*('Rhaniad y Ddeiliadaeth (Cymru)'!E$110/40))) -> £24,701 | H36: =G36*(1+'Rhaniad y Ddeiliadaeth (Cymru)'!F$109)+(G$44*(-(50-$B36)*('Rhaniad y Ddeiliadaeth (Cymru)'!F$110/40))) -> £25,500 | I36: =H36*(1+'Rhaniad y Ddeiliadaeth (Cymru)'!G$109)+(H$44*(-(50-$B36)*('Rhaniad y Ddeiliadaeth (Cymru)'!G$110/40))) -> £26,320 | M36: =IF(ISBLANK($L$4),"",B36) ->  | O36: 1 | U36: =B36 -> 42 | V36: =IF($N$3=$V$3,N36,"") ->  | W36: =IF($W$3=$N$3,N36,V36*(1+'Rhaniad y Ddeiliadaeth (Cymru)'!C$109)+(V$44*(-(50-$U36)*('Rhaniad y Ddeiliadaeth (Cymru)'!C$110/40)))) ->  | X36: =W36*(1+'Rhaniad y Ddeiliadaeth (Cymru)'!D$109)+(W$44*(-(50-$U36)*('Rhaniad y Ddeiliadaeth (Cymru)'!D$110/40))) ->  | Y36: =X36*(1+'Rhaniad y Ddeiliadaeth (Cymru)'!E$109)+(X$44*(-(50-$U36)*('Rhaniad y Ddeiliadaeth (Cymru)'!E$110/40))) ->  | Z36: =Y36*(1+'Rhaniad y Ddeiliadaeth (Cymru)'!F$109)+(Y$44*(-(50-$U36)*('Rhaniad y Ddeiliadaeth (Cymru)'!F$110/40))) ->  | AA36: =Z36*(1+'Rhaniad y Ddeiliadaeth (Cymru)'!G$109)+(Z$44*(-(50-$U36)*('Rhaniad y Ddeiliadaeth (Cymru)'!G$110/40))) ->  | AC36: 42 | AD36: =IF('Rhaniad y Ddeiliadaeth (Cymru)'!$D$8="Amcangyfrifon LlC",'Incwm (Cymru)'!E36,'Incwm (Cymru)'!W36) -> £23,198 | AE36: =IF('Rhaniad y Ddeiliadaeth (Cymru)'!$D$8="Amcangyfrifon LlC",'Incwm (Cymru)'!F36,'Incwm (Cymru)'!X36) -> £23,939 | AF36: =IF('Rhaniad y Ddeiliadaeth (Cymru)'!$D$8="Amcangyfrifon LlC",'Incwm (Cymru)'!G36,'Incwm (Cymru)'!Y36) -> £24,701 | AG36: =IF('Rhaniad y Ddeiliadaeth (Cymru)'!$D$8="Amcangyfrifon LlC",'Incwm (Cymru)'!H36,'Incwm (Cymru)'!Z36) -> £25,500 | AH36: =IF('Rhaniad y Ddeiliadaeth (Cymru)'!$D$8="Amcangyfrifon LlC",'Incwm (Cymru)'!I36,'Incwm (Cymru)'!AA36) -> £26,320
B37: 43 | C37: £22,742 | D37: £23,296 | E37: =D37*(1+'Rhaniad y Ddeiliadaeth (Cymru)'!C$109)+(D$44*(-(50-$B37)*('Rhaniad y Ddeiliadaeth (Cymru)'!C$110/40))) -> £23,773 | F37: =E37*(1+'Rhaniad y Ddeiliadaeth (Cymru)'!D$109)+(E$44*(-(50-$B37)*('Rhaniad y Ddeiliadaeth (Cymru)'!D$110/40))) -> £24,540 | G37: =F37*(1+'Rhaniad y Ddeiliadaeth (Cymru)'!E$109)+(F$44*(-(50-$B37)*('Rhaniad y Ddeiliadaeth (Cymru)'!E$110/40))) -> £25,330 | H37: =G37*(1+'Rhaniad y Ddeiliadaeth (Cymru)'!F$109)+(G$44*(-(50-$B37)*('Rhaniad y Ddeiliadaeth (Cymru)'!F$110/40))) -> £26,158 | I37: =H37*(1+'Rhaniad y Ddeiliadaeth (Cymru)'!G$109)+(H$44*(-(50-$B37)*('Rhaniad y Ddeiliadaeth (Cymru)'!G$110/40))) -> £27,008 | O37: 1 | U37: 43 | W37: =IF($W$3=$N$3,N37,V37*(1+'Rhaniad y Ddeiliadaeth (Cymru)'!C$109)+(V$44*(-(50-$U37)*('Rhaniad y Ddeiliadaeth (Cymru)'!C$110/40)))) ->  | X37: =W37*(1+'Rhaniad y Ddeiliadaeth (Cymru)'!D$109)+(W$44*(-(50-$U37)*('Rhaniad y Ddeiliadaeth (Cymru)'!D$110/40))) ->  | Y37: =X37*(1+'Rhaniad y Ddeiliadaeth (Cymru)'!E$109)+(X$44*(-(50-$U37)*('Rhaniad y Ddeiliadaeth (Cymru)'!E$110/40))) ->  | Z37: =Y37*(1+'Rhaniad y Ddeiliadaeth (Cymru)'!F$109)+(Y$44*(-(50-$U37)*('Rhaniad y Ddeiliadaeth (Cymru)'!F$110/40))) ->  | AA37: =Z37*(1+'Rhaniad y Ddeiliadaeth (Cymru)'!G$109)+(Z$44*(-(50-$U37)*('Rhaniad y Ddeiliadaeth (Cymru)'!G$110/40))) ->  | AC37: 43 | AD37: =IF('Rhaniad y Ddeiliadaeth (Cymru)'!$D$8="Amcangyfrifon LlC",'Incwm (Cymru)'!E37,'Incwm (Cymru)'!W37) -> £23,773 | AE37: =IF('Rhaniad y Ddeiliadaeth (Cymru)'!$D$8="Amcangyfrifon LlC",'Incwm (Cymru)'!F37,'Incwm (Cymru)'!X37) -> £24,540 | AF37: =IF('Rhaniad y Ddeiliadaeth (Cymru)'!$D$8="Amcangyfrifon LlC",'Incwm (Cymru)'!G37,'Incwm (Cymru)'!Y37) -> £25,330 | AG37: =IF('Rhaniad y Ddeiliadaeth (Cymru)'!$D$8="Amcangyfrifon LlC",'Incwm (Cymru)'!H37,'Incwm (Cymru)'!Z37) -> £26,158 | AH37: =IF('Rhaniad y Ddeiliadaeth (Cymru)'!$D$8="Amcangyfrifon LlC",'Incwm (Cymru)'!I37,'Incwm (Cymru)'!AA37) -> £27,008
B38: 44 | C38: £23,188 | D38: £23,753 | E38: =D38*(1+'Rhaniad y Ddeiliadaeth (Cymru)'!C$109)+(D$44*(-(50-$B38)*('Rhaniad y Ddeiliadaeth (Cymru)'!C$110/40))) -> £24,246 | F38: =E38*(1+'Rhaniad y Ddeiliadaeth (Cymru)'!D$109)+(E$44*(-(50-$B38)*('Rhaniad y Ddeiliadaeth (Cymru)'!D$110/40))) -> £25,037 | G38: =F38*(1+'Rhaniad y Ddeiliadaeth (Cymru)'!E$109)+(F$44*(-(50-$B38)*('Rhaniad y Ddeiliadaeth (Cymru)'!E$110/40))) -> £25,850 | H38: =G38*(1+'Rhaniad y Ddeiliadaeth (Cymru)'!F$109)+(G$44*(-(50-$B38)*('Rhaniad y Ddeiliadaeth (Cymru)'!F$110/40))) -> £26,703 | I38: =H38*(1+'Rhaniad y Ddeiliadaeth (Cymru)'!G$109)+(H$44*(-(50-$B38)*('Rhaniad y Ddeiliadaeth (Cymru)'!G$110/40))) -> £27,580 | O38: 1 | U38: 44 | W38: =IF($W$3=$N$3,N38,V38*(1+'Rhaniad y Ddeiliadaeth (Cymru)'!C$109)+(V$44*(-(50-$U38)*('Rhaniad y Ddeiliadaeth (Cymru)'!C$110/40)))) ->  | X38: =W38*(1+'Rhaniad y Ddeiliadaeth (Cymru)'!D$109)+(W$44*(-(50-$U38)*('Rhaniad y Ddeiliadaeth (Cymru)'!D$110/40))) ->  | Y38: =X38*(1+'Rhaniad y Ddeiliadaeth (Cymru)'!E$109)+(X$44*(-(50-$U38)*('Rhaniad y Ddeiliadaeth (Cymru)'!E$110/40))) ->  | Z38: =Y38*(1+'Rhaniad y Ddeiliadaeth (Cymru)'!F$109)+(Y$44*(-(50-$U38)*('Rhaniad y Ddeiliadaeth (Cymru)'!F$110/40))) ->  | AA38: =Z38*(1+'Rhaniad y Ddeiliadaeth (Cymru)'!G$109)+(Z$44*(-(50-$U38)*('Rhaniad y Ddeiliadaeth (Cymru)'!G$110/40))) ->  | AC38: 44 | AD38: =IF('Rhaniad y Ddeiliadaeth (Cymru)'!$D$8="Amcangyfrifon LlC",'Incwm (Cymru)'!E38,'Incwm (Cymru)'!W38) -> £24,246 | AE38: =IF('Rhaniad y Ddeiliadaeth (Cymru)'!$D$8="Amcangyfrifon LlC",'Incwm (Cymru)'!F38,'Incwm (Cymru)'!X38) -> £25,037 | AF38: =IF('Rhaniad y Ddeiliadaeth (Cymru)'!$D$8="Amcangyfrifon LlC",'Incwm (Cymru)'!G38,'Incwm (Cymru)'!Y38) -> £25,850 | AG38: =IF('Rhaniad y Ddeiliadaeth (Cymru)'!$D$8="Amcangyfrifon LlC",'Incwm (Cymru)'!H38,'Incwm (Cymru)'!Z38) -> £26,703 | AH38: =IF('Rhaniad y Ddeiliadaeth (Cymru)'!$D$8="Amcangyfrifon LlC",'Incwm (Cymru)'!I38,'Incwm (Cymru)'!AA38) -> £27,580
B39: 45 | C39: £23,785 | D39: £24,365 | E39: =D39*(1+'Rhaniad y Ddeiliadaeth (Cymru)'!C$109)+(D$44*(-(50-$B39)*('Rhaniad y Ddeiliadaeth (Cymru)'!C$110/40))) -> £24,879 | F39: =E39*(1+'Rhaniad y Ddeiliadaeth (Cymru)'!D$109)+(E$44*(-(50-$B39)*('Rhaniad y Ddeiliadaeth (Cymru)'!D$110/40))) -> £25,697 | G39: =F39*(1+'Rhaniad y Ddeiliadaeth (Cymru)'!E$109)+(F$44*(-(50-$B39)*('Rhaniad y Ddeiliadaeth (Cymru)'!E$110/40))) -> £26,541 | H39: =G39*(1+'Rhaniad y Ddeiliadaeth (Cymru)'!F$109)+(G$44*(-(50-$B39)*('Rhaniad y Ddeiliadaeth (Cymru)'!F$110/40))) -> £27,425 | I39: =H39*(1+'Rhaniad y Ddeiliadaeth (Cymru)'!G$109)+(H$44*(-(50-$B39)*('Rhaniad y Ddeiliadaeth (Cymru)'!G$110/40))) -> £28,334 | O39: 1 | U39: 45 | W39: =IF($W$3=$N$3,N39,V39*(1+'Rhaniad y Ddeiliadaeth (Cymru)'!C$109)+(V$44*(-(50-$U39)*('Rhaniad y Ddeiliadaeth (Cymru)'!C$110/40)))) ->  | X39: =W39*(1+'Rhaniad y Ddeiliadaeth (Cymru)'!D$109)+(W$44*(-(50-$U39)*('Rhaniad y Ddeiliadaeth (Cymru)'!D$110/40))) ->  | Y39: =X39*(1+'Rhaniad y Ddeiliadaeth (Cymru)'!E$109)+(X$44*(-(50-$U39)*('Rhaniad y Ddeiliadaeth (Cymru)'!E$110/40))) ->  | Z39: =Y39*(1+'Rhaniad y Ddeiliadaeth (Cymru)'!F$109)+(Y$44*(-(50-$U39)*('Rhaniad y Ddeiliadaeth (Cymru)'!F$110/40))) ->  | AA39: =Z39*(1+'Rhaniad y Ddeiliadaeth (Cymru)'!G$109)+(Z$44*(-(50-$U39)*('Rhaniad y Ddeiliadaeth (Cymru)'!G$110/40))) ->  | AC39: 45 | AD39: =IF('Rhaniad y Ddeiliadaeth (Cymru)'!$D$8="Amcangyfrifon LlC",'Incwm (Cymru)'!E39,'Incwm (Cymru)'!W39) -> £24,879 | AE39: =IF('Rhaniad y Ddeiliadaeth (Cymru)'!$D$8="Amcangyfrifon LlC",'Incwm (Cymru)'!F39,'Incwm (Cymru)'!X39) -> £25,697 | AF39: =IF('Rhaniad y Ddeiliadaeth (Cymru)'!$D$8="Amcangyfrifon LlC",'Incwm (Cymru)'!G39,'Incwm (Cymru)'!Y39) -> £26,541 | AG39: =IF('Rhaniad y Ddeiliadaeth (Cymru)'!$D$8="Amcangyfrifon LlC",'Incwm (Cymru)'!H39,'Incwm (Cymru)'!Z39) -> £27,425 | AH39: =IF('Rhaniad y Ddeiliadaeth (Cymru)'!$D$8="Amcangyfrifon LlC",'Incwm (Cymru)'!I39,'Incwm (Cymru)'!AA39) -> £28,334
B40: 46 | C40: £24,291 | D40: £24,883 | E40: =D40*(1+'Rhaniad y Ddeiliadaeth (Cymru)'!C$109)+(D$44*(-(50-$B40)*('Rhaniad y Ddeiliadaeth (Cymru)'!C$110/40))) -> £25,415 | F40: =E40*(1+'Rhaniad y Ddeiliadaeth (Cymru)'!D$109)+(E$44*(-(50-$B40)*('Rhaniad y Ddeiliadaeth (Cymru)'!D$110/40))) -> £26,259 | G40: =F40*(1+'Rhaniad y Ddeiliadaeth (Cymru)'!E$109)+(F$44*(-(50-$B40)*('Rhaniad y Ddeiliadaeth (Cymru)'!E$110/40))) -> £27,128 | H40: =G40*(1+'Rhaniad y Ddeiliadaeth (Cymru)'!F$109)+(G$44*(-(50-$B40)*('Rhaniad y Ddeiliadaeth (Cymru)'!F$110/40))) -> £28,040 | I40: =H40*(1+'Rhaniad y Ddeiliadaeth (Cymru)'!G$109)+(H$44*(-(50-$B40)*('Rhaniad y Ddeiliadaeth (Cymru)'!G$110/40))) -> £28,977 | O40: 1 | U40: 46 | W40: =IF($W$3=$N$3,N40,V40*(1+'Rhaniad y Ddeiliadaeth (Cymru)'!C$109)+(V$44*(-(50-$U40)*('Rhaniad y Ddeiliadaeth (Cymru)'!C$110/40)))) ->  | X40: =W40*(1+'Rhaniad y Ddeiliadaeth (Cymru)'!D$109)+(W$44*(-(50-$U40)*('Rhaniad y Ddeiliadaeth (Cymru)'!D$110/40))) ->  | Y40: =X40*(1+'Rhaniad y Ddeiliadaeth (Cymru)'!E$109)+(X$44*(-(50-$U40)*('Rhaniad y Ddeiliadaeth (Cymru)'!E$110/40))) ->  | Z40: =Y40*(1+'Rhaniad y Ddeiliadaeth (Cymru)'!F$109)+(Y$44*(-(50-$U40)*('Rhaniad y Ddeiliadaeth (Cymru)'!F$110/40))) ->  | AA40: =Z40*(1+'Rhaniad y Ddeiliadaeth (Cymru)'!G$109)+(Z$44*(-(50-$U40)*('Rhaniad y Ddeiliadaeth (Cymru)'!G$110/40))) ->  | AC40: 46 | AD40: =IF('Rhaniad y Ddeiliadaeth (Cymru)'!$D$8="Amcangyfrifon LlC",'Incwm (Cymru)'!E40,'Incwm (Cymru)'!W40) -> £25,415 | AE40: =IF('Rhaniad y Ddeiliadaeth (Cymru)'!$D$8="Amcangyfrifon LlC",'Incwm (Cymru)'!F40,'Incwm (Cymru)'!X40) -> £26,259 | AF40: =IF('Rhaniad y Ddeiliadaeth (Cymru)'!$D$8="Amcangyfrifon LlC",'Incwm (Cymru)'!G40,'Incwm (Cymru)'!Y40) -> £27,128 | AG40: =IF('Rhaniad y Ddeiliadaeth (Cymru)'!$D$8="Amcangyfrifon LlC",'Incwm (Cymru)'!H40,'Incwm (Cymru)'!Z40) -> £28,040 | AH40: =IF('Rhaniad y Ddeiliadaeth (Cymru)'!$D$8="Amcangyfrifon LlC",'Incwm (Cymru)'!I40,'Incwm (Cymru)'!AA40) -> £28,977
B41: 47 | C41: £24,789 | D41: £25,394 | E41: =D41*(1+'Rhaniad y Ddeiliadaeth (Cymru)'!C$109)+(D$44*(-(50-$B41)*('Rhaniad y Ddeiliadaeth (Cymru)'!C$110/40))) -> £25,944 | F41: =E41*(1+'Rhaniad y Ddeiliadaeth (Cymru)'!D$109)+(E$44*(-(50-$B41)*('Rhaniad y Ddeiliadaeth (Cymru)'!D$110/40))) -> £26,813 | G41: =F41*(1+'Rhaniad y Ddeiliadaeth (Cymru)'!E$109)+(F$44*(-(50-$B41)*('Rhaniad y Ddeiliadaeth (Cymru)'!E$110/40))) -> £27,708 | H41: =G41*(1+'Rhaniad y Ddeiliadaeth (Cymru)'!F$109)+(G$44*(-(50-$B41)*('Rhaniad y Ddeiliadaeth (Cymru)'!F$110/40))) -> £28,647 | I41: =H41*(1+'Rhaniad y Ddeiliadaeth (Cymru)'!G$109)+(H$44*(-(50-$B41)*('Rhaniad y Ddeiliadaeth (Cymru)'!G$110/40))) -> £29,613 | O41: 1 | U41: 47 | W41: =IF($W$3=$N$3,N41,V41*(1+'Rhaniad y Ddeiliadaeth (Cymru)'!C$109)+(V$44*(-(50-$U41)*('Rhaniad y Ddeiliadaeth (Cymru)'!C$110/40)))) ->  | X41: =W41*(1+'Rhaniad y Ddeiliadaeth (Cymru)'!D$109)+(W$44*(-(50-$U41)*('Rhaniad y Ddeiliadaeth (Cymru)'!D$110/40))) ->  | Y41: =X41*(1+'Rhaniad y Ddeiliadaeth (Cymru)'!E$109)+(X$44*(-(50-$U41)*('Rhaniad y Ddeiliadaeth (Cymru)'!E$110/40))) ->  | Z41: =Y41*(1+'Rhaniad y Ddeiliadaeth (Cymru)'!F$109)+(Y$44*(-(50-$U41)*('Rhaniad y Ddeiliadaeth (Cymru)'!F$110/40))) ->  | AA41: =Z41*(1+'Rhaniad y Ddeiliadaeth (Cymru)'!G$109)+(Z$44*(-(50-$U41)*('Rhaniad y Ddeiliadaeth (Cymru)'!G$110/40))) ->  | AC41: 47 | AD41: =IF('Rhaniad y Ddeiliadaeth (Cymru)'!$D$8="Amcangyfrifon LlC",'Incwm (Cymru)'!E41,'Incwm (Cymru)'!W41) -> £25,944 | AE41: =IF('Rhaniad y Ddeiliadaeth (Cymru)'!$D$8="Amcangyfrifon LlC",'Incwm (Cymru)'!F41,'Incwm (Cymru)'!X41) -> £26,813 | AF41: =IF('Rhaniad y Ddeiliadaeth (Cymru)'!$D$8="Amcangyfrifon LlC",'Incwm (Cymru)'!G41,'Incwm (Cymru)'!Y41) -> £27,708 | AG41: =IF('Rhaniad y Ddeiliadaeth (Cymru)'!$D$8="Amcangyfrifon LlC",'Incwm (Cymru)'!H41,'Incwm (Cymru)'!Z41) -> £28,647 | AH41: =IF('Rhaniad y Ddeiliadaeth (Cymru)'!$D$8="Amcangyfrifon LlC",'Incwm (Cymru)'!I41,'Incwm (Cymru)'!AA41) -> £29,613
